Workbook

Sheet start
C4: اختر نوع الطباعة
A6: كنترول الصف الاول جدارات _ عام | K6: ارقام الجلوس
C9: شيت الرصد | E9: شهادة نصف العام | H9: نتيجة شئون الطلاب
K13: شيت جدارات
C14: اعمال السنة | E14: شهادة اخر العام | H14: نتيجة الإدارة
C19: اوائل الطلاب | E19: احصاء الأقسام | H19: غاف نتيجة الإدارة
K20: شيت جدارات
C24: m
B30: اللهم اجعل هذا العمل خالصا لوجهك الكريم

Sheet gdarat
A1: 1 | B1: فني _ نماذج وسباكة معادن | C1: الامن والسلامة المهنية | D1: تجهيز الاعمال الأساسية لانتاج نماذج المسبوكات | E1: تنفيذ الاعمال الأساسية لانتاج نماذج المسبوكات | F1: جدارات بيئية 1 | G1: التجهيز لانتاج المسبوكات البسيطة | H1: تشكيل القوالب الرملية البسيطة | I1: جدارات بيئية 2
A2: 2 | B2: فني _ تشغيل معادن | C2: الامن والسلامة المهنية | D2: تجهيز الاعمال الأساسية لتشغيل المعادن | E2: تنفيذ الاعمال الأساسية لتشغيل المعادن | F2: جدارات بيئية 1 | G2: ماكينة الخراطة | H2: عمليات التشغيل الأساسية على ماكينة الخراطة | I2: جدارات بيئية 2
A3: 3 | B3: فني _ صيانة وإصلاح سيارات | C3: السلامة والصحة المهنية | D3: عمليات التشغيل الأساسية لفني السيارت | E3: مبادئ الرسم الفني | F3: جدارات بيئية 1 | G3: العدد والأدوات والمعدات لورش السيارات | H3: صيانة وإصلاح الأنظمة الكهربية | I3: جدارات بيئية 2
A4: 4 | B4: فني _ أجهزة الكترونية | C4: السلامة والصحة المهنية | D4: رسم الدوائر الالكترونية | E4: اساسيات الورشة الكترونية | F4: جدارات بيئية 1 | G4: الدوائر الرقمية والمنطقية | H4: أجهزة القياس الالكترونية | I4: جدارات بيئية 2
A5: 5 | B5: فني _ تكنولوجيا حاسبات | C5: السلامة والصحة المهنية | D5: اساسيات الحاسب | E5: جدارات بيئية 1 | F5: الدوائر الرقمية والمنطقية | G5: تجميع أجهزة الحاسب الالي | H5: الرسم الفني | I5: جدارات بيئية 2
A6: 6 | B6: فني _ لحام و تشكيل_معادن | C6: الامن والسلامة المهنية | D6: التجهيز لانتاج الأجزاء الميكانيكية الدورية | E6: تنفيذ انتاج الأجزاء الميكانيكية الدورية | F6: جدارات بيئية 1 | G6: تجهيز الماكينات المختلفة لاعمال التشكيل | H6: تشكيل المعادن على البارد | I6: اللحام والقطع باللهب الاوكسي استلين | J6: جدارات بيئية 2
A7: 7 | B7: فني _ الات كهربية | C7: اساسيات الورشة الكهربية | D7: أجهزة القياس | E7: مكونات الدوائر الكهربية | F7: المغناطيسية الكهربية | G7: جدارات بيئية 1 | H7: الرسم الفني | I7: بناء واختبار الدوائر الالكترونية الأساسية | J7: جدارات بيئية 2
A8: 8 | B8: فني _ طاقة شمسية | C8: اساسيات الورشة الكهربية | D8: أجهزة القياس | E8: المكونات والدوائر الكهربية | F8: اساسيات الطاقة المتجددة | G8: جدارات بيئية 1 | H8: مبادئ الرسم الفني | I8: تنفيذ الدوائر الالكترونية الأساسية | J8: جدارات بيئية 2
A9: 9 | B9: فني _ تبريد وتكييف الهواء | C9: الامن والسلامة المهنية | D9: الرسم الفني | E9: تنفيذ عمليات تشكيل الصاج وتوصيله | F9: تنفيذ عمليات تشكيل المواسير ولحامها | G9: تنفيذ التوصيلات والدوائر الكهربية | H9: جدارات بيئية 1 | I9: تشغيل وصيانة وإصلاح الدوائر الكهربية للثلاجات | J9: صيانة وإصلاح الدوائر الميكانيكية للثلاجات | K9: جدارات بيئية 2
A10: 10 | B10: فني _ بتروكيماويات | C10: الامن والسلامة المهنية | D10: التجهيز لكيماويات وتنفيذ عمليات القياس | E10: تنفيذ عمليات بتروكيماويات بسيطة | F10: الرسم الفني1 | G10: جدارات بيئية 1 | H10: تحليل المياه كهروكيميائيا | I10: تنفيذ عملية صناعة الصابون الصلب والسائل | J10: تنفيذ مشروع بسيط لانتاج بدائل الصابون | K10: الرسم الفني2 | L10: جدارات بيئية 2

Sheet num
A1: 1 | B1: فني _ نماذج وسباكة معادن | C1: 24 | D1: 1/1 | E1: كنترول _ الجدارات | F1: ا / ………… | G1: محافظة : ....................
A2: 2 | B2: فني _ تشغيل معادن | C2: 35 | D2: 3/1 | E2: كنترول _ المواد الثقافية | F2: ا / …………… | G2: إدارة : ........................
A3: 3 | B3: فني _ صيانة وإصلاح سيارات | C3: 35 | D3: 6/1 | E3: رئيس غرفة التقييم والتحقق | F3: ا / …………… | G3: مدرسة : ......................
A4: 4 | B4: فني _ أجهزة الكترونية | C4: 29 | D4: 8/1 | E4: مدير المدرسة : | F4: ا / ……………
A5: 5 | B5: فني _ تكنولوجيا حاسبات | C5: 31 | D5: 9/1
A6: 6 | B6: فني _ لحام و تشكيل_معادن | C6: 31 | D6: 2/1
A7: 7 | B7: فني _ الات كهربية | C7: 31 | D7: 4/1
A8: 8 | B8: فني _ طاقة شمسية | C8: 21 | D8: 5/1
A9: 9 | B9: فني _ تبريد وتكييف الهواء | C9: 30 | D9: 10/1
A10: 10 | B10: فني _ بتروكيماويات | C10: 27 | D10: 7/1

Sheet data
A1: 1 | B1: =A1+1 -> 2 | C1: =B1+1 -> 3 | D1: 4 | E1: 5 | F1: 6 | G1: 7 | H1: 8 | I1: 9 | J1: 10 | K1: =J1+1 -> 11 | L1: 12 | M1: 13 | N1: 14 | O1: 15 | P1: 16 | Q1: 17 | R1: 18 | S1: 19 | T1: 20 | U1: 21 | V1: 22 | W1: 23 | X1: 24 | Y1: 25 | Z1: 26 | AA1: 27 | AB1: 28 | AC1: 29 | AD1: 30 | AE1: 31 | AF1: =AE1+1 -> 32 | AG1: =AF1+1 -> 33 | AH1: =AG1+1 -> 34 | AL1: 5/1
A2: م | B2: اسم الطالب | C2: بيان الطالب | D2: رقم الجلوس | E2: الفصل | F2: سري _ المراقبة | G2: اللغة العربية | H2: اللغة الانجليزية | I2: رياضيات | J2: فيزياء | K2: كيمياء | L2: دراسات | M2: حاسب | N2: المجموع الكلي | O2: تربية وطنية | P2: تربية دينية | Q2: تربية عسكرية | R2: جدارات التيرم الأول و التيرم الثاني | AB2: بيان الطالب | AC2: مواد الرسوب | AD2: تفقيط الدرجة | AE2: ربع الدرجة | AF2: اللجنة | AG2: المبنى | AH2: الأوائل | AJ2: =IF(AI4=ntiga!$AA$2,COUNTIF($AI$4:AI4,ntiga!$AA$2),"") ->  | AK2: =IF($AL$1=E4,COUNTIF($E$4:E4,$AL$1),"") ->  | BF2: 1 | BG2: 1/1 | BH2: فني _ تشكيل معادن | BI2: 38
R3: 1 | S3: 2 | T3: 3 | U3: 4 | V3: 5 | W3: 6 | X3: 7 | Y3: 8 | Z3: 9 | AA3: 10 | AJ3: =IF(AI5=ntiga!$AA$2,COUNTIF($AI$4:AI5,ntiga!$AA$2),"") ->  | AK3: =IF($AL$1=E5,COUNTIF($E$4:E5,$AL$1),"") ->  | BF3: 2 | BG3: 2/1 | BH3: فني _ تشغيل معادن | BI3: 26
A4: 1 | B4: ابو _ حبيبه 1 | C4: باق | D4: 201 | E4: 1/1 | F4: 401 | G4: 24 | H4: 24 | I4: 14 | J4: 17 | K4: 16 | L4: 17 | M4: 16 | N4: 128 | O4: 19 | P4: 18 | Q4: 14 | R4: اجتاز | S4: اجتاز | T4: اجتاز | U4: اجتاز | V4: اجتاز | W4: اجتاز | X4: اجتاز | AB4: دور ثان مادتين | AC4: لغة عربية رياضيات تربية عسكرية | AD4: فقط تسعة وسبعون درجة لاغير | AE4: لغة عربية | AF4: { 14 } | AG4: مبنى التبريد | AI4: =IF(B4=0,"",num!$B$1) -> فني _ نماذج وسباكة معادن | AJ4: =IF(AI6=ntiga!$AA$2,COUNTIF($AI$4:AI6,ntiga!$AA$2),"") ->  | AK4: =IF($AL$1=E6,COUNTIF($E$4:E6,$AL$1),"") ->  | BF4: 3 | BG4: 3/1 | BH4: فني _ تشغيل معادن | BI4: 18
A5: 2 | B5: ابو _ حبيبه 2 | C5: مستجد | D5: =D4+1 -> 202 | E5: 1/1 | F5: =F4+1 -> 402 | G5: 26 | H5: 24 | I5: 12 | J5: 16 | K5: 15 | L5: 16 | M5: 15 | N5: 124 | O5: 18 | P5: 20 | Q5: 14 | R5: اجتاز | S5: اجتاز | T5: اجتاز | U5: اجتاز | V5: اجتاز | W5: اجتاز | X5: اجتاز | AB5: راسب وله حق الإعادة | AD5: فقط اثنان وثمانون درجة لاغير | AE5: لغة عربية لغة انجليزية | AF5: { 14 } | AG5: مبنى التبريد | AI5: =IF(B5=0,"",num!$B$1) -> فني _ نماذج وسباكة معادن | AJ5: =IF(AI7=ntiga!$AA$2,COUNTIF($AI$4:AI7,ntiga!$AA$2),"") ->  | AK5: =IF($AL$1=E7,COUNTIF($E$4:E7,$AL$1),"") ->  | BF5: 4 | BG5: 4/1 | BH5: فني _ الات كهربية | BI5: 24
A6: 3 | B6: ابو _ حبيبه 3 | C6: مستجد | D6: =D5+1 -> 203 | E6: 1/1 | F6: =F5+1 -> 403 | G6: 23 | H6: 23 | I6: 14 | J6: 17 | K6: 16 | L6: 17 | M6: 16 | N6: 126 | O6: 18 | P6: 20 | Q6: 18 | R6: اجتاز | S6: اجتاز | T6: اجتاز | U6: اجتاز | V6: اجتاز | W6: اجتاز | X6: اجتاز | AB6: دور ثان مادتين | AC6: لغة عربية رياضيات تربية عسكرية | AD6: فقط سبعة وسبعون درجة لاغير | AF6: { 14 } | AG6: مبنى التبريد | AI6: =IF(B6=0,"",num!$B$1) -> فني _ نماذج وسباكة معادن | AJ6: =IF(AI8=ntiga!$AA$2,COUNTIF($AI$4:AI8,ntiga!$AA$2),"") ->  | AK6: =IF($AL$1=E8,COUNTIF($E$4:E8,$AL$1),"") ->  | BF6: 5 | BG6: 5/1 | BH6: فني _ الات كهربية | BI6: 20
A7: 4 | B7: ابو _ حبيبه 4 | C7: مستجد | D7: =D6+1 -> 204 | E7: 1/1 | F7: 404 | G7: 23 | H7: 23 | I7: 18 | J7: 19 | K7: 18 | L7: 19 | M7: 17 | N7: 137 | O7: 18 | P7: 20 | Q7: 13 | R7: اجتاز | S7: اجتاز | T7: اجتاز | U7: اجتاز | V7: اجتاز | W7: اجتاز | X7: اجتاز | AB7: دور ثان مادة | AC7: لغة عربية تربية عسكرية | AD7: فقط أربعة وسبعون درجة لاغير | AF7: { 14 } | AG7: مبنى التبريد | AI7: =IF(B7=0,"",num!$B$1) -> فني _ نماذج وسباكة معادن | AJ7: =IF(AI9=ntiga!$AA$2,COUNTIF($AI$4:AI9,ntiga!$AA$2),"") ->  | AK7: =IF($AL$1=E9,COUNTIF($E$4:E9,$AL$1),"") ->  | BF7: 6 | BG7: 6/1 | BH7: فني _ صيانة وإصلاح سيارات | BI7: 28
A8: 5 | B8: ابو _ حبيبه 5 | C8: مستجد | D8: 205 | E8: 1/1 | F8: 405 | G8: 22 | H8: 23 | I8: 14 | J8: 17 | K8: 16 | L8: 17 | M8: 16 | N8: 125 | O8: 16 | P8: 19 | Q8: 18 | R8: اجتاز | S8: اجتاز | T8: اجتاز | U8: اجتاز | V8: اجتاز | W8: اجتاز | X8: اجتاز | AB8: دور ثان مادتين | AC8: لغة عربية رياضيات تربية عسكرية | AD8: فقط ستة وسبعون درجة لاغير | AE8: لغة عربية | AF8: { 14 } | AG8: مبنى التبريد | AI8: =IF(B8=0,"",num!$B$1) -> فني _ نماذج وسباكة معادن | AJ8: =IF(AI10=ntiga!$AA$2,COUNTIF($AI$4:AI10,ntiga!$AA$2),"") ->  | AK8: =IF($AL$1=E10,COUNTIF($E$4:E10,$AL$1),"") ->  | BF8: 7 | BG8: 7/1 | BH8: فني _ صيانة وإصلاح سيارات | BI8: 19
A9: 6 | B9: ابو _ حبيبه 6 | C9: مستجد | D9: 206 | E9: 1/1 | F9: 406 | G9: 22 | H9: 22 | I9: 14 | J9: 16 | K9: 15 | L9: 17 | M9: 16 | N9: 122 | O9: 15 | P9: 18 | Q9: 13 | R9: اجتاز | S9: اجتاز | T9: اجتاز | U9: اجتاز | V9: اجتاز | W9: اجتاز | X9: اجتاز | AB9: دور ثان مادتين | AC9: لغة عربية رياضيات تربية عسكرية | AD9: فقط ثلاثة وسبعون درجة لاغير | AE9: لغة عربية | AF9: { 14 } | AG9: مبنى التبريد | AI9: =IF(B9=0,"",num!$B$1) -> فني _ نماذج وسباكة معادن | AJ9: =IF(AI11=ntiga!$AA$2,COUNTIF($AI$4:AI11,ntiga!$AA$2),"") ->  | AK9: =IF($AL$1=E11,COUNTIF($E$4:E11,$AL$1),"") ->  | BF9: 8 | BG9: 8/1 | BH9: فني _ بتروكيماويات | BI9: 39
A10: 7 | B10: ابو _ حبيبه 7 | C10: مستجد | D10: 207 | E10: 1/1 | F10: 407 | G10: 25 | H10: 22 | I10: 16 | J10: 17 | K10: 17 | L10: 18 | M10: 17 | N10: 132 | O10: 16 | P10: 19 | Q10: 17 | R10: اجتاز | S10: اجتاز | T10: اجتاز | U10: اجتاز | V10: اجتاز | W10: اجتاز | X10: اجتاز | AB10: ناجح ومنقول للصف الثاني | AC10: تربية عسكرية | AD10: فقط ستة وسبعون درجة لاغير | AF10: { 14 } | AG10: مبنى التبريد | AI10: =IF(B10=0,"",num!$B$1) -> فني _ نماذج وسباكة معادن | AJ10: =IF(AI12=ntiga!$AA$2,COUNTIF($AI$4:AI12,ntiga!$AA$2),"") ->  | AK10: =IF($AL$1=E12,COUNTIF($E$4:E12,$AL$1),"") ->  | BF10: 9 | BG10: 9/1 | BH10: فني _ أجهزة الكترونية | BI10: 27
A11: 8 | B11: ابو _ حبيبه 8 | C11: مستجد | D11: 208 | E11: 1/1 | F11: 408 | G11: 31 | H11: 29 | I11: 26 | J11: 13 | K11: 12 | L11: 12 | M11: 12 | N11: 135 | O11: 15 | P11: 18 | Q11: 14 | R11: اجتاز | S11: اجتاز | T11: اجتاز | U11: اجتاز | V11: اجتاز | W11: اجتاز | X11: اجتاز | AB11: راسب وله حق الإعادة | AD11: فقط أربعة وثمانون درجة لاغير | AF11: { 14 } | AG11: مبنى التبريد | AI11: =IF(B11=0,"",num!$B$1) -> فني _ نماذج وسباكة معادن | AJ11: =IF(AI13=ntiga!$AA$2,COUNTIF($AI$4:AI13,ntiga!$AA$2),"") ->  | AK11: =IF($AL$1=E13,COUNTIF($E$4:E13,$AL$1),"") ->  | BF11: 10 | BG11: 10/1 | BH11: فني _ أجهزة الكترونية | BI11: 20
A12: 9 | B12: ابو _ حبيبه 9 | C12: مفصول | D12: 209 | E12: 1/1 | F12: 409 | G12: 0 | H12: 0 | I12: 0 | J12: 0 | K12: 0 | L12: 0 | M12: 0 | N12: 0 | O12: 9 | P12: 9 | Q12: 0 | R12: لم يجتاز | S12: لم يجتاز | T12: اجتاز | U12: لم يجتاز | V12: لم يجتاز | W12: لم يجتاز | X12: لم يجتاز | AB12: راسب وله حق الإعادة | AD12: صفر | AF12: { 14 } | AG12: مبنى التبريد | AI12: =IF(B12=0,"",num!$B$1) -> فني _ نماذج وسباكة معادن | AJ12: =IF(AI14=ntiga!$AA$2,COUNTIF($AI$4:AI14,ntiga!$AA$2),"") ->  | AK12: =IF($AL$1=E14,COUNTIF($E$4:E14,$AL$1),"") ->  | BF12: 11 | BG12: 11/1 | BH12: فني _ تكنولوجيا حاسبات | BI12: 30
A13: 10 | B13: ابو _ حبيبه 10 | C13: مستجد | D13: 210 | E13: 1/1 | F13: 410 | G13: 24 | H13: 29 | I13: 22 | J13: 20 | K13: 20 | L13: 12 | M13: 20 | N13: 147 | O13: 15 | P13: 19 | Q13: 23 | R13: اجتاز | S13: اجتاز | T13: اجتاز | U13: اجتاز | V13: اجتاز | W13: اجتاز | X13: اجتاز | AB13: دور ثان مادتين | AC13: لغة عربية الدراسات الاجتماعية تربية عسكرية | AD13: فقط تسعة وسبعون درجة لاغير | AE13: الدراسات الاجتماعية | AF13: { 14 } | AG13: مبنى التبريد | AI13: =IF(B13=0,"",num!$B$1) -> فني _ نماذج وسباكة معادن | AJ13: =IF(AI15=ntiga!$AA$2,COUNTIF($AI$4:AI15,ntiga!$AA$2),"") ->  | AK13: =IF($AL$1=E15,COUNTIF($E$4:E15,$AL$1),"") ->  | BF13: 12 | BG13: 12/1 | BH13: فني _ تكنولوجيا حاسبات | BI13: 20
A14: 11 | B14: ابو _ حبيبه 11 | C14: مستجد | D14: 211 | E14: 1/1 | F14: 411 | G14: 22 | H14: 21 | I14: 14 | J14: 17 | K14: 16 | L14: 17 | M14: 16 | N14: 123 | O14: 17 | P14: 19 | Q14: 14 | R14: اجتاز | S14: اجتاز | T14: اجتاز | U14: اجتاز | V14: اجتاز | W14: اجتاز | X14: اجتاز | AB14: دور ثان مادتين | AC14: لغة عربية رياضيات تربية عسكرية | AD14: فقط أربعة وسبعون درجة لاغير | AE14: لغة عربية | AF14: { 14 } | AG14: مبنى التبريد | AI14: =IF(B14=0,"",num!$B$1) -> فني _ نماذج وسباكة معادن | AJ14: =IF(AI16=ntiga!$AA$2,COUNTIF($AI$4:AI16,ntiga!$AA$2),"") ->  | AK14: =IF($AL$1=E16,COUNTIF($E$4:E16,$AL$1),"") ->  | BF14: 13 | BG14: 13/1 | BH14: فني _ تبريد وتكييف الهواء | BI14: 29
A15: 12 | B15: ابو _ حبيبه 12 | C15: مستجد | D15: 212 | E15: 1/1 | F15: 412 | G15: 24 | H15: 23 | I15: 14 | J15: 17 | K15: 17 | L15: 17 | M15: 16 | N15: 128 | O15: 18 | P15: 19 | Q15: 23 | R15: اجتاز | S15: اجتاز | T15: اجتاز | U15: اجتاز | V15: اجتاز | W15: اجتاز | X15: اجتاز | AB15: دور ثان مادتين | AC15: لغة عربية رياضيات تربية عسكرية | AD15: فقط تسعة وسبعون درجة لاغير | AE15: لغة عربية | AF15: { 14 } | AG15: مبنى التبريد | AI15: =IF(B15=0,"",num!$B$1) -> فني _ نماذج وسباكة معادن | AJ15: =IF(AI17=ntiga!$AA$2,COUNTIF($AI$4:AI17,ntiga!$AA$2),"") ->  | AK15: =IF($AL$1=E17,COUNTIF($E$4:E17,$AL$1),"") ->  | BF15: 14 | BG15: 14/1 | BH15: فني _ تبريد وتكييف الهواء | BI15: 19
A16: 13 | B16: ابو _ حبيبه 13 | C16: مستجد | D16: 213 | E16: 1/1 | F16: 413 | G16: 26 | H16: 22 | I16: 12 | J16: 16 | K16: 16 | L16: 16 | M16: 15 | N16: 123 | O16: 8 | P16: 9 | Q16: 14 | R16: اجتاز | S16: اجتاز | T16: اجتاز | U16: اجتاز | V16: اجتاز | W16: اجتاز | X16: اجتاز | AB16: دور ثان مادتين | AC16: لغة عربية رياضيات تربية وطنية تربية دينية تربية عسكرية | AD16: فقط واحد وثمانون درجة لاغير | AE16: لغة عربية تربية وطنية | AF16: { 14 } | AG16: مبنى التبريد | AI16: =IF(B16=0,"",num!$B$1) -> فني _ نماذج وسباكة معادن | AJ16: =IF(AI18=ntiga!$AA$2,COUNTIF($AI$4:AI18,ntiga!$AA$2),"") ->  | AK16: =IF($AL$1=E18,COUNTIF($E$4:E18,$AL$1),"") ->  | BG16: 15/1
A17: 14 | B17: ابو _ حبيبه 14 | C17: مستجد | D17: 214 | E17: 1/1 | F17: 414 | G17: 21 | H17: 21 | I17: 12 | J17: 16 | K17: 16 | L17: 16 | M17: 15 | N17: 117 | O17: 18 | P17: 19 | Q17: 22 | R17: اجتاز | S17: اجتاز | T17: اجتاز | U17: اجتاز | V17: اجتاز | W17: اجتاز | X17: اجتاز | AB17: راسب وله حق الإعادة | AD17: فقط خمسة وسبعون درجة لاغير | AE17: لغة عربية لغة انجليزية | AF17: { 14 } | AG17: مبنى التبريد | AI17: =IF(B17=0,"",num!$B$1) -> فني _ نماذج وسباكة معادن | AJ17: =IF(AI19=ntiga!$AA$2,COUNTIF($AI$4:AI19,ntiga!$AA$2),"") ->  | AK17: =IF($AL$1=E19,COUNTIF($E$4:E19,$AL$1),"") ->  | BG17: 16/1
A18: 15 | B18: ابو _ حبيبه 15 | C18: مستجد | D18: 215 | E18: 1/1 | F18: 415 | G18: 23 | H18: 22 | I18: 14 | J18: 17 | K18: 17 | L18: 17 | M18: 16 | N18: 126 | O18: 19 | P18: 20 | Q18: 13 | R18: اجتاز | S18: اجتاز | T18: اجتاز | U18: اجتاز | V18: اجتاز | W18: اجتاز | X18: اجتاز | AB18: دور ثان مادتين | AC18: لغة عربية رياضيات تربية عسكرية | AD18: فقط سبعة وسبعون درجة لاغير | AE18: لغة عربية | AF18: { 15 } | AG18: مبنى التبريد | AI18: =IF(B18=0,"",num!$B$1) -> فني _ نماذج وسباكة معادن | AJ18: =IF(AI20=ntiga!$AA$2,COUNTIF($AI$4:AI20,ntiga!$AA$2),"") ->  | AK18: =IF($AL$1=E20,COUNTIF($E$4:E20,$AL$1),"") ->  | BG18: 17/1
A19: 16 | B19: ابو _ حبيبه 16 | C19: مستجد | D19: 216 | E19: 1/1 | F19: 416 | G19: 31 | H19: 30 | I19: 24 | J19: 12 | K19: 12 | L19: 12 | M19: 11 | N19: 132 | O19: 19 | P19: 20 | Q19: 23 | R19: اجتاز | S19: اجتاز | T19: اجتاز | U19: اجتاز | V19: اجتاز | W19: اجتاز | X19: اجتاز | AB19: راسب وله حق الإعادة | AD19: فقط ثمانية وثمانون درجة لاغير | AF19: { 15 } | AG19: مبنى التبريد | AI19: =IF(B19=0,"",num!$B$1) -> فني _ نماذج وسباكة معادن | AJ19: =IF(AI21=ntiga!$AA$2,COUNTIF($AI$4:AI21,ntiga!$AA$2),"") ->  | AK19: =IF($AL$1=E21,COUNTIF($E$4:E21,$AL$1),"") ->  | BG19: 18/1
A20: 17 | B20: ابو _ حبيبه 17 | C20: مستجد | D20: 217 | E20: 1/1 | F20: 417 | G20: 32 | H20: 31 | I20: 26 | J20: 13 | K20: 13 | L20: 13 | M20: 12 | N20: 140 | O20: 19 | P20: 20 | Q20: 23 | R20: اجتاز | S20: اجتاز | T20: اجتاز | U20: اجتاز | V20: اجتاز | W20: اجتاز | X20: اجتاز | AB20: راسب وله حق الإعادة | AD20: فقط تسعة وثمانون درجة لاغير | AF20: { 15 } | AG20: مبنى التبريد | AI20: =IF(B20=0,"",num!$B$1) -> فني _ نماذج وسباكة معادن | AJ20: =IF(AI22=ntiga!$AA$2,COUNTIF($AI$4:AI22,ntiga!$AA$2),"") ->  | AK20: =IF($AL$1=E22,COUNTIF($E$4:E22,$AL$1),"") ->  | BG20: 19/1
A21: 18 | B21: ابو _ حبيبه 18 | C21: مستجد | D21: 218 | E21: 1/1 | F21: 418 | G21: 26 | H21: 28 | I21: 20 | J21: 20 | K21: 20 | L21: 20 | M21: 19 | N21: 153 | O21: 19 | P21: 20 | Q21: 13 | R21: اجتاز | S21: اجتاز | T21: اجتاز | U21: اجتاز | V21: اجتاز | W21: اجتاز | X21: اجتاز | AB21: ناجح ومنقول للصف الثاني | AC21: تربية عسكرية | AD21: فقط ثلاثة وثمانون درجة لاغير | AF21: { 15 } | AG21: مبنى التبريد | AI21: =IF(B21=0,"",num!$B$1) -> فني _ نماذج وسباكة معادن | AJ21: =IF(AI23=ntiga!$AA$2,COUNTIF($AI$4:AI23,ntiga!$AA$2),"") ->  | AK21: =IF($AL$1=E23,COUNTIF($E$4:E23,$AL$1),"") ->  | BG21: 20/1
A22: 19 | B22: ابو _ حبيبه 19 | C22: باق | D22: 219 | E22: 1/1 | F22: 419 | G22: 33 | H22: 25 | I22: 26 | J22: 13 | K22: 13 | L22: 13 | M22: 12 | N22: 135 | O22: 19 | P22: 20 | Q22: 18 | R22: اجتاز | S22: اجتاز | T22: اجتاز | U22: اجتاز | V22: اجتاز | W22: اجتاز | X22: اجتاز | AB22: راسب وليس له حق الاعادة | AD22: فقط أربعة وثمانون درجة لاغير | AF22: { 15 } | AG22: مبنى التبريد | AI22: =IF(B22=0,"",num!$B$1) -> فني _ نماذج وسباكة معادن | AJ22: =IF(AI24=ntiga!$AA$2,COUNTIF($AI$4:AI24,ntiga!$AA$2),"") ->  | AK22: =IF($AL$1=E24,COUNTIF($E$4:E24,$AL$1),"") ->  | BG22: 21/1
A23: 20 | B23: ابو _ حبيبه 20 | C23: مستجد | D23: 220 | E23: 1/1 | F23: 420 | G23: 24 | H23: 27 | I23: 22 | J23: 12 | K23: 12 | L23: 12 | M23: 20 | N23: 129 | O23: 19 | P23: 20 | Q23: 14 | R23: اجتاز | S23: اجتاز | T23: اجتاز | U23: اجتاز | V23: اجتاز | W23: اجتاز | X23: اجتاز | AB23: راسب وله حق الإعادة | AD23: فقط تسعة وسبعون درجة لاغير | AF23: { 15 } | AG23: مبنى التبريد | AI23: =IF(B23=0,"",num!$B$1) -> فني _ نماذج وسباكة معادن | AJ23: =IF(AI25=ntiga!$AA$2,COUNTIF($AI$4:AI25,ntiga!$AA$2),"") ->  | AK23: =IF($AL$1=E25,COUNTIF($E$4:E25,$AL$1),"") ->  | BG23: 22/1
A24: 21 | B24: ابو _ حبيبه 21 | C24: مستجد | D24: 221 | E24: 1/1 | F24: 421 | G24: 30 | H24: 29 | I24: 24 | J24: 12 | K24: 12 | L24: 12 | M24: 11 | N24: 130 | O24: 19 | P24: 20 | Q24: 23 | R24: اجتاز | S24: اجتاز | T24: اجتاز | U24: اجتاز | V24: اجتاز | W24: اجتاز | X24: اجتاز | AB24: راسب وله حق الإعادة | AD24: فقط ستة وثمانون درجة لاغير | AF24: { 15 } | AG24: مبنى التبريد | AI24: =IF(B24=0,"",num!$B$1) -> فني _ نماذج وسباكة معادن | AJ24: =IF(AI26=ntiga!$AA$2,COUNTIF($AI$4:AI26,ntiga!$AA$2),"") ->  | AK24: =IF($AL$1=E26,COUNTIF($E$4:E26,$AL$1),"") ->  | BG24: 23/1
A25: 22 | B25: ابو _ حبيبه 22 | C25: مستجد | D25: 222 | E25: 1/1 | F25: 422 | G25: 20 | H25: 22 | I25: 14 | J25: 17 | K25: 17 | L25: 17 | M25: 16 | N25: 123 | O25: 19 | P25: 20 | Q25: 14 | R25: اجتاز | S25: اجتاز | T25: اجتاز | U25: اجتاز | V25: اجتاز | W25: اجتاز | X25: اجتاز | AB25: دور ثان مادتين | AC25: لغة عربية رياضيات تربية عسكرية | AD25: فقط أربعة وسبعون درجة لاغير | AE25: لغة عربية | AF25: { 15 } | AG25: مبنى التبريد | AI25: =IF(B25=0,"",num!$B$1) -> فني _ نماذج وسباكة معادن | AJ25: =IF(AI27=ntiga!$AA$2,COUNTIF($AI$4:AI27,ntiga!$AA$2),"") ->  | AK25: =IF($AL$1=E27,COUNTIF($E$4:E27,$AL$1),"") ->  | BG25: 24/1
A26: 23 | B26: ابو _ حبيبه 23 | C26: مستجد | D26: 223 | E26: 1/1 | F26: 423 | G26: 21 | H26: 22 | I26: 12 | J26: 16 | K26: 16 | L26: 16 | M26: 15 | N26: 118 | O26: 18 | P26: 20 | Q26: 13 | R26: اجتاز | S26: اجتاز | T26: اجتاز | U26: اجتاز | V26: اجتاز | W26: اجتاز | X26: اجتاز | AB26: دور ثان مادتين | AC26: لغة عربية رياضيات تربية عسكرية | AD26: فقط ستة وسبعون درجة لاغير | AE26: لغة عربية | AF26: { 15 } | AG26: مبنى التبريد | AI26: =IF(B26=0,"",num!$B$1) -> فني _ نماذج وسباكة معادن | AJ26: =IF(AI28=ntiga!$AA$2,COUNTIF($AI$4:AI28,ntiga!$AA$2),"") ->  | AK26: =IF($AL$1=E28,COUNTIF($E$4:E28,$AL$1),"") -> 
A27: 24 | B27: ابو _ حبيبه 24 | C27: مستجد | D27: 224 | E27: 1/1 | F27: 424 | G27: 26 | H27: 27 | I27: 16 | J27: 18 | K27: 18 | L27: 18 | M27: 17 | N27: 140 | O27: 19 | P27: 20 | Q27: 13 | R27: اجتاز | S27: اجتاز | T27: اجتاز | U27: اجتاز | V27: اجتاز | W27: اجتاز | X27: اجتاز | AB27: ناجح ومنقول للصف الثاني | AC27: تربية عسكرية | AD27: فقط أربعة وثمانون درجة لاغير | AF27: { 15 } | AG27: مبنى التبريد | AI27: =IF(B27=0,"",num!$B$1) -> فني _ نماذج وسباكة معادن | AJ27: =IF(AI29=ntiga!$AA$2,COUNTIF($AI$4:AI29,ntiga!$AA$2),"") ->  | AK27: =IF($AL$1=E29,COUNTIF($E$4:E29,$AL$1),"") -> 
A28: 25 | B28: ابو _ حبيبه 25 | C28: مستجد | D28: 225 | E28: 2/1 | F28: 425 | G28: 26 | H28: 26 | I28: 19 | J28: 10 | K28: 10 | L28: 10 | M28: 9 | N28: 110 | O28: 7 | P28: 10 | Q28: 23 | R28: اجتاز | S28: اجتاز | T28: اجتاز | U28: اجتاز | V28: اجتاز | W28: اجتاز | X28: اجتاز | Y28: اجتاز | AB28: راسب وله حق الإعادة | AD28: فقط تسعة وثمانون درجة لاغير | AF28: { 12 } | AG28: مبنى السيارات | AI28: =IF(B28=0,"",num!$B$6) -> فني _ لحام و تشكيل_معادن | AJ28: =IF(AI30=ntiga!$AA$2,COUNTIF($AI$4:AI30,ntiga!$AA$2),"") ->  | AK28: =IF($AL$1=E30,COUNTIF($E$4:E30,$AL$1),"") -> 
A29: 26 | B29: ابو _ حبيبه 26 | C29: باق | D29: 226 | E29: 2/1 | F29: 426 | G29: 26 | H29: 21 | I29: 12 | J29: 10 | K29: 10 | L29: 10 | M29: 8 | N29: 97 | O29: 9 | P29: 10 | Q29: 13 | R29: اجتاز | S29: اجتاز | T29: اجتاز | U29: اجتاز | V29: اجتاز | W29: اجتاز | X29: اجتاز | Y29: اجتاز | AB29: راسب وليس له حق الاعادة | AD29: فقط تسعة وسبعون درجة لاغير | AF29: { 12 } | AG29: مبنى السيارات | AI29: =IF(B29=0,"",num!$B$6) -> فني _ لحام و تشكيل_معادن | AJ29: =IF(AI31=ntiga!$AA$2,COUNTIF($AI$4:AI31,ntiga!$AA$2),"") ->  | AK29: =IF($AL$1=E31,COUNTIF($E$4:E31,$AL$1),"") -> 
A30: 27 | B30: ابو _ حبيبه 27 | C30: مستجد | D30: 227 | E30: 2/1 | F30: 427 | G30: 28 | H30: 26 | I30: 15 | J30: 10 | K30: 9 | L30: 10 | M30: 8 | N30: 106 | O30: 9 | P30: 10 | Q30: 15 | R30: اجتاز | S30: اجتاز | T30: اجتاز | U30: اجتاز | V30: اجتاز | W30: اجتاز | X30: اجتاز | Y30: اجتاز | AB30: راسب وله حق الإعادة | AD30: فقط خمسة وثمانون درجة لاغير | AF30: { 12 } | AG30: مبنى السيارات | AI30: =IF(B30=0,"",num!$B$6) -> فني _ لحام و تشكيل_معادن | AJ30: =IF(AI32=ntiga!$AA$2,COUNTIF($AI$4:AI32,ntiga!$AA$2),"") ->  | AK30: =IF($AL$1=E32,COUNTIF($E$4:E32,$AL$1),"") -> 
A31: 28 | B31: ابو _ حبيبه 28 | C31: مستجد | D31: 228 | E31: 2/1 | F31: 428 | G31: 29 | H31: 27 | I31: 16 | J31: 20 | K31: 19 | L31: 20 | M31: 18 | N31: 149 | O31: 19 | P31: 20 | Q31: 24 | R31: اجتاز | S31: اجتاز | T31: اجتاز | U31: اجتاز | V31: اجتاز | W31: اجتاز | X31: اجتاز | Y31: اجتاز | AB31: ناجح ومنقول للصف الثاني | AC31: تربية عسكرية | AD31: فقط اثنان وثمانون درجة لاغير | AE31: تربية وطنيةتربية عسكرية | AF31: { 12 } | AG31: مبنى السيارات | AI31: =IF(B31=0,"",num!$B$6) -> فني _ لحام و تشكيل_معادن | AJ31: =IF(AI33=ntiga!$AA$2,COUNTIF($AI$4:AI33,ntiga!$AA$2),"") ->  | AK31: =IF($AL$1=E33,COUNTIF($E$4:E33,$AL$1),"") -> 
A32: 29 | B32: ابو _ حبيبه 29 | C32: مستجد | D32: 229 | E32: 2/1 | F32: 429 | G32: 21 | H32: 23 | I32: 13 | J32: 18 | K32: 19 | L32: 20 | M32: 18 | N32: 132 | O32: 19 | P32: 20 | Q32: 15 | R32: اجتاز | S32: اجتاز | T32: اجتاز | U32: اجتاز | V32: اجتاز | W32: اجتاز | X32: اجتاز | Y32: اجتاز | AB32: دور ثان مادتين | AC32: لغة عربية رياضيات تربية عسكرية | AD32: فقط واحد وسبعون درجة لاغير | AE32: لغة عربية تربية وطنيةتربية عسكرية | AF32: { 12 } | AG32: مبنى السيارات | AI32: =IF(B32=0,"",num!$B$6) -> فني _ لحام و تشكيل_معادن | AJ32: =IF(AI34=ntiga!$AA$2,COUNTIF($AI$4:AI34,ntiga!$AA$2),"") ->  | AK32: =IF($AL$1=E34,COUNTIF($E$4:E34,$AL$1),"") -> 
A33: 30 | B33: ابو _ حبيبه 30 | C33: مستجد | D33: 230 | E33: 2/1 | F33: 430 | G33: 27 | H33: 23 | I33: 14 | J33: 20 | K33: 18 | L33: 20 | M33: 18 | N33: 140 | O33: 19 | P33: 20 | Q33: 15 | R33: اجتاز | S33: اجتاز | T33: اجتاز | U33: اجتاز | V33: اجتاز | W33: اجتاز | X33: اجتاز | Y33: اجتاز | AB33: دور ثان مادتين | AC33: لغة عربية رياضيات تربية عسكرية | AD33: فقط تسعة وسبعون درجة لاغير | AE33: لغة عربية تربية وطنيةتربية عسكرية | AF33: { 13 } | AG33: مبنى السيارات | AI33: =IF(B33=0,"",num!$B$6) -> فني _ لحام و تشكيل_معادن | AJ33: =IF(AI35=ntiga!$AA$2,COUNTIF($AI$4:AI35,ntiga!$AA$2),"") ->  | AK33: =IF($AL$1=E35,COUNTIF($E$4:E35,$AL$1),"") -> 
A34: 31 | B34: ابو _ حبيبه 31 | C34: مستجد | D34: 231 | E34: 2/1 | F34: 431 | G34: 26 | H34: 20 | I34: 14 | J34: 20 | K34: 20 | L34: 19 | M34: 18 | N34: 137 | O34: 19 | P34: 20 | Q34: 15 | R34: اجتاز | S34: اجتاز | T34: اجتاز | U34: اجتاز | V34: اجتاز | W34: اجتاز | X34: اجتاز | Y34: اجتاز | AB34: دور ثان مادة | AC34: رياضيات تربية عسكرية | AD34: فقط ثلاثة وسبعون درجة لاغير | AE34: تربية وطنيةتربية عسكرية | AF34: { 13 } | AG34: مبنى السيارات | AI34: =IF(B34=0,"",num!$B$6) -> فني _ لحام و تشكيل_معادن | AJ34: =IF(AI36=ntiga!$AA$2,COUNTIF($AI$4:AI36,ntiga!$AA$2),"") ->  | AK34: =IF($AL$1=E36,COUNTIF($E$4:E36,$AL$1),"") -> 
A35: 32 | B35: ابو _ حبيبه 32 | C35: مستجد | D35: 232 | E35: 2/1 | F35: 432 | G35: 33 | H35: 31 | I35: 19 | J35: 19 | K35: 19 | L35: 19 | M35: 18 | N35: 158 | O35: 18 | P35: 19 | Q35: 15 | R35: اجتاز | S35: اجتاز | T35: اجتاز | U35: اجتاز | V35: اجتاز | W35: اجتاز | X35: اجتاز | Y35: اجتاز | AB35: ناجح ومنقول للصف الثاني | AC35: تربية عسكرية | AD35: فقط ثلاثة وثمانون درجة لاغير | AE35: تربية وطنيةتربية عسكرية | AF35: { 13 } | AG35: مبنى السيارات | AI35: =IF(B35=0,"",num!$B$6) -> فني _ لحام و تشكيل_معادن | AJ35: =IF(AI37=ntiga!$AA$2,COUNTIF($AI$4:AI37,ntiga!$AA$2),"") ->  | AK35: =IF($AL$1=E37,COUNTIF($E$4:E37,$AL$1),"") -> 
A36: 33 | B36: ابو _ حبيبه 33 | C36: مستجد | D36: 233 | E36: 2/1 | F36: 433 | G36: 18 | H36: 15 | I36: 6 | J36: 19 | K36: 19 | L36: 19 | M36: 17 | N36: 113 | O36: 18 | P36: 19 | Q36: 24 | R36: اجتاز | S36: اجتاز | T36: اجتاز | U36: اجتاز | V36: اجتاز | W36: اجتاز | X36: اجتاز | Y36: اجتاز | AB36: راسب وله حق الإعادة | AD36: فقط سبعة وسبعون درجة لاغير | AF36: { 13 } | AG36: مبنى السيارات | AI36: =IF(B36=0,"",num!$B$6) -> فني _ لحام و تشكيل_معادن | AJ36: =IF(AI38=ntiga!$AA$2,COUNTIF($AI$4:AI38,ntiga!$AA$2),"") ->  | AK36: =IF($AL$1=E38,COUNTIF($E$4:E38,$AL$1),"") -> 
A37: 34 | B37: ابو _ حبيبه 34 | C37: مستجد | D37: 234 | E37: 2/1 | F37: 434 | G37: 32 | H37: 27 | I37: 21 | J37: 20 | K37: 20 | L37: 20 | M37: 18 | N37: 158 | O37: 18 | P37: 20 | Q37: 24 | R37: اجتاز | S37: اجتاز | T37: اجتاز | U37: اجتاز | V37: اجتاز | W37: اجتاز | X37: اجتاز | Y37: اجتاز | AB37: ناجح ومنقول للصف الثاني | AC37: تربية عسكرية | AD37: فقط خمسة وثمانون درجة لاغير | AE37: تربية وطنيةتربية عسكرية | AF37: { 13 } | AG37: مبنى السيارات | AI37: =IF(B37=0,"",num!$B$6) -> فني _ لحام و تشكيل_معادن | AJ37: =IF(AI39=ntiga!$AA$2,COUNTIF($AI$4:AI39,ntiga!$AA$2),"") ->  | AK37: =IF($AL$1=E39,COUNTIF($E$4:E39,$AL$1),"") -> 
A38: 35 | B38: ابو _ حبيبه 35 | C38: مستجد | D38: 235 | E38: 2/1 | F38: 435 | G38: 30 | H38: 24 | I38: 20 | J38: 18 | K38: 19 | L38: 19 | M38: 17 | N38: 147 | O38: 18 | P38: 19 | Q38: 24 | R38: اجتاز | S38: اجتاز | T38: اجتاز | U38: اجتاز | V38: اجتاز | W38: اجتاز | X38: اجتاز | Y38: اجتاز | AB38: دور ثان مادة | AC38: لغة عربية تربية عسكرية | AD38: فقط تسعون درجة لاغير | AE38: لغة عربية تربية وطنيةتربية عسكرية | AF38: { 13 } | AG38: مبنى السيارات | AI38: =IF(B38=0,"",num!$B$6) -> فني _ لحام و تشكيل_معادن | AJ38: =IF(AI40=ntiga!$AA$2,COUNTIF($AI$4:AI40,ntiga!$AA$2),"") ->  | AK38: =IF($AL$1=E40,COUNTIF($E$4:E40,$AL$1),"") -> 
A39: 36 | B39: ابو _ حبيبه 36 | C39: مستجد | D39: 236 | E39: 2/1 | F39: 436 | G39: 26 | H39: 26 | I39: 13 | J39: 18 | K39: 19 | L39: 19 | M39: 17 | N39: 138 | O39: 18 | P39: 19 | Q39: 24 | R39: اجتاز | S39: اجتاز | T39: اجتاز | U39: اجتاز | V39: اجتاز | W39: اجتاز | X39: اجتاز | Y39: اجتاز | AB39: دور ثان مادتين | AC39: لغة عربية رياضيات تربية عسكرية | AD39: فقط واحد وثمانون درجة لاغير | AE39: لغة عربية تربية وطنيةتربية عسكرية | AF39: { 13 } | AG39: مبنى السيارات | AI39: =IF(B39=0,"",num!$B$6) -> فني _ لحام و تشكيل_معادن | AJ39: =IF(AI41=ntiga!$AA$2,COUNTIF($AI$4:AI41,ntiga!$AA$2),"") ->  | AK39: =IF($AL$1=E41,COUNTIF($E$4:E41,$AL$1),"") -> 
A40: 37 | B40: ابو _ حبيبه 37 | C40: باق | D40: 237 | E40: 2/1 | F40: 437 | G40: 26 | H40: 21 | I40: 14 | J40: 18 | K40: 19 | L40: 19 | M40: 17 | N40: 134 | O40: 17 | P40: 19 | Q40: 14 | R40: اجتاز | S40: اجتاز | T40: اجتاز | U40: اجتاز | V40: اجتاز | W40: اجتاز | X40: اجتاز | Y40: اجتاز | AB40: دور ثان مادتين | AC40: لغة عربية رياضيات تربية عسكرية | AD40: فقط ثمانون درجة لاغير | AE40: لغة عربية تربية وطنيةتربية عسكرية | AF40: { 13 } | AG40: مبنى السيارات | AI40: =IF(B40=0,"",num!$B$6) -> فني _ لحام و تشكيل_معادن | AJ40: =IF(AI42=ntiga!$AA$2,COUNTIF($AI$4:AI42,ntiga!$AA$2),"") ->  | AK40: =IF($AL$1=E42,COUNTIF($E$4:E42,$AL$1),"") -> 
A41: 38 | B41: ابو _ حبيبه 38 | C41: مستجد | D41: 238 | E41: 2/1 | F41: 438 | G41: 26 | H41: 22 | I41: 14 | J41: 19 | K41: 19 | L41: 19 | M41: 17 | N41: 136 | O41: 18 | P41: 19 | Q41: 19 | R41: اجتاز | S41: اجتاز | T41: اجتاز | U41: اجتاز | V41: اجتاز | W41: اجتاز | X41: اجتاز | Y41: اجتاز | AB41: راسب وله حق الإعادة | AD41: فقط اثنان وثمانون درجة لاغير | AF41: { 13 } | AG41: مبنى السيارات | AI41: =IF(B41=0,"",num!$B$6) -> فني _ لحام و تشكيل_معادن | AJ41: =IF(AI43=ntiga!$AA$2,COUNTIF($AI$4:AI43,ntiga!$AA$2),"") ->  | AK41: =IF($AL$1=E43,COUNTIF($E$4:E43,$AL$1),"") -> 
A42: 39 | B42: ابو _ حبيبه 39 | C42: مستجد | D42: 239 | E42: 2/1 | F42: 439 | G42: 27 | H42: 23 | I42: 14 | J42: 20 | K42: 20 | L42: 20 | M42: 19 | N42: 143 | O42: 19 | P42: 20 | Q42: 15 | R42: اجتاز | S42: اجتاز | T42: اجتاز | U42: اجتاز | V42: اجتاز | W42: اجتاز | X42: اجتاز | Y42: اجتاز | AB42: دور ثان مادتين | AC42: لغة عربية رياضيات تربية عسكرية | AD42: فقط اثنان وثمانون درجة لاغير | AE42: لغة عربية تربية وطنيةتربية عسكرية | AF42: { 13 } | AG42: مبنى السيارات | AI42: =IF(B42=0,"",num!$B$6) -> فني _ لحام و تشكيل_معادن | AJ42: =IF(AI44=ntiga!$AA$2,COUNTIF($AI$4:AI44,ntiga!$AA$2),"") ->  | AK42: =IF($AL$1=E44,COUNTIF($E$4:E44,$AL$1),"") -> 
A43: 40 | B43: ابو _ حبيبه 40 | C43: مستجد | D43: 240 | E43: 2/1 | F43: 440 | G43: 32 | H43: 29 | I43: 17 | J43: 10 | K43: 10 | L43: 10 | M43: 9 | N43: 117 | O43: 9 | P43: 10 | Q43: 24 | R43: اجتاز | S43: اجتاز | T43: اجتاز | U43: اجتاز | V43: اجتاز | W43: اجتاز | X43: اجتاز | Y43: اجتاز | AB43: راسب وله حق الإعادة | AD43: فقط واحد وثمانون درجة لاغير | AF43: { 13 } | AG43: مبنى السيارات | AI43: =IF(B43=0,"",num!$B$6) -> فني _ لحام و تشكيل_معادن | AJ43: =IF(AI45=ntiga!$AA$2,COUNTIF($AI$4:AI45,ntiga!$AA$2),"") ->  | AK43: =IF($AL$1=E45,COUNTIF($E$4:E45,$AL$1),"") -> 
A44: 41 | B44: ابو _ حبيبه 41 | C44: مستجد | D44: 241 | E44: 2/1 | F44: 441 | G44: 33 | H44: 30 | I44: 25 | J44: 20 | K44: 20 | L44: 20 | M44: 18 | N44: 166 | O44: 19 | P44: 20 | Q44: 15 | R44: اجتاز | S44: اجتاز | T44: اجتاز | U44: اجتاز | V44: اجتاز | W44: اجتاز | X44: اجتاز | Y44: اجتاز | AB44: ناجح ومنقول للصف الثاني | AC44: تربية عسكرية | AD44: فقط سبعة وثمانون درجة لاغير | AE44: تربية وطنيةتربية عسكرية | AF44: { 13 } | AG44: مبنى السيارات | AI44: =IF(B44=0,"",num!$B$6) -> فني _ لحام و تشكيل_معادن | AJ44: =IF(AI46=ntiga!$AA$2,COUNTIF($AI$4:AI46,ntiga!$AA$2),"") ->  | AK44: =IF($AL$1=E46,COUNTIF($E$4:E46,$AL$1),"") -> 
A45: 42 | B45: ابو _ حبيبه 42 | C45: مستجد | D45: 242 | E45: 2/1 | F45: 442 | G45: 30 | H45: 27 | I45: 19 | J45: 20 | K45: 20 | L45: 19 | M45: 18 | N45: 153 | O45: 19 | P45: 20 | Q45: 24 | R45: اجتاز | S45: اجتاز | T45: اجتاز | U45: اجتاز | V45: اجتاز | W45: اجتاز | X45: اجتاز | Y45: اجتاز | AB45: ناجح ومنقول للصف الثاني | AC45: تربية عسكرية | AD45: فقط ثلاثة وثمانون درجة لاغير | AE45: تربية وطنيةتربية عسكرية | AF45: { 13 } | AG45: مبنى السيارات | AI45: =IF(B45=0,"",num!$B$6) -> فني _ لحام و تشكيل_معادن | AJ45: =IF(AI47=ntiga!$AA$2,COUNTIF($AI$4:AI47,ntiga!$AA$2),"") ->  | AK45: =IF($AL$1=E47,COUNTIF($E$4:E47,$AL$1),"") -> 
A46: 43 | B46: ابو _ حبيبه 43 | C46: مستجد | D46: 243 | E46: 2/1 | F46: 443 | G46: 35 | H46: 28 | I46: 22 | J46: 20 | K46: 20 | L46: 20 | M46: 16 | N46: 161 | O46: 18 | P46: 20 | Q46: 23 | R46: اجتاز | S46: اجتاز | T46: اجتاز | U46: اجتاز | V46: اجتاز | W46: اجتاز | X46: اجتاز | Y46: اجتاز | AB46: ناجح ومنقول للصف الثاني | AC46: تربية عسكرية | AD46: فقط اثنان وثمانون درجة لاغير | AE46: تربية وطنيةتربية عسكرية | AF46: { 13 } | AG46: مبنى السيارات | AI46: =IF(B46=0,"",num!$B$6) -> فني _ لحام و تشكيل_معادن | AJ46: =IF(AI48=ntiga!$AA$2,COUNTIF($AI$4:AI48,ntiga!$AA$2),"") ->  | AK46: =IF($AL$1=E48,COUNTIF($E$4:E48,$AL$1),"") -> 
A47: 44 | B47: ابو _ حبيبه 44 | C47: مستجد | D47: 244 | E47: 2/1 | F47: 444 | G47: 33 | H47: 27 | I47: 22 | J47: 20 | K47: 20 | L47: 20 | M47: 19 | N47: 161 | O47: 18 | P47: 20 | Q47: 24 | R47: اجتاز | S47: اجتاز | T47: اجتاز | U47: اجتاز | V47: اجتاز | W47: اجتاز | X47: اجتاز | Y47: اجتاز | AB47: ناجح ومنقول للصف الثاني | AC47: تربية عسكرية | AD47: فقط ثمانية وثمانون درجة لاغير | AE47: تربية وطنيةتربية عسكرية | AF47: { 13 } | AG47: مبنى السيارات | AI47: =IF(B47=0,"",num!$B$6) -> فني _ لحام و تشكيل_معادن | AJ47: =IF(AI49=ntiga!$AA$2,COUNTIF($AI$4:AI49,ntiga!$AA$2),"") ->  | AK47: =IF($AL$1=E49,COUNTIF($E$4:E49,$AL$1),"") -> 
A48: 45 | B48: ابو _ حبيبه 45 | C48: مستجد | D48: 245 | E48: 2/1 | F48: 445 | G48: 32 | H48: 25 | I48: 19 | J48: 20 | K48: 20 | L48: 20 | M48: 16 | N48: 152 | O48: 18 | P48: 20 | Q48: 14 | R48: اجتاز | S48: اجتاز | T48: اجتاز | U48: اجتاز | V48: اجتاز | W48: اجتاز | X48: اجتاز | Y48: اجتاز | AB48: ناجح ومنقول للصف الثاني | AC48: تربية عسكرية | AD48: فقط ستة وسبعون درجة لاغير | AE48: تربية وطنيةتربية عسكرية | AF48: { 13 } | AG48: مبنى السيارات | AI48: =IF(B48=0,"",num!$B$6) -> فني _ لحام و تشكيل_معادن | AJ48: =IF(AI50=ntiga!$AA$2,COUNTIF($AI$4:AI50,ntiga!$AA$2),"") ->  | AK48: =IF($AL$1=E50,COUNTIF($E$4:E50,$AL$1),"") -> 
A49: 46 | B49: ابو _ حبيبه 46 | C49: مستجد | D49: 246 | E49: 2/1 | F49: 446 | G49: 25 | H49: 20 | I49: 14 | J49: 20 | K49: 19 | L49: 20 | M49: 15 | N49: 133 | O49: 19 | P49: 20 | Q49: 19 | R49: اجتاز | S49: اجتاز | T49: اجتاز | U49: اجتاز | V49: اجتاز | W49: اجتاز | X49: اجتاز | Y49: اجتاز | AB49: دور ثان مادتين | AC49: لغة عربية رياضيات تربية عسكرية | AD49: فقط اثنان وسبعون درجة لاغير | AE49: لغة عربية تربية وطنيةتربية عسكرية | AF49: { 13 } | AG49: مبنى السيارات | AI49: =IF(B49=0,"",num!$B$6) -> فني _ لحام و تشكيل_معادن | AJ49: =IF(AI51=ntiga!$AA$2,COUNTIF($AI$4:AI51,ntiga!$AA$2),"") ->  | AK49: =IF($AL$1=E51,COUNTIF($E$4:E51,$AL$1),"") -> 
A50: 47 | B50: ابو _ حبيبه 47 | C50: مستجد | D50: 247 | E50: 2/1 | F50: 447 | G50: 24 | H50: 19 | I50: 12 | J50: 20 | K50: 20 | L50: 20 | M50: 18 | N50: 133 | O50: 19 | P50: 20 | Q50: 15 | R50: اجتاز | S50: اجتاز | T50: اجتاز | U50: اجتاز | V50: اجتاز | W50: اجتاز | X50: اجتاز | Y50: اجتاز | AB50: راسب وله حق الإعادة | AD50: فقط خمسة وسبعون درجة لاغير | AE50: لغة عربية تربية وطنيةتربية عسكرية | AF50: { 13 } | AG50: مبنى السيارات | AI50: =IF(B50=0,"",num!$B$6) -> فني _ لحام و تشكيل_معادن | AJ50: =IF(AI52=ntiga!$AA$2,COUNTIF($AI$4:AI52,ntiga!$AA$2),"") ->  | AK50: =IF($AL$1=E52,COUNTIF($E$4:E52,$AL$1),"") -> 
A51: 48 | B51: ابو _ حبيبه 48 | C51: مستجد | D51: 248 | E51: 2/1 | F51: 448 | G51: 27 | H51: 24 | I51: 17 | J51: 20 | K51: 20 | L51: 20 | M51: 17 | N51: 145 | O51: 19 | P51: 20 | Q51: 13 | R51: اجتاز | S51: اجتاز | T51: اجتاز | U51: اجتاز | V51: اجتاز | W51: اجتاز | X51: اجتاز | Y51: اجتاز | AB51: ناجح ومنقول للصف الثاني | AC51: تربية عسكرية | AD51: فقط واحد وثمانون درجة لاغير | AE51: تربية وطنيةتربية عسكرية | AF51: { 13 } | AG51: مبنى السيارات | AI51: =IF(B51=0,"",num!$B$6) -> فني _ لحام و تشكيل_معادن | AJ51: =IF(AI53=ntiga!$AA$2,COUNTIF($AI$4:AI53,ntiga!$AA$2),"") ->  | AK51: =IF($AL$1=E53,COUNTIF($E$4:E53,$AL$1),"") -> 
A52: 49 | B52: ابو _ حبيبه 49 | C52: مستجد | D52: 249 | E52: 2/1 | F52: 449 | G52: 19 | H52: 10 | I52: 7 | J52: 20 | K52: 19 | L52: 20 | M52: 17 | N52: 112 | O52: 19 | P52: 20 | Q52: 13 | R52: اجتاز | S52: اجتاز | T52: اجتاز | U52: اجتاز | V52: اجتاز | W52: اجتاز | X52: اجتاز | Y52: اجتاز | AB52: راسب وله حق الإعادة | AD52: فقط اثنان وسبعون درجة لاغير | AF52: { 13 } | AG52: مبنى السيارات | AI52: =IF(B52=0,"",num!$B$6) -> فني _ لحام و تشكيل_معادن | AJ52: =IF(AI54=ntiga!$AA$2,COUNTIF($AI$4:AI54,ntiga!$AA$2),"") ->  | AK52: =IF($AL$1=E54,COUNTIF($E$4:E54,$AL$1),"") -> 
A53: 50 | B53: ابو _ حبيبه 50 | C53: مفصول | D53: 250 | E53: 2/1 | F53: 450 | G53: 0 | H53: 0 | I53: 0 | J53: 10 | K53: 10 | L53: 10 | M53: 10 | N53: 40 | O53: 10 | P53: 10 | Q53: 0 | R53: لم يجتاز | S53: لم يجتاز | T53: لم يجتاز | U53: لم يجتاز | V53: لم يجتاز | W53: لم يجتاز | X53: لم يجتاز | Y53: لم يجتاز | AB53: راسب وله حق الإعادة | AD53: صفر | AF53: { 14 } | AG53: مبنى التبريد | AI53: =IF(B53=0,"",num!$B$6) -> فني _ لحام و تشكيل_معادن | AJ53: =IF(AI55=ntiga!$AA$2,COUNTIF($AI$4:AI55,ntiga!$AA$2),"") ->  | AK53: =IF($AL$1=E55,COUNTIF($E$4:E55,$AL$1),"") -> 
A54: 51 | B54: ابو _ حبيبه 51 | C54: مستجد | D54: 251 | E54: 2/1 | F54: 451 | G54: 32 | H54: 29 | I54: 25 | J54: 20 | K54: 19 | L54: 20 | M54: 17 | N54: 162 | O54: 17 | P54: 20 | Q54: 18 | R54: اجتاز | S54: اجتاز | T54: اجتاز | U54: اجتاز | V54: اجتاز | W54: اجتاز | X54: اجتاز | Y54: اجتاز | AB54: ناجح ومنقول للصف الثاني | AC54: تربية عسكرية | AD54: فقط تسعة وثمانون درجة لاغير | AE54: تربية وطنيةتربية عسكرية | AF54: { 14 } | AG54: مبنى التبريد | AI54: =IF(B54=0,"",num!$B$6) -> فني _ لحام و تشكيل_معادن | AJ54: =IF(AI56=ntiga!$AA$2,COUNTIF($AI$4:AI56,ntiga!$AA$2),"") ->  | AK54: =IF($AL$1=E56,COUNTIF($E$4:E56,$AL$1),"") -> 
A55: 52 | B55: ابو _ حبيبه 52 | C55: مستجد | D55: 252 | E55: 2/1 | F55: 452 | G55: 27 | H55: 25 | I55: 18 | J55: 8 | K55: 6 | L55: 9 | M55: 8 | N55: 101 | O55: 9 | P55: 10 | Q55: 23 | R55: اجتاز | S55: اجتاز | T55: اجتاز | U55: اجتاز | V55: اجتاز | W55: اجتاز | X55: اجتاز | Y55: اجتاز | AB55: راسب وله حق الإعادة | AD55: فقط خمسة وستون درجة لاغير | AF55: { 14 } | AG55: مبنى التبريد | AI55: =IF(B55=0,"",num!$B$6) -> فني _ لحام و تشكيل_معادن | AJ55: =IF(AI57=ntiga!$AA$2,COUNTIF($AI$4:AI57,ntiga!$AA$2),"") ->  | AK55: =IF($AL$1=E57,COUNTIF($E$4:E57,$AL$1),"") -> 
A56: 53 | B56: ابو _ حبيبه 53 | C56: مستجد | D56: 253 | E56: 2/1 | F56: 453 | G56: 22 | H56: 22 | I56: 11 | J56: 10 | K56: 7 | L56: 9 | M56: 8 | N56: 89 | O56: 9 | P56: 10 | Q56: 22 | R56: اجتاز | S56: اجتاز | T56: اجتاز | U56: اجتاز | V56: اجتاز | W56: اجتاز | X56: اجتاز | Y56: اجتاز | AB56: راسب وله حق الإعادة | AD56: فقط ثمانية وستون درجة لاغير | AF56: { 14 } | AG56: مبنى التبريد | AI56: =IF(B56=0,"",num!$B$6) -> فني _ لحام و تشكيل_معادن | AJ56: =IF(AI58=ntiga!$AA$2,COUNTIF($AI$4:AI58,ntiga!$AA$2),"") ->  | AK56: =IF($AL$1=E58,COUNTIF($E$4:E58,$AL$1),"") -> 
A57: 54 | B57: ابو _ حبيبه 54 | C57: مستجد | D57: 254 | E57: 2/1 | F57: 454 | G57: 22 | H57: 18 | I57: 12 | J57: 10 | K57: 8 | L57: 8 | M57: 7 | N57: 85 | O57: 9 | P57: 10 | Q57: 14 | R57: اجتاز | S57: اجتاز | T57: اجتاز | U57: اجتاز | V57: اجتاز | W57: اجتاز | X57: اجتاز | Y57: اجتاز | AB57: راسب وله حق الإعادة | AD57: فقط سبعة وستون درجة لاغير | AF57: { 14 } | AG57: مبنى التبريد | AI57: =IF(B57=0,"",num!$B$6) -> فني _ لحام و تشكيل_معادن | AJ57: =IF(AI59=ntiga!$AA$2,COUNTIF($AI$4:AI59,ntiga!$AA$2),"") ->  | AK57: =IF($AL$1=E59,COUNTIF($E$4:E59,$AL$1),"") -> 
A58: 55 | B58: ابو _ حبيبه 55 | C58: مستجد | D58: 255 | E58: 2/1 | F58: 455 | G58: 28 | H58: 23 | I58: 15 | J58: 10 | K58: 6 | L58: 9 | M58: 9 | N58: 100 | O58: 6 | P58: 9 | Q58: 19 | R58: اجتاز | S58: اجتاز | T58: اجتاز | U58: اجتاز | V58: اجتاز | W58: اجتاز | X58: اجتاز | Y58: اجتاز | AB58: راسب وله حق الإعادة | AD58: فقط ستة وسبعون درجة لاغير | AF58: { 14 } | AG58: مبنى التبريد | AI58: =IF(B58=0,"",num!$B$6) -> فني _ لحام و تشكيل_معادن | AJ58: =IF(AI60=ntiga!$AA$2,COUNTIF($AI$4:AI60,ntiga!$AA$2),"") ->  | AK58: =IF($AL$1=E60,COUNTIF($E$4:E60,$AL$1),"") -> 
A59: 56 | B59: ابو _ حبيبه 56 | C59: مستجد | D59: 256 | E59: 3/1 | F59: 456 | G59: 23 | H59: 19 | I59: 17 | J59: 20 | K59: 20 | L59: 19 | M59: 18 | N59: 136 | O59: 18 | P59: 17 | Q59: 24 | R59: اجتاز | S59: اجتاز | T59: اجتاز | U59: اجتاز | V59: اجتاز | W59: اجتاز | X59: اجتاز | AB59: دور ثان مادتين | AC59: لغة عربية لغة إنجليزية تربية عسكرية | AD59: فقط خمسة وسبعون درجة لاغير | AE59: لغة عربية تربية عسكرية | AF59: { 11 } | AG59: مبنى السيارات | AI59: =IF(B59=0,"",num!$B$2) -> فني _ تشغيل معادن | AJ59: =IF(AI61=ntiga!$AA$2,COUNTIF($AI$4:AI61,ntiga!$AA$2),"") ->  | AK59: =IF($AL$1=E61,COUNTIF($E$4:E61,$AL$1),"") -> 
A60: 57 | B60: ابو _ حبيبه 57 | C60: مستجد | D60: 257 | E60: 3/1 | F60: 457 | G60: 21 | H60: 20 | I60: 15 | J60: 20 | K60: 20 | L60: 19 | M60: 18 | N60: 133 | O60: 18 | P60: 18 | Q60: 22 | R60: اجتاز | S60: اجتاز | T60: اجتاز | U60: اجتاز | V60: اجتاز | W60: اجتاز | X60: اجتاز | AB60: دور ثان مادتين | AC60: لغة عربية لغة إنجليزية تربية عسكرية | AD60: فقط خمسة وسبعون درجة لاغير | AF60: { 11 } | AG60: مبنى السيارات | AI60: =IF(B60=0,"",num!$B$2) -> فني _ تشغيل معادن | AJ60: =IF(AI62=ntiga!$AA$2,COUNTIF($AI$4:AI62,ntiga!$AA$2),"") ->  | AK60: =IF($AL$1=E62,COUNTIF($E$4:E62,$AL$1),"") -> 
A61: 58 | B61: ابو _ حبيبه 58 | C61: مستجد | D61: 258 | E61: 3/1 | F61: 458 | G61: 25 | H61: 22 | I61: 14 | J61: 20 | K61: 20 | L61: 19 | M61: 18 | N61: 138 | O61: 18 | P61: 19 | Q61: 24 | R61: اجتاز | S61: اجتاز | T61: اجتاز | U61: اجتاز | V61: اجتاز | W61: اجتاز | X61: اجتاز | AB61: دور ثان مادة | AC61: رياضيات تربية عسكرية | AD61: فقط سبعة وسبعون درجة لاغير | AE61: تربية عسكرية | AF61: { 11 } | AG61: مبنى السيارات | AI61: =IF(B61=0,"",num!$B$2) -> فني _ تشغيل معادن | AJ61: =IF(AI63=ntiga!$AA$2,COUNTIF($AI$4:AI63,ntiga!$AA$2),"") ->  | AK61: =IF($AL$1=E63,COUNTIF($E$4:E63,$AL$1),"") -> 
A62: 59 | B62: ابو _ حبيبه 59 | C62: مستجد | D62: 259 | E62: 3/1 | F62: 459 | G62: 25 | H62: 25 | I62: 16 | J62: 20 | K62: 18 | L62: 19 | M62: 18 | N62: 141 | O62: 18 | P62: 19 | Q62: 24 | R62: اجتاز | S62: اجتاز | T62: اجتاز | U62: اجتاز | V62: اجتاز | W62: اجتاز | X62: اجتاز | AB62: ناجح ومنقول للصف الثاني | AC62: تربية عسكرية | AD62: فقط أربعة وسبعون درجة لاغير | AE62: تربية عسكرية | AF62: { 11 } | AG62: مبنى السيارات | AI62: =IF(B62=0,"",num!$B$2) -> فني _ تشغيل معادن | AJ62: =IF(AI64=ntiga!$AA$2,COUNTIF($AI$4:AI64,ntiga!$AA$2),"") ->  | AK62: =IF($AL$1=E64,COUNTIF($E$4:E64,$AL$1),"") -> 
A63: 60 | B63: ابو _ حبيبه 60 | C63: مستجد | D63: 260 | E63: 3/1 | F63: 460 | G63: 22 | H63: 24 | I63: 14 | J63: 19 | K63: 18 | L63: 19 | M63: 17 | N63: 133 | O63: 17 | P63: 18 | Q63: 24 | R63: اجتاز | S63: اجتاز | T63: اجتاز | U63: اجتاز | V63: اجتاز | W63: اجتاز | X63: اجتاز | AB63: دور ثان مادتين | AC63: لغة عربية رياضيات تربية عسكرية | AD63: فقط ستة وسبعون درجة لاغير | AE63: لغة عربية تربية عسكرية | AF63: { 11 } | AG63: مبنى السيارات | AI63: =IF(B63=0,"",num!$B$2) -> فني _ تشغيل معادن | AJ63: =IF(AI65=ntiga!$AA$2,COUNTIF($AI$4:AI65,ntiga!$AA$2),"") ->  | AK63: =IF($AL$1=E65,COUNTIF($E$4:E65,$AL$1),"") -> 
A64: 61 | B64: ابو _ حبيبه 61 | C64: مستجد | D64: 261 | E64: 3/1 | F64: 461 | G64: 27 | H64: 21 | I64: 12 | J64: 19 | K64: 18 | L64: 18 | M64: 17 | N64: 132 | O64: 18 | P64: 19 | Q64: 24 | R64: اجتاز | S64: اجتاز | T64: اجتاز | U64: اجتاز | V64: اجتاز | W64: اجتاز | X64: اجتاز | AB64: دور ثان مادتين | AC64: لغة عربية رياضيات تربية عسكرية | AD64: فقط خمسة وسبعون درجة لاغير | AE64: لغة عربية تربية عسكرية | AF64: { 11 } | AG64: مبنى السيارات | AI64: =IF(B64=0,"",num!$B$2) -> فني _ تشغيل معادن | AJ64: =IF(AI66=ntiga!$AA$2,COUNTIF($AI$4:AI66,ntiga!$AA$2),"") ->  | AK64: =IF($AL$1=E66,COUNTIF($E$4:E66,$AL$1),"") -> 
A65: 62 | B65: ابو _ حبيبه 62 | C65: مستجد | D65: 262 | E65: 3/1 | F65: 462 | G65: 20 | H65: 25 | I65: 13 | J65: 20 | K65: 19 | L65: 20 | M65: 18 | N65: 135 | O65: 17 | P65: 20 | Q65: 19 | R65: اجتاز | S65: اجتاز | T65: اجتاز | U65: اجتاز | V65: اجتاز | W65: اجتاز | X65: اجتاز | AB65: دور ثان مادتين | AC65: لغة عربية رياضيات تربية عسكرية | AD65: فقط واحد وسبعون درجة لاغير | AE65: تربية عسكرية | AF65: { 11 } | AG65: مبنى السيارات | AI65: =IF(B65=0,"",num!$B$2) -> فني _ تشغيل معادن | AJ65: =IF(AI67=ntiga!$AA$2,COUNTIF($AI$4:AI67,ntiga!$AA$2),"") ->  | AK65: =IF($AL$1=E67,COUNTIF($E$4:E67,$AL$1),"") -> 
A66: 63 | B66: ابو _ حبيبه 63 | C66: مستجد | D66: 263 | E66: 3/1 | F66: 463 | G66: 31 | H66: 30 | I66: 22 | J66: 19 | K66: 19 | L66: 19 | M66: 17 | N66: 157 | O66: 17 | P66: 19 | Q66: 24 | R66: اجتاز | S66: اجتاز | T66: اجتاز | U66: اجتاز | V66: اجتاز | W66: اجتاز | X66: اجتاز | AB66: ناجح ومنقول للصف الثاني | AC66: تربية عسكرية | AD66: فقط اثنان وثمانون درجة لاغير | AE66: تربية عسكرية | AF66: { 11 } | AG66: مبنى السيارات | AI66: =IF(B66=0,"",num!$B$2) -> فني _ تشغيل معادن | AJ66: =IF(AI68=ntiga!$AA$2,COUNTIF($AI$4:AI68,ntiga!$AA$2),"") ->  | AK66: =IF($AL$1=E68,COUNTIF($E$4:E68,$AL$1),"") -> 
A67: 64 | B67: ابو _ حبيبه 64 | C67: مفصول | D67: 264 | E67: 3/1 | F67: 464 | G67: 0 | H67: 0 | I67: 0 | J67: 9 | K67: 9 | L67: 9 | M67: 9 | N67: 36 | O67: 9 | P67: 9 | Q67: 0 | R67: لم يجتاز | S67: لم يجتاز | T67: لم يجتاز | U67: لم يجتاز | V67: لم يجتاز | W67: لم يجتاز | X67: لم يجتاز | AB67: راسب وله حق الإعادة | AD67: صفر | AF67: { 11 } | AG67: مبنى السيارات | AI67: =IF(B67=0,"",num!$B$2) -> فني _ تشغيل معادن | AJ67: =IF(AI69=ntiga!$AA$2,COUNTIF($AI$4:AI69,ntiga!$AA$2),"") ->  | AK67: =IF($AL$1=E69,COUNTIF($E$4:E69,$AL$1),"") -> 
A68: 65 | B68: ابو _ حبيبه 65 | C68: مستجد | D68: 265 | E68: 3/1 | F68: 465 | G68: 31 | H68: 27 | I68: 19 | J68: 19 | K68: 18 | L68: 18 | M68: 17 | N68: 149 | O68: 17 | P68: 19 | Q68: 24 | R68: اجتاز | S68: اجتاز | T68: اجتاز | U68: اجتاز | V68: اجتاز | W68: اجتاز | X68: اجتاز | AB68: ناجح ومنقول للصف الثاني | AC68: تربية عسكرية | AD68: فقط ثمانون درجة لاغير | AE68: تربية عسكرية | AF68: { 11 } | AG68: مبنى السيارات | AI68: =IF(B68=0,"",num!$B$2) -> فني _ تشغيل معادن | AJ68: =IF(AI70=ntiga!$AA$2,COUNTIF($AI$4:AI70,ntiga!$AA$2),"") ->  | AK68: =IF($AL$1=E70,COUNTIF($E$4:E70,$AL$1),"") -> 
A69: 66 | B69: ابو _ حبيبه 66 | C69: مستجد | D69: 266 | E69: 3/1 | F69: 466 | G69: 25 | H69: 19 | I69: 15 | J69: 19 | K69: 19 | L69: 18 | M69: 17 | N69: 132 | O69: 15 | P69: 18 | Q69: 15 | R69: اجتاز | S69: اجتاز | T69: اجتاز | U69: اجتاز | V69: اجتاز | W69: اجتاز | X69: اجتاز | AB69: دور ثان مادتين | AC69: لغة عربية لغة إنجليزية تربية عسكرية | AD69: فقط خمسة وسبعون درجة لاغير | AE69: لغة عربية تربية عسكرية | AF69: { 11 } | AG69: مبنى السيارات | AI69: =IF(B69=0,"",num!$B$2) -> فني _ تشغيل معادن | AJ69: =IF(AI71=ntiga!$AA$2,COUNTIF($AI$4:AI71,ntiga!$AA$2),"") ->  | AK69: =IF($AL$1=E71,COUNTIF($E$4:E71,$AL$1),"") -> 
A70: 67 | B70: ابو _ حبيبه 67 | C70: مستجد | D70: 267 | E70: 3/1 | F70: =F69+1 -> 467 | G70: 26 | H70: 21 | I70: 12 | J70: 19 | K70: 20 | L70: 18 | M70: 18 | N70: 134 | O70: 18 | P70: 19 | Q70: 19 | R70: اجتاز | S70: اجتاز | T70: اجتاز | U70: اجتاز | V70: اجتاز | W70: اجتاز | X70: اجتاز | AB70: دور ثان مادتين | AC70: لغة عربية رياضيات تربية عسكرية | AD70: فقط ثلاثة وسبعون درجة لاغير | AE70: لغة عربية تربية عسكرية | AF70: { 11 } | AG70: مبنى السيارات | AI70: =IF(B70=0,"",num!$B$2) -> فني _ تشغيل معادن | AJ70: =IF(AI72=ntiga!$AA$2,COUNTIF($AI$4:AI72,ntiga!$AA$2),"") ->  | AK70: =IF($AL$1=E72,COUNTIF($E$4:E72,$AL$1),"") -> 
A71: 68 | B71: ابو _ حبيبه 68 | C71: مستجد | D71: =D70+1 -> 268 | E71: 3/1 | F71: 468 | G71: 26 | H71: 22 | I71: 12 | J71: 10 | K71: 10 | L71: 9 | M71: 9 | N71: 98 | O71: 7 | P71: 9 | Q71: 14 | R71: اجتاز | S71: اجتاز | T71: اجتاز | U71: اجتاز | V71: اجتاز | W71: اجتاز | X71: اجتاز | AB71: راسب وله حق الإعادة | AD71: فقط ثمانون درجة لاغير | AF71: { 11 } | AG71: مبنى السيارات | AI71: =IF(B71=0,"",num!$B$2) -> فني _ تشغيل معادن | AJ71: =IF(AI73=ntiga!$AA$2,COUNTIF($AI$4:AI73,ntiga!$AA$2),"") ->  | AK71: =IF($AL$1=E73,COUNTIF($E$4:E73,$AL$1),"") -> 
A72: 69 | B72: ابو _ حبيبه 69 | C72: باق | D72: 269 | E72: 3/1 | F72: 469 | G72: 23 | H72: 21 | I72: 10 | J72: 20 | K72: 19 | L72: 19 | M72: 18 | N72: 130 | O72: 18 | P72: 19 | Q72: 14 | R72: اجتاز | S72: اجتاز | T72: اجتاز | U72: اجتاز | V72: اجتاز | W72: اجتاز | X72: اجتاز | AB72: راسب وليس له حق الاعادة | AD72: فقط اثنان وسبعون درجة لاغير | AF72: { 11 } | AG72: مبنى السيارات | AI72: =IF(B72=0,"",num!$B$2) -> فني _ تشغيل معادن | AJ72: =IF(AI74=ntiga!$AA$2,COUNTIF($AI$4:AI74,ntiga!$AA$2),"") ->  | AK72: =IF($AL$1=E74,COUNTIF($E$4:E74,$AL$1),"") -> 
A73: 70 | B73: ابو _ حبيبه 70 | C73: مستجد | D73: 270 | E73: 3/1 | F73: 470 | G73: 28 | H73: 24 | I73: 14 | J73: 20 | K73: 19 | L73: 19 | M73: 18 | N73: 142 | O73: 17 | P73: 19 | Q73: 24 | R73: اجتاز | S73: اجتاز | T73: اجتاز | U73: اجتاز | V73: اجتاز | W73: اجتاز | X73: اجتاز | AB73: دور ثان مادتين | AC73: لغة عربية رياضيات تربية عسكرية | AD73: فقط واحد وثمانون درجة لاغير | AE73: لغة عربية تربية عسكرية | AF73: { 11 } | AG73: مبنى السيارات | AI73: =IF(B73=0,"",num!$B$2) -> فني _ تشغيل معادن | AJ73: =IF(AI75=ntiga!$AA$2,COUNTIF($AI$4:AI75,ntiga!$AA$2),"") ->  | AK73: =IF($AL$1=E75,COUNTIF($E$4:E75,$AL$1),"") -> 
A74: 71 | B74: ابو _ حبيبه 71 | C74: مستجد | D74: 271 | E74: 3/1 | F74: 471 | G74: 31 | H74: 31 | I74: 22 | J74: 20 | K74: 20 | L74: 19 | M74: 18 | N74: 161 | O74: 16 | P74: 19 | Q74: 13 | R74: اجتاز | S74: اجتاز | T74: اجتاز | U74: اجتاز | V74: اجتاز | W74: اجتاز | X74: اجتاز | AB74: ناجح ومنقول للصف الثاني | AC74: تربية عسكرية | AD74: فقط خمسة وثمانون درجة لاغير | AE74: تربية عسكرية | AF74: { 11 } | AG74: مبنى السيارات | AI74: =IF(B74=0,"",num!$B$2) -> فني _ تشغيل معادن | AJ74: =IF(AI76=ntiga!$AA$2,COUNTIF($AI$4:AI76,ntiga!$AA$2),"") ->  | AK74: =IF($AL$1=E76,COUNTIF($E$4:E76,$AL$1),"") -> 
A75: 72 | B75: ابو _ حبيبه 72 | C75: مفصول | D75: 272 | E75: 3/1 | F75: 472 | G75: 13 | H75: 13 | I75: 13 | J75: 10 | K75: 10 | L75: 10 | M75: 10 | N75: 79 | O75: 10 | P75: 10 | Q75: 0 | R75: لم يجتاز | S75: لم يجتاز | T75: لم يجتاز | U75: لم يجتاز | V75: لم يجتاز | W75: لم يجتاز | X75: لم يجتاز | AB75: راسب وله حق الإعادة | AD75: صفر | AE75: تربية عسكرية | AF75: { 11 } | AG75: مبنى السيارات | AI75: =IF(B75=0,"",num!$B$2) -> فني _ تشغيل معادن | AJ75: =IF(AI77=ntiga!$AA$2,COUNTIF($AI$4:AI77,ntiga!$AA$2),"") ->  | AK75: =IF($AL$1=E77,COUNTIF($E$4:E77,$AL$1),"") -> 
A76: 73 | B76: ابو _ حبيبه 73 | C76: مستجد | D76: 273 | E76: 3/1 | F76: 473 | G76: 28 | H76: 28 | I76: 15 | J76: 20 | K76: 19 | L76: 19 | M76: 18 | N76: 147 | O76: 18 | P76: 20 | Q76: 14 | R76: اجتاز | S76: اجتاز | T76: اجتاز | U76: اجتاز | V76: اجتاز | W76: اجتاز | X76: اجتاز | AB76: ناجح ومنقول للصف الثاني | AC76: تربية عسكرية | AD76: فقط سبعة وسبعون درجة لاغير | AE76: تربية عسكرية | AF76: { 11 } | AG76: مبنى السيارات | AI76: =IF(B76=0,"",num!$B$2) -> فني _ تشغيل معادن | AJ76: =IF(AI78=ntiga!$AA$2,COUNTIF($AI$4:AI78,ntiga!$AA$2),"") ->  | AK76: =IF($AL$1=E78,COUNTIF($E$4:E78,$AL$1),"") -> 
A77: 74 | B77: ابو _ حبيبه 74 | C77: مستجد | D77: 274 | E77: 3/1 | F77: 474 | G77: 31 | H77: 30 | I77: 18 | J77: 19 | K77: 20 | L77: 20 | M77: 18 | N77: 156 | O77: 18 | P77: 19 | Q77: 24 | R77: اجتاز | S77: اجتاز | T77: اجتاز | U77: اجتاز | V77: اجتاز | W77: اجتاز | X77: اجتاز | AB77: ناجح ومنقول للصف الثاني | AC77: تربية عسكرية | AD77: فقط سبعة وسبعون درجة لاغير | AE77: تربية عسكرية | AF77: { 11 } | AG77: مبنى السيارات | AI77: =IF(B77=0,"",num!$B$2) -> فني _ تشغيل معادن | AJ77: =IF(AI79=ntiga!$AA$2,COUNTIF($AI$4:AI79,ntiga!$AA$2),"") ->  | AK77: =IF($AL$1=E79,COUNTIF($E$4:E79,$AL$1),"") -> 
A78: 75 | B78: ابو _ حبيبه 75 | C78: باق | D78: 275 | E78: 3/1 | F78: 475 | G78: 29 | H78: 29 | I78: 15 | J78: 19 | K78: 20 | L78: 20 | M78: 18 | N78: 150 | O78: 18 | P78: 17 | Q78: 24 | R78: اجتاز | S78: اجتاز | T78: اجتاز | U78: اجتاز | V78: اجتاز | W78: اجتاز | X78: اجتاز | AB78: ناجح ومنقول للصف الثاني | AC78: تربية عسكرية | AD78: فقط سبعة وسبعون درجة لاغير | AE78: تربية عسكرية | AF78: { 11 } | AG78: مبنى السيارات | AI78: =IF(B78=0,"",num!$B$2) -> فني _ تشغيل معادن | AJ78: =IF(AI80=ntiga!$AA$2,COUNTIF($AI$4:AI80,ntiga!$AA$2),"") ->  | AK78: =IF($AL$1=E80,COUNTIF($E$4:E80,$AL$1),"") -> 
A79: 76 | B79: ابو _ حبيبه 76 | C79: مستجد | D79: 276 | E79: 3/1 | F79: 476 | G79: 30 | H79: 23 | I79: 17 | J79: 19 | K79: 20 | L79: 19 | M79: 18 | N79: 146 | O79: 18 | P79: 20 | Q79: 24 | R79: اجتاز | S79: اجتاز | T79: اجتاز | U79: اجتاز | V79: اجتاز | W79: اجتاز | X79: اجتاز | AB79: ناجح ومنقول للصف الثاني | AC79: تربية عسكرية | AD79: فقط سبعون درجة لاغير | AE79: تربية عسكرية | AF79: { 12 } | AG79: مبنى السيارات | AI79: =IF(B79=0,"",num!$B$2) -> فني _ تشغيل معادن | AJ79: =IF(AI81=ntiga!$AA$2,COUNTIF($AI$4:AI81,ntiga!$AA$2),"") ->  | AK79: =IF($AL$1=E81,COUNTIF($E$4:E81,$AL$1),"") -> 
A80: 77 | B80: ابو _ حبيبه 77 | C80: باق | D80: 277 | E80: 3/1 | F80: 477 | G80: 25 | H80: 24 | I80: 13 | J80: 19 | K80: 19 | L80: 19 | M80: 18 | N80: 137 | O80: 18 | P80: 20 | Q80: 13 | R80: اجتاز | S80: اجتاز | T80: اجتاز | U80: اجتاز | V80: اجتاز | W80: اجتاز | X80: اجتاز | AB80: دور ثان مادتين | AC80: لغة عربية رياضيات تربية عسكرية | AD80: فقط ستة وسبعون درجة لاغير | AE80: لغة عربية تربية عسكرية | AF80: { 12 } | AG80: مبنى السيارات | AI80: =IF(B80=0,"",num!$B$2) -> فني _ تشغيل معادن | AJ80: =IF(AI82=ntiga!$AA$2,COUNTIF($AI$4:AI82,ntiga!$AA$2),"") ->  | AK80: =IF($AL$1=E82,COUNTIF($E$4:E82,$AL$1),"") -> 
A81: 78 | B81: ابو _ حبيبه 78 | C81: مستجد | D81: 278 | E81: 3/1 | F81: 478 | G81: 21 | H81: 23 | I81: 13 | J81: 18 | K81: 19 | L81: 19 | M81: 19 | N81: 132 | O81: 19 | P81: 20 | Q81: 24 | R81: اجتاز | S81: اجتاز | T81: اجتاز | U81: اجتاز | V81: اجتاز | W81: اجتاز | X81: اجتاز | AB81: دور ثان مادتين | AC81: لغة عربية رياضيات تربية عسكرية | AD81: فقط أربعة وسبعون درجة لاغير | AE81: لغة عربية تربية عسكرية | AF81: { 12 } | AG81: مبنى السيارات | AI81: =IF(B81=0,"",num!$B$2) -> فني _ تشغيل معادن | AJ81: =IF(AI83=ntiga!$AA$2,COUNTIF($AI$4:AI83,ntiga!$AA$2),"") ->  | AK81: =IF($AL$1=E83,COUNTIF($E$4:E83,$AL$1),"") -> 
A82: 79 | B82: ابو _ حبيبه 79 | C82: مستجد | D82: 279 | E82: 3/1 | F82: 479 | G82: 27 | H82: 19 | I82: 13 | J82: 17 | K82: 20 | L82: 19 | M82: 18 | N82: 133 | O82: 18 | P82: 19 | Q82: 14 | R82: اجتاز | S82: اجتاز | T82: اجتاز | U82: اجتاز | V82: اجتاز | W82: اجتاز | X82: اجتاز | AB82: دور ثان مادتين | AC82: لغة إنجليزية رياضيات تربية عسكرية | AD82: فقط تسعة وستون درجة لاغير | AE82: تربية عسكرية | AF82: { 12 } | AG82: مبنى السيارات | AI82: =IF(B82=0,"",num!$B$2) -> فني _ تشغيل معادن | AJ82: =IF(AI84=ntiga!$AA$2,COUNTIF($AI$4:AI84,ntiga!$AA$2),"") ->  | AK82: =IF($AL$1=E84,COUNTIF($E$4:E84,$AL$1),"") -> 
A83: 80 | B83: ابو _ حبيبه 80 | C83: مستجد | D83: 280 | E83: 3/1 | F83: 480 | G83: 30 | H83: 29 | I83: 20 | J83: 8 | K83: 9 | L83: 10 | M83: 8 | N83: 114 | O83: 9 | P83: 9 | Q83: 18 | R83: اجتاز | S83: اجتاز | T83: اجتاز | U83: اجتاز | V83: اجتاز | W83: اجتاز | X83: اجتاز | AB83: راسب وله حق الإعادة | AD83: فقط واحد وثمانون درجة لاغير | AF83: { 12 } | AG83: مبنى السيارات | AI83: =IF(B83=0,"",num!$B$2) -> فني _ تشغيل معادن | AJ83: =IF(AI85=ntiga!$AA$2,COUNTIF($AI$4:AI85,ntiga!$AA$2),"") ->  | AK83: =IF($AL$1=E85,COUNTIF($E$4:E85,$AL$1),"") -> 
A84: 81 | B84: ابو _ حبيبه 81 | C84: مستجد | D84: 281 | E84: 3/1 | F84: 481 | G84: 30 | H84: 30 | I84: 23 | J84: 8 | K84: 9 | L84: 10 | M84: 8 | N84: 118 | O84: 9 | P84: 9 | Q84: 24 | R84: اجتاز | S84: اجتاز | T84: اجتاز | U84: اجتاز | V84: اجتاز | W84: اجتاز | X84: اجتاز | AB84: راسب وله حق الإعادة | AD84: فقط اثنان وثمانون درجة لاغير | AF84: { 12 } | AG84: مبنى السيارات | AI84: =IF(B84=0,"",num!$B$2) -> فني _ تشغيل معادن | AJ84: =IF(AI86=ntiga!$AA$2,COUNTIF($AI$4:AI86,ntiga!$AA$2),"") ->  | AK84: =IF($AL$1=E86,COUNTIF($E$4:E86,$AL$1),"") -> 
A85: 82 | B85: ابو _ حبيبه 82 | C85: مستجد | D85: 282 | E85: 3/1 | F85: 482 | G85: 27 | H85: 23 | I85: 15 | J85: 9 | K85: 10 | L85: 9 | M85: 8 | N85: 101 | O85: 8 | P85: 9 | Q85: 23 | R85: اجتاز | S85: اجتاز | T85: اجتاز | U85: اجتاز | V85: اجتاز | W85: اجتاز | X85: اجتاز | AB85: راسب وله حق الإعادة | AD85: فقط ثمانون درجة لاغير | AF85: { 12 } | AG85: مبنى السيارات | AI85: =IF(B85=0,"",num!$B$2) -> فني _ تشغيل معادن | AJ85: =IF(AI87=ntiga!$AA$2,COUNTIF($AI$4:AI87,ntiga!$AA$2),"") ->  | AK85: =IF($AL$1=E87,COUNTIF($E$4:E87,$AL$1),"") -> 
A86: 83 | B86: ابو _ حبيبه 83 | C86: مستجد | D86: 283 | E86: 3/1 | F86: 483 | G86: 22 | H86: 23 | I86: 12 | J86: 9 | K86: 10 | L86: 9 | M86: 8 | N86: 93 | O86: 9 | P86: 10 | Q86: 14 | R86: اجتاز | S86: اجتاز | T86: اجتاز | U86: اجتاز | V86: اجتاز | W86: اجتاز | X86: اجتاز | AB86: راسب وله حق الإعادة | AD86: فقط خمسة وسبعون درجة لاغير | AF86: { 12 } | AG86: مبنى السيارات | AI86: =IF(B86=0,"",num!$B$2) -> فني _ تشغيل معادن | AJ86: =IF(AI88=ntiga!$AA$2,COUNTIF($AI$4:AI88,ntiga!$AA$2),"") ->  | AK86: =IF($AL$1=E88,COUNTIF($E$4:E88,$AL$1),"") -> 
A87: 84 | B87: ابو _ حبيبه 84 | C87: مستجد | D87: 284 | E87: 3/1 | F87: 484 | G87: 22 | H87: 26 | I87: 15 | J87: 10 | K87: 9 | L87: 10 | M87: 8 | N87: 100 | O87: 9 | P87: 9 | Q87: 14 | R87: اجتاز | S87: اجتاز | T87: اجتاز | U87: اجتاز | V87: اجتاز | W87: اجتاز | X87: اجتاز | AB87: راسب وله حق الإعادة | AD87: فقط ستة وسبعون درجة لاغير | AF87: { 12 } | AG87: مبنى السيارات | AI87: =IF(B87=0,"",num!$B$2) -> فني _ تشغيل معادن | AJ87: =IF(AI89=ntiga!$AA$2,COUNTIF($AI$4:AI89,ntiga!$AA$2),"") ->  | AK87: =IF($AL$1=E89,COUNTIF($E$4:E89,$AL$1),"") -> 
A88: 85 | B88: ابو _ حبيبه 85 | C88: مستجد | D88: 285 | E88: 3/1 | F88: 485 | G88: 30 | H88: 25 | I88: 18 | J88: 8 | K88: 9 | L88: 9 | M88: 8 | N88: 107 | O88: 9 | P88: 9 | Q88: 23 | R88: اجتاز | S88: اجتاز | T88: اجتاز | U88: اجتاز | V88: اجتاز | W88: اجتاز | X88: اجتاز | AB88: راسب وله حق الإعادة | AD88: فقط أربعة وسبعون درجة لاغير | AF88: { 12 } | AG88: مبنى السيارات | AI88: =IF(B88=0,"",num!$B$2) -> فني _ تشغيل معادن | AJ88: =IF(AI90=ntiga!$AA$2,COUNTIF($AI$4:AI90,ntiga!$AA$2),"") ->  | AK88: =IF($AL$1=E90,COUNTIF($E$4:E90,$AL$1),"") -> 
A89: 86 | B89: ابو _ حبيبه 86 | C89: مستجد | D89: 286 | E89: 3/1 | F89: 486 | G89: 32 | H89: 30 | I89: 21 | J89: 9 | K89: 9 | L89: 10 | M89: 8 | N89: 119 | O89: 8 | P89: 10 | Q89: 14 | R89: اجتاز | S89: اجتاز | T89: اجتاز | U89: اجتاز | V89: اجتاز | W89: اجتاز | X89: اجتاز | AB89: راسب وله حق الإعادة | AD89: فقط ثلاثة وثمانون درجة لاغير | AF89: { 12 } | AG89: مبنى السيارات | AI89: =IF(B89=0,"",num!$B$2) -> فني _ تشغيل معادن | AJ89: =IF(AI91=ntiga!$AA$2,COUNTIF($AI$4:AI91,ntiga!$AA$2),"") ->  | AK89: =IF($AL$1=E91,COUNTIF($E$4:E91,$AL$1),"") -> 
A90: 87 | B90: ابو _ حبيبه 87 | C90: مستجد | D90: 287 | E90: 3/1 | F90: 487 | G90: 26 | H90: 22 | I90: 13 | J90: 8 | K90: 9 | L90: 9 | M90: 8 | N90: 95 | O90: 7 | P90: 10 | Q90: 15 | R90: اجتاز | S90: اجتاز | T90: اجتاز | U90: اجتاز | V90: اجتاز | W90: اجتاز | X90: اجتاز | AB90: راسب وله حق الإعادة | AD90: فقط أربعة وسبعون درجة لاغير | AF90: { 12 } | AG90: مبنى السيارات | AI90: =IF(B90=0,"",num!$B$2) -> فني _ تشغيل معادن | AJ90: =IF(AI92=ntiga!$AA$2,COUNTIF($AI$4:AI92,ntiga!$AA$2),"") ->  | AK90: =IF($AL$1=E92,COUNTIF($E$4:E92,$AL$1),"") -> 
A91: 88 | B91: ابو _ حبيبه 88 | C91: مستجد | D91: 288 | E91: 3/1 | F91: 488 | G91: 30 | H91: 25 | I91: 16 | J91: 10 | K91: 9 | L91: 10 | M91: 8 | N91: 108 | O91: 7 | P91: 10 | Q91: 24 | R91: اجتاز | S91: اجتاز | T91: اجتاز | U91: اجتاز | V91: اجتاز | W91: اجتاز | X91: اجتاز | AB91: راسب وله حق الإعادة | AD91: فقط تسعون درجة لاغير | AF91: { 12 } | AG91: مبنى السيارات | AI91: =IF(B91=0,"",num!$B$2) -> فني _ تشغيل معادن | AJ91: =IF(AI93=ntiga!$AA$2,COUNTIF($AI$4:AI93,ntiga!$AA$2),"") ->  | AK91: =IF($AL$1=E93,COUNTIF($E$4:E93,$AL$1),"") -> 
A92: 89 | B92: ابو _ حبيبه 89 | C92: مستجد | D92: 289 | E92: 3/1 | F92: 489 | G92: 25 | H92: 23 | I92: 17 | J92: 10 | K92: 10 | L92: 9 | M92: 7 | N92: 101 | O92: 9 | P92: 10 | Q92: 24 | R92: اجتاز | S92: اجتاز | T92: اجتاز | U92: اجتاز | V92: اجتاز | W92: اجتاز | X92: اجتاز | AB92: راسب وله حق الإعادة | AD92: فقط سبعة وسبعون درجة لاغير | AF92: { 12 } | AG92: مبنى السيارات | AI92: =IF(B92=0,"",num!$B$2) -> فني _ تشغيل معادن | AJ92: =IF(AI94=ntiga!$AA$2,COUNTIF($AI$4:AI94,ntiga!$AA$2),"") ->  | AK92: =IF($AL$1=E94,COUNTIF($E$4:E94,$AL$1),"") -> 
A93: 90 | B93: ابو _ حبيبه 90 | C93: مستجد | D93: 290 | E93: 3/1 | F93: 490 | G93: 19 | H93: 18 | I93: 10 | J93: 10 | K93: 10 | L93: 9 | M93: 8 | N93: 84 | O93: 7 | P93: 10 | Q93: 23 | R93: اجتاز | S93: اجتاز | T93: اجتاز | U93: اجتاز | V93: اجتاز | W93: اجتاز | X93: اجتاز | AB93: راسب وله حق الإعادة | AD93: فقط أربعة وثمانون درجة لاغير | AF93: { 12 } | AG93: مبنى السيارات | AI93: =IF(B93=0,"",num!$B$2) -> فني _ تشغيل معادن | AJ93: =IF(AI95=ntiga!$AA$2,COUNTIF($AI$4:AI95,ntiga!$AA$2),"") ->  | AK93: =IF($AL$1=E95,COUNTIF($E$4:E95,$AL$1),"") -> 
A94: 91 | B94: ابو _ حبيبه 91 | C94: مستجد | D94: 291 | E94: 4/1 | F94: 491 | G94: 27 | H94: 23 | I94: 18 | J94: 10 | K94: 9 | L94: 10 | M94: 9 | N94: 106 | O94: 8 | P94: 10 | Q94: 14 | R94: اجتاز | S94: اجتاز | T94: اجتاز | U94: اجتاز | V94: اجتاز | W94: اجتاز | X94: اجتاز | Y94: اجتاز | AB94: راسب وله حق الإعادة | AD94: فقط خمسة وثمانون درجة لاغير | AF94: { 8 } | AG94: مبنى السيارات | AI94: =IF(B94=0,"",num!$B$7) -> فني _ الات كهربية | AJ94: =IF(AI96=ntiga!$AA$2,COUNTIF($AI$4:AI96,ntiga!$AA$2),"") ->  | AK94: =IF($AL$1=E96,COUNTIF($E$4:E96,$AL$1),"") -> 
A95: 92 | B95: ابو _ حبيبه 92 | C95: مستجد | D95: 292 | E95: 4/1 | F95: 492 | G95: 29 | H95: 20 | I95: 18 | J95: 10 | K95: 9 | L95: 9 | M95: 9 | N95: 104 | O95: 7 | P95: 10 | Q95: 24 | R95: اجتاز | S95: اجتاز | T95: اجتاز | U95: اجتاز | V95: اجتاز | W95: اجتاز | X95: اجتاز | Y95: اجتاز | AB95: راسب وله حق الإعادة | AD95: فقط ستة وثمانون درجة لاغير | AF95: { 8 } | AG95: مبنى السيارات | AI95: =IF(B95=0,"",num!$B$7) -> فني _ الات كهربية | AJ95: =IF(AI97=ntiga!$AA$2,COUNTIF($AI$4:AI97,ntiga!$AA$2),"") ->  | AK95: =IF($AL$1=E97,COUNTIF($E$4:E97,$AL$1),"") -> 
A96: 93 | B96: ابو _ حبيبه 93 | C96: مستجد | D96: 293 | E96: 4/1 | F96: 493 | G96: 26 | H96: 20 | I96: 20 | J96: 9 | K96: 9 | L96: 9 | M96: 7 | N96: 100 | O96: 8 | P96: 10 | Q96: 18 | R96: اجتاز | S96: اجتاز | T96: اجتاز | U96: اجتاز | V96: اجتاز | W96: اجتاز | X96: اجتاز | Y96: اجتاز | AB96: راسب وله حق الإعادة | AD96: فقط تسعة وسبعون درجة لاغير | AF96: { 8 } | AG96: مبنى السيارات | AI96: =IF(B96=0,"",num!$B$7) -> فني _ الات كهربية | AJ96: =IF(AI98=ntiga!$AA$2,COUNTIF($AI$4:AI98,ntiga!$AA$2),"") ->  | AK96: =IF($AL$1=E98,COUNTIF($E$4:E98,$AL$1),"") -> 
A97: 94 | B97: ابو _ حبيبه 94 | C97: مستجد | D97: 294 | E97: 4/1 | F97: 494 | G97: 29 | H97: 27 | I97: 23 | J97: 10 | K97: 10 | L97: 10 | M97: 8 | N97: 117 | O97: 9 | P97: 9 | Q97: 23 | R97: اجتاز | S97: اجتاز | T97: اجتاز | U97: اجتاز | V97: اجتاز | W97: اجتاز | X97: اجتاز | Y97: اجتاز | AB97: راسب وله حق الإعادة | AD97: فقط تسعون درجة لاغير | AF97: { 8 } | AG97: مبنى السيارات | AI97: =IF(B97=0,"",num!$B$7) -> فني _ الات كهربية | AJ97: =IF(AI99=ntiga!$AA$2,COUNTIF($AI$4:AI99,ntiga!$AA$2),"") ->  | AK97: =IF($AL$1=E99,COUNTIF($E$4:E99,$AL$1),"") -> 
A98: 95 | B98: ابو _ حبيبه 95 | C98: مستجد | D98: 295 | E98: 4/1 | F98: 495 | G98: 26 | H98: 24 | I98: 21 | J98: 10 | K98: 10 | L98: 9 | M98: 10 | N98: 110 | O98: 9 | P98: 9 | Q98: 24 | R98: اجتاز | S98: اجتاز | T98: اجتاز | U98: اجتاز | V98: اجتاز | W98: اجتاز | X98: اجتاز | Y98: اجتاز | AB98: راسب وله حق الإعادة | AD98: فقط تسعة وثمانون درجة لاغير | AF98: { 8 } | AG98: مبنى السيارات | AI98: =IF(B98=0,"",num!$B$7) -> فني _ الات كهربية | AJ98: =IF(AI100=ntiga!$AA$2,COUNTIF($AI$4:AI100,ntiga!$AA$2),"") ->  | AK98: =IF($AL$1=E100,COUNTIF($E$4:E100,$AL$1),"") -> 
A99: 96 | B99: ابو _ حبيبه 96 | C99: مستجد | D99: 296 | E99: 4/1 | F99: 496 | G99: 27 | H99: 19 | I99: 17 | J99: 10 | K99: 10 | L99: 9 | M99: 9 | N99: 101 | O99: 8 | P99: 9 | Q99: 24 | R99: اجتاز | S99: اجتاز | T99: اجتاز | U99: اجتاز | V99: اجتاز | W99: اجتاز | X99: اجتاز | Y99: اجتاز | AB99: راسب وله حق الإعادة | AD99: فقط ثمانون درجة لاغير | AF99: { 8 } | AG99: مبنى السيارات | AI99: =IF(B99=0,"",num!$B$7) -> فني _ الات كهربية | AJ99: =IF(AI101=ntiga!$AA$2,COUNTIF($AI$4:AI101,ntiga!$AA$2),"") ->  | AK99: =IF($AL$1=E101,COUNTIF($E$4:E101,$AL$1),"") -> 
A100: 97 | B100: ابو _ حبيبه 97 | C100: مستجد | D100: 297 | E100: 4/1 | F100: 497 | G100: 25 | H100: 22 | I100: 14 | J100: 10 | K100: 10 | L100: 9 | M100: 10 | N100: 100 | O100: 9 | P100: 9 | Q100: 15 | R100: اجتاز | S100: اجتاز | T100: اجتاز | U100: اجتاز | V100: اجتاز | W100: اجتاز | X100: اجتاز | Y100: اجتاز | AB100: راسب وله حق الإعادة | AD100: فقط ستة وسبعون درجة لاغير | AF100: { 8 } | AG100: مبنى السيارات | AI100: =IF(B100=0,"",num!$B$7) -> فني _ الات كهربية | AJ100: =IF(AI102=ntiga!$AA$2,COUNTIF($AI$4:AI102,ntiga!$AA$2),"") ->  | AK100: =IF($AL$1=E102,COUNTIF($E$4:E102,$AL$1),"") -> 
A101: 98 | B101: ابو _ حبيبه 98 | C101: مستجد | D101: 298 | E101: 4/1 | F101: 498 | G101: 32 | H101: 25 | I101: 27 | J101: 9 | K101: 8 | L101: 9 | M101: 9 | N101: 119 | O101: 9 | P101: 9 | Q101: 19 | R101: اجتاز | S101: اجتاز | T101: اجتاز | U101: اجتاز | V101: اجتاز | W101: اجتاز | X101: اجتاز | Y101: اجتاز | AB101: راسب وله حق الإعادة | AD101: فقط ثمانون درجة لاغير | AF101: { 8 } | AG101: مبنى السيارات | AI101: =IF(B101=0,"",num!$B$7) -> فني _ الات كهربية | AJ101: =IF(AI103=ntiga!$AA$2,COUNTIF($AI$4:AI103,ntiga!$AA$2),"") ->  | AK101: =IF($AL$1=E103,COUNTIF($E$4:E103,$AL$1),"") -> 
A102: 99 | B102: ابو _ حبيبه 99 | C102: مستجد | D102: 299 | E102: 4/1 | F102: 499 | G102: 14 | H102: 18 | I102: 10 | J102: 10 | K102: 8 | L102: 9 | M102: 9 | N102: 78 | O102: 9 | P102: 10 | Q102: 15 | R102: اجتاز | S102: اجتاز | T102: اجتاز | U102: اجتاز | V102: اجتاز | W102: اجتاز | X102: اجتاز | Y102: اجتاز | AB102: راسب وله حق الإعادة | AD102: فقط ثمانية وسبعون درجة لاغير | AF102: { 8 } | AG102: مبنى السيارات | AI102: =IF(B102=0,"",num!$B$7) -> فني _ الات كهربية | AJ102: =IF(AI104=ntiga!$AA$2,COUNTIF($AI$4:AI104,ntiga!$AA$2),"") ->  | AK102: =IF($AL$1=E104,COUNTIF($E$4:E104,$AL$1),"") -> 
A103: 100 | B103: ابو _ حبيبه 100 | C103: مستجد | D103: 300 | E103: 4/1 | F103: 500 | G103: 32 | H103: 28 | I103: 25 | J103: 20 | K103: 19 | L103: 20 | M103: 19 | N103: 163 | O103: 19 | P103: 20 | Q103: 24 | R103: اجتاز | S103: اجتاز | T103: اجتاز | U103: اجتاز | V103: اجتاز | W103: اجتاز | X103: اجتاز | Y103: اجتاز | AB103: ناجح ومنقول للصف الثاني | AC103: تربية عسكرية | AD103: فقط تسعون درجة لاغير | AE103: تربية عسكرية | AF103: { 8 } | AG103: مبنى السيارات | AI103: =IF(B103=0,"",num!$B$7) -> فني _ الات كهربية | AJ103: =IF(AI105=ntiga!$AA$2,COUNTIF($AI$4:AI105,ntiga!$AA$2),"") ->  | AK103: =IF($AL$1=E105,COUNTIF($E$4:E105,$AL$1),"") -> 
A104: 101 | B104: ابو _ حبيبه 101 | C104: مستجد | D104: 301 | E104: 4/1 | F104: 501 | G104: 26 | H104: 21 | I104: 20 | J104: 20 | K104: 20 | L104: 20 | M104: 20 | N104: 147 | O104: 18 | P104: 20 | Q104: 15 | R104: اجتاز | S104: اجتاز | T104: اجتاز | U104: اجتاز | V104: اجتاز | W104: اجتاز | X104: اجتاز | Y104: اجتاز | AB104: دور ثان مادة | AC104: لغة عربية تربية عسكرية | AD104: فقط ستة وثمانون درجة لاغير | AE104: لغة عربية تربية عسكرية | AF104: { 8 } | AG104: مبنى السيارات | AI104: =IF(B104=0,"",num!$B$7) -> فني _ الات كهربية | AJ104: =IF(AI106=ntiga!$AA$2,COUNTIF($AI$4:AI106,ntiga!$AA$2),"") ->  | AK104: =IF($AL$1=E106,COUNTIF($E$4:E106,$AL$1),"") -> 
A105: 102 | B105: ابو _ حبيبه 102 | C105: مستجد | D105: 302 | E105: 4/1 | F105: 502 | G105: 26 | H105: 18 | I105: 21 | J105: 20 | K105: 20 | L105: 19 | M105: 18 | N105: 142 | O105: 18 | P105: 20 | Q105: 15 | R105: اجتاز | S105: اجتاز | T105: اجتاز | U105: اجتاز | V105: اجتاز | W105: اجتاز | X105: اجتاز | Y105: اجتاز | AB105: دور ثان مادتين | AC105: لغة عربية لغة إنجليزية تربية عسكرية | AD105: فقط واحد وثمانون درجة لاغير | AE105: لغة عربية تربية عسكرية | AF105: { 8 } | AG105: مبنى السيارات | AI105: =IF(B105=0,"",num!$B$7) -> فني _ الات كهربية | AJ105: =IF(AI107=ntiga!$AA$2,COUNTIF($AI$4:AI107,ntiga!$AA$2),"") ->  | AK105: =IF($AL$1=E107,COUNTIF($E$4:E107,$AL$1),"") -> 
A106: 103 | B106: ابو _ حبيبه 103 | C106: مستجد | D106: 303 | E106: 4/1 | F106: 503 | G106: 24 | H106: 21 | I106: 19 | J106: 20 | K106: 18 | L106: 20 | M106: 20 | N106: 142 | O106: 17 | P106: 20 | Q106: 22 | R106: اجتاز | S106: اجتاز | T106: اجتاز | U106: اجتاز | V106: اجتاز | W106: اجتاز | X106: اجتاز | Y106: اجتاز | AB106: دور ثان مادة | AC106: لغة عربية تربية عسكرية | AD106: فقط أربعة وثمانون درجة لاغير | AE106: لغة عربية تربية عسكرية | AF106: { 9 } | AG106: مبنى السيارات | AI106: =IF(B106=0,"",num!$B$7) -> فني _ الات كهربية | AJ106: =IF(AI108=ntiga!$AA$2,COUNTIF($AI$4:AI108,ntiga!$AA$2),"") ->  | AK106: =IF($AL$1=E108,COUNTIF($E$4:E108,$AL$1),"") -> 
A107: 104 | B107: ابو _ حبيبه 104 | C107: مستجد | D107: 304 | E107: 4/1 | F107: 504 | G107: 26 | H107: 23 | I107: 19 | J107: 19 | K107: 18 | L107: 19 | M107: 19 | N107: 143 | O107: 16 | P107: 18 | Q107: 23 | R107: اجتاز | S107: اجتاز | T107: اجتاز | U107: اجتاز | V107: اجتاز | W107: اجتاز | X107: اجتاز | Y107: اجتاز | AB107: دور ثان مادتين | AC107: لغة عربية لغة إنجليزية تربية عسكرية | AD107: فقط تسعة وثمانون درجة لاغير | AF107: { 9 } | AG107: مبنى السيارات | AI107: =IF(B107=0,"",num!$B$7) -> فني _ الات كهربية | AJ107: =IF(AI109=ntiga!$AA$2,COUNTIF($AI$4:AI109,ntiga!$AA$2),"") ->  | AK107: =IF($AL$1=E109,COUNTIF($E$4:E109,$AL$1),"") -> 
A108: 105 | B108: ابو _ حبيبه 105 | C108: مستجد | D108: 305 | E108: 4/1 | F108: 505 | G108: 27 | H108: 23 | I108: 19 | J108: 19 | K108: 17 | L108: 19 | M108: 19 | N108: 143 | O108: 17 | P108: 19 | Q108: 13 | R108: اجتاز | S108: اجتاز | T108: اجتاز | U108: اجتاز | V108: اجتاز | W108: اجتاز | X108: اجتاز | Y108: اجتاز | AB108: دور ثان مادة | AC108: لغة عربية تربية عسكرية | AD108: فقط ستة وثمانون درجة لاغير | AE108: لغة عربية تربية عسكرية | AF108: { 9 } | AG108: مبنى السيارات | AI108: =IF(B108=0,"",num!$B$7) -> فني _ الات كهربية | AJ108: =IF(AI110=ntiga!$AA$2,COUNTIF($AI$4:AI110,ntiga!$AA$2),"") ->  | AK108: =IF($AL$1=E110,COUNTIF($E$4:E110,$AL$1),"") -> 
A109: 106 | B109: ابو _ حبيبه 106 | C109: مستجد | D109: 306 | E109: 4/1 | F109: 506 | G109: 29 | H109: 27 | I109: 26 | J109: 20 | K109: 18 | L109: 20 | M109: 18 | N109: 158 | O109: 19 | P109: 20 | Q109: 13 | R109: اجتاز | S109: اجتاز | T109: اجتاز | U109: اجتاز | V109: اجتاز | W109: اجتاز | X109: اجتاز | Y109: اجتاز | AB109: ناجح ومنقول للصف الثاني | AC109: تربية عسكرية | AD109: فقط اثنان وثمانون درجة لاغير | AE109: تربية عسكرية | AF109: { 9 } | AG109: مبنى السيارات | AI109: =IF(B109=0,"",num!$B$7) -> فني _ الات كهربية | AJ109: =IF(AI111=ntiga!$AA$2,COUNTIF($AI$4:AI111,ntiga!$AA$2),"") ->  | AK109: =IF($AL$1=E111,COUNTIF($E$4:E111,$AL$1),"") -> 
A110: 107 | B110: ابو _ حبيبه 107 | C110: مستجد | D110: 307 | E110: 4/1 | F110: 507 | G110: 31 | H110: 28 | I110: 21 | J110: 19 | K110: 17 | L110: 19 | M110: 19 | N110: 154 | O110: 18 | P110: 19 | Q110: 14 | R110: اجتاز | S110: اجتاز | T110: اجتاز | U110: اجتاز | V110: اجتاز | W110: اجتاز | X110: اجتاز | Y110: اجتاز | AB110: ناجح ومنقول للصف الثاني | AC110: تربية عسكرية | AD110: فقط تسعة وسبعون درجة لاغير | AE110: تربية عسكرية | AF110: { 9 } | AG110: مبنى السيارات | AI110: =IF(B110=0,"",num!$B$7) -> فني _ الات كهربية | AJ110: =IF(AI112=ntiga!$AA$2,COUNTIF($AI$4:AI112,ntiga!$AA$2),"") ->  | AK110: =IF($AL$1=E112,COUNTIF($E$4:E112,$AL$1),"") -> 
A111: 108 | B111: ابو _ حبيبه 108 | C111: باق | D111: 308 | E111: 4/1 | F111: 508 | G111: 29 | H111: 27 | I111: 21 | J111: 19 | K111: 19 | L111: 17 | M111: 19 | N111: 151 | O111: 18 | P111: 18 | Q111: 13 | R111: اجتاز | S111: اجتاز | T111: اجتاز | U111: اجتاز | V111: اجتاز | W111: اجتاز | X111: اجتاز | Y111: اجتاز | AB111: ناجح ومنقول للصف الثاني | AC111: تربية عسكرية | AD111: فقط مائة وسبعة وثلاثون درجة لاغير | AE111: تربية عسكرية | AF111: { 9 } | AG111: مبنى السيارات | AI111: =IF(B111=0,"",num!$B$7) -> فني _ الات كهربية | AJ111: =IF(AI113=ntiga!$AA$2,COUNTIF($AI$4:AI113,ntiga!$AA$2),"") ->  | AK111: =IF($AL$1=E113,COUNTIF($E$4:E113,$AL$1),"") -> 
A112: 109 | B112: ابو _ حبيبه 109 | C112: مستجد | D112: 309 | E112: 4/1 | F112: 509 | G112: 30 | H112: 30 | I112: 21 | J112: 19 | K112: 17 | L112: 19 | M112: 19 | N112: 155 | O112: 18 | P112: 19 | Q112: 23 | R112: اجتاز | S112: اجتاز | T112: اجتاز | U112: اجتاز | V112: اجتاز | W112: اجتاز | X112: اجتاز | Y112: اجتاز | AB112: ناجح ومنقول للصف الثاني | AC112: تربية عسكرية | AD112: فقط ثمانون درجة لاغير | AE112: تربية عسكرية | AF112: { 9 } | AG112: مبنى السيارات | AI112: =IF(B112=0,"",num!$B$7) -> فني _ الات كهربية | AJ112: =IF(AI114=ntiga!$AA$2,COUNTIF($AI$4:AI114,ntiga!$AA$2),"") ->  | AK112: =IF($AL$1=E114,COUNTIF($E$4:E114,$AL$1),"") -> 
A113: 110 | B113: ابو _ حبيبه 110 | C113: مستجد | D113: 310 | E113: 4/1 | F113: 510 | G113: 29 | H113: 30 | I113: 17 | J113: 19 | K113: 18 | L113: 19 | M113: 19 | N113: 151 | O113: 18 | P113: 19 | Q113: 14 | R113: اجتاز | S113: اجتاز | T113: اجتاز | U113: اجتاز | V113: اجتاز | W113: اجتاز | X113: اجتاز | Y113: اجتاز | AB113: ناجح ومنقول للصف الثاني | AC113: تربية عسكرية | AD113: فقط اثنان وثمانون درجة لاغير | AE113: تربية عسكرية | AF113: { 9 } | AG113: مبنى السيارات | AI113: =IF(B113=0,"",num!$B$7) -> فني _ الات كهربية | AJ113: =IF(AI115=ntiga!$AA$2,COUNTIF($AI$4:AI115,ntiga!$AA$2),"") ->  | AK113: =IF($AL$1=E115,COUNTIF($E$4:E115,$AL$1),"") -> 
A114: 111 | B114: ابو _ حبيبه 111 | C114: مستجد | D114: 311 | E114: 4/1 | F114: 511 | G114: 29 | H114: 29 | I114: 26 | J114: 20 | K114: 20 | L114: 20 | M114: 20 | N114: 164 | O114: 20 | P114: 20 | Q114: 22 | R114: اجتاز | S114: اجتاز | T114: اجتاز | U114: اجتاز | V114: اجتاز | W114: اجتاز | X114: اجتاز | Y114: اجتاز | AB114: ناجح ومنقول للصف الثاني | AC114: تربية عسكرية | AD114: فقط ثمانية وثمانون درجة لاغير | AE114: تربية عسكرية | AF114: { 9 } | AG114: مبنى السيارات | AI114: =IF(B114=0,"",num!$B$7) -> فني _ الات كهربية | AJ114: =IF(AI116=ntiga!$AA$2,COUNTIF($AI$4:AI116,ntiga!$AA$2),"") ->  | AK114: =IF($AL$1=E116,COUNTIF($E$4:E116,$AL$1),"") -> 
A115: 112 | B115: ابو _ حبيبه 112 | C115: مستجد | D115: 312 | E115: 4/1 | F115: 512 | G115: 26 | H115: 25 | I115: 13 | J115: 10 | K115: 9 | L115: 10 | M115: 9 | N115: 102 | O115: 10 | P115: 10 | Q115: 13 | R115: اجتاز | S115: اجتاز | T115: اجتاز | U115: اجتاز | V115: اجتاز | W115: اجتاز | X115: اجتاز | Y115: اجتاز | AB115: راسب وله حق الإعادة | AD115: فقط واحد وثمانون درجة لاغير | AF115: { 9 } | AG115: مبنى السيارات | AI115: =IF(B115=0,"",num!$B$7) -> فني _ الات كهربية | AJ115: =IF(AI117=ntiga!$AA$2,COUNTIF($AI$4:AI117,ntiga!$AA$2),"") ->  | AK115: =IF($AL$1=E117,COUNTIF($E$4:E117,$AL$1),"") -> 
A116: 113 | B116: ابو _ حبيبه 113 | C116: مستجد | D116: 313 | E116: 4/1 | F116: 513 | G116: 24 | H116: 23 | I116: 13 | J116: 20 | K116: 18 | L116: 20 | M116: 19 | N116: 137 | O116: 20 | P116: 20 | Q116: 17 | R116: اجتاز | S116: اجتاز | T116: اجتاز | U116: اجتاز | V116: اجتاز | W116: اجتاز | X116: اجتاز | Y116: اجتاز | AB116: دور ثان مادتين | AC116: لغة عربية رياضيات تربية عسكرية | AD116: فقط تسعة وسبعون درجة لاغير | AE116: لغة عربية تربية عسكرية | AF116: { 9 } | AG116: مبنى السيارات | AI116: =IF(B116=0,"",num!$B$7) -> فني _ الات كهربية | AJ116: =IF(AI118=ntiga!$AA$2,COUNTIF($AI$4:AI118,ntiga!$AA$2),"") ->  | AK116: =IF($AL$1=E118,COUNTIF($E$4:E118,$AL$1),"") -> 
A117: 114 | B117: ابو _ حبيبه 114 | C117: مستجد | D117: 314 | E117: 4/1 | F117: 514 | G117: 22 | H117: 23 | I117: 15 | J117: 20 | K117: 18 | L117: 20 | M117: 20 | N117: 138 | O117: 20 | P117: 20 | Q117: 13 | R117: اجتاز | S117: اجتاز | T117: اجتاز | U117: اجتاز | V117: اجتاز | W117: اجتاز | X117: اجتاز | Y117: اجتاز | AB117: دور ثان مادة | AC117: لغة عربية تربية عسكرية | AD117: فقط أربعة وسبعون درجة لاغير | AE117: تربية عسكرية | AF117: { 9 } | AG117: مبنى السيارات | AI117: =IF(B117=0,"",num!$B$7) -> فني _ الات كهربية | AJ117: =IF(AI119=ntiga!$AA$2,COUNTIF($AI$4:AI119,ntiga!$AA$2),"") ->  | AK117: =IF($AL$1=E119,COUNTIF($E$4:E119,$AL$1),"") -> 
A118: 115 | B118: ابو _ حبيبه 115 | C118: باق | D118: 315 | E118: 4/1 | F118: 515 | G118: 17 | H118: 14 | I118: 11 | J118: 20 | K118: 18 | L118: 19 | M118: 20 | N118: 119 | O118: 20 | P118: 19 | Q118: 13 | R118: اجتاز | S118: اجتاز | T118: اجتاز | U118: اجتاز | V118: اجتاز | W118: اجتاز | X118: اجتاز | Y118: اجتاز | AB118: راسب وليس له حق الاعادة | AD118: فقط تسعة وسبعون درجة لاغير | AF118: { 9 } | AG118: مبنى السيارات | AI118: =IF(B118=0,"",num!$B$7) -> فني _ الات كهربية | AJ118: =IF(AI120=ntiga!$AA$2,COUNTIF($AI$4:AI120,ntiga!$AA$2),"") ->  | AK118: =IF($AL$1=E120,COUNTIF($E$4:E120,$AL$1),"") -> 
A119: 116 | B119: ابو _ حبيبه 116 | C119: مستجد | D119: 316 | E119: 4/1 | F119: 516 | G119: 29 | H119: 30 | I119: 20 | J119: 20 | K119: 19 | L119: 20 | M119: 20 | N119: 158 | O119: 20 | P119: 20 | Q119: 22 | R119: اجتاز | S119: اجتاز | T119: اجتاز | U119: اجتاز | V119: اجتاز | W119: اجتاز | X119: اجتاز | Y119: اجتاز | AB119: ناجح ومنقول للصف الثاني | AC119: تربية عسكرية | AD119: فقط خمسة وثمانون درجة لاغير | AE119: تربية عسكرية | AF119: { 9 } | AG119: مبنى السيارات | AI119: =IF(B119=0,"",num!$B$7) -> فني _ الات كهربية | AJ119: =IF(AI121=ntiga!$AA$2,COUNTIF($AI$4:AI121,ntiga!$AA$2),"") ->  | AK119: =IF($AL$1=E121,COUNTIF($E$4:E121,$AL$1),"") -> 
A120: 117 | B120: ابو _ حبيبه 117 | C120: مستجد | D120: 317 | E120: 4/1 | F120: 517 | G120: 22 | H120: 29 | I120: 20 | J120: 20 | K120: 18 | L120: 20 | M120: 19 | N120: 148 | O120: 20 | P120: 20 | Q120: 14 | R120: اجتاز | S120: اجتاز | T120: اجتاز | U120: اجتاز | V120: اجتاز | W120: اجتاز | X120: اجتاز | Y120: اجتاز | AB120: دور ثان مادة | AC120: لغة عربية تربية عسكرية | AD120: فقط اثنان وسبعون درجة لاغير | AE120: تربية عسكرية | AF120: { 9 } | AG120: مبنى السيارات | AI120: =IF(B120=0,"",num!$B$7) -> فني _ الات كهربية | AJ120: =IF(AI122=ntiga!$AA$2,COUNTIF($AI$4:AI122,ntiga!$AA$2),"") ->  | AK120: =IF($AL$1=E122,COUNTIF($E$4:E122,$AL$1),"") -> 
A121: 118 | B121: ابو _ حبيبه 118 | C121: مفصول | D121: 318 | E121: 4/1 | F121: 518 | G121: 7 | H121: 7 | I121: 7 | J121: 10 | K121: 10 | L121: 10 | M121: 10 | N121: 61 | O121: 10 | P121: 10 | Q121: 0 | R121: لم يجتاز | S121: لم يجتاز | T121: لم يجتاز | U121: لم يجتاز | V121: لم يجتاز | W121: لم يجتاز | X121: لم يجتاز | Y121: لم يجتاز | AB121: راسب وله حق الإعادة | AD121: صفر | AE121: لغة عربية تربية عسكرية | AF121: { 9 } | AG121: مبنى السيارات | AI121: =IF(B121=0,"",num!$B$7) -> فني _ الات كهربية | AJ121: =IF(AI123=ntiga!$AA$2,COUNTIF($AI$4:AI123,ntiga!$AA$2),"") ->  | AK121: =IF($AL$1=E123,COUNTIF($E$4:E123,$AL$1),"") -> 
A122: 119 | B122: ابو _ حبيبه 119 | C122: مستجد | D122: 319 | E122: 4/1 | F122: 519 | G122: 25 | H122: 21 | I122: 20 | J122: 19 | K122: 20 | L122: 20 | M122: 20 | N122: 145 | O122: 20 | P122: 20 | Q122: 13 | R122: اجتاز | S122: اجتاز | T122: اجتاز | U122: اجتاز | V122: اجتاز | W122: اجتاز | X122: اجتاز | Y122: اجتاز | AB122: دور ثان مادة | AC122: لغة عربية تربية عسكرية | AD122: فقط سبعة وثمانون درجة لاغير | AE122: لغة عربية تربية عسكرية | AF122: { 9 } | AG122: مبنى السيارات | AI122: =IF(B122=0,"",num!$B$7) -> فني _ الات كهربية | AJ122: =IF(AI124=ntiga!$AA$2,COUNTIF($AI$4:AI124,ntiga!$AA$2),"") ->  | AK122: =IF($AL$1=E124,COUNTIF($E$4:E124,$AL$1),"") -> 
A123: 120 | B123: ابو _ حبيبه 120 | C123: مستجد | D123: 320 | E123: 4/1 | F123: 520 | G123: 28 | H123: 22 | I123: 22 | J123: 20 | K123: 20 | L123: 20 | M123: 19 | N123: 151 | O123: 20 | P123: 20 | Q123: 23 | R123: اجتاز | S123: اجتاز | T123: اجتاز | U123: اجتاز | V123: اجتاز | W123: اجتاز | X123: اجتاز | Y123: اجتاز | AB123: ناجح ومنقول للصف الثاني | AC123: تربية عسكرية | AD123: فقط سبعة وثمانون درجة لاغير | AE123: تربية عسكرية | AF123: { 9 } | AG123: مبنى السيارات | AI123: =IF(B123=0,"",num!$B$7) -> فني _ الات كهربية | AJ123: =IF(AI125=ntiga!$AA$2,COUNTIF($AI$4:AI125,ntiga!$AA$2),"") ->  | AK123: =IF($AL$1=E125,COUNTIF($E$4:E125,$AL$1),"") -> 1
A124: 121 | B124: ابو _ حبيبه 121 | C124: مستجد | D124: 321 | E124: 4/1 | F124: 521 | G124: 18 | H124: 16 | I124: 13 | J124: 19 | K124: 19 | L124: 20 | M124: 20 | N124: 125 | O124: 20 | P124: 20 | Q124: 23 | R124: اجتاز | S124: اجتاز | T124: اجتاز | U124: اجتاز | V124: اجتاز | W124: اجتاز | X124: اجتاز | Y124: اجتاز | AB124: راسب وله حق الإعادة | AD124: فقط خمسة وثمانون درجة لاغير | AF124: { 9 } | AG124: مبنى السيارات | AI124: =IF(B124=0,"",num!$B$7) -> فني _ الات كهربية | AJ124: =IF(AI126=ntiga!$AA$2,COUNTIF($AI$4:AI126,ntiga!$AA$2),"") ->  | AK124: =IF($AL$1=E126,COUNTIF($E$4:E126,$AL$1),"") -> 2
A125: 122 | B125: ابو _ حبيبه 122 | C125: مستجد | D125: 322 | E125: 5/1 | F125: 522 | G125: 27 | H125: 24 | I125: 17 | J125: 20 | K125: 20 | L125: 20 | M125: 19 | N125: 147 | O125: 18 | P125: 19 | Q125: 23 | R125: اجتاز | S125: اجتاز | T125: اجتاز | U125: اجتاز | V125: اجتاز | W125: اجتاز | X125: اجتاز | Y125: اجتاز | AB125: دور ثان مادة | AC125: لغة عربية تربية عسكرية | AD125: صفر | AE125: لغة عربية تربية عسكرية | AF125: { 7 } | AG125: مبنى السيارات | AI125: =IF(B125=0,"",num!$B$8) -> فني _ طاقة شمسية | AJ125: =IF(AI127=ntiga!$AA$2,COUNTIF($AI$4:AI127,ntiga!$AA$2),"") ->  | AK125: =IF($AL$1=E127,COUNTIF($E$4:E127,$AL$1),"") -> 3
A126: 123 | B126: ابو _ حبيبه 123 | C126: مستجد | D126: 323 | E126: 5/1 | F126: 523 | G126: 26 | H126: 23 | I126: 20 | J126: 20 | K126: 20 | L126: 19 | M126: 19 | N126: 147 | O126: 19 | P126: 20 | Q126: 14 | R126: اجتاز | S126: اجتاز | T126: اجتاز | U126: اجتاز | V126: اجتاز | W126: اجتاز | X126: اجتاز | Y126: اجتاز | AB126: دور ثان مادتين | AC126: لغة عربية لغة إنجليزية تربية عسكرية | AD126: صفر | AF126: { 7 } | AG126: مبنى السيارات | AI126: =IF(B126=0,"",num!$B$8) -> فني _ طاقة شمسية | AJ126: =IF(AI128=ntiga!$AA$2,COUNTIF($AI$4:AI128,ntiga!$AA$2),"") ->  | AK126: =IF($AL$1=E128,COUNTIF($E$4:E128,$AL$1),"") -> 4
A127: 124 | B127: ابو _ حبيبه 124 | C127: مستجد | D127: 324 | E127: 5/1 | F127: 524 | G127: 27 | H127: 25 | I127: 21 | J127: 20 | K127: 20 | L127: 19 | M127: 19 | N127: 151 | O127: 19 | P127: 20 | Q127: 23 | R127: اجتاز | S127: اجتاز | T127: اجتاز | U127: اجتاز | V127: اجتاز | W127: اجتاز | X127: اجتاز | Y127: اجتاز | AB127: ناجح ومنقول للصف الثاني | AC127: تربية عسكرية | AD127: صفر | AE127: تربية عسكرية | AF127: { 7 } | AG127: مبنى السيارات | AI127: =IF(B127=0,"",num!$B$8) -> فني _ طاقة شمسية | AJ127: =IF(AI129=ntiga!$AA$2,COUNTIF($AI$4:AI129,ntiga!$AA$2),"") ->  | AK127: =IF($AL$1=E129,COUNTIF($E$4:E129,$AL$1),"") -> 5
A128: 125 | B128: ابو _ حبيبه 125 | C128: مستجد | D128: 325 | E128: 5/1 | F128: 525 | G128: 30 | H128: 26 | I128: 21 | J128: 20 | K128: 20 | L128: 19 | M128: 19 | N128: 155 | O128: 19 | P128: 20 | Q128: 14 | R128: اجتاز | S128: اجتاز | T128: اجتاز | U128: اجتاز | V128: اجتاز | W128: اجتاز | X128: اجتاز | Y128: اجتاز | AB128: ناجح ومنقول للصف الثاني | AC128: تربية عسكرية | AD128: صفر | AE128: تربية عسكرية | AF128: { 7 } | AG128: مبنى السيارات | AI128: =IF(B128=0,"",num!$B$8) -> فني _ طاقة شمسية | AJ128: =IF(AI130=ntiga!$AA$2,COUNTIF($AI$4:AI130,ntiga!$AA$2),"") ->  | AK128: =IF($AL$1=E130,COUNTIF($E$4:E130,$AL$1),"") -> 6
A129: 126 | B129: ابو _ حبيبه 126 | C129: مستجد | D129: 326 | E129: 5/1 | F129: 526 | G129: 28 | H129: 25 | I129: 17 | J129: 19 | K129: 19 | L129: 18 | M129: 18 | N129: 144 | O129: 17 | P129: 19 | Q129: 23 | R129: اجتاز | S129: اجتاز | T129: اجتاز | U129: اجتاز | V129: اجتاز | W129: اجتاز | X129: اجتاز | Y129: اجتاز | AB129: دور ثان مادة | AC129: لغة عربية تربية عسكرية | AD129: صفر | AE129: لغة عربية تربية عسكرية | AF129: { 7 } | AG129: مبنى السيارات | AI129: =IF(B129=0,"",num!$B$8) -> فني _ طاقة شمسية | AJ129: =IF(AI131=ntiga!$AA$2,COUNTIF($AI$4:AI131,ntiga!$AA$2),"") ->  | AK129: =IF($AL$1=E131,COUNTIF($E$4:E131,$AL$1),"") -> 7
A130: 127 | B130: ابو _ حبيبه 127 | C130: مستجد | D130: 327 | E130: 5/1 | F130: 527 | G130: 24 | H130: 26 | I130: 20 | J130: 19 | K130: 19 | L130: 18 | M130: 18 | N130: 144 | O130: 17 | P130: 19 | Q130: 13 | R130: اجتاز | S130: اجتاز | T130: اجتاز | U130: اجتاز | V130: اجتاز | W130: اجتاز | X130: اجتاز | Y130: اجتاز | AB130: دور ثان مادة | AC130: لغة عربية تربية عسكرية | AD130: صفر | AE130: لغة عربية تربية عسكرية | AF130: { 7 } | AG130: مبنى السيارات | AI130: =IF(B130=0,"",num!$B$8) -> فني _ طاقة شمسية | AJ130: =IF(AI132=ntiga!$AA$2,COUNTIF($AI$4:AI132,ntiga!$AA$2),"") ->  | AK130: =IF($AL$1=E132,COUNTIF($E$4:E132,$AL$1),"") -> 8
A131: 128 | B131: ابو _ حبيبه 128 | C131: مستجد | D131: 328 | E131: 5/1 | F131: 528 | G131: 27 | H131: 25 | I131: 21 | J131: 19 | K131: 19 | L131: 19 | M131: 19 | N131: 149 | O131: 18 | P131: 20 | Q131: 14 | R131: اجتاز | S131: اجتاز | T131: اجتاز | U131: اجتاز | V131: اجتاز | W131: اجتاز | X131: اجتاز | Y131: اجتاز | AB131: ناجح ومنقول للصف الثاني | AC131: تربية عسكرية | AD131: صفر | AE131: تربية عسكرية | AF131: { 7 } | AG131: مبنى السيارات | AI131: =IF(B131=0,"",num!$B$8) -> فني _ طاقة شمسية | AJ131: =IF(AI133=ntiga!$AA$2,COUNTIF($AI$4:AI133,ntiga!$AA$2),"") ->  | AK131: =IF($AL$1=E133,COUNTIF($E$4:E133,$AL$1),"") -> 9
A132: 129 | B132: ابو _ حبيبه 129 | C132: مستجد | D132: 329 | E132: 5/1 | F132: 529 | G132: 31 | H132: 28 | I132: 24 | J132: 18 | K132: 18 | L132: 17 | M132: 18 | N132: 154 | O132: 17 | P132: 19 | Q132: 23 | R132: اجتاز | S132: اجتاز | T132: اجتاز | U132: اجتاز | V132: اجتاز | W132: اجتاز | X132: اجتاز | Y132: اجتاز | AB132: ناجح ومنقول للصف الثاني | AC132: تربية عسكرية | AD132: صفر | AE132: تربية عسكرية | AF132: { 7 } | AG132: مبنى السيارات | AI132: =IF(B132=0,"",num!$B$8) -> فني _ طاقة شمسية | AJ132: =IF(AI134=ntiga!$AA$2,COUNTIF($AI$4:AI134,ntiga!$AA$2),"") ->  | AK132: =IF($AL$1=E134,COUNTIF($E$4:E134,$AL$1),"") -> 10
A133: 130 | B133: ابو _ حبيبه 130 | C133: مستجد | D133: 330 | E133: 5/1 | F133: 530 | G133: 20 | H133: 19 | I133: 11 | J133: 19 | K133: 18 | L133: 19 | M133: 18 | N133: 124 | O133: 18 | P133: 19 | Q133: 17 | R133: اجتاز | S133: اجتاز | T133: اجتاز | U133: اجتاز | V133: اجتاز | W133: اجتاز | X133: اجتاز | Y133: اجتاز | AB133: راسب وله حق الإعادة | AD133: صفر | AF133: { 7 } | AG133: مبنى السيارات | AI133: =IF(B133=0,"",num!$B$8) -> فني _ طاقة شمسية | AJ133: =IF(AI135=ntiga!$AA$2,COUNTIF($AI$4:AI135,ntiga!$AA$2),"") ->  | AK133: =IF($AL$1=E135,COUNTIF($E$4:E135,$AL$1),"") -> 11
A134: 131 | B134: ابو _ حبيبه 131 | C134: مستجد | D134: 331 | E134: 5/1 | F134: =F133+1 -> 531 | G134: 31 | H134: 29 | I134: 23 | J134: 19 | K134: 18 | L134: 19 | M134: 18 | N134: 157 | O134: 18 | P134: 19 | Q134: 23 | R134: اجتاز | S134: اجتاز | T134: اجتاز | U134: اجتاز | V134: اجتاز | W134: اجتاز | X134: اجتاز | Y134: اجتاز | AB134: ناجح ومنقول للصف الثاني | AC134: تربية عسكرية | AD134: صفر | AE134: تربية عسكرية | AF134: { 7 } | AG134: مبنى السيارات | AI134: =IF(B134=0,"",num!$B$8) -> فني _ طاقة شمسية | AJ134: =IF(AI136=ntiga!$AA$2,COUNTIF($AI$4:AI136,ntiga!$AA$2),"") ->  | AK134: =IF($AL$1=E136,COUNTIF($E$4:E136,$AL$1),"") -> 12
A135: 132 | B135: ابو _ حبيبه 132 | C135: مستجد | D135: =D134+1 -> 332 | E135: 5/1 | F135: 532 | G135: 28 | H135: 26 | I135: 21 | J135: 18 | K135: 19 | L135: 19 | M135: 18 | N135: 149 | O135: 18 | P135: 19 | Q135: 23 | R135: اجتاز | S135: اجتاز | T135: اجتاز | U135: اجتاز | V135: اجتاز | W135: اجتاز | X135: اجتاز | Y135: اجتاز | AB135: دور ثان مادة | AC135: لغة عربية تربية عسكرية | AD135: صفر | AE135: لغة عربية تربية عسكرية | AF135: { 7 } | AG135: مبنى السيارات | AI135: =IF(B135=0,"",num!$B$8) -> فني _ طاقة شمسية | AJ135: =IF(AI137=ntiga!$AA$2,COUNTIF($AI$4:AI137,ntiga!$AA$2),"") ->  | AK135: =IF($AL$1=E137,COUNTIF($E$4:E137,$AL$1),"") -> 13
A136: 133 | B136: ابو _ حبيبه 133 | C136: مستجد | D136: 333 | E136: 5/1 | F136: 533 | G136: 27 | H136: 26 | I136: 19 | J136: 19 | K136: 20 | L136: 19 | M136: 19 | N136: 149 | O136: 19 | P136: 20 | Q136: 22 | R136: اجتاز | S136: اجتاز | T136: اجتاز | U136: اجتاز | V136: اجتاز | W136: اجتاز | X136: اجتاز | Y136: اجتاز | AB136: دور ثان مادة | AC136: لغة عربية تربية عسكرية | AD136: صفر | AE136: لغة عربية تربية عسكرية | AF136: { 7 } | AG136: مبنى السيارات | AI136: =IF(B136=0,"",num!$B$8) -> فني _ طاقة شمسية | AJ136: =IF(AI138=ntiga!$AA$2,COUNTIF($AI$4:AI138,ntiga!$AA$2),"") ->  | AK136: =IF($AL$1=E138,COUNTIF($E$4:E138,$AL$1),"") -> 14
A137: 134 | B137: ابو _ حبيبه 134 | C137: مستجد | D137: 334 | E137: 5/1 | F137: 534 | G137: 26 | H137: 24 | I137: 16 | J137: 10 | K137: 10 | L137: 10 | M137: 9 | N137: 105 | O137: 9 | P137: 9 | Q137: 13 | R137: اجتاز | S137: اجتاز | T137: اجتاز | U137: اجتاز | V137: اجتاز | W137: اجتاز | X137: اجتاز | Y137: اجتاز | AB137: راسب وله حق الإعادة | AD137: صفر | AF137: { 7 } | AG137: مبنى السيارات | AI137: =IF(B137=0,"",num!$B$8) -> فني _ طاقة شمسية | AJ137: =IF(AI139=ntiga!$AA$2,COUNTIF($AI$4:AI139,ntiga!$AA$2),"") ->  | AK137: =IF($AL$1=E139,COUNTIF($E$4:E139,$AL$1),"") -> 15
A138: 135 | B138: ابو _ حبيبه 135 | C138: مستجد | D138: 335 | E138: 5/1 | F138: 535 | G138: 25 | H138: 22 | I138: 20 | J138: 20 | K138: 20 | L138: 20 | M138: 19 | N138: 146 | O138: 20 | P138: 20 | Q138: 14 | R138: اجتاز | S138: اجتاز | T138: اجتاز | U138: اجتاز | V138: اجتاز | W138: اجتاز | X138: اجتاز | Y138: اجتاز | AB138: دور ثان مادتين | AC138: لغة عربية لغة إنجليزية تربية عسكرية | AD138: صفر | AF138: { 8 } | AG138: مبنى السيارات | AI138: =IF(B138=0,"",num!$B$8) -> فني _ طاقة شمسية | AJ138: =IF(AI140=ntiga!$AA$2,COUNTIF($AI$4:AI140,ntiga!$AA$2),"") ->  | AK138: =IF($AL$1=E140,COUNTIF($E$4:E140,$AL$1),"") -> 16
A139: 136 | B139: ابو _ حبيبه 136 | C139: مستجد | D139: 336 | E139: 5/1 | F139: 536 | G139: 27 | H139: 25 | I139: 19 | J139: 20 | K139: 20 | L139: 20 | M139: 19 | N139: 150 | O139: 20 | P139: 19 | Q139: 22 | R139: اجتاز | S139: اجتاز | T139: اجتاز | U139: اجتاز | V139: اجتاز | W139: اجتاز | X139: اجتاز | Y139: اجتاز | AB139: دور ثان مادة | AC139: لغة عربية تربية عسكرية | AD139: صفر | AE139: لغة عربية تربية عسكرية | AF139: { 8 } | AG139: مبنى السيارات | AI139: =IF(B139=0,"",num!$B$8) -> فني _ طاقة شمسية | AJ139: =IF(AI141=ntiga!$AA$2,COUNTIF($AI$4:AI141,ntiga!$AA$2),"") ->  | AK139: =IF($AL$1=E141,COUNTIF($E$4:E141,$AL$1),"") -> 17
A140: 137 | B140: ابو _ حبيبه 137 | C140: مستجد | D140: 337 | E140: 5/1 | F140: 537 | G140: 31 | H140: 29 | I140: 26 | J140: 20 | K140: 20 | L140: 20 | M140: 19 | N140: 165 | O140: 20 | P140: 19 | Q140: 22 | R140: اجتاز | S140: اجتاز | T140: اجتاز | U140: اجتاز | V140: اجتاز | W140: اجتاز | X140: اجتاز | Y140: اجتاز | AB140: ناجح ومنقول للصف الثاني | AC140: تربية عسكرية | AD140: صفر | AE140: تربية عسكرية | AF140: { 8 } | AG140: مبنى السيارات | AI140: =IF(B140=0,"",num!$B$8) -> فني _ طاقة شمسية | AJ140: =IF(AI142=ntiga!$AA$2,COUNTIF($AI$4:AI142,ntiga!$AA$2),"") ->  | AK140: =IF($AL$1=E142,COUNTIF($E$4:E142,$AL$1),"") -> 18
A141: 138 | B141: ابو _ حبيبه 138 | C141: مستجد | D141: 338 | E141: 5/1 | F141: 538 | G141: 33 | H141: 31 | I141: 27 | J141: 20 | K141: 20 | L141: 19 | M141: 19 | N141: 169 | O141: 18 | P141: 20 | Q141: 14 | R141: اجتاز | S141: اجتاز | T141: اجتاز | U141: اجتاز | V141: اجتاز | W141: اجتاز | X141: اجتاز | Y141: اجتاز | AB141: ناجح ومنقول للصف الثاني | AC141: تربية عسكرية | AD141: صفر | AE141: تربية عسكرية | AF141: { 8 } | AG141: مبنى السيارات | AI141: =IF(B141=0,"",num!$B$8) -> فني _ طاقة شمسية | AJ141: =IF(AI143=ntiga!$AA$2,COUNTIF($AI$4:AI143,ntiga!$AA$2),"") ->  | AK141: =IF($AL$1=E143,COUNTIF($E$4:E143,$AL$1),"") -> 19
A142: 139 | B142: ابو _ حبيبه 139 | C142: مستجد | D142: 339 | E142: 5/1 | F142: 539 | G142: 30 | H142: 23 | I142: 24 | J142: 20 | K142: 20 | L142: 20 | M142: 19 | N142: 156 | O142: 18 | P142: 20 | Q142: 24 | R142: اجتاز | S142: اجتاز | T142: اجتاز | U142: اجتاز | V142: اجتاز | W142: اجتاز | X142: اجتاز | Y142: اجتاز | AB142: ناجح ومنقول للصف الثاني | AC142: تربية عسكرية | AD142: صفر | AE142: تربية عسكرية | AF142: { 8 } | AG142: مبنى السيارات | AI142: =IF(B142=0,"",num!$B$8) -> فني _ طاقة شمسية | AJ142: =IF(AI144=ntiga!$AA$2,COUNTIF($AI$4:AI144,ntiga!$AA$2),"") ->  | AK142: =IF($AL$1=E144,COUNTIF($E$4:E144,$AL$1),"") -> 20
A143: 140 | B143: ابو _ حبيبه 140 | C143: مستجد | D143: 340 | E143: 5/1 | F143: 540 | G143: 35 | H143: 31 | I143: 26 | J143: 20 | K143: 20 | L143: 20 | M143: 19 | N143: 171 | O143: 19 | P143: 20 | Q143: 24 | R143: اجتاز | S143: اجتاز | T143: اجتاز | U143: اجتاز | V143: اجتاز | W143: اجتاز | X143: اجتاز | Y143: اجتاز | AB143: ناجح ومنقول للصف الثاني | AC143: تربية عسكرية | AD143: صفر | AE143: تربية عسكرية | AF143: { 8 } | AG143: مبنى السيارات | AI143: =IF(B143=0,"",num!$B$8) -> فني _ طاقة شمسية | AJ143: =IF(AI145=ntiga!$AA$2,COUNTIF($AI$4:AI145,ntiga!$AA$2),"") ->  | AK143: =IF($AL$1=E145,COUNTIF($E$4:E145,$AL$1),"") -> 21
A144: 141 | B144: ابو _ حبيبه 141 | C144: مستجد | D144: 341 | E144: 5/1 | F144: 541 | G144: 33 | H144: 28 | I144: 25 | J144: 20 | K144: 20 | L144: 19 | M144: 19 | N144: 164 | O144: 18 | P144: 20 | Q144: 23 | R144: اجتاز | S144: اجتاز | T144: اجتاز | U144: اجتاز | V144: اجتاز | W144: اجتاز | X144: اجتاز | Y144: اجتاز | AB144: ناجح ومنقول للصف الثاني | AC144: تربية عسكرية | AD144: صفر | AE144: تربية عسكرية | AF144: { 8 } | AG144: مبنى السيارات | AI144: =IF(B144=0,"",num!$B$8) -> فني _ طاقة شمسية | AJ144: =IF(AI146=ntiga!$AA$2,COUNTIF($AI$4:AI146,ntiga!$AA$2),"") ->  | AK144: =IF($AL$1=E146,COUNTIF($E$4:E146,$AL$1),"") -> 
A145: 142 | B145: ابو _ حبيبه 142 | C145: مستجد | D145: 342 | E145: 5/1 | F145: 542 | G145: 34 | H145: 25 | I145: 25 | J145: 20 | K145: 20 | L145: 20 | M145: 19 | N145: 163 | O145: 12 | P145: 20 | Q145: 14 | R145: اجتاز | S145: اجتاز | T145: اجتاز | U145: اجتاز | V145: اجتاز | W145: اجتاز | X145: اجتاز | Y145: اجتاز | AB145: ناجح ومنقول للصف الثاني | AC145: تربية عسكرية | AD145: صفر | AE145: تربية عسكرية | AF145: { 8 } | AG145: مبنى السيارات | AI145: =IF(B145=0,"",num!$B$8) -> فني _ طاقة شمسية | AJ145: =IF(AI147=ntiga!$AA$2,COUNTIF($AI$4:AI147,ntiga!$AA$2),"") ->  | AK145: =IF($AL$1=E147,COUNTIF($E$4:E147,$AL$1),"") -> 
A146: 143 | B146: ابو _ حبيبه 143 | C146: مستجد | D146: 343 | E146: 6/1 | F146: 543 | G146: 17 | H146: 18 | I146: 20 | J146: 16 | K146: 15 | L146: 10 | M146: 10 | N146: 106 | O146: 9 | P146: 10 | Q146: 23 | R146: اجتاز | S146: اجتاز | T146: اجتاز | U146: اجتاز | V146: اجتاز | W146: اجتاز | X146: اجتاز | AB146: راسب وله حق الإعادة | AD146: فقط خمسة وثمانون درجة لاغير | AF146: { 5 } | AG146: مبنى السيارات | AI146: =IF(B146=0,"",num!$B$3) -> فني _ صيانة وإصلاح سيارات | AJ146: =IF(AI148=ntiga!$AA$2,COUNTIF($AI$4:AI148,ntiga!$AA$2),"") ->  | AK146: =IF($AL$1=E148,COUNTIF($E$4:E148,$AL$1),"") -> 
A147: 144 | B147: ابو _ حبيبه 144 | C147: مستجد | D147: 344 | E147: 6/1 | F147: 544 | G147: 16 | H147: 8 | I147: 14 | J147: 16 | K147: 14 | L147: 10 | M147: 10 | N147: 88 | O147: 8 | P147: 10 | Q147: 15 | R147: اجتاز | S147: اجتاز | T147: اجتاز | U147: اجتاز | V147: اجتاز | W147: اجتاز | X147: اجتاز | AB147: راسب وله حق الإعادة | AD147: فقط سبعون درجة لاغير | AF147: { 5 } | AG147: مبنى السيارات | AI147: =IF(B147=0,"",num!$B$3) -> فني _ صيانة وإصلاح سيارات | AJ147: =IF(AI149=ntiga!$AA$2,COUNTIF($AI$4:AI149,ntiga!$AA$2),"") ->  | AK147: =IF($AL$1=E149,COUNTIF($E$4:E149,$AL$1),"") -> 
A148: 145 | B148: ابو _ حبيبه 145 | C148: مستجد | D148: 345 | E148: 6/1 | F148: 545 | G148: 22 | H148: 17 | I148: 19 | J148: 16 | K148: 16 | L148: 10 | M148: 10 | N148: 110 | O148: 8 | P148: 10 | Q148: 15 | R148: اجتاز | S148: اجتاز | T148: اجتاز | U148: اجتاز | V148: اجتاز | W148: اجتاز | X148: اجتاز | AB148: راسب وله حق الإعادة | AD148: فقط تسعة وثمانون درجة لاغير | AF148: { 5 } | AG148: مبنى السيارات | AI148: =IF(B148=0,"",num!$B$3) -> فني _ صيانة وإصلاح سيارات | AJ148: =IF(AI150=ntiga!$AA$2,COUNTIF($AI$4:AI150,ntiga!$AA$2),"") ->  | AK148: =IF($AL$1=E150,COUNTIF($E$4:E150,$AL$1),"") -> 
A149: 146 | B149: ابو _ حبيبه 146 | C149: مستجد | D149: 346 | E149: 6/1 | F149: 546 | G149: 19 | H149: 17 | I149: 19 | J149: 19 | K149: 18 | L149: 10 | M149: 9 | N149: 111 | O149: 8 | P149: 10 | Q149: 15 | R149: اجتاز | S149: اجتاز | T149: اجتاز | U149: اجتاز | V149: اجتاز | W149: اجتاز | X149: اجتاز | AB149: راسب وله حق الإعادة | AD149: فقط أربعة وثمانون درجة لاغير | AF149: { 5 } | AG149: مبنى السيارات | AI149: =IF(B149=0,"",num!$B$3) -> فني _ صيانة وإصلاح سيارات | AJ149: =IF(AI151=ntiga!$AA$2,COUNTIF($AI$4:AI151,ntiga!$AA$2),"") ->  | AK149: =IF($AL$1=E151,COUNTIF($E$4:E151,$AL$1),"") -> 
A150: 147 | B150: ابو _ حبيبه 147 | C150: مستجد | D150: 347 | E150: 6/1 | F150: 547 | G150: 20 | H150: 17 | I150: 19 | J150: 17 | K150: 16 | L150: 9 | M150: 9 | N150: 107 | O150: 8 | P150: 10 | Q150: 15 | R150: اجتاز | S150: اجتاز | T150: اجتاز | U150: اجتاز | V150: اجتاز | W150: اجتاز | X150: اجتاز | AB150: راسب وله حق الإعادة | AD150: فقط ستة وثمانون درجة لاغير | AF150: { 5 } | AG150: مبنى السيارات | AI150: =IF(B150=0,"",num!$B$3) -> فني _ صيانة وإصلاح سيارات | AJ150: =IF(AI152=ntiga!$AA$2,COUNTIF($AI$4:AI152,ntiga!$AA$2),"") ->  | AK150: =IF($AL$1=E152,COUNTIF($E$4:E152,$AL$1),"") -> 
A151: 148 | B151: ابو _ حبيبه 148 | C151: مستجد | D151: 348 | E151: 6/1 | F151: 548 | G151: 20 | H151: 20 | I151: 19 | J151: 17 | K151: 16 | L151: 7 | M151: 10 | N151: 109 | O151: 7 | P151: 9 | Q151: 15 | R151: اجتاز | S151: اجتاز | T151: اجتاز | U151: اجتاز | V151: اجتاز | W151: اجتاز | X151: اجتاز | AB151: راسب وله حق الإعادة | AD151: فقط ثمانية وثمانون درجة لاغير | AF151: { 5 } | AG151: مبنى السيارات | AI151: =IF(B151=0,"",num!$B$3) -> فني _ صيانة وإصلاح سيارات | AJ151: =IF(AI153=ntiga!$AA$2,COUNTIF($AI$4:AI153,ntiga!$AA$2),"") ->  | AK151: =IF($AL$1=E153,COUNTIF($E$4:E153,$AL$1),"") -> 
A152: 149 | B152: ابو _ حبيبه 149 | C152: مستجد | D152: 349 | E152: 6/1 | F152: 549 | G152: 22 | H152: 19 | I152: 22 | J152: 16 | K152: 17 | L152: 7 | M152: 9 | N152: 112 | O152: 7 | P152: 10 | Q152: 24 | R152: اجتاز | S152: اجتاز | T152: اجتاز | U152: اجتاز | V152: اجتاز | W152: اجتاز | X152: اجتاز | AB152: راسب وله حق الإعادة | AD152: فقط ثمانية وثمانون درجة لاغير | AF152: { 5 } | AG152: مبنى السيارات | AI152: =IF(B152=0,"",num!$B$3) -> فني _ صيانة وإصلاح سيارات | AJ152: =IF(AI154=ntiga!$AA$2,COUNTIF($AI$4:AI154,ntiga!$AA$2),"") ->  | AK152: =IF($AL$1=E154,COUNTIF($E$4:E154,$AL$1),"") -> 
A153: 150 | B153: ابو _ حبيبه 150 | C153: مفصول | D153: 350 | E153: 6/1 | F153: 550 | G153: 0 | H153: 0 | I153: 13 | J153: 13 | K153: 13 | L153: 0 | M153: 0 | N153: 39 | O153: 0 | P153: 0 | Q153: 0 | R153: لم يجتاز | S153: لم يجتاز | T153: لم يجتاز | U153: لم يجتاز | V153: لم يجتاز | W153: لم يجتاز | X153: لم يجتاز | AB153: راسب وله حق الإعادة | AD153: صفر | AF153: { 5 } | AG153: مبنى السيارات | AI153: =IF(B153=0,"",num!$B$3) -> فني _ صيانة وإصلاح سيارات | AJ153: =IF(AI155=ntiga!$AA$2,COUNTIF($AI$4:AI155,ntiga!$AA$2),"") ->  | AK153: =IF($AL$1=E155,COUNTIF($E$4:E155,$AL$1),"") -> 
A154: 151 | B154: ابو _ حبيبه 151 | C154: مستجد | D154: 351 | E154: 6/1 | F154: 551 | G154: 19 | H154: 18 | I154: 9 | J154: 10 | K154: 10 | L154: 9 | M154: 9 | N154: 84 | O154: 8 | P154: 10 | Q154: 15 | R154: اجتاز | S154: اجتاز | T154: اجتاز | U154: اجتاز | V154: اجتاز | W154: اجتاز | X154: اجتاز | AB154: راسب وله حق الإعادة | AD154: فقط أربعة وثمانون درجة لاغير | AF154: { 6 } | AG154: مبنى السيارات | AI154: =IF(B154=0,"",num!$B$3) -> فني _ صيانة وإصلاح سيارات | AJ154: =IF(AI156=ntiga!$AA$2,COUNTIF($AI$4:AI156,ntiga!$AA$2),"") ->  | AK154: =IF($AL$1=E156,COUNTIF($E$4:E156,$AL$1),"") -> 
A155: 152 | B155: ابو _ حبيبه 152 | C155: مستجد | D155: 352 | E155: 6/1 | F155: 552 | G155: 20 | H155: 20 | I155: 20 | J155: 20 | K155: 19 | L155: 19 | M155: 19 | N155: 137 | O155: 19 | P155: 20 | Q155: 23 | R155: اجتاز | S155: اجتاز | T155: اجتاز | U155: اجتاز | V155: اجتاز | W155: اجتاز | X155: اجتاز | AB155: دور ثان مادتين | AC155: لغة عربية لغة إنجليزية تربية عسكرية | AD155: فقط ستة وثمانون درجة لاغير | AF155: { 6 } | AG155: مبنى السيارات | AI155: =IF(B155=0,"",num!$B$3) -> فني _ صيانة وإصلاح سيارات | AJ155: =IF(AI157=ntiga!$AA$2,COUNTIF($AI$4:AI157,ntiga!$AA$2),"") ->  | AK155: =IF($AL$1=E157,COUNTIF($E$4:E157,$AL$1),"") -> 
A156: 153 | B156: ابو _ حبيبه 153 | C156: مستجد | D156: 353 | E156: 6/1 | F156: 553 | G156: 19 | H156: 16 | I156: 14 | J156: 20 | K156: 20 | L156: 19 | M156: 20 | N156: 128 | O156: 19 | P156: 14 | Q156: 23 | R156: اجتاز | S156: اجتاز | T156: اجتاز | U156: اجتاز | V156: اجتاز | W156: اجتاز | X156: اجتاز | AB156: راسب وله حق الإعادة | AD156: فقط واحد وثمانون درجة لاغير | AF156: { 6 } | AG156: مبنى السيارات | AI156: =IF(B156=0,"",num!$B$3) -> فني _ صيانة وإصلاح سيارات | AJ156: =IF(AI158=ntiga!$AA$2,COUNTIF($AI$4:AI158,ntiga!$AA$2),"") ->  | AK156: =IF($AL$1=E158,COUNTIF($E$4:E158,$AL$1),"") -> 
A157: 154 | B157: ابو _ حبيبه 154 | C157: مستجد | D157: 354 | E157: 6/1 | F157: 554 | G157: 20 | H157: 11 | I157: 15 | J157: 20 | K157: 20 | L157: 17 | M157: 18 | N157: 121 | O157: 19 | P157: 12 | Q157: 13 | R157: اجتاز | S157: اجتاز | T157: اجتاز | U157: اجتاز | V157: اجتاز | W157: اجتاز | X157: اجتاز | AB157: دور ثان مادتين | AC157: لغة عربية لغة إنجليزية تربية عسكرية | AD157: فقط أربعة وسبعون درجة لاغير | AF157: { 6 } | AG157: مبنى السيارات | AI157: =IF(B157=0,"",num!$B$3) -> فني _ صيانة وإصلاح سيارات | AJ157: =IF(AI159=ntiga!$AA$2,COUNTIF($AI$4:AI159,ntiga!$AA$2),"") ->  | AK157: =IF($AL$1=E159,COUNTIF($E$4:E159,$AL$1),"") -> 
A158: 155 | B158: ابو _ حبيبه 155 | C158: مستجد | D158: 355 | E158: 6/1 | F158: 555 | G158: 21 | H158: 14 | I158: 16 | J158: 20 | K158: 19 | L158: 18 | M158: 19 | N158: 127 | O158: 19 | P158: 18 | Q158: 15 | R158: اجتاز | S158: اجتاز | T158: اجتاز | U158: اجتاز | V158: اجتاز | W158: اجتاز | X158: اجتاز | AB158: دور ثان مادتين | AC158: لغة عربية لغة إنجليزية تربية عسكرية | AD158: فقط واحد وثمانون درجة لاغير | AF158: { 6 } | AG158: مبنى السيارات | AI158: =IF(B158=0,"",num!$B$3) -> فني _ صيانة وإصلاح سيارات | AJ158: =IF(AI160=ntiga!$AA$2,COUNTIF($AI$4:AI160,ntiga!$AA$2),"") ->  | AK158: =IF($AL$1=E160,COUNTIF($E$4:E160,$AL$1),"") -> 
A159: 156 | B159: ابو _ حبيبه 156 | C159: مستجد | D159: 356 | E159: 6/1 | F159: 556 | G159: 21 | H159: 17 | I159: 12 | J159: 19 | K159: 19 | L159: 16 | M159: 18 | N159: 122 | O159: 18 | P159: 18 | Q159: 15 | R159: اجتاز | S159: اجتاز | T159: اجتاز | U159: اجتاز | V159: اجتاز | W159: اجتاز | X159: اجتاز | AB159: راسب وله حق الإعادة | AD159: فقط ثمانون درجة لاغير | AF159: { 6 } | AG159: مبنى السيارات | AI159: =IF(B159=0,"",num!$B$3) -> فني _ صيانة وإصلاح سيارات | AJ159: =IF(AI161=ntiga!$AA$2,COUNTIF($AI$4:AI161,ntiga!$AA$2),"") ->  | AK159: =IF($AL$1=E161,COUNTIF($E$4:E161,$AL$1),"") -> 
A160: 157 | B160: ابو _ حبيبه 157 | C160: مستجد | D160: 357 | E160: 6/1 | F160: 557 | G160: 21 | H160: 15 | I160: 19 | J160: 19 | K160: 19 | L160: 16 | M160: 19 | N160: 128 | O160: 17 | P160: 19 | Q160: 14 | R160: اجتاز | S160: اجتاز | T160: اجتاز | U160: اجتاز | V160: اجتاز | W160: اجتاز | X160: اجتاز | AB160: دور ثان مادتين | AC160: لغة عربية لغة إنجليزية تربية عسكرية | AD160: فقط خمسة وثمانون درجة لاغير | AF160: { 6 } | AG160: مبنى السيارات | AI160: =IF(B160=0,"",num!$B$3) -> فني _ صيانة وإصلاح سيارات | AJ160: =IF(AI162=ntiga!$AA$2,COUNTIF($AI$4:AI162,ntiga!$AA$2),"") ->  | AK160: =IF($AL$1=E162,COUNTIF($E$4:E162,$AL$1),"") -> 
A161: 158 | B161: ابو _ حبيبه 158 | C161: مستجد | D161: 358 | E161: 6/1 | F161: 558 | G161: 21 | H161: 15 | I161: 24 | J161: 20 | K161: 20 | L161: 18 | M161: 19 | N161: 137 | O161: 18 | P161: 20 | Q161: 18 | R161: اجتاز | S161: اجتاز | T161: اجتاز | U161: اجتاز | V161: اجتاز | W161: اجتاز | X161: اجتاز | AB161: دور ثان مادتين | AC161: لغة عربية لغة إنجليزية تربية عسكرية | AD161: فقط خمسة وثمانون درجة لاغير | AF161: { 6 } | AG161: مبنى السيارات | AI161: =IF(B161=0,"",num!$B$3) -> فني _ صيانة وإصلاح سيارات | AJ161: =IF(AI163=ntiga!$AA$2,COUNTIF($AI$4:AI163,ntiga!$AA$2),"") ->  | AK161: =IF($AL$1=E163,COUNTIF($E$4:E163,$AL$1),"") -> 
A162: 159 | B162: ابو _ حبيبه 159 | C162: مستجد | D162: 359 | E162: 6/1 | F162: 559 | G162: 21 | H162: 13 | I162: 24 | J162: 19 | K162: 18 | L162: 16 | M162: 19 | N162: 130 | O162: 18 | P162: 19 | Q162: 23 | R162: اجتاز | S162: اجتاز | T162: اجتاز | U162: اجتاز | V162: اجتاز | W162: اجتاز | X162: اجتاز | AB162: دور ثان مادتين | AC162: لغة عربية لغة إنجليزية تربية عسكرية | AD162: فقط واحد وثمانون درجة لاغير | AF162: { 6 } | AG162: مبنى السيارات | AI162: =IF(B162=0,"",num!$B$3) -> فني _ صيانة وإصلاح سيارات | AJ162: =IF(AI164=ntiga!$AA$2,COUNTIF($AI$4:AI164,ntiga!$AA$2),"") ->  | AK162: =IF($AL$1=E164,COUNTIF($E$4:E164,$AL$1),"") -> 
A163: 160 | B163: ابو _ حبيبه 160 | C163: مستجد | D163: 360 | E163: 6/1 | F163: 560 | G163: 23 | H163: 16 | I163: 23 | J163: 19 | K163: 19 | L163: 17 | M163: 18 | N163: 135 | O163: 18 | P163: 19 | Q163: 23 | R163: اجتاز | S163: اجتاز | T163: اجتاز | U163: اجتاز | V163: اجتاز | W163: اجتاز | X163: اجتاز | AB163: دور ثان مادتين | AC163: لغة عربية لغة إنجليزية تربية عسكرية | AD163: فقط تسعة وثمانون درجة لاغير | AF163: { 6 } | AG163: مبنى السيارات | AI163: =IF(B163=0,"",num!$B$3) -> فني _ صيانة وإصلاح سيارات | AJ163: =IF(AI165=ntiga!$AA$2,COUNTIF($AI$4:AI165,ntiga!$AA$2),"") ->  | AK163: =IF($AL$1=E165,COUNTIF($E$4:E165,$AL$1),"") -> 
A164: 161 | B164: ابو _ حبيبه 161 | C164: مستجد | D164: 361 | E164: 6/1 | F164: 561 | G164: 18 | H164: 18 | I164: 18 | J164: 19 | K164: 18 | L164: 17 | M164: 18 | N164: 126 | O164: 18 | P164: 19 | Q164: 14 | R164: اجتاز | S164: اجتاز | T164: اجتاز | U164: اجتاز | V164: اجتاز | W164: اجتاز | X164: اجتاز | AB164: دور ثان مادتين | AC164: لغة عربية لغة إنجليزية تربية عسكرية | AD164: فقط سبعة وسبعون درجة لاغير | AF164: { 6 } | AG164: مبنى السيارات | AI164: =IF(B164=0,"",num!$B$3) -> فني _ صيانة وإصلاح سيارات | AJ164: =IF(AI166=ntiga!$AA$2,COUNTIF($AI$4:AI166,ntiga!$AA$2),"") ->  | AK164: =IF($AL$1=E166,COUNTIF($E$4:E166,$AL$1),"") -> 
A165: 162 | B165: ابو _ حبيبه 162 | C165: مستجد | D165: 362 | E165: 6/1 | F165: 562 | G165: 17 | H165: 16 | I165: 22 | J165: 19 | K165: 18 | L165: 16 | M165: 18 | N165: 126 | O165: 17 | P165: 18 | Q165: 13 | R165: اجتاز | S165: اجتاز | T165: اجتاز | U165: اجتاز | V165: اجتاز | W165: اجتاز | X165: اجتاز | AB165: دور ثان مادتين | AC165: لغة عربية لغة إنجليزية تربية عسكرية | AD165: فقط تسعة وسبعون درجة لاغير | AF165: { 6 } | AG165: مبنى السيارات | AI165: =IF(B165=0,"",num!$B$3) -> فني _ صيانة وإصلاح سيارات | AJ165: =IF(AI167=ntiga!$AA$2,COUNTIF($AI$4:AI167,ntiga!$AA$2),"") ->  | AK165: =IF($AL$1=E167,COUNTIF($E$4:E167,$AL$1),"") -> 
A166: 163 | B166: ابو _ حبيبه 163 | C166: مستجد | D166: 363 | E166: 6/1 | F166: 563 | G166: 20 | H166: 16 | I166: 19 | J166: 20 | K166: 19 | L166: 18 | M166: 19 | N166: 131 | O166: 17 | P166: 20 | Q166: 24 | R166: اجتاز | S166: اجتاز | T166: اجتاز | U166: اجتاز | V166: اجتاز | W166: اجتاز | X166: اجتاز | AB166: دور ثان مادتين | AC166: لغة عربية لغة إنجليزية تربية عسكرية | AD166: فقط تسعة وسبعون درجة لاغير | AF166: { 6 } | AG166: مبنى السيارات | AI166: =IF(B166=0,"",num!$B$3) -> فني _ صيانة وإصلاح سيارات | AJ166: =IF(AI168=ntiga!$AA$2,COUNTIF($AI$4:AI168,ntiga!$AA$2),"") ->  | AK166: =IF($AL$1=E168,COUNTIF($E$4:E168,$AL$1),"") -> 
A167: 164 | B167: ابو _ حبيبه 164 | C167: مستجد | D167: 364 | E167: 6/1 | F167: 564 | G167: 20 | H167: 16 | I167: 14 | J167: 10 | K167: 9 | L167: 8 | M167: 8 | N167: 85 | O167: 7 | P167: 10 | Q167: 15 | R167: اجتاز | S167: اجتاز | T167: اجتاز | U167: اجتاز | V167: اجتاز | W167: اجتاز | X167: اجتاز | AB167: راسب وله حق الإعادة | AD167: فقط ثمانية وسبعون درجة لاغير | AF167: { 6 } | AG167: مبنى السيارات | AI167: =IF(B167=0,"",num!$B$3) -> فني _ صيانة وإصلاح سيارات | AJ167: =IF(AI169=ntiga!$AA$2,COUNTIF($AI$4:AI169,ntiga!$AA$2),"") ->  | AK167: =IF($AL$1=E169,COUNTIF($E$4:E169,$AL$1),"") -> 
A168: 165 | B168: ابو _ حبيبه 165 | C168: مستجد | D168: 365 | E168: 6/1 | F168: 565 | G168: 20 | H168: 17 | I168: 12 | J168: 20 | K168: 19 | L168: 18 | M168: 19 | N168: 125 | O168: 16 | P168: 19 | Q168: 24 | R168: اجتاز | S168: اجتاز | T168: اجتاز | U168: اجتاز | V168: اجتاز | W168: اجتاز | X168: اجتاز | AB168: راسب وله حق الإعادة | AD168: فقط تسعة وسبعون درجة لاغير | AF168: { 6 } | AG168: مبنى السيارات | AI168: =IF(B168=0,"",num!$B$3) -> فني _ صيانة وإصلاح سيارات | AJ168: =IF(AI170=ntiga!$AA$2,COUNTIF($AI$4:AI170,ntiga!$AA$2),"") ->  | AK168: =IF($AL$1=E170,COUNTIF($E$4:E170,$AL$1),"") -> 
A169: 166 | B169: ابو _ حبيبه 166 | C169: مستجد | D169: 366 | E169: 6/1 | F169: 566 | G169: 20 | H169: 17 | I169: 22 | J169: 20 | K169: 20 | L169: 20 | M169: 19 | N169: 138 | O169: 17 | P169: 20 | Q169: 23 | R169: اجتاز | S169: اجتاز | T169: اجتاز | U169: اجتاز | V169: اجتاز | W169: اجتاز | X169: اجتاز | AB169: دور ثان مادتين | AC169: لغة عربية لغة إنجليزية تربية عسكرية | AD169: فقط تسعون درجة لاغير | AF169: { 6 } | AG169: مبنى السيارات | AI169: =IF(B169=0,"",num!$B$3) -> فني _ صيانة وإصلاح سيارات | AJ169: =IF(AI171=ntiga!$AA$2,COUNTIF($AI$4:AI171,ntiga!$AA$2),"") ->  | AK169: =IF($AL$1=E171,COUNTIF($E$4:E171,$AL$1),"") -> 
A170: 167 | B170: ابو _ حبيبه 167 | C170: باق | D170: 367 | E170: 6/1 | F170: 567 | G170: 10 | H170: 5 | I170: 4 | J170: 19 | K170: 19 | L170: 15 | M170: 19 | N170: 91 | O170: 15 | P170: 13 | Q170: 14 | R170: اجتاز | S170: اجتاز | T170: اجتاز | U170: اجتاز | V170: اجتاز | W170: اجتاز | X170: اجتاز | AB170: راسب وليس له حق الاعادة | AD170: فقط واحد وخمسون درجة لاغير | AF170: { 6 } | AG170: مبنى السيارات | AI170: =IF(B170=0,"",num!$B$3) -> فني _ صيانة وإصلاح سيارات | AJ170: =IF(AI172=ntiga!$AA$2,COUNTIF($AI$4:AI172,ntiga!$AA$2),"") ->  | AK170: =IF($AL$1=E172,COUNTIF($E$4:E172,$AL$1),"") -> 
A171: 168 | B171: ابو _ حبيبه 168 | C171: مستجد | D171: 368 | E171: 6/1 | F171: 568 | G171: 18 | H171: 16 | I171: 6 | J171: 20 | K171: 19 | L171: 16 | M171: 20 | N171: 115 | O171: 18 | P171: 20 | Q171: 19 | R171: اجتاز | S171: اجتاز | T171: اجتاز | U171: اجتاز | V171: اجتاز | W171: اجتاز | X171: اجتاز | AB171: راسب وله حق الإعادة | AD171: فقط خمسة وسبعون درجة لاغير | AF171: { 6 } | AG171: مبنى السيارات | AI171: =IF(B171=0,"",num!$B$3) -> فني _ صيانة وإصلاح سيارات | AJ171: =IF(AI173=ntiga!$AA$2,COUNTIF($AI$4:AI173,ntiga!$AA$2),"") ->  | AK171: =IF($AL$1=E173,COUNTIF($E$4:E173,$AL$1),"") -> 
A172: 169 | B172: ابو _ حبيبه 169 | C172: باق | D172: 369 | E172: 6/1 | F172: 569 | G172: 18 | H172: 12 | I172: 11 | J172: 20 | K172: 20 | L172: 15 | M172: 19 | N172: 115 | O172: 19 | P172: 20 | Q172: 14 | R172: اجتاز | S172: اجتاز | T172: اجتاز | U172: اجتاز | V172: اجتاز | W172: اجتاز | X172: اجتاز | AB172: راسب وليس له حق الاعادة | AD172: فقط خمسة وسبعون درجة لاغير | AF172: { 6 } | AG172: مبنى السيارات | AI172: =IF(B172=0,"",num!$B$3) -> فني _ صيانة وإصلاح سيارات | AJ172: =IF(AI174=ntiga!$AA$2,COUNTIF($AI$4:AI174,ntiga!$AA$2),"") ->  | AK172: =IF($AL$1=E174,COUNTIF($E$4:E174,$AL$1),"") -> 
A173: 170 | B173: ابو _ حبيبه 170 | C173: مستجد | D173: 370 | E173: 6/1 | F173: 570 | G173: 19 | H173: 15 | I173: 22 | J173: 20 | K173: 19 | L173: 18 | M173: 19 | N173: 132 | O173: 18 | P173: 20 | Q173: 23 | R173: اجتاز | S173: اجتاز | T173: اجتاز | U173: اجتاز | V173: اجتاز | W173: اجتاز | X173: اجتاز | AB173: دور ثان مادتين | AC173: لغة عربية لغة إنجليزية تربية عسكرية | AD173: فقط واحد وثمانون درجة لاغير | AF173: { 6 } | AG173: مبنى السيارات | AI173: =IF(B173=0,"",num!$B$3) -> فني _ صيانة وإصلاح سيارات | AJ173: =IF(AI175=ntiga!$AA$2,COUNTIF($AI$4:AI175,ntiga!$AA$2),"") ->  | AK173: =IF($AL$1=E175,COUNTIF($E$4:E175,$AL$1),"") -> 
A174: 171 | B174: ابو _ حبيبه 171 | C174: مستجد | D174: 371 | E174: 6/1 | F174: 571 | G174: 21 | H174: 15 | I174: 21 | J174: 19 | K174: 20 | L174: 19 | M174: 19 | N174: 134 | O174: 18 | P174: 19 | Q174: 21 | R174: اجتاز | S174: اجتاز | T174: اجتاز | U174: اجتاز | V174: اجتاز | W174: اجتاز | X174: اجتاز | AB174: دور ثان مادتين | AC174: لغة عربية لغة إنجليزية تربية عسكرية | AD174: فقط اثنان وثمانون درجة لاغير | AF174: { 7 } | AG174: مبنى السيارات | AI174: =IF(B174=0,"",num!$B$3) -> فني _ صيانة وإصلاح سيارات | AJ174: =IF(AI176=ntiga!$AA$2,COUNTIF($AI$4:AI176,ntiga!$AA$2),"") ->  | AK174: =IF($AL$1=E176,COUNTIF($E$4:E176,$AL$1),"") -> 
A175: 172 | B175: ابو _ حبيبه 172 | C175: مستجد | D175: 372 | E175: 6/1 | F175: 572 | G175: 22 | H175: 16 | I175: 15 | J175: 20 | K175: 20 | L175: 19 | M175: 18 | N175: 130 | O175: 18 | P175: 19 | Q175: 14 | R175: اجتاز | S175: اجتاز | T175: اجتاز | U175: اجتاز | V175: اجتاز | W175: اجتاز | X175: اجتاز | AB175: دور ثان مادتين | AC175: لغة عربية لغة إنجليزية تربية عسكرية | AD175: فقط ثلاثة وثمانون درجة لاغير | AF175: { 7 } | AG175: مبنى السيارات | AI175: =IF(B175=0,"",num!$B$3) -> فني _ صيانة وإصلاح سيارات | AJ175: =IF(AI177=ntiga!$AA$2,COUNTIF($AI$4:AI177,ntiga!$AA$2),"") ->  | AK175: =IF($AL$1=E177,COUNTIF($E$4:E177,$AL$1),"") -> 
A176: 173 | B176: ابو _ حبيبه 173 | C176: مستجد | D176: 373 | E176: 6/1 | F176: 573 | G176: 22 | H176: 19 | I176: 20 | J176: 20 | K176: 20 | L176: 20 | M176: 19 | N176: 140 | O176: 19 | P176: 19 | Q176: 17 | R176: اجتاز | S176: اجتاز | T176: اجتاز | U176: اجتاز | V176: اجتاز | W176: اجتاز | X176: اجتاز | AB176: دور ثان مادتين | AC176: لغة عربية لغة إنجليزية تربية عسكرية | AD176: فقط أربعة وتسعون درجة لاغير | AF176: { 7 } | AG176: مبنى السيارات | AI176: =IF(B176=0,"",num!$B$3) -> فني _ صيانة وإصلاح سيارات | AJ176: =IF(AI178=ntiga!$AA$2,COUNTIF($AI$4:AI178,ntiga!$AA$2),"") ->  | AK176: =IF($AL$1=E178,COUNTIF($E$4:E178,$AL$1),"") -> 
A177: 174 | B177: ابو _ حبيبه 174 | C177: مستجد | D177: 374 | E177: 6/1 | F177: 574 | G177: 20 | H177: 16 | I177: 16 | J177: 20 | K177: 20 | L177: 18 | M177: 18 | N177: 128 | O177: 19 | P177: 20 | Q177: 13 | R177: اجتاز | S177: اجتاز | T177: اجتاز | U177: اجتاز | V177: اجتاز | W177: اجتاز | X177: اجتاز | AB177: دور ثان مادتين | AC177: لغة عربية لغة إنجليزية تربية عسكرية | AD177: فقط ثمانون درجة لاغير | AF177: { 7 } | AG177: مبنى السيارات | AI177: =IF(B177=0,"",num!$B$3) -> فني _ صيانة وإصلاح سيارات | AJ177: =IF(AI179=ntiga!$AA$2,COUNTIF($AI$4:AI179,ntiga!$AA$2),"") ->  | AK177: =IF($AL$1=E179,COUNTIF($E$4:E179,$AL$1),"") -> 
A178: 175 | B178: ابو _ حبيبه 175 | C178: مستجد | D178: 375 | E178: 6/1 | F178: 575 | G178: 20 | H178: 16 | I178: 8 | J178: 20 | K178: 20 | L178: 18 | M178: 19 | N178: 121 | O178: 18 | P178: 19 | Q178: 14 | R178: اجتاز | S178: اجتاز | T178: اجتاز | U178: اجتاز | V178: اجتاز | W178: اجتاز | X178: اجتاز | AB178: راسب وله حق الإعادة | AD178: فقط واحد وثمانون درجة لاغير | AF178: { 7 } | AG178: مبنى السيارات | AI178: =IF(B178=0,"",num!$B$3) -> فني _ صيانة وإصلاح سيارات | AJ178: =IF(AI180=ntiga!$AA$2,COUNTIF($AI$4:AI180,ntiga!$AA$2),"") ->  | AK178: =IF($AL$1=E180,COUNTIF($E$4:E180,$AL$1),"") -> 
A179: 176 | B179: ابو _ حبيبه 176 | C179: مستجد | D179: 376 | E179: 6/1 | F179: 576 | G179: 19 | H179: 15 | I179: 6 | J179: 10 | K179: 9 | L179: 9 | M179: 9 | N179: 77 | O179: 7 | P179: 9 | Q179: 15 | R179: اجتاز | S179: اجتاز | T179: اجتاز | U179: اجتاز | V179: اجتاز | W179: اجتاز | X179: اجتاز | AB179: راسب وله حق الإعادة | AD179: فقط سبعة وسبعون درجة لاغير | AF179: { 7 } | AG179: مبنى السيارات | AI179: =IF(B179=0,"",num!$B$3) -> فني _ صيانة وإصلاح سيارات | AJ179: =IF(AI181=ntiga!$AA$2,COUNTIF($AI$4:AI181,ntiga!$AA$2),"") ->  | AK179: =IF($AL$1=E181,COUNTIF($E$4:E181,$AL$1),"") -> 
A180: 177 | B180: ابو _ حبيبه 177 | C180: مستجد | D180: 377 | E180: 6/1 | F180: 577 | G180: 20 | H180: 16 | I180: 6 | J180: 10 | K180: 9 | L180: 9 | M180: 9 | N180: 79 | O180: 7 | P180: 9 | Q180: 24 | R180: اجتاز | S180: اجتاز | T180: اجتاز | U180: اجتاز | V180: اجتاز | W180: اجتاز | X180: اجتاز | AB180: راسب وله حق الإعادة | AD180: فقط تسعة وسبعون درجة لاغير | AF180: { 7 } | AG180: مبنى السيارات | AI180: =IF(B180=0,"",num!$B$3) -> فني _ صيانة وإصلاح سيارات | AJ180: =IF(AI182=ntiga!$AA$2,COUNTIF($AI$4:AI182,ntiga!$AA$2),"") ->  | AK180: =IF($AL$1=E182,COUNTIF($E$4:E182,$AL$1),"") -> 
A181: 178 | B181: ابو _ حبيبه 178 | C181: مستجد | D181: 378 | E181: 7/1 | F181: 578 | G181: 28 | H181: 26 | I181: 21 | J181: 17 | K181: 17 | L181: 17 | M181: 16 | N181: 142 | O181: 8 | P181: 10 | Q181: 23 | R181: اجتاز | S181: اجتاز | T181: اجتاز | U181: اجتاز | V181: اجتاز | W181: اجتاز | X181: اجتاز | Y181: اجتاز | Z181: اجتاز | AA181: اجتاز | AB181: دور ثان مادة | AC181: لغة عربية تربية وطنية تربية دينية تربية عسكرية | AD181: فقط ثلاثة وتسعون درجة لاغير | AF181: { بترو 1 } | AG181: معامل بترو | AI181: =IF(B181=0,"",num!$B$10) -> فني _ بتروكيماويات | AJ181: =IF(AI183=ntiga!$AA$2,COUNTIF($AI$4:AI183,ntiga!$AA$2),"") ->  | AK181: =IF($AL$1=E183,COUNTIF($E$4:E183,$AL$1),"") -> 
A182: 179 | B182: ابو _ حبيبه 179 | C182: مستجد | D182: 379 | E182: 7/1 | F182: 579 | G182: 24 | H182: 24 | I182: 17 | J182: 16 | K182: 16 | L182: 16 | M182: 15 | N182: 128 | O182: 9 | P182: 10 | Q182: 23 | R182: اجتاز | S182: اجتاز | T182: اجتاز | U182: اجتاز | V182: اجتاز | W182: اجتاز | X182: اجتاز | Y182: اجتاز | Z182: اجتاز | AA182: اجتاز | AB182: دور ثان مادتين | AC182: لغة عربية لغة إنجليزية تربية وطنية تربية دينية تربية عسكرية | AD182: فقط ستة وثمانون درجة لاغير | AF182: { بترو 1 } | AG182: معامل بترو | AI182: =IF(B182=0,"",num!$B$10) -> فني _ بتروكيماويات | AJ182: =IF(AI184=ntiga!$AA$2,COUNTIF($AI$4:AI184,ntiga!$AA$2),"") ->  | AK182: =IF($AL$1=E184,COUNTIF($E$4:E184,$AL$1),"") -> 
A183: 180 | B183: ابو _ حبيبه 180 | C183: مستجد | D183: 380 | E183: 7/1 | F183: 580 | G183: 23 | H183: 24 | I183: 15 | J183: 16 | K183: 17 | L183: 17 | M183: 16 | N183: 128 | O183: 8 | P183: 10 | Q183: 18 | R183: اجتاز | S183: اجتاز | T183: اجتاز | U183: اجتاز | V183: اجتاز | W183: اجتاز | X183: اجتاز | Y183: اجتاز | Z183: اجتاز | AA183: اجتاز | AB183: دور ثان مادة | AC183: لغة عربية تربية وطنية تربية دينية تربية عسكرية | AD183: فقط تسعة وسبعون درجة لاغير | AF183: { بترو 1 } | AG183: معامل بترو | AI183: =IF(B183=0,"",num!$B$10) -> فني _ بتروكيماويات | AJ183: =IF(AI185=ntiga!$AA$2,COUNTIF($AI$4:AI185,ntiga!$AA$2),"") ->  | AK183: =IF($AL$1=E185,COUNTIF($E$4:E185,$AL$1),"") -> 
A184: 181 | B184: ابو _ حبيبه 181 | C184: مستجد | D184: 381 | E184: 7/1 | F184: 581 | G184: 28 | H184: 27 | I184: 21 | J184: 19 | K184: 19 | L184: 19 | M184: 18 | N184: 151 | O184: 18 | P184: 20 | Q184: 23 | R184: اجتاز | S184: اجتاز | T184: اجتاز | U184: اجتاز | V184: اجتاز | W184: اجتاز | X184: اجتاز | Y184: اجتاز | Z184: اجتاز | AA184: اجتاز | AB184: ناجح ومنقول للصف الثاني | AC184: تربية عسكرية | AD184: فقط ثمانية وثمانون درجة لاغير | AE184: تربية عسكرية | AF184: { بترو 1 } | AG184: معامل بترو | AI184: =IF(B184=0,"",num!$B$10) -> فني _ بتروكيماويات | AJ184: =IF(AI186=ntiga!$AA$2,COUNTIF($AI$4:AI186,ntiga!$AA$2),"") ->  | AK184: =IF($AL$1=E186,COUNTIF($E$4:E186,$AL$1),"") -> 
A185: 182 | B185: ابو _ حبيبه 182 | C185: مستجد | D185: 382 | E185: 7/1 | F185: 582 | G185: 29 | H185: 18 | I185: 20 | J185: 17 | K185: 17 | L185: 17 | M185: 16 | N185: 134 | O185: 18 | P185: 20 | Q185: 18 | R185: اجتاز | S185: اجتاز | T185: اجتاز | U185: اجتاز | V185: اجتاز | W185: اجتاز | X185: اجتاز | Y185: اجتاز | Z185: اجتاز | AA185: اجتاز | AB185: دور ثان مادتين | AC185: لغة عربية لغة إنجليزية تربية عسكرية | AD185: فقط خمسة وثمانون درجة لاغير | AE185: لغة عربية تربية عسكرية | AF185: { بترو 1 } | AG185: معامل بترو | AI185: =IF(B185=0,"",num!$B$10) -> فني _ بتروكيماويات | AJ185: =IF(AI187=ntiga!$AA$2,COUNTIF($AI$4:AI187,ntiga!$AA$2),"") ->  | AK185: =IF($AL$1=E187,COUNTIF($E$4:E187,$AL$1),"") -> 
A186: 183 | B186: ابو _ حبيبه 183 | C186: مستجد | D186: 383 | E186: 7/1 | F186: 583 | G186: 31 | H186: 26 | I186: 21 | J186: 17 | K186: 17 | L186: 17 | M186: 17 | N186: 146 | O186: 18 | P186: 20 | Q186: 22 | R186: اجتاز | S186: اجتاز | T186: اجتاز | U186: اجتاز | V186: اجتاز | W186: اجتاز | X186: اجتاز | Y186: اجتاز | Z186: اجتاز | AA186: اجتاز | AB186: دور ثان مادة | AC186: لغة عربية تربية عسكرية | AD186: فقط سبعة وتسعون درجة لاغير | AE186: لغة عربية تربية عسكرية | AF186: { بترو 1 } | AG186: معامل بترو | AI186: =IF(B186=0,"",num!$B$10) -> فني _ بتروكيماويات | AJ186: =IF(AI188=ntiga!$AA$2,COUNTIF($AI$4:AI188,ntiga!$AA$2),"") ->  | AK186: =IF($AL$1=E188,COUNTIF($E$4:E188,$AL$1),"") -> 
A187: 184 | B187: ابو _ حبيبه 184 | C187: مستجد | D187: 384 | E187: 7/1 | F187: 584 | G187: 26 | H187: 27 | I187: 22 | J187: 18 | K187: 18 | L187: 18 | M187: 18 | N187: 147 | O187: 18 | P187: 20 | Q187: 23 | R187: اجتاز | S187: اجتاز | T187: اجتاز | U187: اجتاز | V187: اجتاز | W187: اجتاز | X187: اجتاز | Y187: اجتاز | Z187: اجتاز | AA187: اجتاز | AB187: ناجح ومنقول للصف الثاني | AC187: تربية عسكرية | AD187: فقط واحد وتسعون درجة لاغير | AE187: تربية عسكرية | AF187: { بترو 1 } | AG187: معامل بترو | AI187: =IF(B187=0,"",num!$B$10) -> فني _ بتروكيماويات | AJ187: =IF(AI189=ntiga!$AA$2,COUNTIF($AI$4:AI189,ntiga!$AA$2),"") ->  | AK187: =IF($AL$1=E189,COUNTIF($E$4:E189,$AL$1),"") -> 
A188: 185 | B188: ابو _ حبيبه 185 | C188: مستجد | D188: 385 | E188: 7/1 | F188: 585 | G188: 33 | H188: 31 | I188: 26 | J188: 12 | K188: 13 | L188: 13 | M188: 13 | N188: 141 | O188: 18 | P188: 19 | Q188: 23 | R188: اجتاز | S188: اجتاز | T188: اجتاز | U188: اجتاز | V188: اجتاز | W188: اجتاز | X188: اجتاز | Y188: اجتاز | Z188: اجتاز | AA188: اجتاز | AB188: راسب وله حق الإعادة | AD188: فقط تسعون درجة لاغير | AF188: { بترو 1 } | AG188: معامل بترو | AI188: =IF(B188=0,"",num!$B$10) -> فني _ بتروكيماويات | AJ188: =IF(AI190=ntiga!$AA$2,COUNTIF($AI$4:AI190,ntiga!$AA$2),"") ->  | AK188: =IF($AL$1=E190,COUNTIF($E$4:E190,$AL$1),"") -> 
A189: 186 | B189: ابو _ حبيبه 186 | C189: باق | D189: 386 | E189: 7/1 | F189: 586 | G189: 17 | H189: 17 | I189: 13 | J189: 9 | K189: 10 | L189: 10 | M189: 9 | N189: 85 | O189: 18 | P189: 19 | Q189: 22 | R189: اجتاز | S189: اجتاز | T189: اجتاز | U189: اجتاز | V189: اجتاز | W189: اجتاز | X189: اجتاز | Y189: اجتاز | Z189: اجتاز | AA189: اجتاز | AB189: راسب وليس له حق الاعادة | AD189: فقط خمسة وثمانون درجة لاغير | AF189: { بترو 1 } | AG189: معامل بترو | AI189: =IF(B189=0,"",num!$B$10) -> فني _ بتروكيماويات | AJ189: =IF(AI191=ntiga!$AA$2,COUNTIF($AI$4:AI191,ntiga!$AA$2),"") ->  | AK189: =IF($AL$1=E191,COUNTIF($E$4:E191,$AL$1),"") -> 
A190: 187 | B190: ابو _ حبيبه 187 | C190: مستجد | D190: 387 | E190: 7/1 | F190: 587 | G190: 26 | H190: 28 | I190: 20 | J190: 12 | K190: 12 | L190: 12 | M190: 20 | N190: 130 | O190: 18 | P190: 20 | Q190: 23 | R190: اجتاز | S190: اجتاز | T190: اجتاز | U190: اجتاز | V190: اجتاز | W190: اجتاز | X190: اجتاز | Y190: اجتاز | Z190: اجتاز | AA190: اجتاز | AB190: راسب وله حق الإعادة | AD190: فقط ثمانون درجة لاغير | AF190: { بترو 1 } | AG190: معامل بترو | AI190: =IF(B190=0,"",num!$B$10) -> فني _ بتروكيماويات | AJ190: =IF(AI192=ntiga!$AA$2,COUNTIF($AI$4:AI192,ntiga!$AA$2),"") ->  | AK190: =IF($AL$1=E192,COUNTIF($E$4:E192,$AL$1),"") -> 
A191: 188 | B191: ابو _ حبيبه 188 | C191: مستجد | D191: 388 | E191: 7/1 | F191: 588 | G191: 23 | H191: 17 | I191: 12 | J191: 16 | K191: 16 | L191: 16 | M191: 9 | N191: 109 | O191: 14 | P191: 18 | Q191: 6 | R191: اجتاز | S191: اجتاز | T191: اجتاز | U191: اجتاز | V191: اجتاز | W191: اجتاز | X191: اجتاز | Y191: اجتاز | Z191: اجتاز | AA191: اجتاز | AB191: راسب وله حق الإعادة | AD191: فقط ستون درجة لاغير | AE191: لغة عربية تربية عسكرية | AF191: { بترو 1 } | AG191: معامل بترو | AI191: =IF(B191=0,"",num!$B$10) -> فني _ بتروكيماويات | AJ191: =IF(AI193=ntiga!$AA$2,COUNTIF($AI$4:AI193,ntiga!$AA$2),"") ->  | AK191: =IF($AL$1=E193,COUNTIF($E$4:E193,$AL$1),"") -> 
A192: 189 | B192: ابو _ حبيبه 189 | C192: مستجد | D192: 389 | E192: 7/1 | F192: 589 | G192: 25 | H192: 21 | I192: 18 | J192: 16 | K192: 16 | L192: 17 | M192: 16 | N192: 129 | O192: 16 | P192: 18 | Q192: 14 | R192: اجتاز | S192: اجتاز | T192: اجتاز | U192: اجتاز | V192: اجتاز | W192: اجتاز | X192: اجتاز | Y192: اجتاز | Z192: اجتاز | AA192: اجتاز | AB192: دور ثان مادة | AC192: لغة عربية تربية عسكرية | AD192: فقط ثمانون درجة لاغير | AE192: لغة عربية تربية عسكرية | AF192: { بترو 1 } | AG192: معامل بترو | AI192: =IF(B192=0,"",num!$B$10) -> فني _ بتروكيماويات | AJ192: =IF(AI194=ntiga!$AA$2,COUNTIF($AI$4:AI194,ntiga!$AA$2),"") ->  | AK192: =IF($AL$1=E194,COUNTIF($E$4:E194,$AL$1),"") -> 
A193: 190 | B193: ابو _ حبيبه 190 | C193: مستجد | D193: 390 | E193: 7/1 | F193: 590 | G193: 25 | H193: 19 | I193: 20 | J193: 15 | K193: 16 | L193: 16 | M193: 16 | N193: 127 | O193: 18 | P193: 19 | Q193: 14 | R193: اجتاز | S193: اجتاز | T193: اجتاز | U193: اجتاز | V193: اجتاز | W193: اجتاز | X193: اجتاز | Y193: اجتاز | Z193: اجتاز | AA193: اجتاز | AB193: دور ثان مادتين | AC193: لغة عربية لغة إنجليزية تربية عسكرية | AD193: فقط خمسة وثمانون درجة لاغير | AE193: لغة عربية تربية عسكرية | AF193: { بترو 1 } | AG193: معامل بترو | AI193: =IF(B193=0,"",num!$B$10) -> فني _ بتروكيماويات | AJ193: =IF(AI195=ntiga!$AA$2,COUNTIF($AI$4:AI195,ntiga!$AA$2),"") ->  | AK193: =IF($AL$1=E195,COUNTIF($E$4:E195,$AL$1),"") -> 
A194: 191 | B194: ابو _ حبيبه 191 | C194: مستجد | D194: 391 | E194: 7/1 | F194: 591 | G194: 24 | H194: 22 | I194: 20 | J194: 15 | K194: 16 | L194: 16 | M194: 15 | N194: 128 | O194: 18 | P194: 19 | Q194: 13 | R194: اجتاز | S194: اجتاز | T194: اجتاز | U194: اجتاز | V194: اجتاز | W194: اجتاز | X194: اجتاز | Y194: اجتاز | Z194: اجتاز | AA194: اجتاز | AB194: دور ثان مادتين | AC194: لغة عربية لغة إنجليزية تربية عسكرية | AD194: فقط ستة وثمانون درجة لاغير | AF194: { بترو 1 } | AG194: معامل بترو | AI194: =IF(B194=0,"",num!$B$10) -> فني _ بتروكيماويات | AJ194: =IF(AI196=ntiga!$AA$2,COUNTIF($AI$4:AI196,ntiga!$AA$2),"") ->  | AK194: =IF($AL$1=E196,COUNTIF($E$4:E196,$AL$1),"") -> 
A195: 192 | B195: ابو _ حبيبه 192 | C195: مستجد | D195: 392 | E195: 7/1 | F195: 592 | G195: 26 | H195: 26 | I195: 19 | J195: 17 | K195: 17 | L195: 17 | M195: 16 | N195: 138 | O195: 19 | P195: 20 | Q195: 16 | R195: اجتاز | S195: اجتاز | T195: اجتاز | U195: اجتاز | V195: اجتاز | W195: اجتاز | X195: اجتاز | Y195: اجتاز | Z195: اجتاز | AA195: اجتاز | AB195: دور ثان مادة | AC195: لغة عربية تربية عسكرية | AD195: فقط تسعة وثمانون درجة لاغير | AE195: لغة عربية تربية عسكرية | AF195: { بترو 2 } | AG195: معامل بترو | AI195: =IF(B195=0,"",num!$B$10) -> فني _ بتروكيماويات | AJ195: =IF(AI197=ntiga!$AA$2,COUNTIF($AI$4:AI197,ntiga!$AA$2),"") ->  | AK195: =IF($AL$1=E197,COUNTIF($E$4:E197,$AL$1),"") -> 
A196: 193 | B196: ابو _ حبيبه 193 | C196: مفصول | D196: 393 | E196: 7/1 | F196: 593 | G196: 12 | H196: 12 | I196: 12 | J196: 12 | K196: 12 | L196: 12 | M196: 12 | N196: 84 | O196: 0 | P196: 0 | Q196: 0 | R196: اجتاز | S196: اجتاز | T196: اجتاز | U196: اجتاز | V196: اجتاز | W196: لم يجتاز | X196: لم يجتاز | Y196: لم يجتاز | Z196: لم يجتاز | AA196: لم يجتاز | AB196: راسب وله حق الإعادة | AD196: صفر | AF196: { بترو 2 } | AG196: معامل بترو | AI196: =IF(B196=0,"",num!$B$10) -> فني _ بتروكيماويات | AJ196: =IF(AI198=ntiga!$AA$2,COUNTIF($AI$4:AI198,ntiga!$AA$2),"") ->  | AK196: =IF($AL$1=E198,COUNTIF($E$4:E198,$AL$1),"") -> 
A197: 194 | B197: ابو _ حبيبه 194 | C197: مستجد | D197: 394 | E197: 7/1 | F197: 594 | G197: 32 | H197: 32 | I197: 27 | J197: 13 | K197: خطأ | L197: 13 | M197: 12 | N197: 129 | O197: 20 | P197: 20 | Q197: 21 | R197: اجتاز | S197: اجتاز | T197: اجتاز | U197: اجتاز | V197: اجتاز | W197: اجتاز | X197: اجتاز | Y197: اجتاز | Z197: اجتاز | AA197: اجتاز | AB197: راسب وله حق الإعادة | AD197: فقط واحد وتسعون درجة لاغير | AF197: { بترو 2 } | AG197: معامل بترو | AI197: =IF(B197=0,"",num!$B$10) -> فني _ بتروكيماويات | AJ197: =IF(AI199=ntiga!$AA$2,COUNTIF($AI$4:AI199,ntiga!$AA$2),"") ->  | AK197: =IF($AL$1=E199,COUNTIF($E$4:E199,$AL$1),"") -> 
A198: 195 | B198: ابو _ حبيبه 195 | C198: مستجد | D198: 395 | E198: 7/1 | F198: =F197+1 -> 595 | G198: 28 | H198: 27 | I198: 21 | J198: 20 | K198: 20 | L198: 20 | M198: 20 | N198: 156 | O198: 19 | P198: 20 | Q198: 12 | R198: اجتاز | S198: اجتاز | T198: اجتاز | U198: اجتاز | V198: اجتاز | W198: اجتاز | X198: اجتاز | Y198: اجتاز | Z198: اجتاز | AA198: اجتاز | AB198: ناجح ومنقول للصف الثاني | AC198: تربية عسكرية | AD198: فقط ستة وثمانون درجة لاغير | AE198: تربية عسكرية | AF198: { بترو 2 } | AG198: معامل بترو | AI198: =IF(B198=0,"",num!$B$10) -> فني _ بتروكيماويات | AJ198: =IF(AI200=ntiga!$AA$2,COUNTIF($AI$4:AI200,ntiga!$AA$2),"") ->  | AK198: =IF($AL$1=E200,COUNTIF($E$4:E200,$AL$1),"") -> 
A199: 196 | B199: ابو _ حبيبه 196 | C199: مستجد | D199: =D198+1 -> 396 | E199: 7/1 | F199: 596 | G199: 36 | H199: 31 | I199: 25 | J199: 13 | K199: 13 | L199: 13 | M199: 11 | N199: 142 | O199: 20 | P199: 20 | Q199: 16 | R199: اجتاز | S199: اجتاز | T199: اجتاز | U199: اجتاز | V199: اجتاز | W199: اجتاز | X199: اجتاز | Y199: اجتاز | Z199: اجتاز | AA199: اجتاز | AB199: راسب وله حق الإعادة | AD199: فقط واحد وتسعون درجة لاغير | AF199: { بترو 2 } | AG199: معامل بترو | AI199: =IF(B199=0,"",num!$B$10) -> فني _ بتروكيماويات | AJ199: =IF(AI201=ntiga!$AA$2,COUNTIF($AI$4:AI201,ntiga!$AA$2),"") ->  | AK199: =IF($AL$1=E201,COUNTIF($E$4:E201,$AL$1),"") -> 
A200: 197 | B200: ابو _ حبيبه 197 | C200: مستجد | D200: 397 | E200: 7/1 | F200: 597 | G200: 28 | H200: 28 | I200: 20 | J200: 12 | K200: 12 | L200: 20 | M200: 20 | N200: 140 | O200: 20 | P200: 20 | Q200: 13 | R200: اجتاز | S200: اجتاز | T200: اجتاز | U200: اجتاز | V200: اجتاز | W200: اجتاز | X200: اجتاز | Y200: اجتاز | Z200: اجتاز | AA200: اجتاز | AB200: دور ثان مادتين | AC200: فيزياء كيمياء تربية عسكرية | AD200: فقط واحد وثمانون درجة لاغير | AF200: { بترو 2 } | AG200: معامل بترو | AI200: =IF(B200=0,"",num!$B$10) -> فني _ بتروكيماويات | AJ200: =IF(AI202=ntiga!$AA$2,COUNTIF($AI$4:AI202,ntiga!$AA$2),"") ->  | AK200: =IF($AL$1=E202,COUNTIF($E$4:E202,$AL$1),"") -> 
... 102 more rows

Sheet ntiga
B1: محافظة الإسكندرية | AA1: التخصص
B2: إدارة وسط التعليمية | G2: كشف تقدير الدرجات وتقييم الجدارات | AA2: فني _ تكنولوجيا حاسبات
B3: مدرسة اسكندرية الفنية المتقدمة | G3: للعام الدراسيي 2025 / 2026 | AA3: اجمالي القسم | AC3: =LOOKUP(AL8,num!A1:A10,num!C1:C10) -> 31
B4: نظام الجدارات ثلاث سنوات | G4: الصف الاول _ جدارات خدمات
B5: 2 | C5: 3 | D5: 4 | E5: 5 | F5: 6 | G5: 7 | H5: 8 | I5: 9 | J5: 10 | K5: 11 | L5: 12 | M5: 13 | N5: 14 | O5: 15 | P5: 16 | Q5: 17 | R5: 18 | S5: 19 | T5: 20 | U5: 21 | V5: 22 | W5: 23 | X5: 24 | Y5: 25 | Z5: 26 | AA5: 27 | AB5: 28 | AC5: 29 | AD5: 30 | AE5: 31 | AF5: 32 | AG5: 33 | AH5: 34
A6: م | B6: اسم الطالب | C6: بيان الطالب | D6: رقم الجلوس | E6: الفصل | F6: سري _ المراقبة | G6: اللغة العربية | H6: اللغة الانجليزية | I6: رياضيات | J6: فيزياء | K6: كيمياء | L6: دراسات | M6: حاسب | N6: المجموع الكلي | O6: تربية وطنية | P6: تربية دينية | Q6: تربية عسكرية | R6: تقييم جدارات التيرم الأول و التيرم الثاني | AB6: بيان الطالب | AC6: مواد الرسوب | AD6: تفقيط الدرجة | AE6: ربع الدرجة | AF6: اللجنة | AG6: المبنى | AH6: الأوائل
R7: =VLOOKUP($AL$8,gdarat,3,0) -> السلامة والصحة المهنية | S7: =VLOOKUP($AL$8,gdarat,4,0) -> اساسيات الحاسب | T7: =VLOOKUP($AL$8,gdarat,5,0) -> جدارات بيئية 1 | U7: =VLOOKUP($AL$8,gdarat,6,0) -> الدوائر الرقمية والمنطقية | V7: =VLOOKUP($AL$8,gdarat,7,0) -> تجميع أجهزة الحاسب الالي | W7: =VLOOKUP($AL$8,gdarat,8,0) -> الرسم الفني | X7: =VLOOKUP($AL$8,gdarat,9,0) -> جدارات بيئية 2 | Y7: =VLOOKUP($AL$8,gdarat,10,0) -> 0 | Z7: =VLOOKUP($AL$8,gdarat,11,0) -> 0 | AA7: =VLOOKUP($AL$8,gdarat,12,0) -> 0
A8: 1 | B8: =IFERROR(INDEX(data_k,MATCH(A8,code_k,0),B$5),"") -> ابو _ حبيبه 234 | C8: =IFERROR(INDEX(data_k,MATCH(A8,code_k,0),C$5),"") -> مستجد | D8: =IFERROR(INDEX(data_k,MATCH(A8,code_k,0),D$5),"") -> 434 | E8: =IFERROR(INDEX(data_k,MATCH(A8,code_k,0),E$5),"") -> 9/1 | F8: =IFERROR(INDEX(data_k,MATCH(A8,code_k,0),F$5),"") -> 634 | G8: =IFERROR(INDEX(data_k,MATCH(A8,code_k,0),G$5),"") -> 27 | H8: =IFERROR(INDEX(data_k,MATCH(A8,code_k,0),H$5),"") -> 21 | I8: =IFERROR(INDEX(data_k,MATCH(A8,code_k,0),I$5),"") -> 19 | J8: =IFERROR(INDEX(data_k,MATCH(A8,code_k,0),J$5),"") -> 9 | K8: =IFERROR(INDEX(data_k,MATCH(A8,code_k,0),K$5),"") -> 6 | L8: =IFERROR(INDEX(data_k,MATCH(A8,code_k,0),L$5),"") -> 9 | M8: =IFERROR(INDEX(data_k,MATCH(A8,code_k,0),M$5),"") -> 8 | N8: =IFERROR(INDEX(data_k,MATCH(A8,code_k,0),N$5),"") -> 99 | O8: =IFERROR(INDEX(data_k,MATCH(A8,code_k,0),O$5),"") -> 8 | P8: =IFERROR(INDEX(data_k,MATCH(A8,code_k,0),P$5),"") -> 9 | Q8: =IFERROR(INDEX(data_k,MATCH(A8,code_k,0),Q$5),"") -> 13 | R8: =IFERROR(INDEX(data_k,MATCH(A8,code_k,0),R$5),"") -> اجتاز | S8: =IFERROR(INDEX(data_k,MATCH(A8,code_k,0),S$5),"") -> اجتاز | T8: =IFERROR(INDEX(data_k,MATCH(A8,code_k,0),T$5),"") -> اجتاز | U8: =IFERROR(INDEX(data_k,MATCH(A8,code_k,0),U$5),"") -> اجتاز | V8: =IFERROR(INDEX(data_k,MATCH(A8,code_k,0),V$5),"") -> اجتاز | W8: =IFERROR(INDEX(data_k,MATCH(A8,code_k,0),W$5),"") -> اجتاز | X8: =IFERROR(INDEX(data_k,MATCH(A8,code_k,0),X$5),"") -> اجتاز | Y8: =IFERROR(INDEX(data_k,MATCH(A8,code_k,0),Y$5),"") -> 0 | Z8: =IFERROR(INDEX(data_k,MATCH(A8,code_k,0),Z$5),"") -> 0 | AA8: =IFERROR(INDEX(data_k,MATCH(A8,code_k,0),AA$5),"") -> 0 | AB8: =IFERROR(INDEX(data_k,MATCH(A8,code_k,0),AB$5),"") -> راسب وله حق الإعادة | AC8: =IFERROR(INDEX(data_k,MATCH(A8,code_k,0),AC$5),"") ->  | AD8: =IFERROR(INDEX(data_k,MATCH(A8,code_k,0),AD$5),"") -> فقط ثمانية وسبعون درجة لاغير | AE8: =IFERROR(INDEX(data_k,MATCH(A8,code_k,0),AE$5),"") ->  | AF8: =IFERROR(INDEX(data_k,MATCH(A8,code_k,0),AF$5),"") -> { 2 } | AG8: =IFERROR(INDEX(data_k,MATCH(A8,code_k,0),AG$5),"") -> مبنى الأدارة | AK8: =IF($AA$2=num!B1,ROW(num!1:1),kkk) ->  | AL8: =_xlfn.AGGREGATE(15,6,$AK$8:$AK$57,ROW(AK1)) -> 5
A9: 2 | B9: =IFERROR(INDEX(data_k,MATCH(A9,code_k,0),B$5),"") -> ابو _ حبيبه 235 | C9: مستجد | D9: =IFERROR(INDEX(data_k,MATCH(A9,code_k,0),D$5),"") -> 435 | E9: =IFERROR(INDEX(data_k,MATCH(A9,code_k,0),E$5),"") -> 9/1 | F9: 635 | G9: =IFERROR(INDEX(data_k,MATCH(A9,code_k,0),G$5),"") -> 24 | H9: 21 | I9: 20 | J9: 9 | K9: =IFERROR(INDEX(data_k,MATCH(A9,code_k,0),K$5),"") -> 7 | L9: =IFERROR(INDEX(data_k,MATCH(A9,code_k,0),L$5),"") -> 10 | M9: =IFERROR(INDEX(data_k,MATCH(A9,code_k,0),M$5),"") -> 9 | N9: =IFERROR(INDEX(data_k,MATCH(A9,code_k,0),N$5),"") -> 100 | O9: =IFERROR(INDEX(data_k,MATCH(A9,code_k,0),O$5),"") -> 8 | P9: =IFERROR(INDEX(data_k,MATCH(A9,code_k,0),P$5),"") -> 10 | Q9: =IFERROR(INDEX(data_k,MATCH(A9,code_k,0),Q$5),"") -> 13 | R9: اجتاز | S9: اجتاز | T9: =IFERROR(INDEX(data_k,MATCH(A9,code_k,0),T$5),"") -> اجتاز | U9: اجتاز | V9: اجتاز | W9: اجتاز | X9: اجتاز | Y9: 0 | Z9: 0 | AA9: 0 | AB9: =IFERROR(INDEX(data_k,MATCH(A9,code_k,0),AB$5),"") -> راسب وله حق الإعادة | AC9: =IFERROR(INDEX(data_k,MATCH(A9,code_k,0),AC$5),"") ->  | AD9: فقط اثنان وثمانون درجة لاغير | AF9: { 2 } | AG9: مبنى الأدارة | AK9: =IF($AA$2=num!B2,ROW(num!2:2),kkk) -> 
A10: 3 | B10: ابو _ حبيبه 236 | C10: مستجد | D10: 436 | E10: 9/1 | F10: 636 | G10: 26 | H10: 23 | I10: 21 | J10: 9 | K10: 8 | L10: 10 | M10: 9 | N10: 106 | O10: 7 | P10: 10 | Q10: 13 | R10: اجتاز | S10: اجتاز | T10: اجتاز | U10: اجتاز | V10: اجتاز | W10: اجتاز | X10: اجتاز | Y10: 0 | Z10: 0 | AA10: 0 | AB10: راسب وله حق الإعادة | AD10: فقط خمسة وثمانون درجة لاغير | AF10: { 2 } | AG10: مبنى الأدارة | AK10: =IF($AA$2=num!B3,ROW(num!3:3),kkk) -> 
A11: 4 | B11: ابو _ حبيبه 237 | C11: مستجد | D11: 437 | E11: 9/1 | F11: 637 | G11: 29 | H11: 21 | I11: 21 | J11: 9 | K11: 7 | L11: 10 | M11: 9 | N11: 106 | O11: 8 | P11: 9 | Q11: 12 | R11: اجتاز | S11: اجتاز | T11: اجتاز | U11: اجتاز | V11: اجتاز | W11: اجتاز | X11: اجتاز | Y11: 0 | Z11: 0 | AA11: 0 | AB11: راسب وله حق الإعادة | AD11: فقط تسعة وسبعون درجة لاغير | AF11: { 2 } | AG11: مبنى الأدارة | AK11: =IF($AA$2=num!B4,ROW(num!4:4),kkk) -> 
A12: 5 | B12: ابو _ حبيبه 238 | C12: مستجد | D12: 438 | E12: 9/1 | F12: 638 | G12: 28 | H12: 22 | I12: 20 | J12: 9 | K12: 9 | L12: 10 | M12: 10 | N12: 108 | O12: 8 | P12: 9 | Q12: 22 | R12: اجتاز | S12: اجتاز | T12: اجتاز | U12: اجتاز | V12: اجتاز | W12: اجتاز | X12: اجتاز | Y12: 0 | Z12: 0 | AA12: 0 | AB12: راسب وله حق الإعادة | AD12: فقط سبعة وثمانون درجة لاغير | AF12: { 2 } | AG12: مبنى الأدارة | AK12: =IF($AA$2=num!B5,ROW(num!5:5),kkk) -> 5
A13: 6 | B13: ابو _ حبيبه 239 | C13: مستجد | D13: 439 | E13: 9/1 | F13: 639 | G13: 29 | H13: 26 | I13: 21 | J13: 9 | K13: 9 | L13: 10 | M13: 8 | N13: 112 | O13: 7 | P13: 8 | Q13: 21 | R13: اجتاز | S13: اجتاز | T13: اجتاز | U13: اجتاز | V13: اجتاز | W13: اجتاز | X13: اجتاز | Y13: 0 | Z13: 0 | AA13: 0 | AB13: راسب وله حق الإعادة | AD13: فقط واحد وتسعون درجة لاغير | AF13: { 2 } | AG13: مبنى الأدارة | AK13: =IF($AA$2=num!B6,ROW(num!6:6),kkk) -> 
A14: 7 | B14: ابو _ حبيبه 240 | C14: مستجد | D14: 440 | E14: 9/1 | F14: 640 | G14: 30 | H14: 19 | I14: 22 | J14: 9 | K14: 8 | L14: 9 | M14: 9 | N14: 106 | O14: 7 | P14: 10 | Q14: 23 | R14: اجتاز | S14: اجتاز | T14: اجتاز | U14: اجتاز | V14: اجتاز | W14: اجتاز | X14: اجتاز | Y14: 0 | Z14: 0 | AA14: 0 | AB14: راسب وله حق الإعادة | AD14: فقط اثنان وثمانون درجة لاغير | AF14: { 2 } | AG14: مبنى الأدارة | AK14: =IF($AA$2=num!B7,ROW(num!7:7),kkk) -> 
A15: 8 | B15: ابو _ حبيبه 241 | C15: مستجد | D15: 441 | E15: 9/1 | F15: 641 | G15: 36 | H15: 25 | I15: 26 | J15: 8 | K15: 8 | L15: 9 | M15: 9 | N15: 121 | O15: 7 | P15: 10 | Q15: 13 | R15: اجتاز | S15: اجتاز | T15: اجتاز | U15: اجتاز | V15: اجتاز | W15: اجتاز | X15: اجتاز | Y15: 0 | Z15: 0 | AA15: 0 | AB15: راسب وله حق الإعادة | AD15: فقط اثنان وثمانون درجة لاغير | AF15: { 2 } | AG15: مبنى الأدارة | AK15: =IF($AA$2=num!B8,ROW(num!8:8),kkk) -> 
A16: 9 | B16: ابو _ حبيبه 242 | C16: مستجد | D16: 442 | E16: 9/1 | F16: 642 | G16: 20 | H16: 18 | I16: 13 | J16: 9 | K16: 9 | L16: 9 | M16: 9 | N16: 87 | O16: 7 | P16: 9 | Q16: 13 | R16: اجتاز | S16: اجتاز | T16: اجتاز | U16: اجتاز | V16: اجتاز | W16: اجتاز | X16: اجتاز | Y16: 0 | Z16: 0 | AA16: 0 | AB16: راسب وله حق الإعادة | AD16: فقط سبعة وثمانون درجة لاغير | AF16: { 2 } | AG16: مبنى الأدارة | AK16: =IF($AA$2=num!B9,ROW(num!9:9),kkk) -> 
A17: 10 | B17: ابو _ حبيبه 243 | C17: مستجد | D17: 443 | E17: 9/1 | F17: 643 | G17: 30 | H17: 26 | I17: 24 | J17: 9 | K17: 10 | L17: 10 | M17: 9 | N17: 118 | O17: 7 | P17: 9 | Q17: 14 | R17: اجتاز | S17: اجتاز | T17: اجتاز | U17: اجتاز | V17: اجتاز | W17: اجتاز | X17: اجتاز | Y17: 0 | Z17: 0 | AA17: 0 | AB17: راسب وله حق الإعادة | AD17: فقط خمسة وثمانون درجة لاغير | AF17: { 2 } | AG17: مبنى الأدارة | AK17: =IF($AA$2=num!B10,ROW(num!10:10),kkk) -> 
A18: 11 | B18: ابو _ حبيبه 244 | C18: مستجد | D18: 444 | E18: 9/1 | F18: 644 | G18: 28 | H18: 24 | I18: 20 | J18: 10 | K18: 10 | L18: 10 | M18: 9 | N18: 111 | O18: 7 | P18: 10 | Q18: 23 | R18: اجتاز | S18: اجتاز | T18: اجتاز | U18: اجتاز | V18: اجتاز | W18: اجتاز | X18: اجتاز | Y18: 0 | Z18: 0 | AA18: 0 | AB18: راسب وله حق الإعادة | AD18: فقط تسعون درجة لاغير | AF18: { 3 } | AG18: مبنى الأدارة | AK18: =IF($AA$2=num!B11,ROW(num!11:11),kkk) -> 
A19: 12 | B19: ابو _ حبيبه 245 | C19: مستجد | D19: 445 | E19: 9/1 | F19: 645 | G19: 29 | H19: 25 | I19: 21 | J19: 10 | K19: 10 | L19: 10 | M19: 8 | N19: 113 | O19: 8 | P19: 10 | Q19: 24 | R19: اجتاز | S19: اجتاز | T19: اجتاز | U19: اجتاز | V19: اجتاز | W19: اجتاز | X19: اجتاز | Y19: 0 | Z19: 0 | AA19: 0 | AB19: راسب وله حق الإعادة | AD19: فقط اثنان وتسعون درجة لاغير | AF19: { 3 } | AG19: مبنى الأدارة | AK19: =IF($AA$2=num!B12,ROW(num!12:12),kkk) -> 
A20: 13 | B20: ابو _ حبيبه 246 | C20: مستجد | D20: 446 | E20: 9/1 | F20: 646 | G20: 27 | H20: 24 | I20: 19 | J20: 20 | K20: 20 | L20: 20 | M20: 19 | N20: 149 | O20: 18 | P20: 19 | Q20: 13 | R20: اجتاز | S20: اجتاز | T20: اجتاز | U20: اجتاز | V20: اجتاز | W20: اجتاز | X20: اجتاز | Y20: 0 | Z20: 0 | AA20: 0 | AB20: دور ثان مادة | AC20: لغة عربية تربية عسكرية | AD20: فقط واحد وتسعون درجة لاغير | AE20: لغة عربية تربية عسكرية | AF20: { 3 } | AG20: مبنى الأدارة | AK20: =IF($AA$2=num!B13,ROW(num!13:13),kkk) -> 
A21: 14 | B21: ابو _ حبيبه 247 | C21: مستجد | D21: 447 | E21: 9/1 | F21: 647 | G21: 28 | H21: 25 | I21: 20 | J21: 20 | K21: 19 | L21: 20 | M21: 19 | N21: 151 | O21: 18 | P21: 19 | Q21: 23 | R21: اجتاز | S21: اجتاز | T21: اجتاز | U21: اجتاز | V21: اجتاز | W21: اجتاز | X21: اجتاز | Y21: 0 | Z21: 0 | AA21: 0 | AB21: دور ثان مادتين | AC21: لغة عربية لغة إنجليزية تربية عسكرية | AD21: فقط ثلاثة وتسعون درجة لاغير | AF21: { 3 } | AG21: مبنى الأدارة | AK21: =IF($AA$2=num!B14,ROW(num!14:14),kkk) -> 
A22: 15 | B22: ابو _ حبيبه 248 | C22: مستجد | D22: 448 | E22: 9/1 | F22: 648 | G22: 27 | H22: 24 | I22: 20 | J22: 20 | K22: 20 | L22: 19 | M22: 19 | N22: 149 | O22: 17 | P22: 20 | Q22: 18 | R22: اجتاز | S22: اجتاز | T22: اجتاز | U22: اجتاز | V22: اجتاز | W22: اجتاز | X22: اجتاز | Y22: 0 | Z22: 0 | AA22: 0 | AB22: دور ثان مادة | AC22: لغة عربية تربية عسكرية | AD22: فقط ثمانية وثمانون درجة لاغير | AE22: لغة عربية تربية عسكرية | AF22: { 3 } | AG22: مبنى الأدارة | AK22: =IF($AA$2=num!B15,ROW(num!15:15),kkk) -> 
A23: 16 | B23: ابو _ حبيبه 249 | C23: مستجد | D23: 449 | E23: 9/1 | F23: 649 | G23: 32 | H23: 29 | I23: 26 | J23: 20 | K23: 19 | L23: 20 | M23: 19 | N23: 165 | O23: 18 | P23: 20 | Q23: 14 | R23: اجتاز | S23: اجتاز | T23: اجتاز | U23: اجتاز | V23: اجتاز | W23: اجتاز | X23: اجتاز | Y23: 0 | Z23: 0 | AA23: 0 | AB23: ناجح ومنقول للصف الثاني | AC23: تربية عسكرية | AD23: فقط تسعة وثمانون درجة لاغير | AE23: تربية عسكرية | AF23: { 3 } | AG23: مبنى الأدارة | AK23: =IF($AA$2=num!B16,ROW(num!16:16),kkk) -> 
A24: 17 | B24: ابو _ حبيبه 250 | C24: مستجد | D24: 450 | E24: 9/1 | F24: 650 | G24: 33 | H24: 30 | I24: 24 | J24: 19 | K24: 18 | L24: 19 | M24: 18 | N24: 161 | O24: 17 | P24: 19 | Q24: 24 | R24: اجتاز | S24: اجتاز | T24: اجتاز | U24: اجتاز | V24: اجتاز | W24: اجتاز | X24: اجتاز | Y24: 0 | Z24: 0 | AA24: 0 | AB24: ناجح ومنقول للصف الثاني | AC24: تربية عسكرية | AD24: فقط ستة وثمانون درجة لاغير | AE24: تربية عسكرية | AF24: { 3 } | AG24: مبنى الأدارة | AK24: =IF($AA$2=num!B17,ROW(num!17:17),kkk) -> 
A25: 18 | B25: ابو _ حبيبه 251 | C25: مستجد | D25: 451 | E25: 9/1 | F25: 651 | G25: 31 | H25: 27 | I25: 22 | J25: 19 | K25: 19 | L25: 19 | M25: 18 | N25: 155 | O25: 18 | P25: 18 | Q25: 15 | R25: اجتاز | S25: اجتاز | T25: اجتاز | U25: اجتاز | V25: اجتاز | W25: اجتاز | X25: اجتاز | Y25: 0 | Z25: 0 | AA25: 0 | AB25: ناجح ومنقول للصف الثاني | AC25: تربية عسكرية | AD25: فقط تسعة وثمانون درجة لاغير | AE25: تربية عسكرية | AF25: { 3 } | AG25: مبنى الأدارة | AK25: =IF($AA$2=num!B18,ROW(num!18:18),kkk) -> 
A26: 19 | B26: ابو _ حبيبه 252 | C26: مستجد | D26: 452 | E26: 9/1 | F26: 652 | G26: 36 | H26: 30 | I26: 26 | J26: 20 | K26: 20 | L26: 20 | M26: 18 | N26: 170 | O26: 18 | P26: 19 | Q26: 14 | R26: اجتاز | S26: اجتاز | T26: اجتاز | U26: اجتاز | V26: اجتاز | W26: اجتاز | X26: اجتاز | Y26: 0 | Z26: 0 | AA26: 0 | AB26: ناجح ومنقول للصف الثاني | AC26: تربية عسكرية | AD26: فقط واحد وتسعون درجة لاغير | AE26: تربية عسكرية | AF26: { 3 } | AG26: مبنى الأدارة | AK26: =IF($AA$2=num!B19,ROW(num!19:19),kkk) -> 
A27: 20 | B27: ابو _ حبيبه 253 | C27: مستجد | D27: 453 | E27: 9/1 | F27: 653 | G27: 34 | H27: 29 | I27: 25 | J27: 19 | K27: 19 | L27: 19 | M27: 17 | N27: 162 | O27: 17 | P27: 18 | Q27: 23 | R27: اجتاز | S27: اجتاز | T27: اجتاز | U27: اجتاز | V27: اجتاز | W27: اجتاز | X27: اجتاز | Y27: 0 | Z27: 0 | AA27: 0 | AB27: ناجح ومنقول للصف الثاني | AC27: تربية عسكرية | AD27: فقط ثلاثة وتسعون درجة لاغير | AE27: تربية عسكرية | AF27: { 3 } | AG27: مبنى الأدارة | AK27: =IF($AA$2=num!B20,ROW(num!20:20),kkk) -> 
A28: 21 | B28: ابو _ حبيبه 254 | C28: مستجد | D28: 454 | E28: 9/1 | F28: 654 | G28: 33 | H28: 31 | I28: 26 | J28: 18 | K28: 19 | L28: 19 | M28: 17 | N28: 163 | O28: 17 | P28: 18 | Q28: 23 | R28: اجتاز | S28: اجتاز | T28: اجتاز | U28: اجتاز | V28: اجتاز | W28: اجتاز | X28: اجتاز | Y28: 0 | Z28: 0 | AA28: 0 | AB28: ناجح ومنقول للصف الثاني | AC28: تربية عسكرية | AD28: فقط واحد وتسعون درجة لاغير | AE28: تربية عسكرية | AF28: { 3 } | AG28: مبنى الأدارة | AK28: =IF($AA$2=num!B21,ROW(num!21:21),kkk) -> 
A29: 22 | B29: ابو _ حبيبه 255 | C29: باق | D29: 455 | E29: 9/1 | F29: 655 | G29: 27 | H29: 23 | I29: 19 | J29: 19 | K29: 19 | L29: 19 | M29: 17 | N29: 143 | O29: 17 | P29: 18 | Q29: 14 | R29: اجتاز | S29: اجتاز | T29: اجتاز | U29: اجتاز | V29: اجتاز | W29: اجتاز | X29: اجتاز | Y29: 0 | Z29: 0 | AA29: 0 | AB29: دور ثان مادة | AC29: لغة عربية تربية عسكرية | AD29: فقط ستة وثمانون درجة لاغير | AE29: لغة عربية تربية عسكرية | AF29: { 3 } | AG29: مبنى الأدارة | AK29: =IF($AA$2=num!B22,ROW(num!22:22),kkk) -> 
A30: 23 | B30: ابو _ حبيبه 256 | C30: مستجد | D30: 456 | E30: 9/1 | F30: 656 | G30: 27 | H30: 25 | I30: 19 | J30: 19 | K30: 19 | L30: 19 | M30: 17 | N30: 145 | O30: 18 | P30: 18 | Q30: 14 | R30: اجتاز | S30: اجتاز | T30: اجتاز | U30: اجتاز | V30: اجتاز | W30: اجتاز | X30: اجتاز | Y30: 0 | Z30: 0 | AA30: 0 | AB30: دور ثان مادة | AC30: لغة عربية تربية عسكرية | AD30: فقط واحد وتسعون درجة لاغير | AE30: لغة عربية تربية عسكرية | AF30: { 3 } | AG30: مبنى الأدارة | AK30: =IF($AA$2=num!B23,ROW(num!23:23),kkk) -> 
A31: 24 | B31: ابو _ حبيبه 257 | C31: مستجد | D31: 457 | E31: 9/1 | F31: 657 | G31: 28 | H31: 26 | I31: 16 | J31: 20 | K31: 20 | L31: 20 | M31: 18 | N31: 148 | O31: 18 | P31: 20 | Q31: 23 | R31: اجتاز | S31: اجتاز | T31: اجتاز | U31: اجتاز | V31: اجتاز | W31: اجتاز | X31: اجتاز | Y31: 0 | Z31: 0 | AA31: 0 | AB31: ناجح ومنقول للصف الثاني | AC31: تربية عسكرية | AD31: فقط أربعة وثمانون درجة لاغير | AE31: تربية عسكرية | AF31: { 3 } | AG31: مبنى الأدارة | AK31: =IF($AA$2=num!B24,ROW(num!24:24),kkk) -> 
A32: 25 | B32: ابو _ حبيبه 258 | C32: مستجد | D32: 458 | E32: 9/1 | F32: 658 | G32: 32 | H32: 29 | I32: 20 | J32: 10 | K32: 9 | L32: 9 | M32: 8 | N32: 117 | O32: 8 | P32: 10 | Q32: 14 | R32: اجتاز | S32: اجتاز | T32: اجتاز | U32: اجتاز | V32: اجتاز | W32: اجتاز | X32: اجتاز | Y32: 0 | Z32: 0 | AA32: 0 | AB32: راسب وله حق الإعادة | AD32: فقط أربعة وثمانون درجة لاغير | AF32: { 3 } | AG32: مبنى الأدارة | AK32: =IF($AA$2=num!B25,ROW(num!25:25),kkk) -> 
A33: 26 | B33: ابو _ حبيبه 259 | C33: مستجد | D33: 459 | E33: 9/1 | F33: 659 | G33: 33 | H33: 30 | I33: 25 | J33: 20 | K33: 19 | L33: 20 | M33: 19 | N33: 166 | O33: 18 | P33: 20 | Q33: 18 | R33: اجتاز | S33: اجتاز | T33: اجتاز | U33: اجتاز | V33: اجتاز | W33: اجتاز | X33: اجتاز | Y33: 0 | Z33: 0 | AA33: 0 | AB33: ناجح ومنقول للصف الثاني | AC33: تربية عسكرية | AD33: فقط تسعون درجة لاغير | AE33: تربية عسكرية | AF33: { 3 } | AG33: مبنى الأدارة | AK33: =IF($AA$2=num!B26,ROW(num!26:26),kkk) -> 
A34: 27 | B34: ابو _ حبيبه 260 | C34: مفصول | D34: 460 | E34: 9/1 | F34: 660 | G34: 7 | H34: 7 | I34: 7 | J34: 10 | K34: 10 | L34: 10 | M34: 10 | N34: 61 | O34: 10 | P34: 10 | Q34: 0 | R34: لم يجتاز | S34: لم يجتاز | T34: لم يجتاز | U34: لم يجتاز | V34: لم يجتاز | W34: لم يجتاز | X34: لم يجتاز | Y34: 0 | Z34: 0 | AA34: 0 | AB34: راسب وله حق الإعادة | AD34: صفر | AE34: لغة عربية تربية عسكرية | AF34: { 3 } | AG34: مبنى الأدارة | AK34: =IF($AA$2=num!B27,ROW(num!27:27),kkk) -> 
A35: 28 | B35: ابو _ حبيبه 261 | C35: مستجد | D35: 461 | E35: 9/1 | F35: 661 | G35: 26 | H35: 22 | I35: 20 | J35: 20 | K35: 19 | L35: 20 | M35: 19 | N35: 146 | O35: 19 | P35: 20 | Q35: 22 | R35: اجتاز | S35: اجتاز | T35: اجتاز | U35: اجتاز | V35: اجتاز | W35: اجتاز | X35: اجتاز | Y35: 0 | Z35: 0 | AA35: 0 | AB35: دور ثان مادة | AC35: لغة عربية تربية عسكرية | AD35: فقط ثمانية وثمانون درجة لاغير | AE35: لغة عربية تربية عسكرية | AF35: { 3 } | AG35: مبنى الأدارة | AK35: =IF($AA$2=num!B28,ROW(num!28:28),kkk) -> 
A36: 29 | B36: ابو _ حبيبه 262 | C36: مستجد | D36: 462 | E36: 9/1 | F36: 662 | G36: 29 | H36: 26 | I36: 23 | J36: 20 | K36: 20 | L36: 20 | M36: 19 | N36: 157 | O36: 18 | P36: 19 | Q36: 23 | R36: اجتاز | S36: اجتاز | T36: اجتاز | U36: اجتاز | V36: اجتاز | W36: اجتاز | X36: اجتاز | Y36: 0 | Z36: 0 | AA36: 0 | AB36: ناجح ومنقول للصف الثاني | AC36: تربية عسكرية | AD36: فقط ثلاثة وتسعون درجة لاغير | AE36: تربية عسكرية | AF36: { 3 } | AG36: مبنى الأدارة | AK36: =IF($AA$2=num!B29,ROW(num!29:29),kkk) -> 
A37: 30 | B37: ابو _ حبيبه 263 | C37: مستجد | D37: 463 | E37: 9/1 | F37: 663 | G37: 22 | H37: 17 | I37: 14 | J37: 20 | K37: 20 | L37: 20 | M37: 19 | N37: 132 | O37: 19 | P37: 19 | Q37: 23 | R37: اجتاز | S37: اجتاز | T37: اجتاز | U37: اجتاز | V37: اجتاز | W37: اجتاز | X37: اجتاز | Y37: 0 | Z37: 0 | AA37: 0 | AB37: راسب وله حق الإعادة | AD37: فقط اثنان وتسعون درجة لاغير | AF37: { 3 } | AG37: مبنى الأدارة | AK37: =IF($AA$2=num!B30,ROW(num!30:30),kkk) -> 
A38: 31 | B38: ابو _ حبيبه 264 | C38: مستجد | D38: 464 | E38: 9/1 | F38: 664 | G38: 21 | H38: 18 | I38: 13 | J38: 20 | K38: 19 | L38: 20 | M38: 20 | N38: 131 | O38: 20 | P38: 19 | Q38: 18 | R38: اجتاز | S38: اجتاز | T38: اجتاز | U38: اجتاز | V38: اجتاز | W38: اجتاز | X38: اجتاز | Y38: 0 | Z38: 0 | AA38: 0 | AB38: راسب وله حق الإعادة | AD38: فقط واحد وتسعون درجة لاغير | AF38: { 4 } | AG38: مبنى التبريد | AK38: =IF($AA$2=num!B31,ROW(num!31:31),kkk) -> 
A39: 32 | AK39: =IF($AA$2=num!B32,ROW(num!32:32),kkk) -> 
A40: 33 | B40: =IFERROR(INDEX(data_k,MATCH(A40,code_k,0),B$5),"") ->  | C40: =IFERROR(INDEX(data_k,MATCH(A40,code_k,0),C$5),"") ->  | D40: =IFERROR(INDEX(data_k,MATCH(A40,code_k,0),D$5),"") ->  | E40: =IFERROR(INDEX(data_k,MATCH(A40,code_k,0),E$5),"") ->  | F40: =IFERROR(INDEX(data_k,MATCH(A40,code_k,0),F$5),"") ->  | G40: =IFERROR(INDEX(data_k,MATCH(A40,code_k,0),G$5),"") ->  | H40: =IFERROR(INDEX(data_k,MATCH(A40,code_k,0),H$5),"") ->  | I40: =IFERROR(INDEX(data_k,MATCH(A40,code_k,0),I$5),"") ->  | J40: =IFERROR(INDEX(data_k,MATCH(A40,code_k,0),J$5),"") ->  | K40: =IFERROR(INDEX(data_k,MATCH(A40,code_k,0),K$5),"") ->  | L40: =IFERROR(INDEX(data_k,MATCH(A40,code_k,0),L$5),"") ->  | M40: =IFERROR(INDEX(data_k,MATCH(A40,code_k,0),M$5),"") ->  | N40: =IFERROR(INDEX(data_k,MATCH(A40,code_k,0),N$5),"") ->  | O40: =IFERROR(INDEX(data_k,MATCH(A40,code_k,0),O$5),"") ->  | P40: =IFERROR(INDEX(data_k,MATCH(A40,code_k,0),P$5),"") ->  | Q40: =IFERROR(INDEX(data_k,MATCH(A40,code_k,0),Q$5),"") ->  | R40: =IFERROR(INDEX(data_k,MATCH(A40,code_k,0),R$5),"") ->  | S40: =IFERROR(INDEX(data_k,MATCH(A40,code_k,0),S$5),"") ->  | T40: =IFERROR(INDEX(data_k,MATCH(A40,code_k,0),T$5),"") ->  | U40: =IFERROR(INDEX(data_k,MATCH(A40,code_k,0),U$5),"") ->  | V40: =IFERROR(INDEX(data_k,MATCH(A40,code_k,0),V$5),"") ->  | W40: =IFERROR(INDEX(data_k,MATCH(A40,code_k,0),W$5),"") ->  | X40: =IFERROR(INDEX(data_k,MATCH(A40,code_k,0),X$5),"") ->  | Y40: =IFERROR(INDEX(data_k,MATCH(A40,code_k,0),Y$5),"") ->  | Z40: =IFERROR(INDEX(data_k,MATCH(A40,code_k,0),Z$5),"") ->  | AA40: =IFERROR(INDEX(data_k,MATCH(A40,code_k,0),AA$5),"") ->  | AB40: =IFERROR(INDEX(data_k,MATCH(A40,code_k,0),AB$5),"") ->  | AC40: =IFERROR(INDEX(data_k,MATCH(A40,code_k,0),AC$5),"") ->  | AD40: =IFERROR(INDEX(data_k,MATCH(A40,code_k,0),AD$5),"") ->  | AE40: =IFERROR(INDEX(data_k,MATCH(A40,code_k,0),AE$5),"") ->  | AF40: =IFERROR(INDEX(data_k,MATCH(A40,code_k,0),AF$5),"") ->  | AG40: =IFERROR(INDEX(data_k,MATCH(A40,code_k,0),AG$5),"") ->  | AK40: =IF($AA$2=num!B33,ROW(num!33:33),kkk) -> 
A41: 34 | AK41: =IF($AA$2=num!B34,ROW(num!34:34),kkk) -> 
A42: 35 | AK42: =IF($AA$2=num!B35,ROW(num!35:35),kkk) -> 
A43: 36 | AK43: =IF($AA$2=num!B36,ROW(num!36:36),kkk) -> 
A44: 37 | AK44: =IF($AA$2=num!B37,ROW(num!37:37),kkk) -> 
A45: 38 | AK45: =IF($AA$2=num!B38,ROW(num!38:38),kkk) -> 
A46: 39 | AK46: =IF($AA$2=num!B39,ROW(num!39:39),kkk) -> 
A47: 40 | AK47: =IF($AA$2=num!B40,ROW(num!40:40),kkk) -> 
A48: 41 | AK48: =IF($AA$2=num!B41,ROW(num!41:41),kkk) -> 
A49: 42 | AK49: =IF($AA$2=num!B42,ROW(num!42:42),kkk) -> 
A50: 43 | AK50: =IF($AA$2=num!B43,ROW(num!43:43),kkk) -> 
A51: 44 | AK51: =IF($AA$2=num!B44,ROW(num!44:44),kkk) -> 
A52: 45 | AK52: =IF($AA$2=num!B45,ROW(num!45:45),kkk) -> 
A53: 46 | AK53: =IF($AA$2=num!B46,ROW(num!46:46),kkk) -> 
A54: 47 | AK54: =IF($AA$2=num!B47,ROW(num!47:47),kkk) -> 
A55: 48 | AK55: =IF($AA$2=num!B48,ROW(num!48:48),kkk) -> 
A56: 49 | AK56: =IF($AA$2=num!B49,ROW(num!49:49),kkk) -> 
A57: 50 | AK57: =IF($AA$2=num!B50,ROW(num!50:50),kkk) -> 
A58: 51 | B58: =IFERROR(INDEX(data_k,MATCH(A58,code_k,0),B$5),"") ->  | C58: =IFERROR(INDEX(data_k,MATCH(A58,code_k,0),C$5),"") ->  | D58: =IFERROR(INDEX(data_k,MATCH(A58,code_k,0),D$5),"") ->  | E58: =IFERROR(INDEX(data_k,MATCH(A58,code_k,0),E$5),"") ->  | F58: =IFERROR(INDEX(data_k,MATCH(A58,code_k,0),F$5),"") ->  | G58: =IFERROR(INDEX(data_k,MATCH(A58,code_k,0),G$5),"") ->  | H58: =IFERROR(INDEX(data_k,MATCH(A58,code_k,0),H$5),"") ->  | I58: =IFERROR(INDEX(data_k,MATCH(A58,code_k,0),I$5),"") ->  | J58: =IFERROR(INDEX(data_k,MATCH(A58,code_k,0),J$5),"") ->  | N58: =IFERROR(INDEX(data_k,MATCH(A58,code_k,0),N$5),"") ->  | O58: =IFERROR(INDEX(data_k,MATCH(A58,code_k,0),O$5),"") ->  | P58: =IFERROR(INDEX(data_k,MATCH(A58,code_k,0),P$5),"") ->  | Q58: =IFERROR(INDEX(data_k,MATCH(A58,code_k,0),Q$5),"") ->  | R58: =IFERROR(INDEX(data_k,MATCH(A58,code_k,0),R$5),"") ->  | S58: =IFERROR(INDEX(data_k,MATCH(A58,code_k,0),S$5),"") ->  | T58: =IFERROR(INDEX(data_k,MATCH(A58,code_k,0),T$5),"") ->  | U58: =IFERROR(INDEX(data_k,MATCH(A58,code_k,0),U$5),"") ->  | V58: =IFERROR(INDEX(data_k,MATCH(A58,code_k,0),V$5),"") ->  | W58: =IFERROR(INDEX(data_k,MATCH(A58,code_k,0),W$5),"") ->  | X58: =IFERROR(INDEX(data_k,MATCH(A58,code_k,0),X$5),"") ->  | Y58: =IFERROR(INDEX(data_k,MATCH(A58,code_k,0),Y$5),"") ->  | Z58: =IFERROR(INDEX(data_k,MATCH(A58,code_k,0),Z$5),"") ->  | AA58: =IFERROR(INDEX(data_k,MATCH(A58,code_k,0),AA$5),"") ->  | AB58: =IFERROR(INDEX(data_k,MATCH(A58,code_k,0),AB$5),"") ->  | AC58: =IFERROR(INDEX(data_k,MATCH(A58,code_k,0),AC$5),"") ->  | AK58: =IF($AA$2=num!B51,ROW(num!51:51),kkk) -> 
A59: 52 | AK59: =IF($AA$2=num!B52,ROW(num!52:52),kkk) -> 
A60: 53 | AK60: =IF($AA$2=num!B53,ROW(num!53:53),kkk) -> 
A61: 54 | AK61: =IF($AA$2=num!B54,ROW(num!54:54),kkk) -> 
A62: 55 | AK62: =IF($AA$2=num!B55,ROW(num!55:55),kkk) -> 
A63: 56 | AK63: =IF($AA$2=num!B56,ROW(num!56:56),kkk) -> 
A64: 57 | AK64: =IF($AA$2=num!B57,ROW(num!57:57),kkk) -> 
A65: 58 | AK65: =IF($AA$2=num!B58,ROW(num!58:58),kkk) -> 
A66: 59 | AK66: =IF($AA$2=num!B59,ROW(num!59:59),kkk) -> 
A67: 60 | AK67: =IF($AA$2=num!B60,ROW(num!60:60),kkk) -> 
A68: 61 | AK68: =IF($AA$2=num!B61,ROW(num!61:61),kkk) -> 
A69: 62 | AK69: =IF($AA$2=num!B62,ROW(num!62:62),kkk) -> 
A70: 63 | AK70: =IF($AA$2=num!B63,ROW(num!63:63),kkk) -> 
A71: 64 | AK71: =IF($AA$2=num!B64,ROW(num!64:64),kkk) -> 
A72: 65 | K72: =IFERROR(INDEX(data_k,MATCH(A72,code_k,0),K$5),"") ->  | L72: =IFERROR(INDEX(data_k,MATCH(A72,code_k,0),L$5),"") ->  | M72: =IFERROR(INDEX(data_k,MATCH(A72,code_k,0),M$5),"") ->  | AD72: =IFERROR(INDEX(data_k,MATCH(A72,code_k,0),AD$5),"") ->  | AE72: =IFERROR(INDEX(data_k,MATCH(A72,code_k,0),AE$5),"") ->  | AF72: =IFERROR(INDEX(data_k,MATCH(A72,code_k,0),AF$5),"") ->  | AG72: =IFERROR(INDEX(data_k,MATCH(A72,code_k,0),AG$5),"") ->  | AK72: =IF($AA$2=num!B65,ROW(num!65:65),kkk) -> 
A73: 66 | AK73: =IF($AA$2=num!B66,ROW(num!66:66),kkk) -> 
A74: 67 | AK74: =IF($AA$2=num!B67,ROW(num!67:67),kkk) -> 
A75: 68 | AK75: =IF($AA$2=num!B68,ROW(num!68:68),kkk) -> 
A76: 69 | AK76: =IF($AA$2=num!B69,ROW(num!69:69),kkk) -> 
A77: 70 | AK77: =IF($AA$2=num!B70,ROW(num!70:70),kkk) -> 
A78: 71 | AK78: =IF($AA$2=num!B71,ROW(num!71:71),kkk) -> 
A79: 72 | AK79: =IF($AA$2=num!B72,ROW(num!72:72),kkk) -> 
A80: 73 | AK80: =IF($AA$2=num!B73,ROW(num!73:73),kkk) -> 
A81: 74 | AK81: =IF($AA$2=num!B74,ROW(num!74:74),kkk) -> 
A82: 75 | AK82: =IF($AA$2=num!B75,ROW(num!75:75),kkk) -> 
B84: كنترول الجدارات | T84: رئيس غرفة التقييم والتحقق | Z84: مدير إدارة المدرسة ،،
B85: م / محمد السيد | T85: م / بدرية السيد | Z85: م / احمد مهلل

Sheet skafi
C1: 2 | D1: 4 | E1: 7 | F1: 8 | G1: 9 | H1: 10 | I1: 11 | J1: 12 | K1: 13 | N1: 3
C2: =num!$G$1 -> محافظة : .................... | D2: =IFERROR(CONCATENATE("الصف الاول"," ",LOOKUP(T6,num!A1:A10,num!B1:B10)),"") -> الصف الاول فني _ طاقة شمسية | L2: الفصل
C3: =num!$G$2 -> إدارة : ........................ | D3: كشف اعمال السنة : 2025 / 2026 م | L3: =data!$AL$1 -> 5/1
C4: =num!$G$3 -> مدرسة : ...................... | D4: المواد الثقافية _ التيرم الاول
B5: م | C5: الإســــــــــــــــــــــم | D5: رقم الجلوس | E5: اللغة العربية | F5: انجليزي | G5: رياضة | H5: فيزياء | I5: كيمياء | J5: دراسات | K5: حاسب | L5: تربية وطنية | M5: تربية دينية | N5: بيان الطالب | O5: ملاحظات | Q5: 1/1
E6: 5 | F6: 4 | G6: 3 | H6: 2 | I6: 2 | J6: 2 | K6: 2 | L6: 2 | M6: 2 | S6: =IF($L$3=num!D1,ROW(num!1:1),"kkk") -> kkk | T6: =_xlfn.AGGREGATE(15,6,S:S,1) -> 8
A7: 1 | B7: =IF(C7="","",A7) -> 1 | C7: =IFERROR(INDEX(data_k,MATCH($A7,code_fsol,0),$C$1),"") -> ابو _ حبيبه 122 | D7: =IFERROR(INDEX(data_k,MATCH($A7,code_fsol,0),$D$1),"") -> 322 | N7: =IFERROR(INDEX(data_k,MATCH($A7,code_fsol,0),$N$1),"") -> مستجد | S7: =IF($L$3=num!D2,ROW(num!2:2),"kkk") -> kkk | T7: =_xlfn.AGGREGATE(L4,6,S:S,S2) -> 
A8: =A7+1 -> 2 | B8: =IF(C8="","",B7+1) -> 2 | C8: ابو _ حبيبه 123 | D8: =IFERROR(INDEX(data_k,MATCH($A8,code_fsol,0),$D$1),"") -> 323 | N8: مستجد | S8: =IF($L$3=num!D3,ROW(num!3:3),"kkk") -> kkk
A9: =A8+1 -> 3 | B9: =IF(C9="","",B8+1) -> 3 | C9: ابو _ حبيبه 124 | D9: 324 | N9: مستجد | S9: =IF($L$3=num!D4,ROW(num!4:4),"kkk") -> kkk | T9: 1
A10: 4 | B10: 4 | C10: ابو _ حبيبه 125 | D10: 325 | N10: مستجد | S10: =IF($L$3=num!D5,ROW(num!5:5),"kkk") -> kkk
A11: 5 | B11: 5 | C11: ابو _ حبيبه 126 | D11: 326 | N11: مستجد | S11: =IF($L$3=num!D6,ROW(num!6:6),"kkk") -> kkk
A12: 6 | B12: 6 | C12: ابو _ حبيبه 127 | D12: 327 | N12: مستجد | S12: =IF($L$3=num!D7,ROW(num!7:7),"kkk") -> kkk
A13: 7 | B13: 7 | C13: ابو _ حبيبه 128 | D13: 328 | N13: مستجد | S13: =IF($L$3=num!D8,ROW(num!8:8),"kkk") -> 8
A14: 8 | B14: 8 | C14: ابو _ حبيبه 129 | D14: 329 | N14: مستجد | S14: =IF($L$3=num!D9,ROW(num!9:9),"kkk") -> kkk
A15: 9 | B15: 9 | C15: ابو _ حبيبه 130 | D15: 330 | N15: مستجد | S15: =IF($L$3=num!D10,ROW(num!10:10),"kkk") -> kkk
A16: 10 | B16: 10 | C16: ابو _ حبيبه 131 | D16: 331 | N16: مستجد | S16: =IF($L$3=num!D11,ROW(num!11:11),"kkk") -> kkk | T16: =_xlfn.AGGREGATE(L13,6,S:S,S11) -> 
A17: 11 | B17: 11 | C17: ابو _ حبيبه 132 | D17: 332 | N17: مستجد | S17: =IF($L$3=num!D12,ROW(num!12:12),"kkk") -> kkk | T17: =_xlfn.AGGREGATE(L14,6,S:S,S12) -> 
A18: 12 | B18: 12 | C18: ابو _ حبيبه 133 | D18: 333 | N18: مستجد
A19: 13 | B19: 13 | C19: ابو _ حبيبه 134 | D19: 334 | N19: مستجد
A20: 14 | B20: 14 | C20: ابو _ حبيبه 135 | D20: 335 | N20: مستجد
A21: 15 | B21: 15 | C21: ابو _ حبيبه 136 | D21: 336 | N21: مستجد
A22: 16 | B22: 16 | C22: ابو _ حبيبه 137 | D22: 337 | N22: مستجد
A23: 17 | B23: 17 | C23: ابو _ حبيبه 138 | D23: 338 | N23: مستجد
A24: 18 | B24: 18 | C24: ابو _ حبيبه 139 | D24: 339 | N24: مستجد
A25: 19 | B25: 19 | C25: ابو _ حبيبه 140 | D25: 340 | N25: مستجد
A26: 20 | B26: 20 | C26: ابو _ حبيبه 141 | D26: 341 | N26: مستجد
A27: 21 | B27: 21 | C27: ابو _ حبيبه 142 | D27: 342 | N27: مستجد
A28: 22
A29: 23
A30: 24
A31: 25
A32: 26
A33: 27
A34: 28
A35: 29
A36: 30
A37: 31
A38: 32
A39: 33
A40: 34
A41: 35
A42: 36
A43: 37
A44: 38
A45: 39
A46: 40 | B46: =IF(C46="","",B44+1) -> 
D47: للأستفسار عن أى درجة يرجى التوجه لحجرة الكنترول | L47: وكيل التعليم : .....................
B49: رئيس الكنترول | F49: رئيس غرفة التقييم والتحقق | N49: مدير المدرسة
B50: =num!$F$2 -> ا / …………… | F50: =num!$F$3 -> ا / …………… | N50: =num!$F$4 -> ا / ……………

Sheet glos_num
E1: ص | F1: الســــــبت | G1: 2021 | Q1: اختر العام | R1: اختر التخصص | T1: اختر بيان العام | AU1: 1
E2: م | F2: الاحـــــــد | G2: 2022 | I2: تعديل تاريخ بدء الامتحانات | Q2: 2021 | R2: ميكانيكا_تشكيل | T2: نصف العام | AU2: 2
E3: 8 | F3: الاثــنــيـــن | G3: 2023 | Q3: 2022 | R3: ميكانيكا_تشغيل | T3: للعام الدراسي | Y3: =LOOKUP($P$16,ntiga!$A$8:$A$180,ntiga!$C$8:$C$180) -> مستجد | Z3: =LOOKUP($P$16+4,ntiga!$A$8:$A$180,ntiga!$C$8:$C$180) -> مستجد | AU3: 3
E4: 8.5 | F4: الثلاثــــــــاء | G4: 2024 | I4: الاحـــــــد | J4: 18 | K4: 1 | L4: 2024 | N4: 8.5 | O4: ص | P4: الساعة | Q4: 2023 | R4: السيارات | Y4: =LOOKUP($P$16+1,ntiga!$A$8:$A$180,ntiga!$C$8:$C$180) -> مستجد | Z4: =LOOKUP($P$16+5,ntiga!$A$8:$A$180,ntiga!$C$8:$C$180) -> مستجد | AU4: 4
E5: 9 | F5: الاربعـــــــاء | G5: 2025 | Q5: 2024 | R5: الشعبة الكهربية | Y5: =LOOKUP($P$16+2,ntiga!$A$8:$A$180,ntiga!$C$8:$C$180) -> مستجد | Z5: =LOOKUP($P$16+6,ntiga!$A$8:$A$180,ntiga!$C$8:$C$180) -> مستجد | AU5: 5
E6: 9.5 | F6: الخميــــــس | G6: 2026 | N6: =CONCATENATE(P4," ",N4," ",O4) -> الساعة 8.5 ص | Q6: 2025 | R6: التبريد والتكييف | Y6: =LOOKUP($P$16+3,ntiga!$A$8:$A$180,ntiga!$C$8:$C$180) -> مستجد | Z6: =LOOKUP($P$16+7,ntiga!$A$8:$A$180,ntiga!$C$8:$C$180) -> مستجد | AU6: 6
E7: 10 | F7: السببت | G7: 2027 | I7: تاريخ بدء الامتحانات | Q7: 2026 | R7: البتروكيماويات | AU7: 7
... 8 more rows

Sheet peper_gd
B1: =num!$G$1 -> محافظة : .................... | H1: =CONCATENATE("الصف الاول :"," ",ntiga!AA2) -> الصف الاول : فني _ تكنولوجيا حاسبات | Q1: كشف التقييم النهائي للوحدات _ العام الدراسي 5 202 /6 202م
B2: =num!$G$2 -> إدارة : ........................
B3: =num!$G$3 -> مدرسة : ......................
B4: رقم التسلسل | D4: رقم الجلوس | F4: بيان الطالب | G4: سري مراقبة | H4: =CONCATENATE("تقييم الوحدات المبنية على نظام الجدارات : التيرم الاول"," ",ntiga!$AA$2) -> تقييم الوحدات المبنية على نظام الجدارات : التيرم الاول فني _ تكنولوجيا حاسبات | AB4: =CONCATENATE("تقييم الوحدات المبنية على نظام الجدارات : التيرم الثاني"," ",ntiga!$AA$2) -> تقييم الوحدات المبنية على نظام الجدارات : التيرم الثاني فني _ تكنولوجيا حاسبات | AV4: بيان الطالب | AW4: مواد الرسوب
H6: =ntiga!$R$7 -> السلامة والصحة المهنية | M6: =ntiga!$S$7 -> اساسيات الحاسب | R6: =ntiga!$T$7 -> جدارات بيئية 1 | W6: =ntiga!$U$7 -> الدوائر الرقمية والمنطقية | AB6: =ntiga!$V$7 -> تجميع أجهزة الحاسب الالي | AG6: =ntiga!$X$7 -> جدارات بيئية 2 | AL6: =ntiga!$Y$7 -> 0 | AQ6: =ntiga!$Z$7 -> 0
H7: التقييم الأول | I7: التقييم الثاني | J7: التقييم الثالث | K7: التقييم الرابع | L7: ناتج التقييم | M7: التقييم الأول | N7: التقييم الثاني | O7: التقييم الثالث | P7: التقييم الرابع | Q7: ناتج التقييم | R7: التقييم الأول | S7: التقييم الثاني | T7: التقييم الثالث | U7: التقييم الرابع | V7: ناتج التقييم | W7: التقييم الأول | X7: التقييم الثاني | Y7: التقييم الثالث | Z7: التقييم الرابع | AA7: ناتج التقييم | AB7: التقييم الأول | AC7: التقييم الثاني | AD7: التقييم الثالث | AE7: التقييم الرابع | AF7: ناتج التقييم | AG7: التقييم الأول | AH7: التقييم الثاني | AI7: التقييم الثالث | AJ7: التقييم الرابع | AK7: ناتج التقييم | AL7: التقييم الأول | AM7: التقييم الثاني | AN7: التقييم الثالث | AO7: التقييم الرابع | AP7: ناتج التقييم | AQ7: التقييم الأول | AR7: التقييم الثاني | AS7: التقييم الثالث | AT7: التقييم الرابع | AU7: ناتج التقييم
C8: اســــــــــــــم الطــــالب
C10: 2 | D10: 4 | F10: 3 | G10: 6
A11: 1 | B11: =IF(C11="","",A11) -> 1 | C11: =IFERROR(INDEX(data_k,MATCH($A11,data!$AJ$2:$AJ$889,0),$C$10),"") -> ابو _ حبيبه 234 | D11: =IFERROR(INDEX(data_k,MATCH($A11,data!$AJ$2:$AJ$889,0),$D$10),"") -> 434 | F11: =IFERROR(INDEX(data_k,MATCH($A11,data!$AJ$2:$AJ$889,0),$F$10),"") -> مستجد | G11: =IFERROR(INDEX(data_k,MATCH($A11,data!$AJ$2:$AJ$889,0),$G$10),"") -> 634
A12: =A11+1 -> 2 | B12: =IF(C12="","",A12) -> 2 | C12: =IFERROR(INDEX(data_k,MATCH($A12,data!$AJ$2:$AJ$889,0),$C$10),"") -> ابو _ حبيبه 235 | D12: =IFERROR(INDEX(data_k,MATCH($A12,data!$AJ$2:$AJ$889,0),$D$10),"") -> 435 | F12: =IFERROR(INDEX(data_k,MATCH($A12,data!$AJ$2:$AJ$889,0),$F$10),"") -> مستجد | G12: =IFERROR(INDEX(data_k,MATCH($A12,data!$AJ$2:$AJ$889,0),$G$10),"") -> 635
A13: =A12+1 -> 3 | B13: 3 | C13: =IFERROR(INDEX(data_k,MATCH($A13,data!$AJ$2:$AJ$889,0),$C$10),"") -> ابو _ حبيبه 236 | D13: =IFERROR(INDEX(data_k,MATCH($A13,data!$AJ$2:$AJ$889,0),$D$10),"") -> 436 | F13: =IFERROR(INDEX(data_k,MATCH($A13,data!$AJ$2:$AJ$889,0),$F$10),"") -> مستجد | G13: =IFERROR(INDEX(data_k,MATCH($A13,data!$AJ$2:$AJ$889,0),$G$10),"") -> 636
A14: 4 | B14: 4 | C14: =IFERROR(INDEX(data_k,MATCH($A14,data!$AJ$2:$AJ$889,0),$C$10),"") -> ابو _ حبيبه 237 | D14: =IFERROR(INDEX(data_k,MATCH($A14,data!$AJ$2:$AJ$889,0),$D$10),"") -> 437 | F14: =IFERROR(INDEX(data_k,MATCH($A14,data!$AJ$2:$AJ$889,0),$F$10),"") -> مستجد | G14: =IFERROR(INDEX(data_k,MATCH($A14,data!$AJ$2:$AJ$889,0),$G$10),"") -> 637
A15: 5 | B15: 5 | C15: =IFERROR(INDEX(data_k,MATCH($A15,data!$AJ$2:$AJ$889,0),$C$10),"") -> ابو _ حبيبه 238 | D15: =IFERROR(INDEX(data_k,MATCH($A15,data!$AJ$2:$AJ$889,0),$D$10),"") -> 438 | F15: =IFERROR(INDEX(data_k,MATCH($A15,data!$AJ$2:$AJ$889,0),$F$10),"") -> مستجد | G15: =IFERROR(INDEX(data_k,MATCH($A15,data!$AJ$2:$AJ$889,0),$G$10),"") -> 638
A16: 6 | B16: 6 | C16: =IFERROR(INDEX(data_k,MATCH($A16,data!$AJ$2:$AJ$889,0),$C$10),"") -> ابو _ حبيبه 239 | D16: =IFERROR(INDEX(data_k,MATCH($A16,data!$AJ$2:$AJ$889,0),$D$10),"") -> 439 | F16: =IFERROR(INDEX(data_k,MATCH($A16,data!$AJ$2:$AJ$889,0),$F$10),"") -> مستجد | G16: =IFERROR(INDEX(data_k,MATCH($A16,data!$AJ$2:$AJ$889,0),$G$10),"") -> 639
A17: 7 | B17: 7 | C17: =IFERROR(INDEX(data_k,MATCH($A17,data!$AJ$2:$AJ$889,0),$C$10),"") -> ابو _ حبيبه 240 | D17: =IFERROR(INDEX(data_k,MATCH($A17,data!$AJ$2:$AJ$889,0),$D$10),"") -> 440 | F17: =IFERROR(INDEX(data_k,MATCH($A17,data!$AJ$2:$AJ$889,0),$F$10),"") -> مستجد | G17: =IFERROR(INDEX(data_k,MATCH($A17,data!$AJ$2:$AJ$889,0),$G$10),"") -> 640
A18: 8 | B18: 8 | C18: =IFERROR(INDEX(data_k,MATCH($A18,data!$AJ$2:$AJ$889,0),$C$10),"") -> ابو _ حبيبه 241 | D18: =IFERROR(INDEX(data_k,MATCH($A18,data!$AJ$2:$AJ$889,0),$D$10),"") -> 441 | F18: =IFERROR(INDEX(data_k,MATCH($A18,data!$AJ$2:$AJ$889,0),$F$10),"") -> مستجد | G18: =IFERROR(INDEX(data_k,MATCH($A18,data!$AJ$2:$AJ$889,0),$G$10),"") -> 641
A19: 9 | B19: 9 | C19: =IFERROR(INDEX(data_k,MATCH($A19,data!$AJ$2:$AJ$889,0),$C$10),"") -> ابو _ حبيبه 242 | D19: =IFERROR(INDEX(data_k,MATCH($A19,data!$AJ$2:$AJ$889,0),$D$10),"") -> 442 | F19: =IFERROR(INDEX(data_k,MATCH($A19,data!$AJ$2:$AJ$889,0),$F$10),"") -> مستجد | G19: =IFERROR(INDEX(data_k,MATCH($A19,data!$AJ$2:$AJ$889,0),$G$10),"") -> 642
A20: 10 | B20: 10 | C20: =IFERROR(INDEX(data_k,MATCH($A20,data!$AJ$2:$AJ$889,0),$C$10),"") -> ابو _ حبيبه 243 | D20: =IFERROR(INDEX(data_k,MATCH($A20,data!$AJ$2:$AJ$889,0),$D$10),"") -> 443 | F20: =IFERROR(INDEX(data_k,MATCH($A20,data!$AJ$2:$AJ$889,0),$F$10),"") -> مستجد | G20: =IFERROR(INDEX(data_k,MATCH($A20,data!$AJ$2:$AJ$889,0),$G$10),"") -> 643
A21: 11 | B21: 11 | C21: =IFERROR(INDEX(data_k,MATCH($A21,data!$AJ$2:$AJ$889,0),$C$10),"") -> ابو _ حبيبه 244 | D21: =IFERROR(INDEX(data_k,MATCH($A21,data!$AJ$2:$AJ$889,0),$D$10),"") -> 444 | F21: =IFERROR(INDEX(data_k,MATCH($A21,data!$AJ$2:$AJ$889,0),$F$10),"") -> مستجد | G21: =IFERROR(INDEX(data_k,MATCH($A21,data!$AJ$2:$AJ$889,0),$G$10),"") -> 644
A22: 12 | B22: 12 | C22: =IFERROR(INDEX(data_k,MATCH($A22,data!$AJ$2:$AJ$889,0),$C$10),"") -> ابو _ حبيبه 245 | D22: =IFERROR(INDEX(data_k,MATCH($A22,data!$AJ$2:$AJ$889,0),$D$10),"") -> 445 | F22: =IFERROR(INDEX(data_k,MATCH($A22,data!$AJ$2:$AJ$889,0),$F$10),"") -> مستجد | G22: =IFERROR(INDEX(data_k,MATCH($A22,data!$AJ$2:$AJ$889,0),$G$10),"") -> 645
A23: 13 | B23: 13 | C23: =IFERROR(INDEX(data_k,MATCH($A23,data!$AJ$2:$AJ$889,0),$C$10),"") -> ابو _ حبيبه 246 | D23: =IFERROR(INDEX(data_k,MATCH($A23,data!$AJ$2:$AJ$889,0),$D$10),"") -> 446 | F23: =IFERROR(INDEX(data_k,MATCH($A23,data!$AJ$2:$AJ$889,0),$F$10),"") -> مستجد | G23: =IFERROR(INDEX(data_k,MATCH($A23,data!$AJ$2:$AJ$889,0),$G$10),"") -> 646
A24: 14 | B24: 14 | C24: =IFERROR(INDEX(data_k,MATCH($A24,data!$AJ$2:$AJ$889,0),$C$10),"") -> ابو _ حبيبه 247 | D24: =IFERROR(INDEX(data_k,MATCH($A24,data!$AJ$2:$AJ$889,0),$D$10),"") -> 447 | F24: =IFERROR(INDEX(data_k,MATCH($A24,data!$AJ$2:$AJ$889,0),$F$10),"") -> مستجد | G24: =IFERROR(INDEX(data_k,MATCH($A24,data!$AJ$2:$AJ$889,0),$G$10),"") -> 647
A25: 15 | B25: 15 | C25: =IFERROR(INDEX(data_k,MATCH($A25,data!$AJ$2:$AJ$889,0),$C$10),"") -> ابو _ حبيبه 248 | D25: =IFERROR(INDEX(data_k,MATCH($A25,data!$AJ$2:$AJ$889,0),$D$10),"") -> 448 | F25: =IFERROR(INDEX(data_k,MATCH($A25,data!$AJ$2:$AJ$889,0),$F$10),"") -> مستجد | G25: =IFERROR(INDEX(data_k,MATCH($A25,data!$AJ$2:$AJ$889,0),$G$10),"") -> 648
A26: 16 | B26: 16 | C26: =IFERROR(INDEX(data_k,MATCH($A26,data!$AJ$2:$AJ$889,0),$C$10),"") -> ابو _ حبيبه 249 | D26: =IFERROR(INDEX(data_k,MATCH($A26,data!$AJ$2:$AJ$889,0),$D$10),"") -> 449 | F26: =IFERROR(INDEX(data_k,MATCH($A26,data!$AJ$2:$AJ$889,0),$F$10),"") -> مستجد | G26: =IFERROR(INDEX(data_k,MATCH($A26,data!$AJ$2:$AJ$889,0),$G$10),"") -> 649
A27: 17 | B27: 17 | C27: =IFERROR(INDEX(data_k,MATCH($A27,data!$AJ$2:$AJ$889,0),$C$10),"") -> ابو _ حبيبه 250 | D27: =IFERROR(INDEX(data_k,MATCH($A27,data!$AJ$2:$AJ$889,0),$D$10),"") -> 450 | F27: =IFERROR(INDEX(data_k,MATCH($A27,data!$AJ$2:$AJ$889,0),$F$10),"") -> مستجد | G27: =IFERROR(INDEX(data_k,MATCH($A27,data!$AJ$2:$AJ$889,0),$G$10),"") -> 650
A28: 18 | B28: 18 | C28: =IFERROR(INDEX(data_k,MATCH($A28,data!$AJ$2:$AJ$889,0),$C$10),"") -> ابو _ حبيبه 251 | D28: =IFERROR(INDEX(data_k,MATCH($A28,data!$AJ$2:$AJ$889,0),$D$10),"") -> 451 | F28: =IFERROR(INDEX(data_k,MATCH($A28,data!$AJ$2:$AJ$889,0),$F$10),"") -> مستجد | G28: =IFERROR(INDEX(data_k,MATCH($A28,data!$AJ$2:$AJ$889,0),$G$10),"") -> 651
A29: 19 | B29: 19 | C29: =IFERROR(INDEX(data_k,MATCH($A29,data!$AJ$2:$AJ$889,0),$C$10),"") -> ابو _ حبيبه 252 | D29: =IFERROR(INDEX(data_k,MATCH($A29,data!$AJ$2:$AJ$889,0),$D$10),"") -> 452 | F29: =IFERROR(INDEX(data_k,MATCH($A29,data!$AJ$2:$AJ$889,0),$F$10),"") -> مستجد | G29: =IFERROR(INDEX(data_k,MATCH($A29,data!$AJ$2:$AJ$889,0),$G$10),"") -> 652
A30: 20 | B30: 20 | C30: =IFERROR(INDEX(data_k,MATCH($A30,data!$AJ$2:$AJ$889,0),$C$10),"") -> ابو _ حبيبه 253 | D30: =IFERROR(INDEX(data_k,MATCH($A30,data!$AJ$2:$AJ$889,0),$D$10),"") -> 453 | F30: =IFERROR(INDEX(data_k,MATCH($A30,data!$AJ$2:$AJ$889,0),$F$10),"") -> مستجد | G30: =IFERROR(INDEX(data_k,MATCH($A30,data!$AJ$2:$AJ$889,0),$G$10),"") -> 653
B31: =IF(C31="","",B30+1) -> 
B32: =H1 -> الصف الاول : فني _ تكنولوجيا حاسبات | H32: كنترول الجدارات | R32: املاه : ........... | AG32: رئيس غرفة التقييم والتحقق | AS32: مدير إدارة المدرسة ،،،
C33: 1 | H33: =num!$F$2 -> ا / …………… | R33: راجع الاملاء : ........... | AG33: =num!$F$3 -> ا / …………… | AS33: =num!$F$4 -> ا / ……………

Sheet peper_petro
B1: =num!$G$1 -> محافظة : .................... | F1: =CONCATENATE("الصف الاول :"," ",ntiga!AA2) -> الصف الاول : فني _ تكنولوجيا حاسبات | S1: كشف التقييم النهائي للوحدات _ العام الدراسي 2025 / 2026م
B2: =num!$G$2 -> إدارة : ........................
B3: =num!$G$3 -> مدرسة : ......................
B4: رقم التسلسل | D4: رقم الجلوس | F4: بيان الطالب | G4: سري المراقبة | H4: =CONCATENATE("تقييم الوحدات المبنية على نظام الجدارات : التيرم الاول"," ",ntiga!$AA$2) -> تقييم الوحدات المبنية على نظام الجدارات : التيرم الاول فني _ تكنولوجيا حاسبات | AG4: =CONCATENATE("تقييم الوحدات المبنية على نظام الجدارات : التيرم الثاني"," ",ntiga!$AA$2) -> تقييم الوحدات المبنية على نظام الجدارات : التيرم الثاني فني _ تكنولوجيا حاسبات | BF4: بيان الطالب | BG4: مواد الرسوب
H6: =ntiga!$R$7 -> السلامة والصحة المهنية | M6: =ntiga!$S$7 -> اساسيات الحاسب | R6: =ntiga!$T$7 -> جدارات بيئية 1 | W6: =ntiga!$U$7 -> الدوائر الرقمية والمنطقية | AB6: =ntiga!$V$7 -> تجميع أجهزة الحاسب الالي | AG6: =ntiga!$W$7 -> الرسم الفني | AL6: =ntiga!$X$7 -> جدارات بيئية 2 | AQ6: =ntiga!$Y$7 -> 0 | AV6: =ntiga!$Z$7 -> 0 | BA6: =ntiga!$AA$7 -> 0
H7: التقييم الأول | I7: التقييم الثاني | J7: التقييم الثالث | K7: التقييم الرابع | L7: ناتج التقييم | M7: التقييم الأول | N7: التقييم الثاني | O7: التقييم الثالث | P7: التقييم الرابع | Q7: ناتج التقييم | R7: التقييم الأول | S7: التقييم الثاني | T7: التقييم الثالث | U7: التقييم الرابع | V7: ناتج التقييم | W7: التقييم الأول | X7: التقييم الثاني | Y7: التقييم الثالث | Z7: التقييم الرابع | AA7: ناتج التقييم | AB7: التقييم الأول | AC7: التقييم الثاني | AD7: التقييم الثالث | AE7: التقييم الرابع | AF7: ناتج التقييم | AG7: التقييم الأول | AH7: التقييم الثاني | AI7: التقييم الثالث | AJ7: التقييم الرابع | AK7: ناتج التقييم | AL7: التقييم الأول | AM7: التقييم الثاني | AN7: التقييم الثالث | AO7: التقييم الرابع | AP7: ناتج التقييم | AQ7: التقييم الأول | AR7: التقييم الثاني | AS7: التقييم الثالث | AT7: التقييم الرابع | AU7: ناتج التقييم | AV7: التقييم الأول | AW7: التقييم الثاني | AX7: التقييم الثالث | AY7: التقييم الرابع | AZ7: ناتج التقييم | BA7: التقييم الأول | BB7: التقييم الثاني | BC7: التقييم الثالث | BD7: التقييم الرابع | BE7: ناتج التقييم
C8: اســــــــــــــم الطــــالب
C10: 2 | D10: 4 | F10: 3 | G10: 6
A11: 1 | B11: =IF(C11="","",A11) -> 1 | C11: =IFERROR(INDEX(data_k,MATCH($A11,data!$AJ$2:$AJ$889,0),$C$10),"") -> ابو _ حبيبه 234 | D11: =IFERROR(INDEX(data_k,MATCH($A11,data!$AJ$2:$AJ$889,0),$D$10),"") -> 434 | F11: =IFERROR(INDEX(data_k,MATCH($A11,data!$AJ$2:$AJ$889,0),$F$10),"") -> مستجد | G11: =IFERROR(INDEX(data_k,MATCH($A11,data!$AJ$2:$AJ$889,0),$G$10),"") -> 634
A12: =A11+1 -> 2 | B12: =IF(C12="","",B11+1) -> 2 | C12: =IFERROR(INDEX(data_k,MATCH($A12,data!$AJ$2:$AJ$889,0),$C$10),"") -> ابو _ حبيبه 235 | D12: =IFERROR(INDEX(data_k,MATCH($A12,data!$AJ$2:$AJ$889,0),$D$10),"") -> 435 | F12: =IFERROR(INDEX(data_k,MATCH($A12,data!$AJ$2:$AJ$889,0),$F$10),"") -> مستجد | G12: =IFERROR(INDEX(data_k,MATCH($A12,data!$AJ$2:$AJ$889,0),$G$10),"") -> 635
A13: =A12+1 -> 3 | B13: =IF(C13="","",B12+1) -> 3 | C13: =IFERROR(INDEX(data_k,MATCH($A13,data!$AJ$2:$AJ$889,0),$C$10),"") -> ابو _ حبيبه 236 | D13: =IFERROR(INDEX(data_k,MATCH($A13,data!$AJ$2:$AJ$889,0),$D$10),"") -> 436 | F13: =IFERROR(INDEX(data_k,MATCH($A13,data!$AJ$2:$AJ$889,0),$F$10),"") -> مستجد | G13: =IFERROR(INDEX(data_k,MATCH($A13,data!$AJ$2:$AJ$889,0),$G$10),"") -> 636
A14: 4 | B14: 4 | C14: =IFERROR(INDEX(data_k,MATCH($A14,data!$AJ$2:$AJ$889,0),$C$10),"") -> ابو _ حبيبه 237 | D14: =IFERROR(INDEX(data_k,MATCH($A14,data!$AJ$2:$AJ$889,0),$D$10),"") -> 437 | F14: =IFERROR(INDEX(data_k,MATCH($A14,data!$AJ$2:$AJ$889,0),$F$10),"") -> مستجد | G14: =IFERROR(INDEX(data_k,MATCH($A14,data!$AJ$2:$AJ$889,0),$G$10),"") -> 637
A15: 5 | B15: 5 | C15: =IFERROR(INDEX(data_k,MATCH($A15,data!$AJ$2:$AJ$889,0),$C$10),"") -> ابو _ حبيبه 238 | D15: =IFERROR(INDEX(data_k,MATCH($A15,data!$AJ$2:$AJ$889,0),$D$10),"") -> 438 | F15: =IFERROR(INDEX(data_k,MATCH($A15,data!$AJ$2:$AJ$889,0),$F$10),"") -> مستجد | G15: =IFERROR(INDEX(data_k,MATCH($A15,data!$AJ$2:$AJ$889,0),$G$10),"") -> 638
A16: 6 | B16: 6 | C16: =IFERROR(INDEX(data_k,MATCH($A16,data!$AJ$2:$AJ$889,0),$C$10),"") -> ابو _ حبيبه 239 | D16: =IFERROR(INDEX(data_k,MATCH($A16,data!$AJ$2:$AJ$889,0),$D$10),"") -> 439 | F16: =IFERROR(INDEX(data_k,MATCH($A16,data!$AJ$2:$AJ$889,0),$F$10),"") -> مستجد | G16: =IFERROR(INDEX(data_k,MATCH($A16,data!$AJ$2:$AJ$889,0),$G$10),"") -> 639
A17: 7 | B17: 7 | C17: =IFERROR(INDEX(data_k,MATCH($A17,data!$AJ$2:$AJ$889,0),$C$10),"") -> ابو _ حبيبه 240 | D17: =IFERROR(INDEX(data_k,MATCH($A17,data!$AJ$2:$AJ$889,0),$D$10),"") -> 440 | F17: =IFERROR(INDEX(data_k,MATCH($A17,data!$AJ$2:$AJ$889,0),$F$10),"") -> مستجد | G17: =IFERROR(INDEX(data_k,MATCH($A17,data!$AJ$2:$AJ$889,0),$G$10),"") -> 640
A18: 8 | B18: 8 | C18: =IFERROR(INDEX(data_k,MATCH($A18,data!$AJ$2:$AJ$889,0),$C$10),"") -> ابو _ حبيبه 241 | D18: =IFERROR(INDEX(data_k,MATCH($A18,data!$AJ$2:$AJ$889,0),$D$10),"") -> 441 | F18: =IFERROR(INDEX(data_k,MATCH($A18,data!$AJ$2:$AJ$889,0),$F$10),"") -> مستجد | G18: =IFERROR(INDEX(data_k,MATCH($A18,data!$AJ$2:$AJ$889,0),$G$10),"") -> 641
A19: 9 | B19: 9 | C19: =IFERROR(INDEX(data_k,MATCH($A19,data!$AJ$2:$AJ$889,0),$C$10),"") -> ابو _ حبيبه 242 | D19: =IFERROR(INDEX(data_k,MATCH($A19,data!$AJ$2:$AJ$889,0),$D$10),"") -> 442 | F19: =IFERROR(INDEX(data_k,MATCH($A19,data!$AJ$2:$AJ$889,0),$F$10),"") -> مستجد | G19: =IFERROR(INDEX(data_k,MATCH($A19,data!$AJ$2:$AJ$889,0),$G$10),"") -> 642
A20: 10 | B20: 10 | C20: =IFERROR(INDEX(data_k,MATCH($A20,data!$AJ$2:$AJ$889,0),$C$10),"") -> ابو _ حبيبه 243 | D20: =IFERROR(INDEX(data_k,MATCH($A20,data!$AJ$2:$AJ$889,0),$D$10),"") -> 443 | F20: =IFERROR(INDEX(data_k,MATCH($A20,data!$AJ$2:$AJ$889,0),$F$10),"") -> مستجد | G20: =IFERROR(INDEX(data_k,MATCH($A20,data!$AJ$2:$AJ$889,0),$G$10),"") -> 643
A21: 11 | B21: 11 | C21: =IFERROR(INDEX(data_k,MATCH($A21,data!$AJ$2:$AJ$889,0),$C$10),"") -> ابو _ حبيبه 244 | D21: =IFERROR(INDEX(data_k,MATCH($A21,data!$AJ$2:$AJ$889,0),$D$10),"") -> 444 | F21: =IFERROR(INDEX(data_k,MATCH($A21,data!$AJ$2:$AJ$889,0),$F$10),"") -> مستجد | G21: =IFERROR(INDEX(data_k,MATCH($A21,data!$AJ$2:$AJ$889,0),$G$10),"") -> 644
A22: 12 | B22: 12 | C22: =IFERROR(INDEX(data_k,MATCH($A22,data!$AJ$2:$AJ$889,0),$C$10),"") -> ابو _ حبيبه 245 | D22: =IFERROR(INDEX(data_k,MATCH($A22,data!$AJ$2:$AJ$889,0),$D$10),"") -> 445 | F22: =IFERROR(INDEX(data_k,MATCH($A22,data!$AJ$2:$AJ$889,0),$F$10),"") -> مستجد | G22: =IFERROR(INDEX(data_k,MATCH($A22,data!$AJ$2:$AJ$889,0),$G$10),"") -> 645
A23: 13 | B23: 13 | C23: =IFERROR(INDEX(data_k,MATCH($A23,data!$AJ$2:$AJ$889,0),$C$10),"") -> ابو _ حبيبه 246 | D23: =IFERROR(INDEX(data_k,MATCH($A23,data!$AJ$2:$AJ$889,0),$D$10),"") -> 446 | F23: =IFERROR(INDEX(data_k,MATCH($A23,data!$AJ$2:$AJ$889,0),$F$10),"") -> مستجد | G23: =IFERROR(INDEX(data_k,MATCH($A23,data!$AJ$2:$AJ$889,0),$G$10),"") -> 646
A24: 14 | B24: 14 | C24: =IFERROR(INDEX(data_k,MATCH($A24,data!$AJ$2:$AJ$889,0),$C$10),"") -> ابو _ حبيبه 247 | D24: =IFERROR(INDEX(data_k,MATCH($A24,data!$AJ$2:$AJ$889,0),$D$10),"") -> 447 | F24: =IFERROR(INDEX(data_k,MATCH($A24,data!$AJ$2:$AJ$889,0),$F$10),"") -> مستجد | G24: =IFERROR(INDEX(data_k,MATCH($A24,data!$AJ$2:$AJ$889,0),$G$10),"") -> 647
A25: 15 | B25: 15 | C25: =IFERROR(INDEX(data_k,MATCH($A25,data!$AJ$2:$AJ$889,0),$C$10),"") -> ابو _ حبيبه 248 | D25: =IFERROR(INDEX(data_k,MATCH($A25,data!$AJ$2:$AJ$889,0),$D$10),"") -> 448 | F25: =IFERROR(INDEX(data_k,MATCH($A25,data!$AJ$2:$AJ$889,0),$F$10),"") -> مستجد | G25: =IFERROR(INDEX(data_k,MATCH($A25,data!$AJ$2:$AJ$889,0),$G$10),"") -> 648
A26: 16 | B26: 16 | C26: =IFERROR(INDEX(data_k,MATCH($A26,data!$AJ$2:$AJ$889,0),$C$10),"") -> ابو _ حبيبه 249 | D26: =IFERROR(INDEX(data_k,MATCH($A26,data!$AJ$2:$AJ$889,0),$D$10),"") -> 449 | F26: =IFERROR(INDEX(data_k,MATCH($A26,data!$AJ$2:$AJ$889,0),$F$10),"") -> مستجد | G26: =IFERROR(INDEX(data_k,MATCH($A26,data!$AJ$2:$AJ$889,0),$G$10),"") -> 649
A27: 17 | B27: 17 | C27: =IFERROR(INDEX(data_k,MATCH($A27,data!$AJ$2:$AJ$889,0),$C$10),"") -> ابو _ حبيبه 250 | D27: =IFERROR(INDEX(data_k,MATCH($A27,data!$AJ$2:$AJ$889,0),$D$10),"") -> 450 | F27: =IFERROR(INDEX(data_k,MATCH($A27,data!$AJ$2:$AJ$889,0),$F$10),"") -> مستجد | G27: =IFERROR(INDEX(data_k,MATCH($A27,data!$AJ$2:$AJ$889,0),$G$10),"") -> 650
A28: 18 | B28: 18 | C28: =IFERROR(INDEX(data_k,MATCH($A28,data!$AJ$2:$AJ$889,0),$C$10),"") -> ابو _ حبيبه 251 | D28: =IFERROR(INDEX(data_k,MATCH($A28,data!$AJ$2:$AJ$889,0),$D$10),"") -> 451 | F28: =IFERROR(INDEX(data_k,MATCH($A28,data!$AJ$2:$AJ$889,0),$F$10),"") -> مستجد | G28: =IFERROR(INDEX(data_k,MATCH($A28,data!$AJ$2:$AJ$889,0),$G$10),"") -> 651
A29: 19 | B29: 19 | C29: =IFERROR(INDEX(data_k,MATCH($A29,data!$AJ$2:$AJ$889,0),$C$10),"") -> ابو _ حبيبه 252 | D29: =IFERROR(INDEX(data_k,MATCH($A29,data!$AJ$2:$AJ$889,0),$D$10),"") -> 452 | F29: =IFERROR(INDEX(data_k,MATCH($A29,data!$AJ$2:$AJ$889,0),$F$10),"") -> مستجد | G29: =IFERROR(INDEX(data_k,MATCH($A29,data!$AJ$2:$AJ$889,0),$G$10),"") -> 652
A30: 20 | B30: 20 | C30: =IFERROR(INDEX(data_k,MATCH($A30,data!$AJ$2:$AJ$889,0),$C$10),"") -> ابو _ حبيبه 253 | D30: =IFERROR(INDEX(data_k,MATCH($A30,data!$AJ$2:$AJ$889,0),$D$10),"") -> 453 | F30: =IFERROR(INDEX(data_k,MATCH($A30,data!$AJ$2:$AJ$889,0),$F$10),"") -> مستجد | G30: =IFERROR(INDEX(data_k,MATCH($A30,data!$AJ$2:$AJ$889,0),$G$10),"") -> 653
B32: =F1 -> الصف الاول : فني _ تكنولوجيا حاسبات | H32: كنترول الجدارات | R32: املاه : ........... | AG32: رئيس غرفة التقييم والتحقق | AW32: مدير إدارة المدرسة ،،،
C33: 1 | H33: =num!$F$1 -> ا / ………… | R33: راجع الاملاء : ........... | AG33: =num!$F$3 -> ا / …………… | AW33: =num!$F$4 -> ا / ……………

Sheet peper_all
B1: =num!$G$1 -> محافظة : .................... | G1: =CONCATENATE("الصف الأول _جدارات خدمات:","",ntiga!AA2) -> الصف الأول _جدارات خدمات:فني _ تكنولوجيا حاسبات | U1: كشف رصد درجات الطلاب في امتحان العام الدراسي 202 / 202 م
B2: =num!$G$2 -> إدارة : ........................
B3: =num!$G$3 -> مدرسة : ......................
B4: رقم التسلسل | D4: رقم الجلوس | F4: بيان الطالب | G4: سري _ المراقبة | H4: اللغة العربية | M4: اللغة الانجليزية | R4: رياضيات | W4: فيزياء | AB4: المجموع الكلي | AC4: تربية دينية | AH4: تربية عسكرية | AK4: المواطنة | AP4: بيان الطالب | AQ4: ملاحظات
H6: اعمال السنة | I6: نصف العام | J6: اعمال السنة | K6: اخر العام | L6: المجموع | M6: اعمال السنة | N6: نصف العام | O6: اعمال السنة | P6: اخر العام | Q6: المجموع | R6: اعمال السنة | S6: نصف العام | T6: اعمال السنة | U6: اخر العام | V6: المجموع | W6: اعمال السنة | X6: نصف العام | Y6: اعمال السنة | Z6: اخر العام | AA6: المجموع | AC6: اعمال السنة | AD6: نصف العام | AE6: اعمال السنة | AF6: اخر العام | AG6: المجموع | AH6: نصف العام | AI6: اخر العام | AJ6: المجموع | AK6: اعمال السنة | AL6: نصف العام | AM6: اعمال السنة | AN6: اخر العام | AO6: المجموع
C8: اســــم _ الطالب | H8: 5 | I8: 20 | J8: 5 | K8: 20 | L8: =SUM(H8:K8) -> 50 | M8: 4 | N8: 16 | O8: 4 | P8: 16 | Q8: =SUM(M8:P8) -> 40 | R8: 5 | S8: 20 | T8: 5 | U8: 20 | V8: =SUM(R8:U8) -> 50 | W8: 4 | X8: 16 | Y8: 4 | Z8: 16 | AA8: =SUM(W8:Z8) -> 40 | AB8: =L8+Q8+V8+AA8 -> 180 | AC8: 2 | AD8: 8 | AE8: 2 | AF8: 8 | AG8: =SUM(AC8:AF8) -> 20 | AH8: 15 | AI8: 15 | AJ8: =SUM(AH8:AI8) -> 30 | AK8: 2 | AL8: 8 | AM8: 2 | AN8: 8 | AO8: =SUM(AK8:AN8) -> 20
K9: =K8/4 -> 5 | L9: =L8/2 -> 25 | P9: =P8/4 -> 4 | Q9: =Q8/2 -> 20 | U9: =U8/4 -> 5 | V9: =V8/2 -> 25 | Z9: =Z8/4 -> 4 | AA9: =AA8/2 -> 20 | AB9: =L9+Q9+V9+AA9 -> 90 | AF9: =AF8/4 -> 2 | AG9: =AG8/2 -> 10 | AI9: 3.75 | AJ9: 15 | AN9: =AN8/4 -> 2 | AO9: =AO8/2 -> 10
C10: 2 | D10: 4 | F10: 3 | G10: 6 | AB10: =L10+Q10+V10+AA10 -> 0
A11: 1 | B11: =IF(C11="","",A11) -> 1 | C11: =IFERROR(INDEX(data_k,MATCH($A11,data!$AJ$2:$AJ$889,0),$C$10),"") -> ابو _ حبيبه 234 | D11: =IFERROR(INDEX(data_k,MATCH($A11,data!$AJ$2:$AJ$889,0),$D$10),"") -> 434 | F11: =IFERROR(INDEX(data_k,MATCH($A11,data!$AJ$2:$AJ$889,0),$F$10),"") -> مستجد | G11: =IFERROR(INDEX(data_k,MATCH($A11,data!$AJ$2:$AJ$889,0),$G$10),"") -> 634
A12: =A11+1 -> 2 | B12: =IF(C12="","",A12) -> 2 | C12: =IFERROR(INDEX(data_k,MATCH($A12,data!$AJ$2:$AJ$889,0),$C$10),"") -> ابو _ حبيبه 235 | D12: =IFERROR(INDEX(data_k,MATCH($A12,data!$AJ$2:$AJ$889,0),$D$10),"") -> 435 | F12: =IFERROR(INDEX(data_k,MATCH($A12,data!$AJ$2:$AJ$889,0),$F$10),"") -> مستجد | G12: =IFERROR(INDEX(data_k,MATCH($A12,data!$AJ$2:$AJ$889,0),$G$10),"") -> 635
A13: =A12+1 -> 3 | B13: =IF(C13="","",A13) -> 3 | C13: =IFERROR(INDEX(data_k,MATCH($A13,data!$AJ$2:$AJ$889,0),$C$10),"") -> ابو _ حبيبه 236 | D13: =IFERROR(INDEX(data_k,MATCH($A13,data!$AJ$2:$AJ$889,0),$D$10),"") -> 436 | F13: =IFERROR(INDEX(data_k,MATCH($A13,data!$AJ$2:$AJ$889,0),$F$10),"") -> مستجد | G13: =IFERROR(INDEX(data_k,MATCH($A13,data!$AJ$2:$AJ$889,0),$G$10),"") -> 636
A14: =A13+1 -> 4 | B14: 4 | C14: =IFERROR(INDEX(data_k,MATCH($A14,data!$AJ$2:$AJ$889,0),$C$10),"") -> ابو _ حبيبه 237 | D14: =IFERROR(INDEX(data_k,MATCH($A14,data!$AJ$2:$AJ$889,0),$D$10),"") -> 437 | F14: =IFERROR(INDEX(data_k,MATCH($A14,data!$AJ$2:$AJ$889,0),$F$10),"") -> مستجد | G14: =IFERROR(INDEX(data_k,MATCH($A14,data!$AJ$2:$AJ$889,0),$G$10),"") -> 637
A15: 5 | B15: 5 | C15: =IFERROR(INDEX(data_k,MATCH($A15,data!$AJ$2:$AJ$889,0),$C$10),"") -> ابو _ حبيبه 238 | D15: =IFERROR(INDEX(data_k,MATCH($A15,data!$AJ$2:$AJ$889,0),$D$10),"") -> 438 | F15: =IFERROR(INDEX(data_k,MATCH($A15,data!$AJ$2:$AJ$889,0),$F$10),"") -> مستجد | G15: =IFERROR(INDEX(data_k,MATCH($A15,data!$AJ$2:$AJ$889,0),$G$10),"") -> 638
A16: 6 | B16: 6 | C16: =IFERROR(INDEX(data_k,MATCH($A16,data!$AJ$2:$AJ$889,0),$C$10),"") -> ابو _ حبيبه 239 | D16: =IFERROR(INDEX(data_k,MATCH($A16,data!$AJ$2:$AJ$889,0),$D$10),"") -> 439 | F16: =IFERROR(INDEX(data_k,MATCH($A16,data!$AJ$2:$AJ$889,0),$F$10),"") -> مستجد | G16: =IFERROR(INDEX(data_k,MATCH($A16,data!$AJ$2:$AJ$889,0),$G$10),"") -> 639
A17: 7 | B17: 7 | C17: =IFERROR(INDEX(data_k,MATCH($A17,data!$AJ$2:$AJ$889,0),$C$10),"") -> ابو _ حبيبه 240 | D17: =IFERROR(INDEX(data_k,MATCH($A17,data!$AJ$2:$AJ$889,0),$D$10),"") -> 440 | F17: =IFERROR(INDEX(data_k,MATCH($A17,data!$AJ$2:$AJ$889,0),$F$10),"") -> مستجد | G17: =IFERROR(INDEX(data_k,MATCH($A17,data!$AJ$2:$AJ$889,0),$G$10),"") -> 640
A18: 8 | B18: 8 | C18: =IFERROR(INDEX(data_k,MATCH($A18,data!$AJ$2:$AJ$889,0),$C$10),"") -> ابو _ حبيبه 241 | D18: =IFERROR(INDEX(data_k,MATCH($A18,data!$AJ$2:$AJ$889,0),$D$10),"") -> 441 | F18: =IFERROR(INDEX(data_k,MATCH($A18,data!$AJ$2:$AJ$889,0),$F$10),"") -> مستجد | G18: =IFERROR(INDEX(data_k,MATCH($A18,data!$AJ$2:$AJ$889,0),$G$10),"") -> 641
A19: 9 | B19: 9 | C19: =IFERROR(INDEX(data_k,MATCH($A19,data!$AJ$2:$AJ$889,0),$C$10),"") -> ابو _ حبيبه 242 | D19: =IFERROR(INDEX(data_k,MATCH($A19,data!$AJ$2:$AJ$889,0),$D$10),"") -> 442 | F19: =IFERROR(INDEX(data_k,MATCH($A19,data!$AJ$2:$AJ$889,0),$F$10),"") -> مستجد | G19: =IFERROR(INDEX(data_k,MATCH($A19,data!$AJ$2:$AJ$889,0),$G$10),"") -> 642
A20: 10 | B20: 10 | C20: =IFERROR(INDEX(data_k,MATCH($A20,data!$AJ$2:$AJ$889,0),$C$10),"") -> ابو _ حبيبه 243 | D20: =IFERROR(INDEX(data_k,MATCH($A20,data!$AJ$2:$AJ$889,0),$D$10),"") -> 443 | F20: =IFERROR(INDEX(data_k,MATCH($A20,data!$AJ$2:$AJ$889,0),$F$10),"") -> مستجد | G20: =IFERROR(INDEX(data_k,MATCH($A20,data!$AJ$2:$AJ$889,0),$G$10),"") -> 643
A21: 11 | B21: 11 | C21: =IFERROR(INDEX(data_k,MATCH($A21,data!$AJ$2:$AJ$889,0),$C$10),"") -> ابو _ حبيبه 244 | D21: =IFERROR(INDEX(data_k,MATCH($A21,data!$AJ$2:$AJ$889,0),$D$10),"") -> 444 | F21: =IFERROR(INDEX(data_k,MATCH($A21,data!$AJ$2:$AJ$889,0),$F$10),"") -> مستجد | G21: =IFERROR(INDEX(data_k,MATCH($A21,data!$AJ$2:$AJ$889,0),$G$10),"") -> 644
A22: 12 | B22: 12 | C22: =IFERROR(INDEX(data_k,MATCH($A22,data!$AJ$2:$AJ$889,0),$C$10),"") -> ابو _ حبيبه 245 | D22: =IFERROR(INDEX(data_k,MATCH($A22,data!$AJ$2:$AJ$889,0),$D$10),"") -> 445 | F22: =IFERROR(INDEX(data_k,MATCH($A22,data!$AJ$2:$AJ$889,0),$F$10),"") -> مستجد | G22: =IFERROR(INDEX(data_k,MATCH($A22,data!$AJ$2:$AJ$889,0),$G$10),"") -> 645
A23: 13 | B23: 13 | C23: =IFERROR(INDEX(data_k,MATCH($A23,data!$AJ$2:$AJ$889,0),$C$10),"") -> ابو _ حبيبه 246 | D23: =IFERROR(INDEX(data_k,MATCH($A23,data!$AJ$2:$AJ$889,0),$D$10),"") -> 446 | F23: =IFERROR(INDEX(data_k,MATCH($A23,data!$AJ$2:$AJ$889,0),$F$10),"") -> مستجد | G23: =IFERROR(INDEX(data_k,MATCH($A23,data!$AJ$2:$AJ$889,0),$G$10),"") -> 646
A24: 14 | B24: 14 | C24: =IFERROR(INDEX(data_k,MATCH($A24,data!$AJ$2:$AJ$889,0),$C$10),"") -> ابو _ حبيبه 247 | D24: =IFERROR(INDEX(data_k,MATCH($A24,data!$AJ$2:$AJ$889,0),$D$10),"") -> 447 | F24: =IFERROR(INDEX(data_k,MATCH($A24,data!$AJ$2:$AJ$889,0),$F$10),"") -> مستجد | G24: =IFERROR(INDEX(data_k,MATCH($A24,data!$AJ$2:$AJ$889,0),$G$10),"") -> 647
A25: 15 | B25: 15 | C25: =IFERROR(INDEX(data_k,MATCH($A25,data!$AJ$2:$AJ$889,0),$C$10),"") -> ابو _ حبيبه 248 | D25: =IFERROR(INDEX(data_k,MATCH($A25,data!$AJ$2:$AJ$889,0),$D$10),"") -> 448 | F25: =IFERROR(INDEX(data_k,MATCH($A25,data!$AJ$2:$AJ$889,0),$F$10),"") -> مستجد | G25: =IFERROR(INDEX(data_k,MATCH($A25,data!$AJ$2:$AJ$889,0),$G$10),"") -> 648
A26: 16 | B26: 16 | C26: =IFERROR(INDEX(data_k,MATCH($A26,data!$AJ$2:$AJ$889,0),$C$10),"") -> ابو _ حبيبه 249 | D26: =IFERROR(INDEX(data_k,MATCH($A26,data!$AJ$2:$AJ$889,0),$D$10),"") -> 449 | F26: =IFERROR(INDEX(data_k,MATCH($A26,data!$AJ$2:$AJ$889,0),$F$10),"") -> مستجد | G26: =IFERROR(INDEX(data_k,MATCH($A26,data!$AJ$2:$AJ$889,0),$G$10),"") -> 649
A27: 17 | B27: 17 | C27: =IFERROR(INDEX(data_k,MATCH($A27,data!$AJ$2:$AJ$889,0),$C$10),"") -> ابو _ حبيبه 250 | D27: =IFERROR(INDEX(data_k,MATCH($A27,data!$AJ$2:$AJ$889,0),$D$10),"") -> 450 | F27: =IFERROR(INDEX(data_k,MATCH($A27,data!$AJ$2:$AJ$889,0),$F$10),"") -> مستجد | G27: =IFERROR(INDEX(data_k,MATCH($A27,data!$AJ$2:$AJ$889,0),$G$10),"") -> 650
A28: 18 | B28: 18 | C28: =IFERROR(INDEX(data_k,MATCH($A28,data!$AJ$2:$AJ$889,0),$C$10),"") -> ابو _ حبيبه 251 | D28: =IFERROR(INDEX(data_k,MATCH($A28,data!$AJ$2:$AJ$889,0),$D$10),"") -> 451 | F28: =IFERROR(INDEX(data_k,MATCH($A28,data!$AJ$2:$AJ$889,0),$F$10),"") -> مستجد | G28: =IFERROR(INDEX(data_k,MATCH($A28,data!$AJ$2:$AJ$889,0),$G$10),"") -> 651
A29: 19 | B29: 19 | C29: =IFERROR(INDEX(data_k,MATCH($A29,data!$AJ$2:$AJ$889,0),$C$10),"") -> ابو _ حبيبه 252 | D29: =IFERROR(INDEX(data_k,MATCH($A29,data!$AJ$2:$AJ$889,0),$D$10),"") -> 452 | F29: =IFERROR(INDEX(data_k,MATCH($A29,data!$AJ$2:$AJ$889,0),$F$10),"") -> مستجد | G29: =IFERROR(INDEX(data_k,MATCH($A29,data!$AJ$2:$AJ$889,0),$G$10),"") -> 652
A30: 20 | B30: 20 | C30: =IFERROR(INDEX(data_k,MATCH($A30,data!$AJ$2:$AJ$889,0),$C$10),"") -> ابو _ حبيبه 253 | D30: =IFERROR(INDEX(data_k,MATCH($A30,data!$AJ$2:$AJ$889,0),$D$10),"") -> 453 | F30: =IFERROR(INDEX(data_k,MATCH($A30,data!$AJ$2:$AJ$889,0),$F$10),"") -> مستجد | G30: =IFERROR(INDEX(data_k,MATCH($A30,data!$AJ$2:$AJ$889,0),$G$10),"") -> 653
B32: =G1 -> الصف الأول _جدارات خدمات:فني _ تكنولوجيا حاسبات | F32: كنترول _المواد الثقافية | N32: املاه : ............... | V32: رئيس غرفة التقييم والتحقق | AL32: مدير إدارة المدرسة ،،،
C33: =IF(B11=1,1,IF(B11=21,2,IF(B11=41,3,IF(B11=61,4)))) -> 1 | F33: =num!$F$2 -> ا / …………… | N33: رصده : ................ | W33: =num!$F$3 -> ا / …………… | AL33: =num!$F$4 -> ا / ……………

Sheet sh_nesf
AB1: =LOOKUP($Y$11,ntiga!$A$8:$A$400,ntiga!$C$8:$C$400) -> مستجد
AB2: =LOOKUP($Y$11+1,ntiga!$A$8:$A$400,ntiga!$C$8:$C$400) -> مستجد
AB3: =LOOKUP($Y$11+2,ntiga!$A$8:$A$400,ntiga!$C$8:$C$400) -> مستجد
J4: كنترول الصف الأول _ جدارات _ عام
I5: بيان الدرجات والتقييم لنصف العام | N5: 2025 / 2026 | R5: رقم الجلوس | T5: =LOOKUP($Y$11,ntiga!$A$8:$A$400,ntiga!$D$8:$D$400) -> 434
I6: =CONCATENATE("الصف الاول : ","",ntiga!$AA$2) -> الصف الاول : فني _ تكنولوجيا حاسبات
J7: =LOOKUP($Y$11,ntiga!$A$8:$A$400,ntiga!$B$8:$B$400) -> ابو _ حبيبه 234 | Q7: =IF($AB$1="مستجد","",IF($AB$1="باق","",IF($AB$1="محول","",LOOKUP($Y$11,ntiga!$A$8:$A$400,ntiga!$C$8:$C$400)))) ->  | S7: الفصل | U7: =LOOKUP($Y$11,ntiga!$A$8:$A$400,ntiga!$E$8:$E$400) -> 9/1 | AA7: فني _ تشغيل معادن
C9: المادة | D9: المواد الثقافية العامة | K9: مجموع المواد | L9: مواد خارج المجموع | P9: التقييم النهائي للوحدات _ نظام الجدارات
D10: اللغة العربية | E10: اللغة الانجليزية | F10: رياضيات | G10: فيزياء | H10: كيمياء | I10: دراسات اجتماعية | J10: حاسب الي | L10: تربية وطنية | M10: تربيـة دينيـة | N10: تربيـة عسكرية | P10: =ntiga!$R$7 -> السلامة والصحة المهنية | Q10: =ntiga!$S$7 -> اساسيات الحاسب | R10: =ntiga!$T$7 -> جدارات بيئية 1 | S10: =IF(ntiga!$AA$2=gdarat!$B$5,"",ntiga!$U$7) ->  | T10: =IF(OR(ntiga!$AA$2=gdarat!$B$7,ntiga!$AA$2=gdarat!$B$8,ntiga!$AA$2=gdarat!$B$9,ntiga!$AA$2=gdarat!$B$10),ntiga!$V$7,"") ->  | U10: =IF(ntiga!$AA$2=gdarat!$B$9,ntiga!$W$7,"") -> 
Y11: 1 | AB11: طباعة صفحات محددة
C12: درجة نصف العام | D12: 25 | E12: 20 | F12: 15 | G12: 10 | H12: 10 | I12: 10 | J12: 10 | K12: =SUM(D12:J12) -> 100 | L12: 10 | M12: 10 | N12: 25 | Y12: =ntiga!$AC$3 -> 31 | AB12: من | AC12: اكتب | AD12: الى
C13: درجة الطالب | D13: =LOOKUP($Y$11,ntiga!$A$8:$A$400,ntiga!$G$8:$G$400) -> 27 | E13: =LOOKUP($Y$11,ntiga!$A$8:$A$400,ntiga!$H$8:$H$400) -> 21 | F13: =LOOKUP($Y$11,ntiga!$A$8:$A$400,ntiga!$I$8:$I$400) -> 19 | G13: =LOOKUP($Y$11,ntiga!$A$8:$A$400,ntiga!$J$8:$J$400) -> 9 | H13: =LOOKUP($Y$11,ntiga!$A$8:$A$400,ntiga!$K$8:$K$400) -> 6 | I13: =LOOKUP($Y$11,ntiga!$A$8:$A$400,ntiga!$L$8:$L$400) -> 9 | J13: =LOOKUP($Y$11,ntiga!$A$8:$A$400,ntiga!$M$8:$M$400) -> 8 | K13: =SUM(D13:J13) -> 99 | L13: =LOOKUP($Y$11,ntiga!$A$8:$A$400,ntiga!$O$8:$O$400) -> 8 | M13: =LOOKUP($Y$11,ntiga!$A$8:$A$400,ntiga!$P$8:$P$400) -> 9 | N13: =LOOKUP($Y$11,ntiga!$A$8:$A$400,ntiga!$Q$8:$Q$400) -> 13 | P13: =LOOKUP($Y$11,ntiga!$A$8:$A$400,ntiga!$R$8:$R$400) -> اجتاز | Q13: =LOOKUP($Y$11,ntiga!$A$8:$A$400,ntiga!$S$8:$S$400) -> اجتاز | R13: =LOOKUP($Y$11,ntiga!$A$8:$A$400,ntiga!$T$8:$T$400) -> اجتاز | S13: =IF(S10="","",LOOKUP($Y$11,ntiga!$A$8:$A$400,ntiga!$U$8:$U$400)) ->  | T13: =IF(T10="","",LOOKUP($Y$11,ntiga!$A$8:$A$400,ntiga!$V$8:$V$400)) ->  | U13: =IF(U10="","",LOOKUP($Y$11,ntiga!$A$8:$A$400,ntiga!$W$8:$W$400)) ->  | X13: =LOOKUP($Y$15,ntiga!$D$8:$D$400,ntiga!$B$8:$B$400) -> ابو _ حبيبه 264 | AB13: 1 | AD13: 3
C14: كنترول الجدارات | H14: كنترول المواد الثقافية | N14: رئيس غرفة التقييم والتحقق | S14: مدير المدرسة : | AB14: عدد الصفحات الحالية
C15: =num!$F$1 -> ا / ………… | H15: =num!$F$2 -> ا / …………… | N15: =num!$F$3 -> ا / …………… | S15: =num!$F$4 -> ا / …………… | Y15: 1155 | Z15: صفحة الطباعة
J16: كنترول الصف الأول _ جدارات _ عام | AC16: =ROUNDUP($Y$12/3,0) -> 11
Y17: =LOOKUP($Y$15,ntiga!$D$8:$D$400,ntiga!$A$8:$A$400) -> 31 | Z17: =ROUNDUP(Y17/3,0) -> 11
J18: كنترول الصف الأول _ جدارات _ عام
I19: بيان الدرجات والتقييم لنصف العام | N19: =$N$5 -> 2025 / 2026 | R19: رقم الجلوس | T19: =LOOKUP($Y$11+1,ntiga!$A$8:$A$400,ntiga!$D$8:$D$400) -> 435
I20: =CONCATENATE("الصف الاول : ","",ntiga!$AA$2) -> الصف الاول : فني _ تكنولوجيا حاسبات
J21: =LOOKUP($Y$11+1,ntiga!$A$8:$A$400,ntiga!$B$8:$B$400) -> ابو _ حبيبه 235 | Q21: =IF($AB$2="مستجد","",IF($AB$2="باق","",IF($AB$2="محول","",LOOKUP($Y$11+1,ntiga!$A$8:$A$400,ntiga!$C$8:$C$400)))) ->  | S21: الفصل | U21: =LOOKUP($Y$11+1,ntiga!$A$8:$A$400,ntiga!$E$8:$E$400) -> 9/1
C23: المادة | D23: المواد الثقافية العامة | K23: مجموع المواد | L23: مواد خارج المجموع | P23: التقييم النهائي للوحدات _ نظام الجدارات
D24: اللغة العربية | E24: اللغة الانجليزية | F24: رياضيات | G24: فيزياء | H24: كيمياء | I24: دراسات اجتماعية | J24: حاسب الي | L24: تربية وطنية | M24: تربيـة دينيـة | N24: تربيـة عسكرية | P24: =ntiga!$R$7 -> السلامة والصحة المهنية | Q24: =ntiga!$S$7 -> اساسيات الحاسب | R24: =ntiga!$T$7 -> جدارات بيئية 1 | S24: =IF(ntiga!$AA$2=gdarat!$B$5,"",ntiga!$U$7) ->  | T24: =IF(OR(ntiga!$AA$2=gdarat!$B$7,ntiga!$AA$2=gdarat!$B$8,ntiga!$AA$2=gdarat!$B$9,ntiga!$AA$2=gdarat!$B$10),ntiga!$V$7,"") ->  | U24: =IF(ntiga!$AA$2=gdarat!$B$9,ntiga!$W$7,"") -> 
C26: درجة نصف العام | D26: 25 | E26: 20 | F26: 15 | G26: 10 | H26: 10 | I26: 10 | J26: 10 | K26: =SUM(D26:J26) -> 100 | L26: 10 | M26: 10 | N26: 25 | AS26: 14
C27: درجة الطالب | D27: =LOOKUP($Y$11+1,ntiga!$A$8:$A$400,ntiga!$G$8:$G$400) -> 24 | E27: =LOOKUP($Y$11+1,ntiga!$A$8:$A$400,ntiga!$H$8:$H$400) -> 21 | F27: =LOOKUP($Y$11+1,ntiga!$A$8:$A$400,ntiga!$I$8:$I$400) -> 20 | G27: =LOOKUP($Y$11+1,ntiga!$A$8:$A$400,ntiga!$J$8:$J$400) -> 9 | H27: =LOOKUP($Y$11+1,ntiga!$A$8:$A$400,ntiga!$K$8:$K$400) -> 7 | I27: =LOOKUP($Y$11+1,ntiga!$A$8:$A$400,ntiga!$L$8:$L$400) -> 10 | J27: =LOOKUP($Y$11+1,ntiga!$A$8:$A$400,ntiga!$M$8:$M$400) -> 9 | K27: =SUM(D27:J27) -> 100 | L27: =LOOKUP($Y$11+1,ntiga!$A$8:$A$400,ntiga!$O$8:$O$400) -> 8 | M27: =LOOKUP($Y$11+1,ntiga!$A$8:$A$400,ntiga!$P$8:$P$400) -> 10 | N27: =LOOKUP($Y$11+1,ntiga!$A$8:$A$400,ntiga!$Q$8:$Q$400) -> 13 | P27: =LOOKUP($Y$11+1,ntiga!$A$8:$A$400,ntiga!$R$8:$R$400) -> اجتاز | Q27: =LOOKUP($Y$11+1,ntiga!$A$8:$A$400,ntiga!$S$8:$S$400) -> اجتاز | R27: =LOOKUP($Y$11+1,ntiga!$A$8:$A$400,ntiga!$T$8:$T$400) -> اجتاز | S27: =IF(S24="","",LOOKUP($Y$11+1,ntiga!$A$8:$A$400,ntiga!$U$8:$U$400)) ->  | T27: =IF(T24="","",LOOKUP($Y$11+1,ntiga!$A$8:$A$400,ntiga!$U$8:$U$400)) ->  | U27: =IF(U24="","",LOOKUP($Y$11+1,ntiga!$A$8:$A$400,ntiga!$U$8:$U$400)) -> 
C28: كنترول الجدارات | H28: كنترول المواد الثقافية | N28: رئيس غرفة التقييم والتحقق | S28: مدير المدرسة :
C29: =num!$F$1 -> ا / ………… | H29: =num!$F$2 -> ا / …………… | N29: =num!$F$3 -> ا / …………… | S29: =num!$F$4 -> ا / ……………
J30: كنترول الصف الأول _ جدارات _ عام
J32: كنترول الصف الأول _ جدارات _ عام
I33: بيان الدرجات والتقييم لنصف العام | N33: =$N$5 -> 2025 / 2026 | R33: رقم الجلوس | T33: =LOOKUP($Y$11+2,ntiga!$A$8:$A$400,ntiga!$D$8:$D$400) -> 436
I34: =CONCATENATE("الصف الاول : ","",ntiga!$AA$2) -> الصف الاول : فني _ تكنولوجيا حاسبات
J35: =LOOKUP($Y$11+2,ntiga!$A$8:$A$400,ntiga!$B$8:$B$400) -> ابو _ حبيبه 236 | Q35: =IF($AB$3="مستجد","",IF($AB$3="باق","",IF($AB$3="محول","",LOOKUP($Y$11+2,ntiga!$A$8:$A$400,ntiga!$C$8:$C$400)))) ->  | S35: الفصل | U35: =LOOKUP($Y$11+2,ntiga!$A$8:$A$400,ntiga!$E$8:$E$400) -> 9/1
C37: المادة | D37: المواد الثقافية العامة | K37: مجموع المواد | L37: مواد خارج المجموع | P37: التقييم النهائي للوحدات _ نظام الجدارات
D38: اللغة العربية | E38: اللغة الانجليزية | F38: رياضيات | G38: فيزياء | H38: كيمياء | I38: دراسات اجتماعية | J38: حاسب الي | L38: تربية وطنية | M38: تربيـة دينيـة | N38: تربيـة عسكرية | P38: =ntiga!$R$7 -> السلامة والصحة المهنية | Q38: =ntiga!$S$7 -> اساسيات الحاسب | R38: =ntiga!$T$7 -> جدارات بيئية 1 | S38: =IF(ntiga!$AA$2=gdarat!$B$5,"",ntiga!$U$7) ->  | T38: =IF(OR(ntiga!$AA$2=gdarat!$B$7,ntiga!$AA$2=gdarat!$B$8,ntiga!$AA$2=gdarat!$B$9,ntiga!$AA$2=gdarat!$B$10),ntiga!$V$7,"") ->  | U38: =IF(ntiga!$AA$2=gdarat!$B$9,ntiga!$W$7,"") -> 
C40: درجة نصف العام | D40: 25 | E40: 20 | F40: 15 | G40: 10 | H40: 10 | I40: 10 | J40: 10 | K40: =SUM(D40:J40) -> 100 | L40: 10 | M40: 10 | N40: 25 | AS40: 14
C41: درجة الطالب | D41: =LOOKUP($Y$11+2,ntiga!$A$8:$A$400,ntiga!$G$8:$G$400) -> 26 | E41: =LOOKUP($Y$11+2,ntiga!$A$8:$A$400,ntiga!$H$8:$H$400) -> 23 | F41: =LOOKUP($Y$11+2,ntiga!$A$8:$A$400,ntiga!$I$8:$I$400) -> 21 | G41: =LOOKUP($Y$11+2,ntiga!$A$8:$A$400,ntiga!$J$8:$J$400) -> 9 | H41: =LOOKUP($Y$11+2,ntiga!$A$8:$A$400,ntiga!$K$8:$K$400) -> 8 | I41: =LOOKUP($Y$11+2,ntiga!$A$8:$A$400,ntiga!$L$8:$L$400) -> 10 | J41: =LOOKUP($Y$11+2,ntiga!$A$8:$A$400,ntiga!$M$8:$M$400) -> 9 | K41: =SUM(D41:J41) -> 106 | L41: =LOOKUP($Y$11+2,ntiga!$A$8:$A$400,ntiga!$O$8:$O$400) -> 7 | M41: =LOOKUP($Y$11+2,ntiga!$A$8:$A$400,ntiga!$P$8:$P$400) -> 10 | N41: =LOOKUP($Y$11+2,ntiga!$A$8:$A$400,ntiga!$Q$8:$Q$400) -> 13 | P41: =LOOKUP($Y$11+2,ntiga!$A$8:$A$400,ntiga!$R$8:$R$400) -> اجتاز | Q41: =LOOKUP($Y$11+2,ntiga!$A$8:$A$400,ntiga!$S$8:$S$400) -> اجتاز | R41: =LOOKUP($Y$11+2,ntiga!$A$8:$A$400,ntiga!$T$8:$T$400) -> اجتاز | S41: =IF(S38="","",LOOKUP($Y$11+2,ntiga!$A$8:$A$400,ntiga!$U$8:$U$400)) ->  | T41: =IF(T38="","",LOOKUP($Y$11+2,ntiga!$A$8:$A$400,ntiga!$U$8:$U$400)) ->  | U41: =IF(U38="","",LOOKUP($Y$11+2,ntiga!$A$8:$A$400,ntiga!$U$8:$U$400)) -> 
C42: كنترول الجدارات | H42: كنترول المواد الثقافية | N42: رئيس غرفة التقييم والتحقق | S42: مدير المدرسة :
C43: =num!$F$1 -> ا / ………… | H43: =num!$F$2 -> ا / …………… | N43: =num!$F$3 -> ا / …………… | S43: =num!$F$4 -> ا / ……………
J44: كنترول الصف الأول _ جدارات _ عام

Sheet Awael
F3: =ntiga!$AA$2 -> فني _ تكنولوجيا حاسبات
A6: م | B6: رقم الجلوس | C6: اســـــــــم الطـــــالب | D6: =M6 -> الفصل | E6: المجموع | F6: الترتيب | J6: رقم الجلوس | K6: اســـــــــم الطـــــالب | L6: المجموع | M6: الفصل
A7: 1 | B7: =J7 -> 434 | C7: ابو _ حبيبه 234 | D7: =M7 -> 9/1 | E7: =L7 -> 99 | F7: =OrdinalNum(RANK(E7,E$7:E$153)) -> التاسع والعشرون | J7: =ntiga!D8 -> 434 | K7: =ntiga!B8 -> ابو _ حبيبه 234 | L7: =ntiga!N8 -> 99 | M7: =ntiga!E8 -> 9/1
A8: 2 | B8: 435 | C8: ابو _ حبيبه 235 | D8: =M8 -> 9/1 | E8: =L8 -> 100 | F8: =IF(E8=E7,OrdinalNum(RANK(E8,$E$7:$E$153))&" مكرر",OrdinalNum(RANK(E8,$E$7:$E$153))) -> الثامن والعشرون | J8: =ntiga!D9 -> 435 | K8: =ntiga!B9 -> ابو _ حبيبه 235 | L8: =ntiga!N9 -> 100 | M8: =ntiga!E9 -> 9/1
A9: 3 | B9: 436 | C9: ابو _ حبيبه 236 | D9: 9/1 | E9: 106 | F9: الخامس والعشرون | J9: =ntiga!D10 -> 436 | K9: =ntiga!B10 -> ابو _ حبيبه 236 | L9: =ntiga!N10 -> 106 | M9: =ntiga!E10 -> 9/1
A10: 4 | B10: 437 | C10: ابو _ حبيبه 237 | D10: 9/1 | E10: 106 | F10: الخامس والعشرون مكرر | J10: =ntiga!D11 -> 437 | K10: =ntiga!B11 -> ابو _ حبيبه 237 | L10: =ntiga!N11 -> 106 | M10: =ntiga!E11 -> 9/1
A11: 5 | B11: 438 | C11: ابو _ حبيبه 238 | D11: 9/1 | E11: 108 | F11: الرابع والعشرون | J11: =ntiga!D12 -> 438 | K11: =ntiga!B12 -> ابو _ حبيبه 238 | L11: =ntiga!N12 -> 108 | M11: =ntiga!E12 -> 9/1
A12: 6 | B12: 439 | C12: ابو _ حبيبه 239 | D12: 9/1 | E12: 112 | F12: الثاني والعشرون | J12: =ntiga!D13 -> 439 | K12: =ntiga!B13 -> ابو _ حبيبه 239 | L12: =ntiga!N13 -> 112 | M12: =ntiga!E13 -> 9/1
A13: 7 | B13: 440 | C13: ابو _ حبيبه 240 | D13: 9/1 | E13: 106 | F13: الخامس والعشرون | J13: =ntiga!D14 -> 440 | K13: =ntiga!B14 -> ابو _ حبيبه 240 | L13: =ntiga!N14 -> 106 | M13: =ntiga!E14 -> 9/1
A14: 8 | B14: 441 | C14: ابو _ حبيبه 241 | D14: 9/1 | E14: 121 | F14: الثامن عشر | J14: =ntiga!D15 -> 441 | K14: =ntiga!B15 -> ابو _ حبيبه 241 | L14: =ntiga!N15 -> 121 | M14: =ntiga!E15 -> 9/1
A15: 9 | B15: 442 | C15: ابو _ حبيبه 242 | D15: 9/1 | E15: 87 | F15: الثلاثون | H15: درجات الأوائل | J15: =ntiga!D16 -> 442 | K15: =ntiga!B16 -> ابو _ حبيبه 242 | L15: =ntiga!N16 -> 87 | M15: =ntiga!E16 -> 9/1
A16: 10 | B16: 443 | C16: ابو _ حبيبه 243 | D16: 9/1 | E16: 118 | F16: التاسع عشر | H16: =MAX($L$7:L100) -> 170 | I16: 1 | J16: =ntiga!D17 -> 443 | K16: =ntiga!B17 -> ابو _ حبيبه 243 | L16: =ntiga!N17 -> 118 | M16: =ntiga!E17 -> 9/1
A17: 11 | B17: 444 | C17: ابو _ حبيبه 244 | D17: 9/1 | E17: 111 | F17: الثالث والعشرون | H17: =LARGE($L$7:L100,2) -> 166 | I17: 2 | J17: =ntiga!D18 -> 444 | K17: =ntiga!B18 -> ابو _ حبيبه 244 | L17: =ntiga!N18 -> 111 | M17: =ntiga!E18 -> 9/1
A18: 12 | B18: 445 | C18: ابو _ حبيبه 245 | D18: 9/1 | E18: 113 | F18: التاسع والعشرون | H18: =LARGE($L$7:L100,3) -> 165 | I18: 3 | J18: =ntiga!D19 -> 445 | K18: =ntiga!B19 -> ابو _ حبيبه 245 | L18: =ntiga!N19 -> 113 | M18: =ntiga!E19 -> 9/1
A19: 13 | B19: 446 | C19: ابو _ حبيبه 246 | D19: 9/1 | E19: 149 | F19: العاشر | J19: =ntiga!D20 -> 446 | K19: =ntiga!B20 -> ابو _ حبيبه 246 | L19: =ntiga!N20 -> 149 | M19: =ntiga!E20 -> 9/1
A20: 14 | B20: 447 | C20: ابو _ حبيبه 247 | D20: 9/1 | E20: 151 | F20: التاسع | J20: =ntiga!D21 -> 447 | K20: =ntiga!B21 -> ابو _ حبيبه 247 | L20: =ntiga!N21 -> 151 | M20: =ntiga!E21 -> 9/1
A21: 15 | B21: 448 | C21: ابو _ حبيبه 248 | D21: 9/1 | E21: 149 | F21: العاشر | J21: =ntiga!D22 -> 448 | K21: =ntiga!B22 -> ابو _ حبيبه 248 | L21: =ntiga!N22 -> 149 | M21: =ntiga!E22 -> 9/1
A22: 16 | B22: 449 | C22: ابو _ حبيبه 249 | D22: 9/1 | E22: 165 | F22: الثالث | J22: =ntiga!D23 -> 449 | K22: =ntiga!B23 -> ابو _ حبيبه 249 | L22: =ntiga!N23 -> 165 | M22: =ntiga!E23 -> 9/1
A23: 17 | B23: 450 | C23: ابو _ حبيبه 250 | D23: 9/1 | E23: 161 | F23: السادس | J23: =ntiga!D24 -> 450 | K23: =ntiga!B24 -> ابو _ حبيبه 250 | L23: =ntiga!N24 -> 161 | M23: =ntiga!E24 -> 9/1
A24: 18 | B24: 451 | C24: ابو _ حبيبه 251 | D24: 9/1 | E24: 155 | F24: الثامن | J24: =ntiga!D25 -> 451 | K24: =ntiga!B25 -> ابو _ حبيبه 251 | L24: =ntiga!N25 -> 155 | M24: =ntiga!E25 -> 9/1
A25: 19 | B25: 452 | C25: ابو _ حبيبه 252 | D25: 9/1 | E25: 170 | F25: الأول | J25: =ntiga!D26 -> 452 | K25: =ntiga!B26 -> ابو _ حبيبه 252 | L25: =ntiga!N26 -> 170 | M25: =ntiga!E26 -> 9/1
A26: 20 | B26: 453 | C26: ابو _ حبيبه 253 | D26: 9/1 | E26: 162 | F26: الخامس | J26: =ntiga!D27 -> 453 | K26: =ntiga!B27 -> ابو _ حبيبه 253 | L26: =ntiga!N27 -> 162 | M26: =ntiga!E27 -> 9/1
A27: 21 | B27: 454 | C27: ابو _ حبيبه 254 | D27: 9/1 | E27: 163 | F27: الرابع | J27: =ntiga!D28 -> 454 | K27: =ntiga!B28 -> ابو _ حبيبه 254 | L27: =ntiga!N28 -> 163 | M27: =ntiga!E28 -> 9/1
A28: 22 | B28: 455 | C28: ابو _ حبيبه 255 | D28: 9/1 | E28: 143 | F28: الخامس عشر | J28: =ntiga!D29 -> 455 | K28: =ntiga!B29 -> ابو _ حبيبه 255 | L28: =ntiga!N29 -> 143 | M28: =ntiga!E29 -> 9/1
A29: 23 | B29: 456 | C29: ابو _ حبيبه 256 | D29: 9/1 | E29: 145 | F29: الرابع عشر | J29: =ntiga!D30 -> 456 | K29: =ntiga!B30 -> ابو _ حبيبه 256 | L29: =ntiga!N30 -> 145 | M29: =ntiga!E30 -> 9/1
A30: 24 | B30: 457 | C30: ابو _ حبيبه 257 | D30: 9/1 | E30: 148 | F30: الثاني عشر | J30: =ntiga!D31 -> 457 | K30: =ntiga!B31 -> ابو _ حبيبه 257 | L30: =ntiga!N31 -> 148 | M30: =ntiga!E31 -> 9/1
A31: 25 | B31: 458 | C31: ابو _ حبيبه 258 | D31: 9/1 | E31: 117 | F31: العشرون | J31: =ntiga!D32 -> 458 | K31: =ntiga!B32 -> ابو _ حبيبه 258 | L31: =ntiga!N32 -> 117 | M31: =ntiga!E32 -> 9/1
A32: 26 | B32: 459 | C32: ابو _ حبيبه 259 | D32: 9/1 | E32: 166 | F32: الثاني | J32: =ntiga!D33 -> 459 | K32: =ntiga!B33 -> ابو _ حبيبه 259 | L32: =ntiga!N33 -> 166 | M32: =ntiga!E33 -> 9/1
A33: 27 | B33: 460 | C33: ابو _ حبيبه 260 | D33: 9/1 | E33: 61 | F33: التاسع والثلاثون | J33: =ntiga!D34 -> 460 | K33: =ntiga!B34 -> ابو _ حبيبه 260 | L33: =ntiga!N34 -> 61 | M33: =ntiga!E34 -> 9/1
A34: 28 | B34: 461 | C34: ابو _ حبيبه 261 | D34: 9/1 | E34: 146 | F34: الثالث عشر | J34: =ntiga!D35 -> 461 | K34: =ntiga!B35 -> ابو _ حبيبه 261 | L34: =ntiga!N35 -> 146 | M34: =ntiga!E35 -> 9/1
A35: 29 | B35: 462 | C35: ابو _ حبيبه 262 | D35: 9/1 | E35: 157 | F35: السابع | J35: =ntiga!D36 -> 462 | K35: =ntiga!B36 -> ابو _ حبيبه 262 | L35: =ntiga!N36 -> 157 | M35: =ntiga!E36 -> 9/1
A36: 30 | B36: 463 | C36: ابو _ حبيبه 263 | D36: 9/1 | E36: 132 | F36: السادس عشر | J36: =ntiga!D37 -> 463 | K36: =ntiga!B37 -> ابو _ حبيبه 263 | L36: =ntiga!N37 -> 132 | M36: =ntiga!E37 -> 9/1
A37: 31 | B37: 464 | C37: ابو _ حبيبه 264 | D37: 9/1 | E37: 131 | F37: السابع عشر | J37: =ntiga!D38 -> 464 | K37: =ntiga!B38 -> ابو _ حبيبه 264 | L37: =ntiga!N38 -> 131 | M37: =ntiga!E38 -> 9/1
A38: 32 | J38: =ntiga!D39 ->  | K38: =ntiga!B39 ->  | L38: =ntiga!N39 ->  | M38: =ntiga!E39 -> 
A39: 33 | B39: =J39 ->  | F39: مكرر | J39: =ntiga!D40 ->  | K39: =ntiga!B40 ->  | L39: =ntiga!N40 ->  | M39: =ntiga!E40 -> 
A40: 34 | F40: مكرر | J40: =ntiga!D41 ->  | K40: =ntiga!B41 ->  | L40: =ntiga!N41 ->  | M40: =ntiga!E41 -> 
A41: 35 | F41: مكرر | J41: =ntiga!D42 ->  | K41: =ntiga!B42 ->  | L41: =ntiga!N42 ->  | M41: =ntiga!E42 -> 
A42: 36 | F42: مكرر | J42: =ntiga!D43 ->  | K42: =ntiga!B43 ->  | L42: =ntiga!N43 ->  | M42: =ntiga!E43 -> 
A43: 37 | F43: مكرر | J43: =ntiga!D44 ->  | K43: =ntiga!B44 ->  | L43: =ntiga!N44 ->  | M43: =ntiga!E44 -> 
A44: 38 | F44: مكرر | J44: =ntiga!D45 ->  | K44: =ntiga!B45 ->  | L44: =ntiga!N45 ->  | M44: =ntiga!E45 -> 
A45: 39 | F45: مكرر | J45: =ntiga!D46 ->  | K45: =ntiga!B46 ->  | L45: =ntiga!N46 ->  | M45: =ntiga!E46 -> 
A46: 40 | F46: مكرر | J46: =ntiga!D47 ->  | K46: =ntiga!B47 ->  | L46: =ntiga!N47 ->  | M46: =ntiga!E47 -> 
A47: 41 | F47: مكرر | J47: =ntiga!D48 ->  | K47: =ntiga!B48 ->  | L47: =ntiga!N48 ->  | M47: =ntiga!E48 -> 
A48: 42 | F48: مكرر | J48: =ntiga!D49 ->  | K48: =ntiga!B49 ->  | L48: =ntiga!N49 ->  | M48: =ntiga!E49 -> 
A49: 43 | F49: مكرر | J49: =ntiga!D50 ->  | K49: =ntiga!B50 ->  | L49: =ntiga!N50 ->  | M49: =ntiga!E50 -> 
A50: 44 | F50: مكرر | J50: =ntiga!D51 ->  | K50: =ntiga!B51 ->  | L50: =ntiga!N51 ->  | M50: =ntiga!E51 -> 
A51: 45 | F51: مكرر | J51: =ntiga!D52 ->  | K51: =ntiga!B52 ->  | L51: =ntiga!N52 ->  | M51: =ntiga!E52 -> 
A52: 46 | F52: مكرر | J52: =ntiga!D53 ->  | K52: =ntiga!B53 ->  | L52: =ntiga!N53 ->  | M52: =ntiga!E53 -> 
A53: 47 | F53: مكرر | J53: =ntiga!D54 ->  | K53: =ntiga!B54 ->  | L53: =ntiga!N54 ->  | M53: =ntiga!E54 -> 
A54: 48 | F54: مكرر | J54: =ntiga!D55 ->  | K54: =ntiga!B55 ->  | L54: =ntiga!N55 ->  | M54: =ntiga!E55 -> 
A55: 49 | F55: مكرر | J55: =ntiga!D56 ->  | K55: =ntiga!B56 ->  | L55: =ntiga!N56 ->  | M55: =ntiga!E56 -> 
A56: 50 | F56: مكرر | J56: =ntiga!D57 ->  | K56: =ntiga!B57 ->  | L56: =ntiga!N57 ->  | M56: =ntiga!E57 -> 
A57: 51 | B57: 0 | C57: 0 | D57: 0 | E57: 0 | F57: الثاني والثلاثون
A58: 52 | B58: 0 | C58: 0 | D58: 0 | E58: 0 | F58: الثاني والثلاثون مكرر
A59: 53 | B59: 0 | C59: 0 | D59: 0 | E59: 0 | F59: الثاني والثلاثون مكرر
A60: 54 | B60: 0 | C60: 0 | D60: 0 | E60: 0 | F60: الثاني والثلاثون مكرر
A61: 55 | B61: 0 | C61: 0 | D61: 0 | E61: 0 | F61: الثاني والثلاثون مكرر
A62: 56 | B62: 0 | C62: 0 | D62: 0 | E62: 0 | F62: الثاني والثلاثون مكرر
A63: 57 | B63: 0 | C63: 0 | D63: 0 | E63: 0 | F63: الثاني والثلاثون مكرر
A64: 58 | B64: 0 | C64: 0 | D64: 0 | E64: 0 | F64: الثاني والثلاثون مكرر
A65: 59 | B65: 0 | C65: 0 | D65: 0 | E65: 0 | F65: الثاني والثلاثون مكرر
A66: 60 | B66: 0 | C66: 0 | D66: 0 | E66: 0 | F66: الثاني والثلاثون مكرر
A67: 61 | B67: 0 | C67: 0 | D67: 0 | E67: 0 | F67: الثاني والثلاثون مكرر
A68: 62 | B68: 0 | C68: 0 | D68: 0 | E68: 0 | F68: الثاني والثلاثون مكرر
A69: 63 | B69: 0 | C69: 0 | D69: 0 | E69: 0 | F69: الثاني والثلاثون مكرر
A70: 64 | B70: 0 | C70: 0 | D70: 0 | E70: 0 | F70: الثاني والثلاثون مكرر
A71: 65 | B71: =J71 -> 0 | C71: 0 | D71: 0 | E71: 0 | F71: الثاني والثلاثون مكرر
A72: 66 | B72: 0 | C72: 0 | D72: =M72 -> 0 | E72: =L72 -> 0 | F72: =IF(E72=E71,OrdinalNum(RANK(E72,$E$7:$E$153))&" مكرر",OrdinalNum(RANK(E72,$E$7:$E$153))) -> الثاني والثلاثون مكرر
A73: 67 | B73: 0 | C73: 0 | D73: 0 | E73: 0 | F73: الثاني والثلاثون مكرر
A74: 68 | B74: 0 | C74: 0 | D74: 0 | E74: 0 | F74: الثاني والثلاثون مكرر
A75: 69 | B75: 0 | C75: 0 | D75: 0 | E75: 0 | F75: الثاني والثلاثون مكرر
A76: 70 | B76: 0 | C76: 0 | D76: 0 | E76: 0 | F76: الثاني والثلاثون مكرر
A77: 71 | B77: 0 | C77: 0 | D77: 0 | E77: 0 | F77: الثاني والثلاثون مكرر
A78: 72 | B78: 0 | C78: 0 | D78: 0 | E78: 0 | F78: الثاني والثلاثون مكرر
A79: 73 | B79: 0 | C79: 0 | D79: 0 | E79: 0 | F79: الثاني والثلاثون مكرر
A80: 74 | B80: 0 | C80: 0 | D80: 0 | E80: 0 | F80: الثاني والثلاثون مكرر
A81: 75 | B81: 0 | C81: 0 | D81: 0 | E81: 0 | F81: الثاني والثلاثون مكرر
A82: 76 | B82: 0 | C82: 0 | D82: 0 | E82: 0 | F82: الثاني والثلاثون مكرر
A83: 77 | B83: 0 | C83: 0 | D83: 0 | E83: 0 | F83: الثاني والثلاثون مكرر
A84: 78 | B84: 0 | C84: 0 | D84: 0 | E84: 0 | F84: الثاني والثلاثون مكرر
A85: 79 | B85: 0 | C85: 0 | D85: 0 | E85: 0 | F85: الثاني والثلاثون مكرر
A86: 80 | B86: 0 | C86: 0 | D86: 0 | E86: 0 | F86: الثاني والثلاثون مكرر
A87: 81 | B87: 0 | C87: 0 | D87: 0 | E87: 0 | F87: الثاني والثلاثون مكرر
A88: 82 | B88: 0 | C88: 0 | D88: 0 | E88: 0 | F88: الثاني والثلاثون مكرر
A89: 83 | B89: 0 | C89: 0 | D89: 0 | E89: 0 | F89: الثاني والثلاثون مكرر
A90: 84 | B90: 0 | C90: 0 | D90: 0 | E90: 0 | F90: الثاني والثلاثون مكرر
A91: 85 | B91: 0 | C91: 0 | D91: 0 | E91: 0 | F91: الثاني والثلاثون مكرر
A92: 86 | B92: 0 | C92: 0 | D92: 0 | E92: 0 | F92: الثاني والثلاثون مكرر
A93: 87 | B93: 0 | C93: 0 | D93: 0 | E93: 0 | F93: الثاني والثلاثون مكرر
A94: 88 | B94: 0 | C94: 0 | D94: 0 | E94: 0 | F94: الثاني والثلاثون مكرر
A95: 89 | B95: 0 | C95: 0 | D95: 0 | E95: 0 | F95: الثاني والثلاثون مكرر
A96: 90 | B96: 0 | C96: 0 | D96: 0 | E96: 0 | F96: الثاني والثلاثون مكرر
A97: 91 | B97: 0 | C97: 0 | D97: 0 | E97: 0 | F97: الثاني والثلاثون مكرر
A98: 92 | B98: 0 | C98: 0 | D98: 0 | E98: 0 | F98: الثاني والثلاثون مكرر
A99: 93 | B99: 0 | C99: 0 | D99: 0 | E99: 0 | F99: الثاني والثلاثون مكرر
A100: 94 | B100: 0 | C100: 0 | D100: 0 | E100: 0 | F100: الثاني والثلاثون مكرر
A101: 95 | B101: 0 | C101: 0 | D101: 0 | E101: 0 | F101: الثاني والثلاثون مكرر
A102: 96 | B102: 0 | C102: 0 | D102: 0 | E102: 0 | F102: الثاني والثلاثون مكرر
A103: 97 | B103: =J103 -> 0 | C103: 0 | D103: 0 | E103: 0 | F103: الثاني والثلاثون مكرر
A104: 98 | B104: 0 | C104: 0 | D104: 0 | E104: 0 | F104: الثاني والثلاثون مكرر
A105: 99 | B105: 0 | C105: 0 | D105: 0 | E105: 0 | F105: الثاني والثلاثون مكرر
A106: 100 | B106: 0 | C106: 0 | D106: 0 | E106: 0 | F106: الثاني والثلاثون مكرر
A107: 101 | B107: 0 | C107: 0 | D107: 0 | E107: 0 | F107: الثاني والثلاثون مكرر
A108: 102 | B108: 0 | C108: 0 | D108: 0 | E108: 0 | F108: الثاني والثلاثون مكرر
A109: 103 | B109: 0 | C109: 0 | D109: 0 | E109: 0 | F109: الثاني والثلاثون مكرر
A110: 104 | B110: 0 | C110: 0 | D110: 0 | E110: 0 | F110: الثاني والثلاثون مكرر
A111: 105 | B111: 0 | C111: 0 | D111: 0 | E111: 0 | F111: الثاني والثلاثون مكرر
A112: 106 | B112: 0 | C112: 0 | D112: 0 | E112: 0 | F112: الثاني والثلاثون مكرر
A113: 107 | B113: 0 | C113: 0 | D113: 0 | E113: 0 | F113: الثاني والثلاثون مكرر
A114: 108 | B114: 0 | C114: 0 | D114: 0 | E114: 0 | F114: الثاني والثلاثون مكرر
A115: 109 | B115: 0 | C115: 0 | D115: 0 | E115: 0 | F115: الثاني والثلاثون مكرر
A116: 110 | B116: 0 | C116: 0 | D116: 0 | E116: 0 | F116: الثاني والثلاثون مكرر
A117: 111 | B117: 0 | C117: 0 | D117: 0 | E117: 0 | F117: الثاني والثلاثون مكرر
A118: 112 | B118: 0 | C118: 0 | D118: 0 | E118: 0 | F118: الثاني والثلاثون مكرر
A119: 113 | B119: 0 | C119: 0 | D119: 0 | E119: 0 | F119: الثاني والثلاثون مكرر
A120: 114 | B120: 0 | C120: 0 | D120: 0 | E120: 0 | F120: الثاني والثلاثون مكرر
A121: 115 | B121: 0 | C121: 0 | D121: 0 | E121: 0 | F121: الثاني والثلاثون مكرر
A122: 116 | B122: 0 | C122: 0 | D122: 0 | E122: 0 | F122: الثاني والثلاثون مكرر
A123: 117 | B123: 0 | C123: 0 | D123: 0 | E123: 0 | F123: الثاني والثلاثون مكرر
A124: 118 | B124: 0 | C124: 0 | D124: 0 | E124: 0 | F124: الثاني والثلاثون مكرر
A125: 119 | B125: 0 | C125: 0 | D125: 0 | E125: 0 | F125: الثاني والثلاثون مكرر
A126: 120 | B126: 0 | C126: 0 | D126: 0 | E126: 0 | F126: الثاني والثلاثون مكرر
A127: 121 | B127: 0 | C127: 0 | D127: 0 | E127: 0 | F127: الثاني والثلاثون مكرر
A128: 122 | B128: 0 | C128: 0 | D128: 0 | E128: 0 | F128: الثاني والثلاثون مكرر
A129: 123 | B129: 0 | C129: 0 | D129: 0 | E129: 0 | F129: الثاني والثلاثون مكرر
A130: 124 | B130: 0 | C130: 0 | D130: 0 | E130: 0 | F130: الثاني والثلاثون مكرر
A131: 125 | B131: 0 | C131: 0 | D131: 0 | E131: 0 | F131: الثاني والثلاثون مكرر
A132: 126 | B132: 0 | C132: 0 | D132: 0 | E132: 0 | F132: الثاني والثلاثون مكرر
A133: 127 | B133: 0 | C133: 0 | D133: 0 | E133: 0 | F133: الثاني والثلاثون مكرر
A134: 128 | B134: 0 | C134: 0 | D134: 0 | E134: 0 | F134: الثاني والثلاثون مكرر
A135: 129 | B135: =J135 -> 0 | C135: 0 | D135: 0 | E135: 0 | F135: الثاني والثلاثون مكرر
A136: 130 | B136: 0 | C136: 0 | D136: =M136 -> 0 | E136: =L136 -> 0 | F136: =IF(E136=E135,OrdinalNum(RANK(E136,$E$7:$E$153))&" مكرر",OrdinalNum(RANK(E136,$E$7:$E$153))) -> الثاني والثلاثون مكرر
A137: 131 | B137: 0 | C137: 0 | D137: 0 | E137: 0 | F137: الثاني والثلاثون مكرر
A138: 132 | B138: 0 | C138: 0 | D138: 0 | E138: 0 | F138: الثاني والثلاثون مكرر
A139: 133 | B139: 0 | C139: 0 | D139: 0 | E139: 0 | F139: الثاني والثلاثون مكرر
A140: 134 | B140: 0 | C140: 0 | D140: 0 | E140: 0 | F140: الثاني والثلاثون مكرر
A141: 135 | B141: 0 | C141: 0 | D141: 0 | E141: 0 | F141: الثاني والثلاثون مكرر
A142: 136 | B142: 0 | C142: 0 | D142: 0 | E142: 0 | F142: الثاني والثلاثون مكرر
A143: 137 | B143: 0 | C143: 0 | D143: 0 | E143: 0 | F143: الثاني والثلاثون مكرر
A144: 138 | B144: 0 | C144: 0 | D144: 0 | E144: 0 | F144: الثاني والثلاثون مكرر
A145: 139 | B145: 0 | C145: 0 | D145: 0 | E145: 0 | F145: الثاني والثلاثون مكرر
A146: 140 | B146: 0 | C146: 0 | D146: 0 | E146: 0 | F146: الثاني والثلاثون مكرر
A147: 141 | B147: 0 | C147: 0 | D147: 0 | E147: 0 | F147: الثاني والثلاثون مكرر
A148: 142 | B148: 0 | C148: 0 | D148: 0 | E148: 0 | F148: الثاني والثلاثون مكرر
A149: 143 | B149: 0 | C149: 0 | D149: 0 | E149: 0 | F149: الثاني والثلاثون مكرر
A150: 144 | B150: 0 | C150: 0 | D150: 0 | E150: 0 | F150: الثاني والثلاثون مكرر
A151: 145 | B151: 0 | C151: 0 | D151: 0 | E151: 0 | F151: الثاني والثلاثون مكرر
A152: 146 | B152: 0 | C152: 0 | D152: 0 | E152: 0 | F152: الثاني والثلاثون مكرر
A153: 147 | B153: 0 | C153: 0 | D153: 0 | E153: 0 | F153: الثاني والثلاثون مكرر
A154: 148 | B154: 0 | C154: 0 | D154: 0 | E154: 0 | F154: الثاني والثلاثون مكرر
A155: 149 | B155: 0 | C155: 0 | D155: 0 | E155: 0 | F155: الثاني والثلاثون مكرر
A156: 150 | B156: 0 | C156: 0 | D156: 0 | E156: 0 | F156: الثاني والثلاثون مكرر
A157: 151 | B157: 0 | C157: 0 | D157: 0 | E157: 0 | F157: الثاني والثلاثون مكرر
A158: 152 | B158: 0 | C158: 0 | D158: 0 | E158: 0 | F158: الثاني والثلاثون مكرر
A159: 153 | B159: 0 | C159: 0 | D159: 0 | E159: 0 | F159: الثاني والثلاثون مكرر
A160: 154 | B160: 0 | C160: 0 | D160: 0 | E160: 0 | F160: الثاني والثلاثون مكرر
A161: 155 | B161: 0 | C161: 0 | D161: 0 | E161: 0 | F161: الثاني والثلاثون مكرر
A162: 156 | B162: 0 | C162: 0 | D162: 0 | E162: 0 | F162: الثاني والثلاثون مكرر
A163: 157 | B163: 0 | C163: 0 | D163: 0 | E163: 0 | F163: الثاني والثلاثون مكرر
A164: 158 | B164: 0 | C164: 0 | D164: 0 | E164: 0 | F164: الثاني والثلاثون مكرر
A165: 159 | B165: 0 | C165: 0 | D165: 0 | E165: 0 | F165: الثاني والثلاثون مكرر
A166: 160 | B166: 0 | C166: 0 | D166: 0 | E166: 0 | F166: الثاني والثلاثون مكرر
A167: 161 | B167: =J167 -> 0 | C167: 0 | D167: 0 | E167: 0 | F167: الثاني والثلاثون مكرر
A168: 162 | B168: 0 | C168: 0 | D168: 0 | E168: 0 | F168: الثاني والثلاثون مكرر
A169: 163 | B169: 0 | C169: 0 | D169: 0 | E169: 0 | F169: الثاني والثلاثون مكرر
A170: 164 | B170: 0 | C170: 0 | D170: 0 | E170: 0 | F170: الثاني والثلاثون مكرر
A171: 165 | B171: 0 | C171: 0 | D171: 0 | E171: 0 | F171: الثاني والثلاثون مكرر
A172: 166 | B172: 0 | C172: 0 | D172: 0 | E172: 0 | F172: الثاني والثلاثون مكرر
A173: 167 | B173: 0 | C173: 0 | D173: 0 | E173: 0 | F173: الثاني والثلاثون مكرر
A174: 168 | B174: 0 | C174: 0 | D174: 0 | E174: 0 | F174: الثاني والثلاثون مكرر
A175: 169 | B175: 0 | C175: 0 | D175: 0 | E175: 0 | F175: الثاني والثلاثون مكرر
A176: 170 | B176: 0 | C176: 0 | D176: 0 | E176: 0 | F176: الثاني والثلاثون مكرر
A177: 171 | B177: 0 | C177: 0 | D177: 0 | E177: 0 | F177: الثاني والثلاثون مكرر
A178: 172 | B178: 0 | C178: 0 | D178: 0 | E178: 0 | F178: الثاني والثلاثون مكرر
A179: 173 | B179: 0 | C179: 0 | D179: 0 | E179: 0 | F179: الثاني والثلاثون مكرر

Sheet sh_akher
AB1: =IF($R$15="خارج الترتيب للـ 3 الاوائل",""," مبروك انت من أوائل القسم") ->  | AF1: =LOOKUP($AC$11,ntiga!$A$8:$A$400,ntiga!$C$8:$C$400) -> مستجد
AB2: =IF($R$32="خارج الترتيب للـ 3 الاوائل",""," مبروك انت من أوائل القسم") ->  | AF2: =LOOKUP($AC$11+1,ntiga!$A$8:$A$400,ntiga!$C$8:$C$400) -> مستجد
AB3: =IF($R$49="خارج الترتيب للـ 3 الاوائل",""," مبروك انت من أوائل القسم") ->  | AF3: =LOOKUP($AC$11+2,ntiga!$A$8:$A$400,ntiga!$C$8:$C$400) -> مستجد
F4: v | G4: v | H4: v | I4: كنترول الصف الأول _ جدارات _ عام | R4: v | S4: v | T4: v | AI4: اختر العام الدراسي
C5: محافظة الاسكندرية (ادارة وسط التعليمية) | I5: بيان الدرجات والتقييم لنهاية العام | O5: 2025 / 2026 | R5: رقم الجلوس | U5: =LOOKUP($AC$11,ntiga!$A$8:$A$400,ntiga!$D$8:$D$400) -> 442 | AI5: 2021 / 2022
C6: مدرسة اسكندرية الفنية المتقدمة (محرم بك) | I6: =CONCATENATE("الصف الاول : ","",ntiga!$AA$2) -> الصف الاول : فني _ تكنولوجيا حاسبات | AI6: 2022 / 2023
C7: نظام الجدارات ثلاث سنوات | J7: =LOOKUP($AC$11,ntiga!$A$8:$A$400,ntiga!$B$8:$B$400) -> ابو _ حبيبه 242 | P7: =IF($AF$1="مستجد","",IF($AF$1="باق","",IF($AF$1="محول","",LOOKUP($AC$11,ntiga!$A$8:$A$400,ntiga!$C$8:$C$400)))) ->  | R7: الفصل | U7: =LOOKUP($AC$11,ntiga!$A$8:$A$400,ntiga!$E$8:$E$400) -> 9/1 | AI7: 2023 / 2024
AI8: 2024 / 2025
C9: المادة | E9: المواد الثقافية العامة | L9: مجموع المواد | M9: مواد خارج المجموع | P9: التقييم النهائي للوحدات _ نظام الجدارات | AI9: 2025 / 2026
E10: اللغة العربية | F10: اللغة الانجليزية | G10: رياضيات | H10: فيزياء | I10: كيمياء | J10: الدراسات الاجتماعية | K10: الحاسب الالي | M10: تربية وطنية | N10: تربيـة دينيـة | O10: تربيـة عسكرية | P10: =ntiga!$R$7 -> السلامة والصحة المهنية | Q10: =ntiga!$S$7 -> اساسيات الحاسب | R10: =ntiga!$T$7 -> جدارات بيئية 1 | S10: =ntiga!$U$7 -> الدوائر الرقمية والمنطقية | T10: =ntiga!$V$7 -> تجميع أجهزة الحاسب الالي | U10: =ntiga!$W$7 -> الرسم الفني | V10: =ntiga!$X$7 -> جدارات بيئية 2 | W10: =IF(OR(ntiga!$AA$2=gdarat!$B$6,ntiga!$AA$2=gdarat!$B$7,ntiga!$AA$2=gdarat!$B$8,ntiga!$AA$2=gdarat!$B$9,ntiga!$AA$2=gdarat!$B$10),ntiga!$Y$7,"") ->  | X10: =IF(OR(ntiga!$AA$2=gdarat!$B$9,ntiga!$AA$2=gdarat!$B$10),ntiga!$Z$7,"") ->  | Y10: =ntiga!$AA$7 -> 0 | AI10: 2026 / 2027
AC11: 9 | AI11: 2027 / 2028
C12: النهاية العظمى | E12: =E13*2 -> 50 | F12: =F13*2 -> 40 | G12: 30 | H12: 20 | I12: 20 | J12: 20 | K12: 20 | L12: =SUM(E12:K12) -> 200 | M12: =M13*2 -> 20 | N12: =N13*2 -> 20 | O12: 50 | AC12: =ntiga!$AC$3 -> 31 | AE12: طباعة صفحات محددة | AI12: 2028 / 2029 | AX12: 14
C13: النهاية الصغرى | E13: 25 | F13: 20 | G13: 15 | H13: 10 | I13: 10 | J13: 10 | K13: 10 | L13: =SUM(E13:K13) -> 100 | M13: 10 | N13: 10 | O13: 30 | AE13: من | AF13: اكتب | AG13: الى | AI13: 2029 / 2030
C14: درجة الطالب | E14: =LOOKUP($AC$11,ntiga!$A$8:$A$400,ntiga!$G$8:$G$400) -> 20 | F14: =LOOKUP($AC$11,ntiga!$A$8:$A$400,ntiga!$H$8:$H$400) -> 18 | G14: =LOOKUP($AC$11,ntiga!$A$8:$A$400,ntiga!$I$8:$I$400) -> 13 | H14: =LOOKUP($AC$11,ntiga!$A$8:$A$400,ntiga!$J$8:$J$400) -> 9 | I14: =LOOKUP($AC$11,ntiga!$A$8:$A$400,ntiga!$K$8:$K$400) -> 9 | J14: =LOOKUP($AC$11,ntiga!$A$8:$A$400,ntiga!$L$8:$L$400) -> 9 | K14: =LOOKUP($AC$11,ntiga!$A$8:$A$400,ntiga!$M$8:$M$400) -> 9 | L14: =SUM(E14:K14) -> 87 | M14: =LOOKUP($AC$11,ntiga!$A$8:$A$400,ntiga!$O$8:$O$400) -> 7 | N14: =LOOKUP($AC$11,ntiga!$A$8:$A$400,ntiga!$P$8:$P$400) -> 9 | O14: =LOOKUP($AC$11,ntiga!$A$8:$A$400,ntiga!$Q$8:$Q$400) -> 13 | P14: =LOOKUP($AC$11,ntiga!$A$8:$A$400,ntiga!$R$8:$R$400) -> اجتاز | Q14: =LOOKUP($AC$11,ntiga!$A$8:$A$400,ntiga!$S$8:$S$400) -> اجتاز | R14: =LOOKUP($AC$11,ntiga!$A$8:$A$400,ntiga!$T$8:$T$400) -> اجتاز | S14: =IF(S10="","",LOOKUP($AC$11,ntiga!$A$8:$A$400,ntiga!$U$8:$U$400)) -> اجتاز | T14: =IF(T10="","",LOOKUP($AC$11,ntiga!$A$8:$A$400,ntiga!$V$8:$V$400)) -> اجتاز | U14: =IF($U$10="","",LOOKUP($AC$11,ntiga!$A$8:$A$400,ntiga!$W$8:$W$400)) -> اجتاز | V14: =IF($V$10="","",LOOKUP($AC$11,ntiga!$A$8:$A$400,ntiga!$X$8:$X$400)) -> اجتاز | W14: =IF($W$10="","",LOOKUP($AC$11,ntiga!$A$8:$A$400,ntiga!$Y$8:$Y$400)) ->  | X14: =IF($X$10="","",LOOKUP($AC$11,ntiga!$A$8:$A$400,ntiga!$Z$8:$Z$400)) ->  | Y14: =IF($Y$10=0,"",LOOKUP($AC$11,ntiga!$A$8:$A$400,ntiga!$AA$8:$AA$400)) ->  | AA14: =LOOKUP($AB$16,ntiga!$D$8:$D$400,ntiga!$B$8:$B$400) -> ابو _ حبيبه 264 | AE14: 1 | AG14: 3 | AI14: 2030 / 2031
C15: النتيجة | E15: =LOOKUP($AC$11,ntiga!$A$8:$A$400,ntiga!$AB$8:$AB$400) -> راسب وله حق الإعادة | I15: =LOOKUP($AC$11,ntiga!$A$8:$A$400,ntiga!$AC$8:$AC$400) ->  | P15: الترتيب | R15: =IF(L14<$AB$20,"خارج الترتيب للـ 3 الاوائل",CONCATENATE(LOOKUP($AC$11,Awael!$A$7:$A$100,Awael!$F$7:$F$100)," ","/"," ",$AC$12,"_"," ","طالب")) -> خارج الترتيب للـ 3 الاوائل | AE15: عدد الصفحات الحالية | AI15: 2031 / 2032
C16: =IF(E15="ناجح ومنقول للصف الثاني","",IF(E15="راسب وله حق الاعادة","",IF(I16="","","مواد الرسوب لعدم حصولك على ربع الدرجة :"))) ->  | I16: =IF(E15="راسب وله حق الاعادة","",LOOKUP($AC$11,ntiga!$A$8:$A$400,ntiga!$AE$8:$AE$400)) ->  | P16: النسبة | R16: =L14/L12 -> 0.435 | AB16: 1268 | AC16: صفحة الطباعة | AI16: 2032 / 2033
C17: كنترول الجدارات | H17: كنترول المواد الثقافية | N17: رئيس غرفة التقييم والتحقق | U17: مدير المدرسة | AF17: =ROUNDUP($AC$12/3,0) -> 11
C18: =num!$F$1 -> ا / ………… | H18: =num!$F$2 -> ا / …………… | N18: =num!$F$3 -> ا / …………… | U18: =num!$F$4 -> ا / …………… | AB18: =LOOKUP($AB$16,ntiga!$D$8:$D$400,ntiga!$A$8:$A$400) -> 31 | AC18: =ROUNDUP(AB18/3,0) -> 11
H19: =CONCATENATE(" درجة الطالب "," ",L14," : ",LOOKUP($AC$11,ntiga!$A$8:$A$400,ntiga!$AD$8:$AD$400)) -> درجة الطالب 87 : فقط سبعة وثمانون درجة لاغير
AB20: =Awael!$H$18 -> 165 | AC20: 3
F21: v | G21: v | H21: v | I21: كنترول الصف الأول _ جدارات _ عام | R21: v | S21: v | T21: v | AB21: درجة ثالث الأوائل
C22: محافظة الاسكندرية (ادارة وسط التعليمية) | I22: بيان الدرجات والتقييم لنهاية العام | O22: =$O$5 -> 2025 / 2026 | R22: رقم الجلوس | U22: =LOOKUP($AC$11+1,ntiga!$A$8:$A$400,ntiga!$D$8:$D$400) -> 443
C23: مدرسة اسكندرية الفنية المتقدمة (محرم بك) | I23: =CONCATENATE("الصف الاول : ","",ntiga!$AA$2) -> الصف الاول : فني _ تكنولوجيا حاسبات
C24: نظام الجدارات ثلاث سنوات | J24: =LOOKUP($AC$11+1,ntiga!$A$8:$A$400,ntiga!$B$8:$B$400) -> ابو _ حبيبه 243 | P24: =IF($AF$2="مستجد","",IF($AF$2="باق","",IF($AF$2="محول","",LOOKUP($AC$11+1,ntiga!$A$8:$A$400,ntiga!$C$8:$C$400)))) ->  | R24: الفصل | U24: =LOOKUP($AC$11+1,ntiga!$A$8:$A$400,ntiga!$E$8:$E$400) -> 9/1
C26: المادة | E26: المواد الثقافية العامة | L26: مجموع المواد | M26: مواد خارج المجموع | P26: التقييم النهائي للوحدات _ نظام الجدارات
E27: اللغة العربية | F27: اللغة الانجليزية | G27: رياضيات | H27: فيزياء | I27: كيمياء | J27: الدراسات الاجتماعية | K27: الحاسب الالي | M27: تربية وطنية | N27: تربيـة دينيـة | O27: تربيـة عسكرية | P27: =ntiga!$R$7 -> السلامة والصحة المهنية | Q27: =ntiga!$S$7 -> اساسيات الحاسب | R27: =ntiga!$T$7 -> جدارات بيئية 1 | S27: =ntiga!$U$7 -> الدوائر الرقمية والمنطقية | T27: =ntiga!$V$7 -> تجميع أجهزة الحاسب الالي | U27: =ntiga!$W$7 -> الرسم الفني | V27: =ntiga!$X$7 -> جدارات بيئية 2 | W27: =IF(OR(ntiga!$AA$2=gdarat!$B$6,ntiga!$AA$2=gdarat!$B$7,ntiga!$AA$2=gdarat!$B$8,ntiga!$AA$2=gdarat!$B$9,ntiga!$AA$2=gdarat!$B$10),ntiga!$Y$7,"") ->  | X27: =IF(OR(ntiga!$AA$2=gdarat!$B$9,ntiga!$AA$2=gdarat!$B$10),ntiga!$Z$7,"") ->  | Y27: =ntiga!$AA$7 -> 0
C29: النهاية العظمى | E29: =E30*2 -> 50 | F29: =F30*2 -> 40 | G29: 30 | H29: 20 | I29: 20 | J29: 20 | K29: 20 | L29: =SUM(E29:K29) -> 200 | M29: =M30*2 -> 20 | N29: =N30*2 -> 20 | O29: 50 | AX29: 14
C30: النهاية الصغرى | E30: 25 | F30: 20 | G30: 15 | H30: 10 | I30: 10 | J30: 10 | K30: 10 | L30: =SUM(E30:K30) -> 100 | M30: 10 | N30: 10 | O30: 30
C31: درجة الطالب | E31: =LOOKUP($AC$11+1,ntiga!$A$8:$A$400,ntiga!$G$8:$G$400) -> 30 | F31: =LOOKUP($AC$11+1,ntiga!$A$8:$A$400,ntiga!$H$8:$H$400) -> 26 | G31: =LOOKUP($AC$11+1,ntiga!$A$8:$A$400,ntiga!$I$8:$I$400) -> 24 | H31: =LOOKUP($AC$11+1,ntiga!$A$8:$A$400,ntiga!$J$8:$J$400) -> 9 | I31: =LOOKUP($AC$11+1,ntiga!$A$8:$A$400,ntiga!$K$8:$K$400) -> 10 | J31: =LOOKUP($AC$11+1,ntiga!$A$8:$A$400,ntiga!$L$8:$L$400) -> 10 | K31: =LOOKUP($AC$11+1,ntiga!$A$8:$A$400,ntiga!$M$8:$M$400) -> 9 | L31: =SUM(E31:K31) -> 118 | M31: =LOOKUP($AC$11+1,ntiga!$A$8:$A$400,ntiga!$O$8:$O$400) -> 7 | N31: =LOOKUP($AC$11+1,ntiga!$A$8:$A$400,ntiga!$P$8:$P$400) -> 9 | O31: =LOOKUP($AC$11+1,ntiga!$A$8:$A$400,ntiga!$Q$8:$Q$400) -> 14 | P31: =LOOKUP($AC$11+1,ntiga!$A$8:$A$400,ntiga!$R$8:$R$400) -> اجتاز | Q31: =LOOKUP($AC$11+1,ntiga!$A$8:$A$400,ntiga!$S$8:$S$400) -> اجتاز | R31: =LOOKUP($AC$11+1,ntiga!$A$8:$A$400,ntiga!$T$8:$T$400) -> اجتاز | S31: =IF(S27="","",LOOKUP($AC$11+1,ntiga!$A$8:$A$400,ntiga!$U$8:$U$400)) -> اجتاز | T31: =IF(T27="","",LOOKUP($AC$11+1,ntiga!$A$8:$A$400,ntiga!$V$8:$V$400)) -> اجتاز | U31: =IF($U$27="","",LOOKUP($AC$11+1,ntiga!$A$8:$A$400,ntiga!$W$8:$W$400)) -> اجتاز | V31: =IF($V$27="","",LOOKUP($AC$11+1,ntiga!$A$8:$A$400,ntiga!$X$8:$X$400)) -> اجتاز | W31: =IF($W$27="","",LOOKUP($AC$11+1,ntiga!$A$8:$A$400,ntiga!$Y$8:$Y$400)) ->  | X31: =IF($X$27="","",LOOKUP($AC$11+1,ntiga!$A$8:$A$400,ntiga!$Z$8:$Z$400)) ->  | Y31: =IF($Y$27=0,"",LOOKUP($AC$11+1,ntiga!$A$8:$A$400,ntiga!$AA$8:$AA$400)) -> 
C32: النتيجة | E32: =LOOKUP($AC$11+1,ntiga!$A$8:$A$400,ntiga!$AB$8:$AB$400) -> راسب وله حق الإعادة | I32: =LOOKUP($AC$11+1,ntiga!$A$8:$A$400,ntiga!$AC$8:$AC$400) ->  | P32: الترتيب | R32: =IF(L31<$AB$20,"خارج الترتيب للـ 3 الاوائل",CONCATENATE(LOOKUP($AC$11+1,Awael!$A$7:$A$100,Awael!$F$7:$F$100)," ","/"," ",$AC$12,"_"," ","طالب")) -> خارج الترتيب للـ 3 الاوائل
C33: =IF(E32="ناجح ومنقول للصف الثاني","",IF(E32="راسب وله حق الاعادة","",IF(I33="","","مواد الرسوب لعدم حصولك على ربع الدرجة :"))) ->  | I33: =IF(E32="راسب وله حق الاعادة","",LOOKUP($AC$11+1,ntiga!$A$8:$A$400,ntiga!$AE$8:$AE$400)) ->  | P33: النسبة | R33: =L31/L29 -> 0.59
C34: كنترول الجدارات | H34: كنترول المواد الثقافية | N34: رئيس غرفة التقييم والتحقق | U34: مدير المدرسة
C35: =num!$F$1 -> ا / ………… | H35: =num!$F$2 -> ا / …………… | N35: =num!$F$3 -> ا / …………… | U35: =num!$F$4 -> ا / ……………
H36: =CONCATENATE(" درجة الطالب "," ",L31," : ",LOOKUP($AC$11+1,ntiga!$A$8:$A$400,ntiga!$AD$8:$AD$400)) -> درجة الطالب 118 : فقط خمسة وثمانون درجة لاغير
F38: v | G38: v | H38: v | I38: كنترول الصف الأول _ جدارات _ عام | R38: v | S38: v | T38: v
C39: محافظة الاسكندرية (ادارة وسط التعليمية) | I39: بيان الدرجات والتقييم لنهاية العام | O39: =$O$5 -> 2025 / 2026 | R39: رقم الجلوس | U39: =LOOKUP($AC$11+2,ntiga!$A$8:$A$400,ntiga!$D$8:$D$400) -> 444
C40: مدرسة اسكندرية الفنية المتقدمة (محرم بك) | I40: =CONCATENATE("الصف الاول : ","",ntiga!$AA$2) -> الصف الاول : فني _ تكنولوجيا حاسبات
C41: نظام الجدارات ثلاث سنوات | J41: =LOOKUP($AC$11+2,ntiga!$A$8:$A$400,ntiga!$B$8:$B$400) -> ابو _ حبيبه 244 | P41: =IF($AF$3="مستجد","",IF($AF$3="باق","",IF($AF$3="محول","",LOOKUP($AC$11+2,ntiga!$A$8:$A$400,ntiga!$C$8:$C$400)))) ->  | R41: الفصل | U41: =LOOKUP($AC$11+2,ntiga!$A$8:$A$400,ntiga!$E$8:$E$400) -> 9/1
C43: المادة | E43: المواد الثقافية العامة | L43: مجموع المواد | M43: مواد خارج المجموع | P43: التقييم النهائي للوحدات _ نظام الجدارات
E44: اللغة العربية | F44: اللغة الانجليزية | G44: رياضيات | H44: فيزياء | I44: كيمياء | J44: الدراسات الاجتماعية | K44: الحاسب الالي | M44: تربية وطنية | N44: تربيـة دينيـة | O44: تربيـة عسكرية | P44: =ntiga!$R$7 -> السلامة والصحة المهنية | Q44: =ntiga!$S$7 -> اساسيات الحاسب | R44: =ntiga!$T$7 -> جدارات بيئية 1 | S44: =ntiga!$U$7 -> الدوائر الرقمية والمنطقية | T44: =ntiga!$V$7 -> تجميع أجهزة الحاسب الالي | U44: =ntiga!$W$7 -> الرسم الفني | V44: =ntiga!$X$7 -> جدارات بيئية 2 | W44: =IF(OR(ntiga!$AA$2=gdarat!$B$6,ntiga!$AA$2=gdarat!$B$7,ntiga!$AA$2=gdarat!$B$8,ntiga!$AA$2=gdarat!$B$9,ntiga!$AA$2=gdarat!$B$10),ntiga!$Y$7,"") ->  | X44: =IF(OR(ntiga!$AA$2=gdarat!$B$9,ntiga!$AA$2=gdarat!$B$10),ntiga!$Z$7,"") ->  | Y44: =ntiga!$AA$7 -> 0
C46: النهاية العظمى | E46: =E47*2 -> 50 | F46: =F47*2 -> 40 | G46: 30 | H46: 20 | I46: 20 | J46: 20 | K46: 20 | L46: =SUM(E46:K46) -> 200 | M46: =M47*2 -> 20 | N46: =N47*2 -> 20 | O46: 50 | AX46: 14
C47: النهاية الصغرى | E47: 25 | F47: 20 | G47: 15 | H47: 10 | I47: 10 | J47: 10 | K47: 10 | L47: =SUM(E47:K47) -> 100 | M47: 10 | N47: 10 | O47: 30
C48: درجة الطالب | E48: =LOOKUP($AC$11+2,ntiga!$A$8:$A$400,ntiga!$G$8:$G$400) -> 28 | F48: =LOOKUP($AC$11+2,ntiga!$A$8:$A$400,ntiga!$H$8:$H$400) -> 24 | G48: =LOOKUP($AC$11+2,ntiga!$A$8:$A$400,ntiga!$I$8:$I$400) -> 20 | H48: =LOOKUP($AC$11+2,ntiga!$A$8:$A$400,ntiga!$J$8:$J$400) -> 10 | I48: =LOOKUP($AC$11+2,ntiga!$A$8:$A$400,ntiga!$K$8:$K$400) -> 10 | J48: =LOOKUP($AC$11+2,ntiga!$A$8:$A$400,ntiga!$L$8:$L$400) -> 10 | K48: =LOOKUP($AC$11+2,ntiga!$A$8:$A$400,ntiga!$M$8:$M$400) -> 9 | L48: =SUM(E48:K48) -> 111 | M48: =LOOKUP($AC$11+2,ntiga!$A$8:$A$400,ntiga!$O$8:$O$400) -> 7 | N48: =LOOKUP($AC$11+2,ntiga!$A$8:$A$400,ntiga!$P$8:$P$400) -> 10 | O48: =LOOKUP($AC$11+2,ntiga!$A$8:$A$400,ntiga!$Q$8:$Q$400) -> 23 | P48: =LOOKUP($AC$11+2,ntiga!$A$8:$A$400,ntiga!$R$8:$R$400) -> اجتاز | Q48: =LOOKUP($AC$11+2,ntiga!$A$8:$A$400,ntiga!$S$8:$S$400) -> اجتاز | R48: =LOOKUP($AC$11+2,ntiga!$A$8:$A$400,ntiga!$T$8:$T$400) -> اجتاز | S48: =IF(S44="","",LOOKUP($AC$11+2,ntiga!$A$8:$A$400,ntiga!$U$8:$U$400)) -> اجتاز | T48: =IF(T44="","",LOOKUP($AC$11+2,ntiga!$A$8:$A$400,ntiga!$V$8:$V$400)) -> اجتاز | U48: =IF($U$44="","",LOOKUP($AC$11+2,ntiga!$A$8:$A$400,ntiga!$W$8:$W$400)) -> اجتاز | V48: =IF($V$44="","",LOOKUP($AC$11+2,ntiga!$A$8:$A$400,ntiga!$X$8:$X$400)) -> اجتاز | W48: =IF($W$44="","",LOOKUP($AC$11+2,ntiga!$A$8:$A$400,ntiga!$Y$8:$Y$400)) ->  | X48: =IF($X$44="","",LOOKUP($AC$11+2,ntiga!$A$8:$A$400,ntiga!$Z$8:$Z$400)) ->  | Y48: =IF($Y$44=0,"",LOOKUP($AC$11+2,ntiga!$A$8:$A$400,ntiga!$AA$8:$AA$400)) -> 
C49: النتيجة | E49: =LOOKUP($AC$11+2,ntiga!$A$8:$A$400,ntiga!$AB$8:$AB$400) -> راسب وله حق الإعادة | I49: =LOOKUP($AC$11+2,ntiga!$A$8:$A$400,ntiga!$AC$8:$AC$400) ->  | P49: الترتيب | R49: =IF(L48<$AB$20,"خارج الترتيب للـ 3 الاوائل",CONCATENATE(LOOKUP($AC$11+2,Awael!$A$7:$A$100,Awael!$F$7:$F$100)," ","/"," ",$AC$12,"_"," ","طالب")) -> خارج الترتيب للـ 3 الاوائل
C50: =IF(E49="ناجح ومنقول للصف الثاني","",IF(E49="راسب وله حق الاعادة","",IF(I50="","","مواد الرسوب لعدم حصولك على ربع الدرجة :"))) ->  | I50: =IF(E49="راسب وله حق الاعادة","",LOOKUP($AC$11+2,ntiga!$A$8:$A$400,ntiga!$AE$8:$AE$400)) ->  | P50: النسبة | R50: =L48/L46 -> 0.555
C51: كنترول الجدارات | H51: كنترول المواد الثقافية | N51: رئيس غرفة التقييم والتحقق | U51: مدير المدرسة
C52: =num!$F$1 -> ا / ………… | H52: =num!$F$2 -> ا / …………… | N52: =num!$F$3 -> ا / …………… | U52: =num!$F$4 -> ا / ……………
H53: =CONCATENATE(" درجة الطالب "," ",L48," : ",LOOKUP($AC$11+2,ntiga!$A$8:$A$400,ntiga!$AD$8:$AD$400)) -> درجة الطالب 111 : فقط تسعون درجة لاغير

Sheet gholaf
C2: =num!$G$1 -> محافظة : ....................
C3: =num!$G$2 -> إدارة : ........................ | F3: كنترول الصف _ الأول
C4: =num!$G$3 -> مدرسة : ......................
C5: نظام الثلاث سنوات جدارات | G5: جدارات
E7: نتيجة امتحان الدور الاول : | H7: =ntiga!AA2 -> فني _ تكنولوجيا حاسبات
E8: للعام الدراسي 2025 / 2026
C10: بيان القسم
C12: التخصص | D12: اجمالي القسم | E12: مستجد | F12: باق للاعادة | G12: مفصول ( له حق الإعادة ) | H12: سحب ملف | I12: محروم بقرار | J12: مفصول ( ليس له حق الإعادة )
C13: =$H$7 -> فني _ تكنولوجيا حاسبات | D13: =ntiga!$AC$3 -> 31 | E13: =COUNTIF(ntiga!$C$8:$C$82,gholaf!$E$12) -> 29 | F13: =COUNTIF(ntiga!$C$8:$C$82,"باق") -> 1 | G13: =COUNTIF(ntiga!$C$8:$C$82,"مفصول") -> 1 | H13: =COUNTIF(ntiga!$C$8:$C$82,gholaf!$H$12) -> 0 | I13: =COUNTIF(ntiga!$C$8:$C$82,gholaf!$I$12) -> 0 | J13: =COUNTIF(ntiga!$C$8:$C$82,مفصول ويفصل) -> 0
C15: بيان النتيجة
C17: متقدمــــون | E17: ناجحون | F17: دور ثان | H17: راسب | J17: النسبة المئوية للنجاح
C18: رسمي | D18: غير ذلك | F18: مادة | G18: مادتين | H18: ويبقى | I18: ويفصل
C19: =$E$13+$F$13 -> 30 | D19: =SUM($G$13:$J$13) -> 1 | E19: =COUNTIF(ntiga!$AB$8:$AB$82,"ناجح ومنقول للصف الثاني") -> 9 | F19: =COUNTIF(ntiga!$AB$8:$AB$82,"دور ثان مادة") -> 5 | G19: =COUNTIF(ntiga!$AB$8:$AB$82,"دور ثان مادتين") -> 1 | H19: =COUNTIF(ntiga!$AB$8:$AB$82,"راسب وله حق الاعادة") -> 16 | I19: =COUNTIF(ntiga!$AB$8:$AB$82,"راسب وليس له حق الاعادة") -> 0 | J19: =$E$19/$C$19 -> 0.3
C21: كنترول اولى: | F21: رئيس غرفة التقييم والتحقق : | I21: مدير المدرسة :
C22: =num!$F$2 -> ا / …………… | F22: =num!$F$3 -> ا / …………… | I22: =num!$F$4 -> ا / ……………

Sheet sheoon
B1: =num!$G$1 -> محافظة : ....................
B2: =num!$G$2 -> إدارة : ........................ | D2: بيان نتيجة
B3: =num!$G$3 -> مدرسة : ...................... | D3: العام الدراسيي 2025 / 2026
B4: نظام الجدارات ثلاث سنوات | D4: =CONCATENATE("الصف الأول _ جدارات خدمات","_"," ",$K$8) -> الصف الأول _ جدارات خدمات_ دور ثان مادتين
C5: 2 | D5: 3 | E5: 4 | F5: 5 | G5: 27 | H5: 28
B6: م | C6: اسم الطالب | D6: بيان الطالب | E6: رقم الجلوس | F6: الفصل | G6: بيان الطالب | H6: مواد الرسوب | I6: التخصص | J6: توقيع الطالب
B8: =IF(C8="","",1) -> 1 | C8: =IFERROR(LOOKUP(N8,data!$A4:$A1000,data!B4:B1000),"") -> ابو _ حبيبه 1 | D8: =IFERROR(LOOKUP(N8,data!$A4:$A1000,data!C4:C1000),"") -> باق | E8: =IFERROR(LOOKUP(N8,data!$A4:$A1000,data!D4:D1000),"") -> 201 | F8: =IFERROR(LOOKUP(N8,data!$A4:$A1000,data!E4:E1000),"") -> 1/1 | G8: =IFERROR(IF(C8=0,kkk,(LOOKUP(N8,data!$A4:$A1000,data!AB4:AB1000))),"") -> دور ثان مادتين | H8: =IFERROR(LOOKUP(N8,data!$A4:$A1000,data!AC4:AC1000),"") -> لغة عربية رياضيات تربية عسكرية | I8: =IFERROR(LOOKUP(N8,data!$A4:$A1000,data!AI4:AI1000),"") -> فني _ نماذج وسباكة معادن | K8: دور ثان مادتين | M8: =IF($K$8=data!AB4,ROW(data!4:4)-3,"kkk") -> 1 | N8: =_xlfn.AGGREGATE(15,6,M:M,ROW(M1)) -> 1
B9: =IF(C9="","",B8+1) -> 2 | C9: =IFERROR(LOOKUP(N9,data!$A5:$A1001,data!B5:B1001),"") -> ابو _ حبيبه 3 | D9: =IFERROR(LOOKUP(N9,data!$A5:$A1001,data!C5:C1001),"") -> مستجد | E9: =IFERROR(LOOKUP(N9,data!$A5:$A1001,data!D5:D1001),"") -> 203 | F9: =IFERROR(LOOKUP(N9,data!$A5:$A1001,data!E5:E1001),"") -> 1/1 | G9: =IFERROR(IF(C9=0,kkk,(LOOKUP(N9,data!$A5:$A1001,data!AB5:AB1001))),"") -> دور ثان مادتين | H9: =IFERROR(LOOKUP(N9,data!$A5:$A1001,data!AC5:AC1001),"") -> لغة عربية رياضيات تربية عسكرية | I9: =IFERROR(LOOKUP(N9,data!$A5:$A1001,data!AI5:AI1001),"") -> فني _ نماذج وسباكة معادن | M9: =IF($K$8=data!AB5,ROW(data!5:5)-3,"kkk") -> kkk | N9: 3 | Q9: ناجح ومنقول للصف الثاني
B10: =IF(C10="","",B9+1) -> 3 | C10: =IFERROR(LOOKUP(N10,data!$A6:$A1002,data!B6:B1002),"") -> ابو _ حبيبه 5 | D10: =IFERROR(LOOKUP(N10,data!$A6:$A1002,data!C6:C1002),"") -> مستجد | E10: =IFERROR(LOOKUP(N10,data!$A6:$A1002,data!D6:D1002),"") -> 205 | F10: =IFERROR(LOOKUP(N10,data!$A6:$A1002,data!E6:E1002),"") -> 1/1 | G10: =IFERROR(IF(C10=0,kkk,(LOOKUP(N10,data!$A6:$A1002,data!AB6:AB1002))),"") -> دور ثان مادتين | H10: =IFERROR(LOOKUP(N10,data!$A6:$A1002,data!AC6:AC1002),"") -> لغة عربية رياضيات تربية عسكرية | I10: =IFERROR(LOOKUP(N10,data!$A6:$A1002,data!AI6:AI1002),"") -> فني _ نماذج وسباكة معادن | M10: =IF($K$8=data!AB6,ROW(data!6:6)-3,"kkk") -> 3 | N10: 5 | Q10: دور ثان مادة
B11: 4 | C11: =IFERROR(LOOKUP(N11,data!$A7:$A1003,data!B7:B1003),"") -> ابو _ حبيبه 6 | D11: =IFERROR(LOOKUP(N11,data!$A7:$A1003,data!C7:C1003),"") -> مستجد | E11: =IFERROR(LOOKUP(N11,data!$A7:$A1003,data!D7:D1003),"") -> 206 | F11: =IFERROR(LOOKUP(N11,data!$A7:$A1003,data!E7:E1003),"") -> 1/1 | G11: =IFERROR(IF(C11=0,kkk,(LOOKUP(N11,data!$A7:$A1003,data!AB7:AB1003))),"") -> دور ثان مادتين | H11: =IFERROR(LOOKUP(N11,data!$A7:$A1003,data!AC7:AC1003),"") -> لغة عربية رياضيات تربية عسكرية | I11: =IFERROR(LOOKUP(N11,data!$A7:$A1003,data!AI7:AI1003),"") -> فني _ نماذج وسباكة معادن | M11: =IF($K$8=data!AB7,ROW(data!7:7)-3,"kkk") -> kkk | N11: 6 | Q11: دور ثان مادتين
B12: 5 | C12: =IFERROR(LOOKUP(N12,data!$A8:$A1004,data!B8:B1004),"") -> ابو _ حبيبه 10 | D12: =IFERROR(LOOKUP(N12,data!$A8:$A1004,data!C8:C1004),"") -> مستجد | E12: =IFERROR(LOOKUP(N12,data!$A8:$A1004,data!D8:D1004),"") -> 210 | F12: =IFERROR(LOOKUP(N12,data!$A8:$A1004,data!E8:E1004),"") -> 1/1 | G12: =IFERROR(IF(C12=0,kkk,(LOOKUP(N12,data!$A8:$A1004,data!AB8:AB1004))),"") -> دور ثان مادتين | H12: =IFERROR(LOOKUP(N12,data!$A8:$A1004,data!AC8:AC1004),"") -> لغة عربية الدراسات الاجتماعية تربية عسكرية | I12: =IFERROR(LOOKUP(N12,data!$A8:$A1004,data!AI8:AI1004),"") -> فني _ نماذج وسباكة معادن | M12: =IF($K$8=data!AB8,ROW(data!8:8)-3,"kkk") -> 5 | N12: 10 | Q12: راسب وله حق الإعادة
B13: 6 | C13: =IFERROR(LOOKUP(N13,data!$A9:$A1005,data!B9:B1005),"") -> ابو _ حبيبه 11 | D13: =IFERROR(LOOKUP(N13,data!$A9:$A1005,data!C9:C1005),"") -> مستجد | E13: =IFERROR(LOOKUP(N13,data!$A9:$A1005,data!D9:D1005),"") -> 211 | F13: =IFERROR(LOOKUP(N13,data!$A9:$A1005,data!E9:E1005),"") -> 1/1 | G13: =IFERROR(IF(C13=0,kkk,(LOOKUP(N13,data!$A9:$A1005,data!AB9:AB1005))),"") -> دور ثان مادتين | H13: =IFERROR(LOOKUP(N13,data!$A9:$A1005,data!AC9:AC1005),"") -> لغة عربية رياضيات تربية عسكرية | I13: =IFERROR(LOOKUP(N13,data!$A9:$A1005,data!AI9:AI1005),"") -> فني _ نماذج وسباكة معادن | M13: =IF($K$8=data!AB9,ROW(data!9:9)-3,"kkk") -> 6 | N13: 11 | Q13: راسب وليس له حق الإعادة
B14: 7 | C14: =IFERROR(LOOKUP(N14,data!$A10:$A1006,data!B10:B1006),"") -> ابو _ حبيبه 12 | D14: =IFERROR(LOOKUP(N14,data!$A10:$A1006,data!C10:C1006),"") -> مستجد | E14: =IFERROR(LOOKUP(N14,data!$A10:$A1006,data!D10:D1006),"") -> 212 | F14: =IFERROR(LOOKUP(N14,data!$A10:$A1006,data!E10:E1006),"") -> 1/1 | G14: =IFERROR(IF(C14=0,kkk,(LOOKUP(N14,data!$A10:$A1006,data!AB10:AB1006))),"") -> دور ثان مادتين | H14: =IFERROR(LOOKUP(N14,data!$A10:$A1006,data!AC10:AC1006),"") -> لغة عربية رياضيات تربية عسكرية | I14: =IFERROR(LOOKUP(N14,data!$A10:$A1006,data!AI10:AI1006),"") -> فني _ نماذج وسباكة معادن | M14: =IF($K$8=data!AB10,ROW(data!10:10)-3,"kkk") -> kkk | N14: 12
B15: =IF(C15="","",B14+1) -> 8 | C15: =IFERROR(LOOKUP(N15,data!$A11:$A1007,data!B11:B1007),"") -> ابو _ حبيبه 13 | D15: =IFERROR(LOOKUP(N15,data!$A11:$A1007,data!C11:C1007),"") -> مستجد | E15: =IFERROR(LOOKUP(N15,data!$A11:$A1007,data!D11:D1007),"") -> 213 | F15: =IFERROR(LOOKUP(N15,data!$A11:$A1007,data!E11:E1007),"") -> 1/1 | G15: =IFERROR(IF(C15=0,kkk,(LOOKUP(N15,data!$A11:$A1007,data!AB11:AB1007))),"") -> دور ثان مادتين | H15: =IFERROR(LOOKUP(N15,data!$A11:$A1007,data!AC11:AC1007),"") -> لغة عربية رياضيات تربية وطنية تربية دينية تربية عسكرية | I15: =IFERROR(LOOKUP(N15,data!$A11:$A1007,data!AI11:AI1007),"") -> فني _ نماذج وسباكة معادن | M15: =IF($K$8=data!AB11,ROW(data!11:11)-3,"kkk") -> kkk | N15: 13
B16: 9 | C16: =IFERROR(LOOKUP(N16,data!$A12:$A1008,data!B12:B1008),"") -> ابو _ حبيبه 15 | D16: =IFERROR(LOOKUP(N16,data!$A12:$A1008,data!C12:C1008),"") -> مستجد | E16: =IFERROR(LOOKUP(N16,data!$A12:$A1008,data!D12:D1008),"") -> 215 | F16: =IFERROR(LOOKUP(N16,data!$A12:$A1008,data!E12:E1008),"") -> 1/1 | G16: =IFERROR(IF(C16=0,kkk,(LOOKUP(N16,data!$A12:$A1008,data!AB12:AB1008))),"") -> دور ثان مادتين | H16: =IFERROR(LOOKUP(N16,data!$A12:$A1008,data!AC12:AC1008),"") -> لغة عربية رياضيات تربية عسكرية | I16: =IFERROR(LOOKUP(N16,data!$A12:$A1008,data!AI12:AI1008),"") -> فني _ نماذج وسباكة معادن | M16: =IF($K$8=data!AB12,ROW(data!12:12)-3,"kkk") -> kkk | N16: 15
B17: 10 | C17: =IFERROR(LOOKUP(N17,data!$A13:$A1009,data!B13:B1009),"") -> ابو _ حبيبه 22 | D17: =IFERROR(LOOKUP(N17,data!$A13:$A1009,data!C13:C1009),"") -> مستجد | E17: =IFERROR(LOOKUP(N17,data!$A13:$A1009,data!D13:D1009),"") -> 222 | F17: =IFERROR(LOOKUP(N17,data!$A13:$A1009,data!E13:E1009),"") -> 1/1 | G17: =IFERROR(IF(C17=0,kkk,(LOOKUP(N17,data!$A13:$A1009,data!AB13:AB1009))),"") -> دور ثان مادتين | H17: =IFERROR(LOOKUP(N17,data!$A13:$A1009,data!AC13:AC1009),"") -> لغة عربية رياضيات تربية عسكرية | I17: =IFERROR(LOOKUP(N17,data!$A13:$A1009,data!AI13:AI1009),"") -> فني _ نماذج وسباكة معادن | M17: =IF($K$8=data!AB13,ROW(data!13:13)-3,"kkk") -> 10 | N17: 22
B18: 11 | C18: =IFERROR(LOOKUP(N18,data!$A14:$A1010,data!B14:B1010),"") -> ابو _ حبيبه 23 | D18: =IFERROR(LOOKUP(N18,data!$A14:$A1010,data!C14:C1010),"") -> مستجد | E18: =IFERROR(LOOKUP(N18,data!$A14:$A1010,data!D14:D1010),"") -> 223 | F18: =IFERROR(LOOKUP(N18,data!$A14:$A1010,data!E14:E1010),"") -> 1/1 | G18: =IFERROR(IF(C18=0,kkk,(LOOKUP(N18,data!$A14:$A1010,data!AB14:AB1010))),"") -> دور ثان مادتين | H18: =IFERROR(LOOKUP(N18,data!$A14:$A1010,data!AC14:AC1010),"") -> لغة عربية رياضيات تربية عسكرية | I18: =IFERROR(LOOKUP(N18,data!$A14:$A1010,data!AI14:AI1010),"") -> فني _ نماذج وسباكة معادن | M18: =IF($K$8=data!AB14,ROW(data!14:14)-3,"kkk") -> 11 | N18: 23
B19: 12 | C19: =IFERROR(LOOKUP(N19,data!$A15:$A1011,data!B15:B1011),"") -> ابو _ حبيبه 29 | D19: =IFERROR(LOOKUP(N19,data!$A15:$A1011,data!C15:C1011),"") -> مستجد | E19: =IFERROR(LOOKUP(N19,data!$A15:$A1011,data!D15:D1011),"") -> 229 | F19: =IFERROR(LOOKUP(N19,data!$A15:$A1011,data!E15:E1011),"") -> 2/1 | G19: =IFERROR(IF(C19=0,kkk,(LOOKUP(N19,data!$A15:$A1011,data!AB15:AB1011))),"") -> دور ثان مادتين | H19: =IFERROR(LOOKUP(N19,data!$A15:$A1011,data!AC15:AC1011),"") -> لغة عربية رياضيات تربية عسكرية | I19: =IFERROR(LOOKUP(N19,data!$A15:$A1011,data!AI15:AI1011),"") -> فني _ لحام و تشكيل_معادن | M19: =IF($K$8=data!AB15,ROW(data!15:15)-3,"kkk") -> 12 | N19: 29
B20: 13 | C20: =IFERROR(LOOKUP(N20,data!$A16:$A1012,data!B16:B1012),"") -> ابو _ حبيبه 30 | D20: =IFERROR(LOOKUP(N20,data!$A16:$A1012,data!C16:C1012),"") -> مستجد | E20: =IFERROR(LOOKUP(N20,data!$A16:$A1012,data!D16:D1012),"") -> 230 | F20: =IFERROR(LOOKUP(N20,data!$A16:$A1012,data!E16:E1012),"") -> 2/1 | G20: =IFERROR(IF(C20=0,kkk,(LOOKUP(N20,data!$A16:$A1012,data!AB16:AB1012))),"") -> دور ثان مادتين | H20: =IFERROR(LOOKUP(N20,data!$A16:$A1012,data!AC16:AC1012),"") -> لغة عربية رياضيات تربية عسكرية | I20: =IFERROR(LOOKUP(N20,data!$A16:$A1012,data!AI16:AI1012),"") -> فني _ لحام و تشكيل_معادن | M20: =IF($K$8=data!AB16,ROW(data!16:16)-3,"kkk") -> 13 | N20: 30
B21: 14 | C21: =IFERROR(LOOKUP(N21,data!$A17:$A1013,data!B17:B1013),"") -> ابو _ حبيبه 36 | D21: =IFERROR(LOOKUP(N21,data!$A17:$A1013,data!C17:C1013),"") -> مستجد | E21: =IFERROR(LOOKUP(N21,data!$A17:$A1013,data!D17:D1013),"") -> 236 | F21: =IFERROR(LOOKUP(N21,data!$A17:$A1013,data!E17:E1013),"") -> 2/1 | G21: =IFERROR(IF(C21=0,kkk,(LOOKUP(N21,data!$A17:$A1013,data!AB17:AB1013))),"") -> دور ثان مادتين | H21: =IFERROR(LOOKUP(N21,data!$A17:$A1013,data!AC17:AC1013),"") -> لغة عربية رياضيات تربية عسكرية | I21: =IFERROR(LOOKUP(N21,data!$A17:$A1013,data!AI17:AI1013),"") -> فني _ لحام و تشكيل_معادن | M21: =IF($K$8=data!AB17,ROW(data!17:17)-3,"kkk") -> kkk | N21: 36
B22: 15 | C22: =IFERROR(LOOKUP(N22,data!$A18:$A1014,data!B18:B1014),"") -> ابو _ حبيبه 37 | D22: =IFERROR(LOOKUP(N22,data!$A18:$A1014,data!C18:C1014),"") -> باق | E22: =IFERROR(LOOKUP(N22,data!$A18:$A1014,data!D18:D1014),"") -> 237 | F22: =IFERROR(LOOKUP(N22,data!$A18:$A1014,data!E18:E1014),"") -> 2/1 | G22: =IFERROR(IF(C22=0,kkk,(LOOKUP(N22,data!$A18:$A1014,data!AB18:AB1014))),"") -> دور ثان مادتين | H22: =IFERROR(LOOKUP(N22,data!$A18:$A1014,data!AC18:AC1014),"") -> لغة عربية رياضيات تربية عسكرية | I22: =IFERROR(LOOKUP(N22,data!$A18:$A1014,data!AI18:AI1014),"") -> فني _ لحام و تشكيل_معادن | M22: =IF($K$8=data!AB18,ROW(data!18:18)-3,"kkk") -> 15 | N22: 37
B23: 16 | C23: =IFERROR(LOOKUP(N23,data!$A19:$A1015,data!B19:B1015),"") -> ابو _ حبيبه 39 | D23: =IFERROR(LOOKUP(N23,data!$A19:$A1015,data!C19:C1015),"") -> مستجد | E23: =IFERROR(LOOKUP(N23,data!$A19:$A1015,data!D19:D1015),"") -> 239 | F23: =IFERROR(LOOKUP(N23,data!$A19:$A1015,data!E19:E1015),"") -> 2/1 | G23: =IFERROR(IF(C23=0,kkk,(LOOKUP(N23,data!$A19:$A1015,data!AB19:AB1015))),"") -> دور ثان مادتين | H23: =IFERROR(LOOKUP(N23,data!$A19:$A1015,data!AC19:AC1015),"") -> لغة عربية رياضيات تربية عسكرية | I23: =IFERROR(LOOKUP(N23,data!$A19:$A1015,data!AI19:AI1015),"") -> فني _ لحام و تشكيل_معادن | M23: =IF($K$8=data!AB19,ROW(data!19:19)-3,"kkk") -> kkk | N23: 39
B24: 17 | C24: =IFERROR(LOOKUP(N24,data!$A20:$A1016,data!B20:B1016),"") -> ابو _ حبيبه 46 | D24: =IFERROR(LOOKUP(N24,data!$A20:$A1016,data!C20:C1016),"") -> مستجد | E24: =IFERROR(LOOKUP(N24,data!$A20:$A1016,data!D20:D1016),"") -> 246 | F24: =IFERROR(LOOKUP(N24,data!$A20:$A1016,data!E20:E1016),"") -> 2/1 | G24: =IFERROR(IF(C24=0,kkk,(LOOKUP(N24,data!$A20:$A1016,data!AB20:AB1016))),"") -> دور ثان مادتين | H24: =IFERROR(LOOKUP(N24,data!$A20:$A1016,data!AC20:AC1016),"") -> لغة عربية رياضيات تربية عسكرية | I24: =IFERROR(LOOKUP(N24,data!$A20:$A1016,data!AI20:AI1016),"") -> فني _ لحام و تشكيل_معادن | M24: =IF($K$8=data!AB20,ROW(data!20:20)-3,"kkk") -> kkk | N24: 46
B25: 18 | C25: =IFERROR(LOOKUP(N25,data!$A21:$A1017,data!B21:B1017),"") -> ابو _ حبيبه 56 | D25: =IFERROR(LOOKUP(N25,data!$A21:$A1017,data!C21:C1017),"") -> مستجد | E25: =IFERROR(LOOKUP(N25,data!$A21:$A1017,data!D21:D1017),"") -> 256 | F25: =IFERROR(LOOKUP(N25,data!$A21:$A1017,data!E21:E1017),"") -> 3/1 | G25: =IFERROR(IF(C25=0,kkk,(LOOKUP(N25,data!$A21:$A1017,data!AB21:AB1017))),"") -> دور ثان مادتين | H25: =IFERROR(LOOKUP(N25,data!$A21:$A1017,data!AC21:AC1017),"") -> لغة عربية لغة إنجليزية تربية عسكرية | I25: =IFERROR(LOOKUP(N25,data!$A21:$A1017,data!AI21:AI1017),"") -> فني _ تشغيل معادن | M25: =IF($K$8=data!AB21,ROW(data!21:21)-3,"kkk") -> kkk | N25: 56
B26: 19 | C26: =IFERROR(LOOKUP(N26,data!$A22:$A1018,data!B22:B1018),"") -> ابو _ حبيبه 57 | D26: =IFERROR(LOOKUP(N26,data!$A22:$A1018,data!C22:C1018),"") -> مستجد | E26: =IFERROR(LOOKUP(N26,data!$A22:$A1018,data!D22:D1018),"") -> 257 | F26: =IFERROR(LOOKUP(N26,data!$A22:$A1018,data!E22:E1018),"") -> 3/1 | G26: =IFERROR(IF(C26=0,kkk,(LOOKUP(N26,data!$A22:$A1018,data!AB22:AB1018))),"") -> دور ثان مادتين | H26: =IFERROR(LOOKUP(N26,data!$A22:$A1018,data!AC22:AC1018),"") -> لغة عربية لغة إنجليزية تربية عسكرية | I26: =IFERROR(LOOKUP(N26,data!$A22:$A1018,data!AI22:AI1018),"") -> فني _ تشغيل معادن | M26: =IF($K$8=data!AB22,ROW(data!22:22)-3,"kkk") -> kkk | N26: 57
B27: 20 | C27: =IFERROR(LOOKUP(N27,data!$A23:$A1019,data!B23:B1019),"") -> ابو _ حبيبه 60 | D27: =IFERROR(LOOKUP(N27,data!$A23:$A1019,data!C23:C1019),"") -> مستجد | E27: =IFERROR(LOOKUP(N27,data!$A23:$A1019,data!D23:D1019),"") -> 260 | F27: =IFERROR(LOOKUP(N27,data!$A23:$A1019,data!E23:E1019),"") -> 3/1 | G27: =IFERROR(IF(C27=0,kkk,(LOOKUP(N27,data!$A23:$A1019,data!AB23:AB1019))),"") -> دور ثان مادتين | H27: =IFERROR(LOOKUP(N27,data!$A23:$A1019,data!AC23:AC1019),"") -> لغة عربية رياضيات تربية عسكرية | I27: =IFERROR(LOOKUP(N27,data!$A23:$A1019,data!AI23:AI1019),"") -> فني _ تشغيل معادن | M27: =IF($K$8=data!AB23,ROW(data!23:23)-3,"kkk") -> kkk | N27: 60
B28: 21 | C28: =IFERROR(LOOKUP(N28,data!$A24:$A1020,data!B24:B1020),"") -> ابو _ حبيبه 61 | D28: =IFERROR(LOOKUP(N28,data!$A24:$A1020,data!C24:C1020),"") -> مستجد | E28: =IFERROR(LOOKUP(N28,data!$A24:$A1020,data!D24:D1020),"") -> 261 | F28: =IFERROR(LOOKUP(N28,data!$A24:$A1020,data!E24:E1020),"") -> 3/1 | G28: =IFERROR(IF(C28=0,kkk,(LOOKUP(N28,data!$A24:$A1020,data!AB24:AB1020))),"") -> دور ثان مادتين | H28: =IFERROR(LOOKUP(N28,data!$A24:$A1020,data!AC24:AC1020),"") -> لغة عربية رياضيات تربية عسكرية | I28: =IFERROR(LOOKUP(N28,data!$A24:$A1020,data!AI24:AI1020),"") -> فني _ تشغيل معادن | M28: =IF($K$8=data!AB24,ROW(data!24:24)-3,"kkk") -> kkk | N28: 61
B29: 22 | C29: =IFERROR(LOOKUP(N29,data!$A25:$A1021,data!B25:B1021),"") -> ابو _ حبيبه 62 | D29: =IFERROR(LOOKUP(N29,data!$A25:$A1021,data!C25:C1021),"") -> مستجد | E29: =IFERROR(LOOKUP(N29,data!$A25:$A1021,data!D25:D1021),"") -> 262 | F29: =IFERROR(LOOKUP(N29,data!$A25:$A1021,data!E25:E1021),"") -> 3/1 | G29: =IFERROR(IF(C29=0,kkk,(LOOKUP(N29,data!$A25:$A1021,data!AB25:AB1021))),"") -> دور ثان مادتين | H29: =IFERROR(LOOKUP(N29,data!$A25:$A1021,data!AC25:AC1021),"") -> لغة عربية رياضيات تربية عسكرية | I29: =IFERROR(LOOKUP(N29,data!$A25:$A1021,data!AI25:AI1021),"") -> فني _ تشغيل معادن | M29: =IF($K$8=data!AB25,ROW(data!25:25)-3,"kkk") -> 22 | N29: 62
B30: 23 | C30: =IFERROR(LOOKUP(N30,data!$A26:$A1022,data!B26:B1022),"") -> ابو _ حبيبه 66 | D30: =IFERROR(LOOKUP(N30,data!$A26:$A1022,data!C26:C1022),"") -> مستجد | E30: =IFERROR(LOOKUP(N30,data!$A26:$A1022,data!D26:D1022),"") -> 266 | F30: =IFERROR(LOOKUP(N30,data!$A26:$A1022,data!E26:E1022),"") -> 3/1 | G30: =IFERROR(IF(C30=0,kkk,(LOOKUP(N30,data!$A26:$A1022,data!AB26:AB1022))),"") -> دور ثان مادتين | H30: =IFERROR(LOOKUP(N30,data!$A26:$A1022,data!AC26:AC1022),"") -> لغة عربية لغة إنجليزية تربية عسكرية | I30: =IFERROR(LOOKUP(N30,data!$A26:$A1022,data!AI26:AI1022),"") -> فني _ تشغيل معادن | M30: =IF($K$8=data!AB26,ROW(data!26:26)-3,"kkk") -> 23 | N30: 66
B31: 24 | C31: =IFERROR(LOOKUP(N31,data!$A27:$A1023,data!B27:B1023),"") -> ابو _ حبيبه 67 | D31: =IFERROR(LOOKUP(N31,data!$A27:$A1023,data!C27:C1023),"") -> مستجد | E31: =IFERROR(LOOKUP(N31,data!$A27:$A1023,data!D27:D1023),"") -> 267 | F31: =IFERROR(LOOKUP(N31,data!$A27:$A1023,data!E27:E1023),"") -> 3/1 | G31: =IFERROR(IF(C31=0,kkk,(LOOKUP(N31,data!$A27:$A1023,data!AB27:AB1023))),"") -> دور ثان مادتين | H31: =IFERROR(LOOKUP(N31,data!$A27:$A1023,data!AC27:AC1023),"") -> لغة عربية رياضيات تربية عسكرية | I31: =IFERROR(LOOKUP(N31,data!$A27:$A1023,data!AI27:AI1023),"") -> فني _ تشغيل معادن | M31: =IF($K$8=data!AB27,ROW(data!27:27)-3,"kkk") -> kkk | N31: 67
B32: 25 | C32: =IFERROR(LOOKUP(N32,data!$A28:$A1024,data!B28:B1024),"") -> ابو _ حبيبه 70 | D32: =IFERROR(LOOKUP(N32,data!$A28:$A1024,data!C28:C1024),"") -> مستجد | E32: =IFERROR(LOOKUP(N32,data!$A28:$A1024,data!D28:D1024),"") -> 270 | F32: =IFERROR(LOOKUP(N32,data!$A28:$A1024,data!E28:E1024),"") -> 3/1 | G32: =IFERROR(IF(C32=0,kkk,(LOOKUP(N32,data!$A28:$A1024,data!AB28:AB1024))),"") -> دور ثان مادتين | H32: =IFERROR(LOOKUP(N32,data!$A28:$A1024,data!AC28:AC1024),"") -> لغة عربية رياضيات تربية عسكرية | I32: =IFERROR(LOOKUP(N32,data!$A28:$A1024,data!AI28:AI1024),"") -> فني _ تشغيل معادن | M32: =IF($K$8=data!#REF!,ROW(data!#REF!)-3,"kkk") ->  | N32: 70
B33: 26 | C33: =IFERROR(LOOKUP(N33,data!$A29:$A1025,data!B29:B1025),"") -> ابو _ حبيبه 77 | D33: =IFERROR(LOOKUP(N33,data!$A29:$A1025,data!C29:C1025),"") -> باق | E33: =IFERROR(LOOKUP(N33,data!$A29:$A1025,data!D29:D1025),"") -> 277 | F33: =IFERROR(LOOKUP(N33,data!$A29:$A1025,data!E29:E1025),"") -> 3/1 | G33: =IFERROR(IF(C33=0,kkk,(LOOKUP(N33,data!$A29:$A1025,data!AB29:AB1025))),"") -> دور ثان مادتين | H33: =IFERROR(LOOKUP(N33,data!$A29:$A1025,data!AC29:AC1025),"") -> لغة عربية رياضيات تربية عسكرية | I33: =IFERROR(LOOKUP(N33,data!$A29:$A1025,data!AI29:AI1025),"") -> فني _ تشغيل معادن | M33: =IF($K$8=data!AB28,ROW(data!28:28)-3,"kkk") -> kkk | N33: 77
B34: 27 | C34: =IFERROR(LOOKUP(N34,data!$A30:$A1026,data!B30:B1026),"") -> ابو _ حبيبه 78 | D34: =IFERROR(LOOKUP(N34,data!$A30:$A1026,data!C30:C1026),"") -> مستجد | E34: =IFERROR(LOOKUP(N34,data!$A30:$A1026,data!D30:D1026),"") -> 278 | F34: =IFERROR(LOOKUP(N34,data!$A30:$A1026,data!E30:E1026),"") -> 3/1 | G34: =IFERROR(IF(C34=0,kkk,(LOOKUP(N34,data!$A30:$A1026,data!AB30:AB1026))),"") -> دور ثان مادتين | H34: =IFERROR(LOOKUP(N34,data!$A30:$A1026,data!AC30:AC1026),"") -> لغة عربية رياضيات تربية عسكرية | I34: =IFERROR(LOOKUP(N34,data!$A30:$A1026,data!AI30:AI1026),"") -> فني _ تشغيل معادن | M34: =IF($K$8=data!AB29,ROW(data!29:29)-3,"kkk") -> kkk | N34: 78
B35: 28 | C35: =IFERROR(LOOKUP(N35,data!$A31:$A1027,data!B31:B1027),"") -> ابو _ حبيبه 79 | D35: =IFERROR(LOOKUP(N35,data!$A31:$A1027,data!C31:C1027),"") -> مستجد | E35: =IFERROR(LOOKUP(N35,data!$A31:$A1027,data!D31:D1027),"") -> 279 | F35: =IFERROR(LOOKUP(N35,data!$A31:$A1027,data!E31:E1027),"") -> 3/1 | G35: =IFERROR(IF(C35=0,kkk,(LOOKUP(N35,data!$A31:$A1027,data!AB31:AB1027))),"") -> دور ثان مادتين | H35: =IFERROR(LOOKUP(N35,data!$A31:$A1027,data!AC31:AC1027),"") -> لغة إنجليزية رياضيات تربية عسكرية | I35: =IFERROR(LOOKUP(N35,data!$A31:$A1027,data!AI31:AI1027),"") -> فني _ تشغيل معادن | M35: =IF($K$8=data!AB30,ROW(data!30:30)-3,"kkk") -> kkk | N35: 79
B36: 29 | C36: =IFERROR(LOOKUP(N36,data!$A32:$A1028,data!B32:B1028),"") -> ابو _ حبيبه 102 | D36: =IFERROR(LOOKUP(N36,data!$A32:$A1028,data!C32:C1028),"") -> مستجد | E36: =IFERROR(LOOKUP(N36,data!$A32:$A1028,data!D32:D1028),"") -> 302 | F36: =IFERROR(LOOKUP(N36,data!$A32:$A1028,data!E32:E1028),"") -> 4/1 | G36: =IFERROR(IF(C36=0,kkk,(LOOKUP(N36,data!$A32:$A1028,data!AB32:AB1028))),"") -> دور ثان مادتين | H36: =IFERROR(LOOKUP(N36,data!$A32:$A1028,data!AC32:AC1028),"") -> لغة عربية لغة إنجليزية تربية عسكرية | I36: =IFERROR(LOOKUP(N36,data!$A32:$A1028,data!AI32:AI1028),"") -> فني _ الات كهربية | M36: =IF($K$8=data!AB31,ROW(data!31:31)-3,"kkk") -> kkk | N36: 102
B37: 30 | C37: =IFERROR(LOOKUP(N37,data!$A33:$A1029,data!B33:B1029),"") -> ابو _ حبيبه 104 | D37: =IFERROR(LOOKUP(N37,data!$A33:$A1029,data!C33:C1029),"") -> مستجد | E37: =IFERROR(LOOKUP(N37,data!$A33:$A1029,data!D33:D1029),"") -> 304 | F37: =IFERROR(LOOKUP(N37,data!$A33:$A1029,data!E33:E1029),"") -> 4/1 | G37: =IFERROR(IF(C37=0,kkk,(LOOKUP(N37,data!$A33:$A1029,data!AB33:AB1029))),"") -> دور ثان مادتين | H37: =IFERROR(LOOKUP(N37,data!$A33:$A1029,data!AC33:AC1029),"") -> لغة عربية لغة إنجليزية تربية عسكرية | I37: =IFERROR(LOOKUP(N37,data!$A33:$A1029,data!AI33:AI1029),"") -> فني _ الات كهربية | M37: =IF($K$8=data!AB32,ROW(data!32:32)-3,"kkk") -> 29 | N37: 104
B38: 31 | C38: =IFERROR(LOOKUP(N38,data!$A34:$A1030,data!B34:B1030),"") -> ابو _ حبيبه 113 | D38: =IFERROR(LOOKUP(N38,data!$A34:$A1030,data!C34:C1030),"") -> مستجد | E38: =IFERROR(LOOKUP(N38,data!$A34:$A1030,data!D34:D1030),"") -> 313 | F38: =IFERROR(LOOKUP(N38,data!$A34:$A1030,data!E34:E1030),"") -> 4/1 | G38: =IFERROR(IF(C38=0,kkk,(LOOKUP(N38,data!$A34:$A1030,data!AB34:AB1030))),"") -> دور ثان مادتين | H38: =IFERROR(LOOKUP(N38,data!$A34:$A1030,data!AC34:AC1030),"") -> لغة عربية رياضيات تربية عسكرية | I38: =IFERROR(LOOKUP(N38,data!$A34:$A1030,data!AI34:AI1030),"") -> فني _ الات كهربية | M38: =IF($K$8=data!AB33,ROW(data!33:33)-3,"kkk") -> 30 | N38: 113
B39: 32 | C39: =IFERROR(LOOKUP(N39,data!$A35:$A1031,data!B35:B1031),"") -> ابو _ حبيبه 123 | D39: =IFERROR(LOOKUP(N39,data!$A35:$A1031,data!C35:C1031),"") -> مستجد | E39: =IFERROR(LOOKUP(N39,data!$A35:$A1031,data!D35:D1031),"") -> 323 | F39: =IFERROR(LOOKUP(N39,data!$A35:$A1031,data!E35:E1031),"") -> 5/1 | G39: =IFERROR(IF(C39=0,kkk,(LOOKUP(N39,data!$A35:$A1031,data!AB35:AB1031))),"") -> دور ثان مادتين | H39: =IFERROR(LOOKUP(N39,data!$A35:$A1031,data!AC35:AC1031),"") -> لغة عربية لغة إنجليزية تربية عسكرية | I39: =IFERROR(LOOKUP(N39,data!$A35:$A1031,data!AI35:AI1031),"") -> فني _ طاقة شمسية | M39: =IF($K$8=data!AB34,ROW(data!34:34)-3,"kkk") -> kkk | N39: 123
B40: 33 | C40: =IFERROR(LOOKUP(N40,data!$A36:$A1032,data!B36:B1032),"") -> ابو _ حبيبه 135 | D40: =IFERROR(LOOKUP(N40,data!$A36:$A1032,data!C36:C1032),"") -> مستجد | E40: =IFERROR(LOOKUP(N40,data!$A36:$A1032,data!D36:D1032),"") -> 335 | F40: =IFERROR(LOOKUP(N40,data!$A36:$A1032,data!E36:E1032),"") -> 5/1 | G40: =IFERROR(IF(C40=0,kkk,(LOOKUP(N40,data!$A36:$A1032,data!AB36:AB1032))),"") -> دور ثان مادتين | H40: =IFERROR(LOOKUP(N40,data!$A36:$A1032,data!AC36:AC1032),"") -> لغة عربية لغة إنجليزية تربية عسكرية | I40: =IFERROR(LOOKUP(N40,data!$A36:$A1032,data!AI36:AI1032),"") -> فني _ طاقة شمسية | M40: =IF($K$8=data!AB35,ROW(data!35:35)-3,"kkk") -> kkk | N40: 135
B41: 34 | C41: =IFERROR(LOOKUP(N41,data!$A37:$A1033,data!B37:B1033),"") -> ابو _ حبيبه 152 | D41: =IFERROR(LOOKUP(N41,data!$A37:$A1033,data!C37:C1033),"") -> مستجد | E41: =IFERROR(LOOKUP(N41,data!$A37:$A1033,data!D37:D1033),"") -> 352 | F41: =IFERROR(LOOKUP(N41,data!$A37:$A1033,data!E37:E1033),"") -> 6/1 | G41: =IFERROR(IF(C41=0,kkk,(LOOKUP(N41,data!$A37:$A1033,data!AB37:AB1033))),"") -> دور ثان مادتين | H41: =IFERROR(LOOKUP(N41,data!$A37:$A1033,data!AC37:AC1033),"") -> لغة عربية لغة إنجليزية تربية عسكرية | I41: =IFERROR(LOOKUP(N41,data!$A37:$A1033,data!AI37:AI1033),"") -> فني _ صيانة وإصلاح سيارات | M41: =IF($K$8=data!AB36,ROW(data!36:36)-3,"kkk") -> kkk | N41: 152
B42: 35 | C42: =IFERROR(LOOKUP(N42,data!$A38:$A1034,data!B38:B1034),"") -> ابو _ حبيبه 154 | D42: =IFERROR(LOOKUP(N42,data!$A38:$A1034,data!C38:C1034),"") -> مستجد | E42: =IFERROR(LOOKUP(N42,data!$A38:$A1034,data!D38:D1034),"") -> 354 | F42: =IFERROR(LOOKUP(N42,data!$A38:$A1034,data!E38:E1034),"") -> 6/1 | G42: =IFERROR(IF(C42=0,kkk,(LOOKUP(N42,data!$A38:$A1034,data!AB38:AB1034))),"") -> دور ثان مادتين | H42: =IFERROR(LOOKUP(N42,data!$A38:$A1034,data!AC38:AC1034),"") -> لغة عربية لغة إنجليزية تربية عسكرية | I42: =IFERROR(LOOKUP(N42,data!$A38:$A1034,data!AI38:AI1034),"") -> فني _ صيانة وإصلاح سيارات | M42: =IF($K$8=data!AB37,ROW(data!37:37)-3,"kkk") -> kkk | N42: 154
B43: 36 | C43: =IFERROR(LOOKUP(N43,data!$A39:$A1035,data!B39:B1035),"") -> ابو _ حبيبه 155 | D43: =IFERROR(LOOKUP(N43,data!$A39:$A1035,data!C39:C1035),"") -> مستجد | E43: =IFERROR(LOOKUP(N43,data!$A39:$A1035,data!D39:D1035),"") -> 355 | F43: =IFERROR(LOOKUP(N43,data!$A39:$A1035,data!E39:E1035),"") -> 6/1 | G43: =IFERROR(IF(C43=0,kkk,(LOOKUP(N43,data!$A39:$A1035,data!AB39:AB1035))),"") -> دور ثان مادتين | H43: =IFERROR(LOOKUP(N43,data!$A39:$A1035,data!AC39:AC1035),"") -> لغة عربية لغة إنجليزية تربية عسكرية | I43: =IFERROR(LOOKUP(N43,data!$A39:$A1035,data!AI39:AI1035),"") -> فني _ صيانة وإصلاح سيارات | M43: =IF($K$8=data!AB38,ROW(data!38:38)-3,"kkk") -> kkk | N43: 155
B44: 37 | C44: =IFERROR(LOOKUP(N44,data!$A40:$A1036,data!B40:B1036),"") -> ابو _ حبيبه 157 | D44: =IFERROR(LOOKUP(N44,data!$A40:$A1036,data!C40:C1036),"") -> مستجد | E44: =IFERROR(LOOKUP(N44,data!$A40:$A1036,data!D40:D1036),"") -> 357 | F44: =IFERROR(LOOKUP(N44,data!$A40:$A1036,data!E40:E1036),"") -> 6/1 | G44: =IFERROR(IF(C44=0,kkk,(LOOKUP(N44,data!$A40:$A1036,data!AB40:AB1036))),"") -> دور ثان مادتين | H44: =IFERROR(LOOKUP(N44,data!$A40:$A1036,data!AC40:AC1036),"") -> لغة عربية لغة إنجليزية تربية عسكرية | I44: =IFERROR(LOOKUP(N44,data!$A40:$A1036,data!AI40:AI1036),"") -> فني _ صيانة وإصلاح سيارات | M44: =IF($K$8=data!AB39,ROW(data!39:39)-3,"kkk") -> 36 | N44: 157
B45: 38 | C45: =IFERROR(LOOKUP(N45,data!$A41:$A1037,data!B41:B1037),"") -> ابو _ حبيبه 158 | D45: =IFERROR(LOOKUP(N45,data!$A41:$A1037,data!C41:C1037),"") -> مستجد | E45: =IFERROR(LOOKUP(N45,data!$A41:$A1037,data!D41:D1037),"") -> 358 | F45: =IFERROR(LOOKUP(N45,data!$A41:$A1037,data!E41:E1037),"") -> 6/1 | G45: =IFERROR(IF(C45=0,kkk,(LOOKUP(N45,data!$A41:$A1037,data!AB41:AB1037))),"") -> دور ثان مادتين | H45: =IFERROR(LOOKUP(N45,data!$A41:$A1037,data!AC41:AC1037),"") -> لغة عربية لغة إنجليزية تربية عسكرية | I45: =IFERROR(LOOKUP(N45,data!$A41:$A1037,data!AI41:AI1037),"") -> فني _ صيانة وإصلاح سيارات | M45: =IF($K$8=data!AB40,ROW(data!40:40)-3,"kkk") -> 37 | N45: 158
B46: 39 | C46: =IFERROR(LOOKUP(N46,data!$A42:$A1038,data!B42:B1038),"") -> ابو _ حبيبه 159 | D46: =IFERROR(LOOKUP(N46,data!$A42:$A1038,data!C42:C1038),"") -> مستجد | E46: =IFERROR(LOOKUP(N46,data!$A42:$A1038,data!D42:D1038),"") -> 359 | F46: =IFERROR(LOOKUP(N46,data!$A42:$A1038,data!E42:E1038),"") -> 6/1 | G46: =IFERROR(IF(C46=0,kkk,(LOOKUP(N46,data!$A42:$A1038,data!AB42:AB1038))),"") -> دور ثان مادتين | H46: =IFERROR(LOOKUP(N46,data!$A42:$A1038,data!AC42:AC1038),"") -> لغة عربية لغة إنجليزية تربية عسكرية | I46: =IFERROR(LOOKUP(N46,data!$A42:$A1038,data!AI42:AI1038),"") -> فني _ صيانة وإصلاح سيارات | M46: =IF($K$8=data!AB41,ROW(data!41:41)-3,"kkk") -> kkk | N46: 159
B47: 40 | C47: =IFERROR(LOOKUP(N47,data!$A43:$A1039,data!B43:B1039),"") -> ابو _ حبيبه 160 | D47: =IFERROR(LOOKUP(N47,data!$A43:$A1039,data!C43:C1039),"") -> مستجد | E47: =IFERROR(LOOKUP(N47,data!$A43:$A1039,data!D43:D1039),"") -> 360 | F47: =IFERROR(LOOKUP(N47,data!$A43:$A1039,data!E43:E1039),"") -> 6/1 | G47: =IFERROR(IF(C47=0,kkk,(LOOKUP(N47,data!$A43:$A1039,data!AB43:AB1039))),"") -> دور ثان مادتين | H47: =IFERROR(LOOKUP(N47,data!$A43:$A1039,data!AC43:AC1039),"") -> لغة عربية لغة إنجليزية تربية عسكرية | I47: =IFERROR(LOOKUP(N47,data!$A43:$A1039,data!AI43:AI1039),"") -> فني _ صيانة وإصلاح سيارات | M47: =IF($K$8=data!AB42,ROW(data!42:42)-3,"kkk") -> 39 | N47: 160
B48: 41 | C48: =IFERROR(LOOKUP(N48,data!$A44:$A1040,data!B44:B1040),"") -> ابو _ حبيبه 161 | D48: =IFERROR(LOOKUP(N48,data!$A44:$A1040,data!C44:C1040),"") -> مستجد | E48: =IFERROR(LOOKUP(N48,data!$A44:$A1040,data!D44:D1040),"") -> 361 | F48: =IFERROR(LOOKUP(N48,data!$A44:$A1040,data!E44:E1040),"") -> 6/1 | G48: =IFERROR(IF(C48=0,kkk,(LOOKUP(N48,data!$A44:$A1040,data!AB44:AB1040))),"") -> دور ثان مادتين | H48: =IFERROR(LOOKUP(N48,data!$A44:$A1040,data!AC44:AC1040),"") -> لغة عربية لغة إنجليزية تربية عسكرية | I48: =IFERROR(LOOKUP(N48,data!$A44:$A1040,data!AI44:AI1040),"") -> فني _ صيانة وإصلاح سيارات | M48: =IF($K$8=data!AB43,ROW(data!43:43)-3,"kkk") -> kkk | N48: 161
B49: 42 | C49: =IFERROR(LOOKUP(N49,data!$A45:$A1041,data!B45:B1041),"") -> ابو _ حبيبه 162 | D49: =IFERROR(LOOKUP(N49,data!$A45:$A1041,data!C45:C1041),"") -> مستجد | E49: =IFERROR(LOOKUP(N49,data!$A45:$A1041,data!D45:D1041),"") -> 362 | F49: =IFERROR(LOOKUP(N49,data!$A45:$A1041,data!E45:E1041),"") -> 6/1 | G49: =IFERROR(IF(C49=0,kkk,(LOOKUP(N49,data!$A45:$A1041,data!AB45:AB1041))),"") -> دور ثان مادتين | H49: =IFERROR(LOOKUP(N49,data!$A45:$A1041,data!AC45:AC1041),"") -> لغة عربية لغة إنجليزية تربية عسكرية | I49: =IFERROR(LOOKUP(N49,data!$A45:$A1041,data!AI45:AI1041),"") -> فني _ صيانة وإصلاح سيارات | M49: =IF($K$8=data!AB44,ROW(data!44:44)-3,"kkk") -> kkk | N49: 162
B50: 43 | C50: =IFERROR(LOOKUP(N50,data!$A46:$A1042,data!B46:B1042),"") -> ابو _ حبيبه 163 | D50: =IFERROR(LOOKUP(N50,data!$A46:$A1042,data!C46:C1042),"") -> مستجد | E50: =IFERROR(LOOKUP(N50,data!$A46:$A1042,data!D46:D1042),"") -> 363 | F50: =IFERROR(LOOKUP(N50,data!$A46:$A1042,data!E46:E1042),"") -> 6/1 | G50: =IFERROR(IF(C50=0,kkk,(LOOKUP(N50,data!$A46:$A1042,data!AB46:AB1042))),"") -> دور ثان مادتين | H50: =IFERROR(LOOKUP(N50,data!$A46:$A1042,data!AC46:AC1042),"") -> لغة عربية لغة إنجليزية تربية عسكرية | I50: =IFERROR(LOOKUP(N50,data!$A46:$A1042,data!AI46:AI1042),"") -> فني _ صيانة وإصلاح سيارات | M50: =IF($K$8=data!AB45,ROW(data!45:45)-3,"kkk") -> kkk | N50: 163
B51: 44 | C51: =IFERROR(LOOKUP(N51,data!$A47:$A1043,data!B47:B1043),"") -> ابو _ حبيبه 166 | D51: =IFERROR(LOOKUP(N51,data!$A47:$A1043,data!C47:C1043),"") -> مستجد | E51: =IFERROR(LOOKUP(N51,data!$A47:$A1043,data!D47:D1043),"") -> 366 | F51: =IFERROR(LOOKUP(N51,data!$A47:$A1043,data!E47:E1043),"") -> 6/1 | G51: =IFERROR(IF(C51=0,kkk,(LOOKUP(N51,data!$A47:$A1043,data!AB47:AB1043))),"") -> دور ثان مادتين | H51: =IFERROR(LOOKUP(N51,data!$A47:$A1043,data!AC47:AC1043),"") -> لغة عربية لغة إنجليزية تربية عسكرية | I51: =IFERROR(LOOKUP(N51,data!$A47:$A1043,data!AI47:AI1043),"") -> فني _ صيانة وإصلاح سيارات | M51: =IF($K$8=data!AB46,ROW(data!46:46)-3,"kkk") -> kkk | N51: 166
B52: 45 | C52: =IFERROR(LOOKUP(N52,data!$A48:$A1044,data!B48:B1044),"") -> ابو _ حبيبه 170 | D52: =IFERROR(LOOKUP(N52,data!$A48:$A1044,data!C48:C1044),"") -> مستجد | E52: =IFERROR(LOOKUP(N52,data!$A48:$A1044,data!D48:D1044),"") -> 370 | F52: =IFERROR(LOOKUP(N52,data!$A48:$A1044,data!E48:E1044),"") -> 6/1 | G52: =IFERROR(IF(C52=0,kkk,(LOOKUP(N52,data!$A48:$A1044,data!AB48:AB1044))),"") -> دور ثان مادتين | H52: =IFERROR(LOOKUP(N52,data!$A48:$A1044,data!AC48:AC1044),"") -> لغة عربية لغة إنجليزية تربية عسكرية | I52: =IFERROR(LOOKUP(N52,data!$A48:$A1044,data!AI48:AI1044),"") -> فني _ صيانة وإصلاح سيارات | M52: =IF($K$8=data!AB47,ROW(data!47:47)-3,"kkk") -> kkk | N52: 170
B53: 46 | C53: =IFERROR(LOOKUP(N53,data!$A49:$A1045,data!B49:B1045),"") -> ابو _ حبيبه 171 | D53: =IFERROR(LOOKUP(N53,data!$A49:$A1045,data!C49:C1045),"") -> مستجد | E53: =IFERROR(LOOKUP(N53,data!$A49:$A1045,data!D49:D1045),"") -> 371 | F53: =IFERROR(LOOKUP(N53,data!$A49:$A1045,data!E49:E1045),"") -> 6/1 | G53: =IFERROR(IF(C53=0,kkk,(LOOKUP(N53,data!$A49:$A1045,data!AB49:AB1045))),"") -> دور ثان مادتين | H53: =IFERROR(LOOKUP(N53,data!$A49:$A1045,data!AC49:AC1045),"") -> لغة عربية لغة إنجليزية تربية عسكرية | I53: =IFERROR(LOOKUP(N53,data!$A49:$A1045,data!AI49:AI1045),"") -> فني _ صيانة وإصلاح سيارات | M53: =IF($K$8=data!AB48,ROW(data!48:48)-3,"kkk") -> kkk | N53: 171
B54: 47 | C54: =IFERROR(LOOKUP(N54,data!$A50:$A1046,data!B50:B1046),"") -> ابو _ حبيبه 172 | D54: =IFERROR(LOOKUP(N54,data!$A50:$A1046,data!C50:C1046),"") -> مستجد | E54: =IFERROR(LOOKUP(N54,data!$A50:$A1046,data!D50:D1046),"") -> 372 | F54: =IFERROR(LOOKUP(N54,data!$A50:$A1046,data!E50:E1046),"") -> 6/1 | G54: =IFERROR(IF(C54=0,kkk,(LOOKUP(N54,data!$A50:$A1046,data!AB50:AB1046))),"") -> دور ثان مادتين | H54: =IFERROR(LOOKUP(N54,data!$A50:$A1046,data!AC50:AC1046),"") -> لغة عربية لغة إنجليزية تربية عسكرية | I54: =IFERROR(LOOKUP(N54,data!$A50:$A1046,data!AI50:AI1046),"") -> فني _ صيانة وإصلاح سيارات | M54: =IF($K$8=data!AB49,ROW(data!49:49)-3,"kkk") -> 46 | N54: 172
B55: 48 | C55: =IFERROR(LOOKUP(N55,data!$A51:$A1047,data!B51:B1047),"") -> ابو _ حبيبه 173 | D55: =IFERROR(LOOKUP(N55,data!$A51:$A1047,data!C51:C1047),"") -> مستجد | E55: =IFERROR(LOOKUP(N55,data!$A51:$A1047,data!D51:D1047),"") -> 373 | F55: =IFERROR(LOOKUP(N55,data!$A51:$A1047,data!E51:E1047),"") -> 6/1 | G55: =IFERROR(IF(C55=0,kkk,(LOOKUP(N55,data!$A51:$A1047,data!AB51:AB1047))),"") -> دور ثان مادتين | H55: =IFERROR(LOOKUP(N55,data!$A51:$A1047,data!AC51:AC1047),"") -> لغة عربية لغة إنجليزية تربية عسكرية | I55: =IFERROR(LOOKUP(N55,data!$A51:$A1047,data!AI51:AI1047),"") -> فني _ صيانة وإصلاح سيارات | M55: =IF($K$8=data!AB50,ROW(data!50:50)-3,"kkk") -> kkk | N55: 173
B56: 49 | C56: =IFERROR(LOOKUP(N56,data!$A52:$A1048,data!B52:B1048),"") -> ابو _ حبيبه 174 | D56: =IFERROR(LOOKUP(N56,data!$A52:$A1048,data!C52:C1048),"") -> مستجد | E56: =IFERROR(LOOKUP(N56,data!$A52:$A1048,data!D52:D1048),"") -> 374 | F56: =IFERROR(LOOKUP(N56,data!$A52:$A1048,data!E52:E1048),"") -> 6/1 | G56: =IFERROR(IF(C56=0,kkk,(LOOKUP(N56,data!$A52:$A1048,data!AB52:AB1048))),"") -> دور ثان مادتين | H56: =IFERROR(LOOKUP(N56,data!$A52:$A1048,data!AC52:AC1048),"") -> لغة عربية لغة إنجليزية تربية عسكرية | I56: =IFERROR(LOOKUP(N56,data!$A52:$A1048,data!AI52:AI1048),"") -> فني _ صيانة وإصلاح سيارات | M56: =IF($K$8=data!AB51,ROW(data!51:51)-3,"kkk") -> kkk | N56: 174
B57: 50 | C57: =IFERROR(LOOKUP(N57,data!$A53:$A1049,data!B53:B1049),"") -> ابو _ حبيبه 179 | D57: =IFERROR(LOOKUP(N57,data!$A53:$A1049,data!C53:C1049),"") -> مستجد | E57: =IFERROR(LOOKUP(N57,data!$A53:$A1049,data!D53:D1049),"") -> 379 | F57: =IFERROR(LOOKUP(N57,data!$A53:$A1049,data!E53:E1049),"") -> 7/1 | G57: =IFERROR(IF(C57=0,kkk,(LOOKUP(N57,data!$A53:$A1049,data!AB53:AB1049))),"") -> دور ثان مادتين | H57: =IFERROR(LOOKUP(N57,data!$A53:$A1049,data!AC53:AC1049),"") -> لغة عربية لغة إنجليزية تربية وطنية تربية دينية تربية عسكرية | I57: =IFERROR(LOOKUP(N57,data!$A53:$A1049,data!AI53:AI1049),"") -> فني _ بتروكيماويات | M57: =IF($K$8=data!AB52,ROW(data!52:52)-3,"kkk") -> kkk | N57: 179
B58: 51 | C58: =IFERROR(LOOKUP(N58,data!$A54:$A1050,data!B54:B1050),"") -> ابو _ حبيبه 182 | D58: =IFERROR(LOOKUP(N58,data!$A54:$A1050,data!C54:C1050),"") -> مستجد | E58: =IFERROR(LOOKUP(N58,data!$A54:$A1050,data!D54:D1050),"") -> 382 | F58: =IFERROR(LOOKUP(N58,data!$A54:$A1050,data!E54:E1050),"") -> 7/1 | G58: =IFERROR(IF(C58=0,kkk,(LOOKUP(N58,data!$A54:$A1050,data!AB54:AB1050))),"") -> دور ثان مادتين | H58: =IFERROR(LOOKUP(N58,data!$A54:$A1050,data!AC54:AC1050),"") -> لغة عربية لغة إنجليزية تربية عسكرية | I58: =IFERROR(LOOKUP(N58,data!$A54:$A1050,data!AI54:AI1050),"") -> فني _ بتروكيماويات | M58: =IF($K$8=data!AB53,ROW(data!53:53)-3,"kkk") -> kkk | N58: 182
B59: 52 | C59: =IFERROR(LOOKUP(N59,data!$A55:$A1051,data!B55:B1051),"") -> ابو _ حبيبه 190 | D59: =IFERROR(LOOKUP(N59,data!$A55:$A1051,data!C55:C1051),"") -> مستجد | E59: =IFERROR(LOOKUP(N59,data!$A55:$A1051,data!D55:D1051),"") -> 390 | F59: =IFERROR(LOOKUP(N59,data!$A55:$A1051,data!E55:E1051),"") -> 7/1 | G59: =IFERROR(IF(C59=0,kkk,(LOOKUP(N59,data!$A55:$A1051,data!AB55:AB1051))),"") -> دور ثان مادتين | H59: =IFERROR(LOOKUP(N59,data!$A55:$A1051,data!AC55:AC1051),"") -> لغة عربية لغة إنجليزية تربية عسكرية | I59: =IFERROR(LOOKUP(N59,data!$A55:$A1051,data!AI55:AI1051),"") -> فني _ بتروكيماويات | M59: =IF($K$8=data!AB54,ROW(data!54:54)-3,"kkk") -> kkk | N59: 190
B60: 53 | C60: =IFERROR(LOOKUP(N60,data!$A56:$A1052,data!B56:B1052),"") -> ابو _ حبيبه 191 | D60: =IFERROR(LOOKUP(N60,data!$A56:$A1052,data!C56:C1052),"") -> مستجد | E60: =IFERROR(LOOKUP(N60,data!$A56:$A1052,data!D56:D1052),"") -> 391 | F60: =IFERROR(LOOKUP(N60,data!$A56:$A1052,data!E56:E1052),"") -> 7/1 | G60: =IFERROR(IF(C60=0,kkk,(LOOKUP(N60,data!$A56:$A1052,data!AB56:AB1052))),"") -> دور ثان مادتين | H60: =IFERROR(LOOKUP(N60,data!$A56:$A1052,data!AC56:AC1052),"") -> لغة عربية لغة إنجليزية تربية عسكرية | I60: =IFERROR(LOOKUP(N60,data!$A56:$A1052,data!AI56:AI1052),"") -> فني _ بتروكيماويات | M60: =IF($K$8=data!AB55,ROW(data!55:55)-3,"kkk") -> kkk | N60: 191
B61: 54 | C61: =IFERROR(LOOKUP(N61,data!$A57:$A1053,data!B57:B1053),"") -> ابو _ حبيبه 197 | D61: =IFERROR(LOOKUP(N61,data!$A57:$A1053,data!C57:C1053),"") -> مستجد | E61: =IFERROR(LOOKUP(N61,data!$A57:$A1053,data!D57:D1053),"") -> 397 | F61: =IFERROR(LOOKUP(N61,data!$A57:$A1053,data!E57:E1053),"") -> 7/1 | G61: =IFERROR(IF(C61=0,kkk,(LOOKUP(N61,data!$A57:$A1053,data!AB57:AB1053))),"") -> دور ثان مادتين | H61: =IFERROR(LOOKUP(N61,data!$A57:$A1053,data!AC57:AC1053),"") -> فيزياء كيمياء تربية عسكرية | I61: =IFERROR(LOOKUP(N61,data!$A57:$A1053,data!AI57:AI1053),"") -> فني _ بتروكيماويات | M61: =IF($K$8=data!AB56,ROW(data!56:56)-3,"kkk") -> kkk | N61: 197
B62: 55 | C62: =IFERROR(LOOKUP(N62,data!$A58:$A1054,data!B58:B1054),"") -> ابو _ حبيبه 199 | D62: =IFERROR(LOOKUP(N62,data!$A58:$A1054,data!C58:C1054),"") -> مستجد | E62: =IFERROR(LOOKUP(N62,data!$A58:$A1054,data!D58:D1054),"") -> 399 | F62: =IFERROR(LOOKUP(N62,data!$A58:$A1054,data!E58:E1054),"") -> 7/1 | G62: =IFERROR(IF(C62=0,kkk,(LOOKUP(N62,data!$A58:$A1054,data!AB58:AB1054))),"") -> دور ثان مادتين | H62: =IFERROR(LOOKUP(N62,data!$A58:$A1054,data!AC58:AC1054),"") -> لغة عربية رياضيات تربية عسكرية | I62: =IFERROR(LOOKUP(N62,data!$A58:$A1054,data!AI58:AI1054),"") -> فني _ بتروكيماويات | M62: =IF($K$8=data!AB57,ROW(data!57:57)-3,"kkk") -> kkk | N62: 199
B63: 56 | C63: =IFERROR(LOOKUP(N63,data!$A59:$A1055,data!B59:B1055),"") -> ابو _ حبيبه 218 | D63: =IFERROR(LOOKUP(N63,data!$A59:$A1055,data!C59:C1055),"") -> مستجد | E63: =IFERROR(LOOKUP(N63,data!$A59:$A1055,data!D59:D1055),"") -> 418 | F63: =IFERROR(LOOKUP(N63,data!$A59:$A1055,data!E59:E1055),"") -> 8/1 | G63: =IFERROR(IF(C63=0,kkk,(LOOKUP(N63,data!$A59:$A1055,data!AB59:AB1055))),"") -> دور ثان مادتين | H63: =IFERROR(LOOKUP(N63,data!$A59:$A1055,data!AC59:AC1055),"") -> لغة عربية لغة إنجليزية تربية عسكرية | I63: =IFERROR(LOOKUP(N63,data!$A59:$A1055,data!AI59:AI1055),"") -> فني _ أجهزة الكترونية | M63: =IF($K$8=data!AB58,ROW(data!58:58)-3,"kkk") -> kkk | N63: 218
B64: 57 | C64: =IFERROR(LOOKUP(N64,data!$A60:$A1056,data!B60:B1056),"") -> ابو _ حبيبه 247 | D64: =IFERROR(LOOKUP(N64,data!$A60:$A1056,data!C60:C1056),"") -> مستجد | E64: =IFERROR(LOOKUP(N64,data!$A60:$A1056,data!D60:D1056),"") -> 447 | F64: =IFERROR(LOOKUP(N64,data!$A60:$A1056,data!E60:E1056),"") -> 9/1 | G64: =IFERROR(IF(C64=0,kkk,(LOOKUP(N64,data!$A60:$A1056,data!AB60:AB1056))),"") -> دور ثان مادتين | H64: =IFERROR(LOOKUP(N64,data!$A60:$A1056,data!AC60:AC1056),"") -> لغة عربية لغة إنجليزية تربية عسكرية | I64: =IFERROR(LOOKUP(N64,data!$A60:$A1056,data!AI60:AI1056),"") -> فني _ تكنولوجيا حاسبات | M64: =IF($K$8=data!#REF!,ROW(data!#REF!)-3,"kkk") ->  | N64: 247
B65: 58 | C65: =IFERROR(LOOKUP(N65,data!$A61:$A1057,data!B61:B1057),"") -> ابو _ حبيبه 287 | D65: =IFERROR(LOOKUP(N65,data!$A61:$A1057,data!C61:C1057),"") -> مستجد | E65: =IFERROR(LOOKUP(N65,data!$A61:$A1057,data!D61:D1057),"") -> 487 | F65: =IFERROR(LOOKUP(N65,data!$A61:$A1057,data!E61:E1057),"") -> 10/1 | G65: =IFERROR(IF(C65=0,kkk,(LOOKUP(N65,data!$A61:$A1057,data!AB61:AB1057))),"") -> دور ثان مادتين | H65: =IFERROR(LOOKUP(N65,data!$A61:$A1057,data!AC61:AC1057),"") -> لغة عربية لغة إنجليزية تربية عسكرية | I65: =IFERROR(LOOKUP(N65,data!$A61:$A1057,data!AI61:AI1057),"") -> فني _ تبريد وتكييف الهواء | M65: =IF($K$8=data!#REF!,ROW(data!#REF!)-3,"kkk") ->  | N65: 287
C66: =IFERROR(LOOKUP(N66,data!$A62:$A1058,data!B62:B1058),"") ->  | D66: =IFERROR(LOOKUP(N66,data!$A62:$A1058,data!C62:C1058),"") ->  | E66: =IFERROR(LOOKUP(N66,data!$A62:$A1058,data!D62:D1058),"") ->  | F66: =IFERROR(LOOKUP(N66,data!$A62:$A1058,data!E62:E1058),"") ->  | G66: =IFERROR(IF(C66=0,kkk,(LOOKUP(N66,data!$A62:$A1058,data!AB62:AB1058))),"") ->  | H66: =IFERROR(LOOKUP(N66,data!$A62:$A1058,data!AC62:AC1058),"") ->  | I66: =IFERROR(LOOKUP(N66,data!$A62:$A1058,data!AI62:AI1058),"") ->  | M66: =IF($K$8=data!#REF!,ROW(data!#REF!)-3,"kkk") -> 
C67: =IFERROR(LOOKUP(N67,data!$A63:$A1059,data!B63:B1059),"") ->  | D67: =IFERROR(LOOKUP(N67,data!$A63:$A1059,data!C63:C1059),"") ->  | E67: =IFERROR(LOOKUP(N67,data!$A63:$A1059,data!D63:D1059),"") ->  | F67: =IFERROR(LOOKUP(N67,data!$A63:$A1059,data!E63:E1059),"") ->  | G67: =IFERROR(IF(C67=0,kkk,(LOOKUP(N67,data!$A63:$A1059,data!AB63:AB1059))),"") ->  | H67: =IFERROR(LOOKUP(N67,data!$A63:$A1059,data!AC63:AC1059),"") ->  | I67: =IFERROR(LOOKUP(N67,data!$A63:$A1059,data!AI63:AI1059),"") ->  | M67: =IF($K$8=data!#REF!,ROW(data!#REF!)-3,"kkk") -> 
C68: =IFERROR(LOOKUP(N68,data!$A64:$A1060,data!B64:B1060),"") ->  | D68: =IFERROR(LOOKUP(N68,data!$A64:$A1060,data!C64:C1060),"") ->  | E68: =IFERROR(LOOKUP(N68,data!$A64:$A1060,data!D64:D1060),"") ->  | F68: =IFERROR(LOOKUP(N68,data!$A64:$A1060,data!E64:E1060),"") ->  | G68: =IFERROR(IF(C68=0,kkk,(LOOKUP(N68,data!$A64:$A1060,data!AB64:AB1060))),"") ->  | H68: =IFERROR(LOOKUP(N68,data!$A64:$A1060,data!AC64:AC1060),"") ->  | I68: =IFERROR(LOOKUP(N68,data!$A64:$A1060,data!AI64:AI1060),"") ->  | M68: =IF($K$8=data!#REF!,ROW(data!#REF!)-3,"kkk") -> 
C69: =IFERROR(LOOKUP(N69,data!$A65:$A1061,data!B65:B1061),"") ->  | D69: =IFERROR(LOOKUP(N69,data!$A65:$A1061,data!C65:C1061),"") ->  | E69: =IFERROR(LOOKUP(N69,data!$A65:$A1061,data!D65:D1061),"") ->  | F69: =IFERROR(LOOKUP(N69,data!$A65:$A1061,data!E65:E1061),"") ->  | G69: =IFERROR(IF(C69=0,kkk,(LOOKUP(N69,data!$A65:$A1061,data!AB65:AB1061))),"") ->  | H69: =IFERROR(LOOKUP(N69,data!$A65:$A1061,data!AC65:AC1061),"") ->  | I69: =IFERROR(LOOKUP(N69,data!$A65:$A1061,data!AI65:AI1061),"") ->  | M69: =IF($K$8=data!#REF!,ROW(data!#REF!)-3,"kkk") -> 
C70: =IFERROR(LOOKUP(N70,data!$A66:$A1062,data!B66:B1062),"") ->  | D70: =IFERROR(LOOKUP(N70,data!$A66:$A1062,data!C66:C1062),"") ->  | E70: =IFERROR(LOOKUP(N70,data!$A66:$A1062,data!D66:D1062),"") ->  | F70: =IFERROR(LOOKUP(N70,data!$A66:$A1062,data!E66:E1062),"") ->  | G70: =IFERROR(IF(C70=0,kkk,(LOOKUP(N70,data!$A66:$A1062,data!AB66:AB1062))),"") ->  | H70: =IFERROR(LOOKUP(N70,data!$A66:$A1062,data!AC66:AC1062),"") ->  | I70: =IFERROR(LOOKUP(N70,data!$A66:$A1062,data!AI66:AI1062),"") ->  | M70: =IF($K$8=data!#REF!,ROW(data!#REF!)-3,"kkk") -> 
C71: =IFERROR(LOOKUP(N71,data!$A67:$A1063,data!B67:B1063),"") ->  | D71: =IFERROR(LOOKUP(N71,data!$A67:$A1063,data!C67:C1063),"") ->  | E71: =IFERROR(LOOKUP(N71,data!$A67:$A1063,data!D67:D1063),"") ->  | F71: =IFERROR(LOOKUP(N71,data!$A67:$A1063,data!E67:E1063),"") ->  | G71: =IFERROR(IF(C71=0,kkk,(LOOKUP(N71,data!$A67:$A1063,data!AB67:AB1063))),"") ->  | H71: =IFERROR(LOOKUP(N71,data!$A67:$A1063,data!AC67:AC1063),"") ->  | I71: =IFERROR(LOOKUP(N71,data!$A67:$A1063,data!AI67:AI1063),"") ->  | M71: =IF($K$8=data!AB59,ROW(data!59:59)-3,"kkk") -> 56
C72: =IFERROR(LOOKUP(N72,data!$A68:$A1064,data!B68:B1064),"") ->  | D72: =IFERROR(LOOKUP(N72,data!$A68:$A1064,data!C68:C1064),"") ->  | E72: =IFERROR(LOOKUP(N72,data!$A68:$A1064,data!D68:D1064),"") ->  | F72: =IFERROR(LOOKUP(N72,data!$A68:$A1064,data!E68:E1064),"") ->  | G72: =IFERROR(IF(C72=0,kkk,(LOOKUP(N72,data!$A68:$A1064,data!AB68:AB1064))),"") ->  | H72: =IFERROR(LOOKUP(N72,data!$A68:$A1064,data!AC68:AC1064),"") ->  | I72: =IFERROR(LOOKUP(N72,data!$A68:$A1064,data!AI68:AI1064),"") ->  | M72: =IF($K$8=data!AB60,ROW(data!60:60)-3,"kkk") -> 57 | N72: =_xlfn.AGGREGATE(15,6,M:M,ROW(M65)) -> 
C73: =IFERROR(LOOKUP(N73,data!$A69:$A1065,data!B69:B1065),"") ->  | D73: =IFERROR(LOOKUP(N73,data!$A69:$A1065,data!C69:C1065),"") ->  | E73: =IFERROR(LOOKUP(N73,data!$A69:$A1065,data!D69:D1065),"") ->  | F73: =IFERROR(LOOKUP(N73,data!$A69:$A1065,data!E69:E1065),"") ->  | G73: =IFERROR(IF(C73=0,kkk,(LOOKUP(N73,data!$A69:$A1065,data!AB69:AB1065))),"") ->  | H73: =IFERROR(LOOKUP(N73,data!$A69:$A1065,data!AC69:AC1065),"") ->  | I73: =IFERROR(LOOKUP(N73,data!$A69:$A1065,data!AI69:AI1065),"") ->  | M73: =IF($K$8=data!AB61,ROW(data!61:61)-3,"kkk") -> kkk
B74: =IF(C74="","",B73+1) ->  | C74: =IFERROR(LOOKUP(N74,data!$A70:$A1066,data!B70:B1066),"") ->  | D74: =IFERROR(LOOKUP(N74,data!$A70:$A1066,data!C70:C1066),"") ->  | E74: =IFERROR(LOOKUP(N74,data!$A70:$A1066,data!D70:D1066),"") ->  | F74: =IFERROR(LOOKUP(N74,data!$A70:$A1066,data!E70:E1066),"") ->  | G74: =IFERROR(IF(C74=0,kkk,(LOOKUP(N74,data!$A70:$A1066,data!AB70:AB1066))),"") ->  | H74: =IFERROR(LOOKUP(N74,data!$A70:$A1066,data!AC70:AC1066),"") ->  | I74: =IFERROR(LOOKUP(N74,data!$A70:$A1066,data!AI70:AI1066),"") ->  | M74: =IF($K$8=data!AB62,ROW(data!62:62)-3,"kkk") -> kkk
C75: =IFERROR(LOOKUP(N75,data!$A71:$A1067,data!B71:B1067),"") ->  | D75: =IFERROR(LOOKUP(N75,data!$A71:$A1067,data!C71:C1067),"") ->  | E75: =IFERROR(LOOKUP(N75,data!$A71:$A1067,data!D71:D1067),"") ->  | F75: =IFERROR(LOOKUP(N75,data!$A71:$A1067,data!E71:E1067),"") ->  | G75: =IFERROR(IF(C75=0,kkk,(LOOKUP(N75,data!$A71:$A1067,data!AB71:AB1067))),"") ->  | H75: =IFERROR(LOOKUP(N75,data!$A71:$A1067,data!AC71:AC1067),"") ->  | I75: =IFERROR(LOOKUP(N75,data!$A71:$A1067,data!AI71:AI1067),"") ->  | M75: =IF($K$8=data!AB63,ROW(data!63:63)-3,"kkk") -> 60
C76: =IFERROR(LOOKUP(N76,data!$A72:$A1068,data!B72:B1068),"") ->  | D76: =IFERROR(LOOKUP(N76,data!$A72:$A1068,data!C72:C1068),"") ->  | E76: =IFERROR(LOOKUP(N76,data!$A72:$A1068,data!D72:D1068),"") ->  | F76: =IFERROR(LOOKUP(N76,data!$A72:$A1068,data!E72:E1068),"") ->  | G76: =IFERROR(IF(C76=0,kkk,(LOOKUP(N76,data!$A72:$A1068,data!AB72:AB1068))),"") ->  | H76: =IFERROR(LOOKUP(N76,data!$A72:$A1068,data!AC72:AC1068),"") ->  | I76: =IFERROR(LOOKUP(N76,data!$A72:$A1068,data!AI72:AI1068),"") ->  | M76: =IF($K$8=data!AB64,ROW(data!64:64)-3,"kkk") -> 61
C77: =IFERROR(LOOKUP(N77,data!$A73:$A1069,data!B73:B1069),"") ->  | D77: =IFERROR(LOOKUP(N77,data!$A73:$A1069,data!C73:C1069),"") ->  | E77: =IFERROR(LOOKUP(N77,data!$A73:$A1069,data!D73:D1069),"") ->  | F77: =IFERROR(LOOKUP(N77,data!$A73:$A1069,data!E73:E1069),"") ->  | G77: =IFERROR(IF(C77=0,kkk,(LOOKUP(N77,data!$A73:$A1069,data!AB73:AB1069))),"") ->  | H77: =IFERROR(LOOKUP(N77,data!$A73:$A1069,data!AC73:AC1069),"") ->  | I77: =IFERROR(LOOKUP(N77,data!$A73:$A1069,data!AI73:AI1069),"") ->  | M77: =IF($K$8=data!AB65,ROW(data!65:65)-3,"kkk") -> 62
C78: =IFERROR(LOOKUP(N78,data!$A74:$A1070,data!B74:B1070),"") ->  | D78: =IFERROR(LOOKUP(N78,data!$A74:$A1070,data!C74:C1070),"") ->  | E78: =IFERROR(LOOKUP(N78,data!$A74:$A1070,data!D74:D1070),"") ->  | F78: =IFERROR(LOOKUP(N78,data!$A74:$A1070,data!E74:E1070),"") ->  | G78: =IFERROR(IF(C78=0,kkk,(LOOKUP(N78,data!$A74:$A1070,data!AB74:AB1070))),"") ->  | H78: =IFERROR(LOOKUP(N78,data!$A74:$A1070,data!AC74:AC1070),"") ->  | I78: =IFERROR(LOOKUP(N78,data!$A74:$A1070,data!AI74:AI1070),"") ->  | M78: =IF($K$8=data!AB66,ROW(data!66:66)-3,"kkk") -> kkk
C79: =IFERROR(LOOKUP(N79,data!$A75:$A1071,data!B75:B1071),"") ->  | D79: =IFERROR(LOOKUP(N79,data!$A75:$A1071,data!C75:C1071),"") ->  | E79: =IFERROR(LOOKUP(N79,data!$A75:$A1071,data!D75:D1071),"") ->  | F79: =IFERROR(LOOKUP(N79,data!$A75:$A1071,data!E75:E1071),"") ->  | G79: =IFERROR(IF(C79=0,kkk,(LOOKUP(N79,data!$A75:$A1071,data!AB75:AB1071))),"") ->  | H79: =IFERROR(LOOKUP(N79,data!$A75:$A1071,data!AC75:AC1071),"") ->  | I79: =IFERROR(LOOKUP(N79,data!$A75:$A1071,data!AI75:AI1071),"") ->  | M79: =IF($K$8=data!AB67,ROW(data!67:67)-3,"kkk") -> kkk
B80: =IF(C80="","",B79+1) ->  | C80: =IFERROR(LOOKUP(N80,data!$A76:$A1072,data!B76:B1072),"") ->  | D80: =IFERROR(LOOKUP(N80,data!$A76:$A1072,data!C76:C1072),"") ->  | E80: =IFERROR(LOOKUP(N80,data!$A76:$A1072,data!D76:D1072),"") ->  | F80: =IFERROR(LOOKUP(N80,data!$A76:$A1072,data!E76:E1072),"") ->  | G80: =IFERROR(IF(C80=0,kkk,(LOOKUP(N80,data!$A76:$A1072,data!AB76:AB1072))),"") ->  | H80: =IFERROR(LOOKUP(N80,data!$A76:$A1072,data!AC76:AC1072),"") ->  | I80: =IFERROR(LOOKUP(N80,data!$A76:$A1072,data!AI76:AI1072),"") ->  | M80: =IF($K$8=data!AB68,ROW(data!68:68)-3,"kkk") -> kkk
B81: =IF(C81="","",B80+1) ->  | C81: =IFERROR(LOOKUP(N81,data!$A77:$A1073,data!B77:B1073),"") ->  | D81: =IFERROR(LOOKUP(N81,data!$A77:$A1073,data!C77:C1073),"") ->  | E81: =IFERROR(LOOKUP(N81,data!$A77:$A1073,data!D77:D1073),"") ->  | F81: =IFERROR(LOOKUP(N81,data!$A77:$A1073,data!E77:E1073),"") ->  | G81: =IFERROR(IF(C81=0,kkk,(LOOKUP(N81,data!$A77:$A1073,data!AB77:AB1073))),"") ->  | H81: =IFERROR(LOOKUP(N81,data!$A77:$A1073,data!AC77:AC1073),"") ->  | I81: =IFERROR(LOOKUP(N81,data!$A77:$A1073,data!AI77:AI1073),"") ->  | M81: =IF($K$8=data!AB69,ROW(data!69:69)-3,"kkk") -> 66
B82: =IF(C82="","",B81+1) ->  | C82: =IFERROR(LOOKUP(N82,data!$A78:$A1074,data!B78:B1074),"") ->  | D82: =IFERROR(LOOKUP(N82,data!$A78:$A1074,data!C78:C1074),"") ->  | E82: =IFERROR(LOOKUP(N82,data!$A78:$A1074,data!D78:D1074),"") ->  | F82: =IFERROR(LOOKUP(N82,data!$A78:$A1074,data!E78:E1074),"") ->  | G82: =IFERROR(IF(C82=0,kkk,(LOOKUP(N82,data!$A78:$A1074,data!AB78:AB1074))),"") ->  | H82: =IFERROR(LOOKUP(N82,data!$A78:$A1074,data!AC78:AC1074),"") ->  | I82: =IFERROR(LOOKUP(N82,data!$A78:$A1074,data!AI78:AI1074),"") ->  | M82: =IF($K$8=data!AB70,ROW(data!70:70)-3,"kkk") -> 67
B83: =IF(C83="","",B82+1) ->  | C83: =IFERROR(LOOKUP(N83,data!$A79:$A1075,data!B79:B1075),"") ->  | D83: =IFERROR(LOOKUP(N83,data!$A79:$A1075,data!C79:C1075),"") ->  | E83: =IFERROR(LOOKUP(N83,data!$A79:$A1075,data!D79:D1075),"") ->  | F83: =IFERROR(LOOKUP(N83,data!$A79:$A1075,data!E79:E1075),"") ->  | G83: =IFERROR(IF(C83=0,kkk,(LOOKUP(N83,data!$A79:$A1075,data!AB79:AB1075))),"") ->  | H83: =IFERROR(LOOKUP(N83,data!$A79:$A1075,data!AC79:AC1075),"") ->  | I83: =IFERROR(LOOKUP(N83,data!$A79:$A1075,data!AI79:AI1075),"") ->  | M83: =IF($K$8=data!AB71,ROW(data!71:71)-3,"kkk") -> kkk
C84: =IFERROR(LOOKUP(N84,data!$A80:$A1076,data!B80:B1076),"") ->  | D84: =IFERROR(LOOKUP(N84,data!$A80:$A1076,data!C80:C1076),"") ->  | E84: =IFERROR(LOOKUP(N84,data!$A80:$A1076,data!D80:D1076),"") ->  | F84: =IFERROR(LOOKUP(N84,data!$A80:$A1076,data!E80:E1076),"") ->  | G84: =IFERROR(IF(C84=0,kkk,(LOOKUP(N84,data!$A80:$A1076,data!AB80:AB1076))),"") ->  | H84: =IFERROR(LOOKUP(N84,data!$A80:$A1076,data!AC80:AC1076),"") ->  | I84: =IFERROR(LOOKUP(N84,data!$A80:$A1076,data!AI80:AI1076),"") ->  | M84: =IF($K$8=data!AB72,ROW(data!72:72)-3,"kkk") -> kkk
C85: =IFERROR(LOOKUP(N85,data!$A81:$A1077,data!B81:B1077),"") ->  | D85: =IFERROR(LOOKUP(N85,data!$A81:$A1077,data!C81:C1077),"") ->  | E85: =IFERROR(LOOKUP(N85,data!$A81:$A1077,data!D81:D1077),"") ->  | F85: =IFERROR(LOOKUP(N85,data!$A81:$A1077,data!E81:E1077),"") ->  | G85: =IFERROR(IF(C85=0,kkk,(LOOKUP(N85,data!$A81:$A1077,data!AB81:AB1077))),"") ->  | H85: =IFERROR(LOOKUP(N85,data!$A81:$A1077,data!AC81:AC1077),"") ->  | I85: =IFERROR(LOOKUP(N85,data!$A81:$A1077,data!AI81:AI1077),"") ->  | M85: =IF($K$8=data!AB73,ROW(data!73:73)-3,"kkk") -> 70
C86: =IFERROR(LOOKUP(N86,data!$A82:$A1078,data!B82:B1078),"") ->  | D86: =IFERROR(LOOKUP(N86,data!$A82:$A1078,data!C82:C1078),"") ->  | E86: =IFERROR(LOOKUP(N86,data!$A82:$A1078,data!D82:D1078),"") ->  | F86: =IFERROR(LOOKUP(N86,data!$A82:$A1078,data!E82:E1078),"") ->  | G86: =IFERROR(IF(C86=0,kkk,(LOOKUP(N86,data!$A82:$A1078,data!AB82:AB1078))),"") ->  | H86: =IFERROR(LOOKUP(N86,data!$A82:$A1078,data!AC82:AC1078),"") ->  | I86: =IFERROR(LOOKUP(N86,data!$A82:$A1078,data!AI82:AI1078),"") ->  | M86: =IF($K$8=data!AB74,ROW(data!74:74)-3,"kkk") -> kkk
C87: =IFERROR(LOOKUP(N87,data!$A83:$A1079,data!B83:B1079),"") ->  | D87: =IFERROR(LOOKUP(N87,data!$A83:$A1079,data!C83:C1079),"") ->  | E87: =IFERROR(LOOKUP(N87,data!$A83:$A1079,data!D83:D1079),"") ->  | F87: =IFERROR(LOOKUP(N87,data!$A83:$A1079,data!E83:E1079),"") ->  | G87: =IFERROR(IF(C87=0,kkk,(LOOKUP(N87,data!$A83:$A1079,data!AB83:AB1079))),"") ->  | H87: =IFERROR(LOOKUP(N87,data!$A83:$A1079,data!AC83:AC1079),"") ->  | I87: =IFERROR(LOOKUP(N87,data!$A83:$A1079,data!AI83:AI1079),"") ->  | M87: =IF($K$8=data!AB75,ROW(data!75:75)-3,"kkk") -> kkk
C88: =IFERROR(LOOKUP(N88,data!$A84:$A1080,data!B84:B1080),"") ->  | D88: =IFERROR(LOOKUP(N88,data!$A84:$A1080,data!C84:C1080),"") ->  | E88: =IFERROR(LOOKUP(N88,data!$A84:$A1080,data!D84:D1080),"") ->  | F88: =IFERROR(LOOKUP(N88,data!$A84:$A1080,data!E84:E1080),"") ->  | G88: =IFERROR(IF(C88=0,kkk,(LOOKUP(N88,data!$A84:$A1080,data!AB84:AB1080))),"") ->  | H88: =IFERROR(LOOKUP(N88,data!$A84:$A1080,data!AC84:AC1080),"") ->  | I88: =IFERROR(LOOKUP(N88,data!$A84:$A1080,data!AI84:AI1080),"") ->  | M88: =IF($K$8=data!AB76,ROW(data!76:76)-3,"kkk") -> kkk
C89: =IFERROR(LOOKUP(N89,data!$A85:$A1081,data!B85:B1081),"") ->  | D89: =IFERROR(LOOKUP(N89,data!$A85:$A1081,data!C85:C1081),"") ->  | E89: =IFERROR(LOOKUP(N89,data!$A85:$A1081,data!D85:D1081),"") ->  | F89: =IFERROR(LOOKUP(N89,data!$A85:$A1081,data!E85:E1081),"") ->  | G89: =IFERROR(IF(C89=0,kkk,(LOOKUP(N89,data!$A85:$A1081,data!AB85:AB1081))),"") ->  | H89: =IFERROR(LOOKUP(N89,data!$A85:$A1081,data!AC85:AC1081),"") ->  | I89: =IFERROR(LOOKUP(N89,data!$A85:$A1081,data!AI85:AI1081),"") ->  | M89: =IF($K$8=data!AB77,ROW(data!77:77)-3,"kkk") -> kkk
C90: =IFERROR(LOOKUP(N90,data!$A86:$A1082,data!B86:B1082),"") ->  | D90: =IFERROR(LOOKUP(N90,data!$A86:$A1082,data!C86:C1082),"") ->  | E90: =IFERROR(LOOKUP(N90,data!$A86:$A1082,data!D86:D1082),"") ->  | F90: =IFERROR(LOOKUP(N90,data!$A86:$A1082,data!E86:E1082),"") ->  | G90: =IFERROR(IF(C90=0,kkk,(LOOKUP(N90,data!$A86:$A1082,data!AB86:AB1082))),"") ->  | H90: =IFERROR(LOOKUP(N90,data!$A86:$A1082,data!AC86:AC1082),"") ->  | I90: =IFERROR(LOOKUP(N90,data!$A86:$A1082,data!AI86:AI1082),"") ->  | M90: =IF($K$8=data!AB78,ROW(data!78:78)-3,"kkk") -> kkk
C91: =IFERROR(LOOKUP(N91,data!$A87:$A1083,data!B87:B1083),"") ->  | D91: =IFERROR(LOOKUP(N91,data!$A87:$A1083,data!C87:C1083),"") ->  | E91: =IFERROR(LOOKUP(N91,data!$A87:$A1083,data!D87:D1083),"") ->  | F91: =IFERROR(LOOKUP(N91,data!$A87:$A1083,data!E87:E1083),"") ->  | G91: =IFERROR(IF(C91=0,kkk,(LOOKUP(N91,data!$A87:$A1083,data!AB87:AB1083))),"") ->  | H91: =IFERROR(LOOKUP(N91,data!$A87:$A1083,data!AC87:AC1083),"") ->  | I91: =IFERROR(LOOKUP(N91,data!$A87:$A1083,data!AI87:AI1083),"") ->  | M91: =IF($K$8=data!AB79,ROW(data!79:79)-3,"kkk") -> kkk
C92: =IFERROR(LOOKUP(N92,data!$A88:$A1084,data!B88:B1084),"") ->  | D92: =IFERROR(LOOKUP(N92,data!$A88:$A1084,data!C88:C1084),"") ->  | E92: =IFERROR(LOOKUP(N92,data!$A88:$A1084,data!D88:D1084),"") ->  | F92: =IFERROR(LOOKUP(N92,data!$A88:$A1084,data!E88:E1084),"") ->  | G92: =IFERROR(IF(C92=0,kkk,(LOOKUP(N92,data!$A88:$A1084,data!AB88:AB1084))),"") ->  | H92: =IFERROR(LOOKUP(N92,data!$A88:$A1084,data!AC88:AC1084),"") ->  | I92: =IFERROR(LOOKUP(N92,data!$A88:$A1084,data!AI88:AI1084),"") ->  | M92: =IF($K$8=data!AB80,ROW(data!80:80)-3,"kkk") -> 77
C93: =IFERROR(LOOKUP(N93,data!$A89:$A1085,data!B89:B1085),"") ->  | D93: =IFERROR(LOOKUP(N93,data!$A89:$A1085,data!C89:C1085),"") ->  | E93: =IFERROR(LOOKUP(N93,data!$A89:$A1085,data!D89:D1085),"") ->  | F93: =IFERROR(LOOKUP(N93,data!$A89:$A1085,data!E89:E1085),"") ->  | G93: =IFERROR(IF(C93=0,kkk,(LOOKUP(N93,data!$A89:$A1085,data!AB89:AB1085))),"") ->  | H93: =IFERROR(LOOKUP(N93,data!$A89:$A1085,data!AC89:AC1085),"") ->  | I93: =IFERROR(LOOKUP(N93,data!$A89:$A1085,data!AI89:AI1085),"") ->  | M93: =IF($K$8=data!AB81,ROW(data!81:81)-3,"kkk") -> 78
C94: =IFERROR(LOOKUP(N94,data!$A90:$A1086,data!B90:B1086),"") ->  | D94: =IFERROR(LOOKUP(N94,data!$A90:$A1086,data!C90:C1086),"") ->  | E94: =IFERROR(LOOKUP(N94,data!$A90:$A1086,data!D90:D1086),"") ->  | F94: =IFERROR(LOOKUP(N94,data!$A90:$A1086,data!E90:E1086),"") ->  | G94: =IFERROR(IF(C94=0,kkk,(LOOKUP(N94,data!$A90:$A1086,data!AB90:AB1086))),"") ->  | H94: =IFERROR(LOOKUP(N94,data!$A90:$A1086,data!AC90:AC1086),"") ->  | I94: =IFERROR(LOOKUP(N94,data!$A90:$A1086,data!AI90:AI1086),"") ->  | M94: =IF($K$8=data!AB82,ROW(data!82:82)-3,"kkk") -> 79
C95: =IFERROR(LOOKUP(N95,data!$A91:$A1087,data!B91:B1087),"") ->  | D95: =IFERROR(LOOKUP(N95,data!$A91:$A1087,data!C91:C1087),"") ->  | E95: =IFERROR(LOOKUP(N95,data!$A91:$A1087,data!D91:D1087),"") ->  | F95: =IFERROR(LOOKUP(N95,data!$A91:$A1087,data!E91:E1087),"") ->  | G95: =IFERROR(IF(C95=0,kkk,(LOOKUP(N95,data!$A91:$A1087,data!AB91:AB1087))),"") ->  | H95: =IFERROR(LOOKUP(N95,data!$A91:$A1087,data!AC91:AC1087),"") ->  | I95: =IFERROR(LOOKUP(N95,data!$A91:$A1087,data!AI91:AI1087),"") ->  | M95: =IF($K$8=data!AB83,ROW(data!83:83)-3,"kkk") -> kkk
C96: =IFERROR(LOOKUP(N96,data!$A92:$A1088,data!B92:B1088),"") ->  | D96: =IFERROR(LOOKUP(N96,data!$A92:$A1088,data!C92:C1088),"") ->  | E96: =IFERROR(LOOKUP(N96,data!$A92:$A1088,data!D92:D1088),"") ->  | F96: =IFERROR(LOOKUP(N96,data!$A92:$A1088,data!E92:E1088),"") ->  | G96: =IFERROR(IF(C96=0,kkk,(LOOKUP(N96,data!$A92:$A1088,data!AB92:AB1088))),"") ->  | H96: =IFERROR(LOOKUP(N96,data!$A92:$A1088,data!AC92:AC1088),"") ->  | I96: =IFERROR(LOOKUP(N96,data!$A92:$A1088,data!AI92:AI1088),"") ->  | M96: =IF($K$8=data!AB84,ROW(data!84:84)-3,"kkk") -> kkk
C97: =IFERROR(LOOKUP(N97,data!$A93:$A1089,data!B93:B1089),"") ->  | D97: =IFERROR(LOOKUP(N97,data!$A93:$A1089,data!C93:C1089),"") ->  | E97: =IFERROR(LOOKUP(N97,data!$A93:$A1089,data!D93:D1089),"") ->  | F97: =IFERROR(LOOKUP(N97,data!$A93:$A1089,data!E93:E1089),"") ->  | G97: =IFERROR(IF(C97=0,kkk,(LOOKUP(N97,data!$A93:$A1089,data!AB93:AB1089))),"") ->  | H97: =IFERROR(LOOKUP(N97,data!$A93:$A1089,data!AC93:AC1089),"") ->  | I97: =IFERROR(LOOKUP(N97,data!$A93:$A1089,data!AI93:AI1089),"") ->  | M97: =IF($K$8=data!AB85,ROW(data!85:85)-3,"kkk") -> kkk
C98: =IFERROR(LOOKUP(N98,data!$A94:$A1090,data!B94:B1090),"") ->  | D98: =IFERROR(LOOKUP(N98,data!$A94:$A1090,data!C94:C1090),"") ->  | E98: =IFERROR(LOOKUP(N98,data!$A94:$A1090,data!D94:D1090),"") ->  | F98: =IFERROR(LOOKUP(N98,data!$A94:$A1090,data!E94:E1090),"") ->  | G98: =IFERROR(IF(C98=0,kkk,(LOOKUP(N98,data!$A94:$A1090,data!AB94:AB1090))),"") ->  | H98: =IFERROR(LOOKUP(N98,data!$A94:$A1090,data!AC94:AC1090),"") ->  | I98: =IFERROR(LOOKUP(N98,data!$A94:$A1090,data!AI94:AI1090),"") ->  | M98: =IF($K$8=data!AB86,ROW(data!86:86)-3,"kkk") -> kkk
C99: =IFERROR(LOOKUP(N99,data!$A95:$A1091,data!B95:B1091),"") ->  | D99: =IFERROR(LOOKUP(N99,data!$A95:$A1091,data!C95:C1091),"") ->  | E99: =IFERROR(LOOKUP(N99,data!$A95:$A1091,data!D95:D1091),"") ->  | F99: =IFERROR(LOOKUP(N99,data!$A95:$A1091,data!E95:E1091),"") ->  | G99: =IFERROR(IF(C99=0,kkk,(LOOKUP(N99,data!$A95:$A1091,data!AB95:AB1091))),"") ->  | H99: =IFERROR(LOOKUP(N99,data!$A95:$A1091,data!AC95:AC1091),"") ->  | I99: =IFERROR(LOOKUP(N99,data!$A95:$A1091,data!AI95:AI1091),"") ->  | M99: =IF($K$8=data!AB87,ROW(data!87:87)-3,"kkk") -> kkk
C100: =IFERROR(LOOKUP(N100,data!$A96:$A1092,data!B96:B1092),"") ->  | D100: =IFERROR(LOOKUP(N100,data!$A96:$A1092,data!C96:C1092),"") ->  | E100: =IFERROR(LOOKUP(N100,data!$A96:$A1092,data!D96:D1092),"") ->  | F100: =IFERROR(LOOKUP(N100,data!$A96:$A1092,data!E96:E1092),"") ->  | G100: =IFERROR(IF(C100=0,kkk,(LOOKUP(N100,data!$A96:$A1092,data!AB96:AB1092))),"") ->  | H100: =IFERROR(LOOKUP(N100,data!$A96:$A1092,data!AC96:AC1092),"") ->  | I100: =IFERROR(LOOKUP(N100,data!$A96:$A1092,data!AI96:AI1092),"") ->  | M100: =IF($K$8=data!AB88,ROW(data!88:88)-3,"kkk") -> kkk
C101: =IFERROR(LOOKUP(N101,data!$A97:$A1093,data!B97:B1093),"") ->  | D101: =IFERROR(LOOKUP(N101,data!$A97:$A1093,data!C97:C1093),"") ->  | E101: =IFERROR(LOOKUP(N101,data!$A97:$A1093,data!D97:D1093),"") ->  | F101: =IFERROR(LOOKUP(N101,data!$A97:$A1093,data!E97:E1093),"") ->  | G101: =IFERROR(IF(C101=0,kkk,(LOOKUP(N101,data!$A97:$A1093,data!AB97:AB1093))),"") ->  | H101: =IFERROR(LOOKUP(N101,data!$A97:$A1093,data!AC97:AC1093),"") ->  | I101: =IFERROR(LOOKUP(N101,data!$A97:$A1093,data!AI97:AI1093),"") ->  | M101: =IF($K$8=data!AB89,ROW(data!89:89)-3,"kkk") -> kkk
C102: =IFERROR(LOOKUP(N102,data!$A98:$A1094,data!B98:B1094),"") ->  | D102: =IFERROR(LOOKUP(N102,data!$A98:$A1094,data!C98:C1094),"") ->  | E102: =IFERROR(LOOKUP(N102,data!$A98:$A1094,data!D98:D1094),"") ->  | F102: =IFERROR(LOOKUP(N102,data!$A98:$A1094,data!E98:E1094),"") ->  | G102: =IFERROR(IF(C102=0,kkk,(LOOKUP(N102,data!$A98:$A1094,data!AB98:AB1094))),"") ->  | H102: =IFERROR(LOOKUP(N102,data!$A98:$A1094,data!AC98:AC1094),"") ->  | I102: =IFERROR(LOOKUP(N102,data!$A98:$A1094,data!AI98:AI1094),"") ->  | M102: =IF($K$8=data!AB90,ROW(data!90:90)-3,"kkk") -> kkk
C103: =IFERROR(LOOKUP(N103,data!$A99:$A1095,data!B99:B1095),"") ->  | D103: =IFERROR(LOOKUP(N103,data!$A99:$A1095,data!C99:C1095),"") ->  | E103: =IFERROR(LOOKUP(N103,data!$A99:$A1095,data!D99:D1095),"") ->  | F103: =IFERROR(LOOKUP(N103,data!$A99:$A1095,data!E99:E1095),"") ->  | G103: =IFERROR(IF(C103=0,kkk,(LOOKUP(N103,data!$A99:$A1095,data!AB99:AB1095))),"") ->  | H103: =IFERROR(LOOKUP(N103,data!$A99:$A1095,data!AC99:AC1095),"") ->  | I103: =IFERROR(LOOKUP(N103,data!$A99:$A1095,data!AI99:AI1095),"") ->  | M103: =IF($K$8=data!AB91,ROW(data!91:91)-3,"kkk") -> kkk
C104: =IFERROR(LOOKUP(N104,data!$A100:$A1096,data!B100:B1096),"") ->  | D104: =IFERROR(LOOKUP(N104,data!$A100:$A1096,data!C100:C1096),"") ->  | E104: =IFERROR(LOOKUP(N104,data!$A100:$A1096,data!D100:D1096),"") ->  | F104: =IFERROR(LOOKUP(N104,data!$A100:$A1096,data!E100:E1096),"") ->  | G104: =IFERROR(IF(C104=0,kkk,(LOOKUP(N104,data!$A100:$A1096,data!AB100:AB1096))),"") ->  | H104: =IFERROR(LOOKUP(N104,data!$A100:$A1096,data!AC100:AC1096),"") ->  | I104: =IFERROR(LOOKUP(N104,data!$A100:$A1096,data!AI100:AI1096),"") ->  | M104: =IF($K$8=data!AB92,ROW(data!92:92)-3,"kkk") -> kkk
C105: =IFERROR(LOOKUP(N105,data!$A101:$A1097,data!B101:B1097),"") ->  | D105: =IFERROR(LOOKUP(N105,data!$A101:$A1097,data!C101:C1097),"") ->  | E105: =IFERROR(LOOKUP(N105,data!$A101:$A1097,data!D101:D1097),"") ->  | F105: =IFERROR(LOOKUP(N105,data!$A101:$A1097,data!E101:E1097),"") ->  | G105: =IFERROR(IF(C105=0,kkk,(LOOKUP(N105,data!$A101:$A1097,data!AB101:AB1097))),"") ->  | H105: =IFERROR(LOOKUP(N105,data!$A101:$A1097,data!AC101:AC1097),"") ->  | I105: =IFERROR(LOOKUP(N105,data!$A101:$A1097,data!AI101:AI1097),"") ->  | M105: =IF($K$8=data!AB93,ROW(data!93:93)-3,"kkk") -> kkk
C106: =IFERROR(LOOKUP(N106,data!$A102:$A1098,data!B102:B1098),"") ->  | D106: =IFERROR(LOOKUP(N106,data!$A102:$A1098,data!C102:C1098),"") ->  | E106: =IFERROR(LOOKUP(N106,data!$A102:$A1098,data!D102:D1098),"") ->  | F106: =IFERROR(LOOKUP(N106,data!$A102:$A1098,data!E102:E1098),"") ->  | G106: =IFERROR(IF(C106=0,kkk,(LOOKUP(N106,data!$A102:$A1098,data!AB102:AB1098))),"") ->  | H106: =IFERROR(LOOKUP(N106,data!$A102:$A1098,data!AC102:AC1098),"") ->  | I106: =IFERROR(LOOKUP(N106,data!$A102:$A1098,data!AI102:AI1098),"") ->  | M106: =IF($K$8=data!#REF!,ROW(data!#REF!)-3,"kkk") -> 
C107: =IFERROR(LOOKUP(N107,data!$A103:$A1099,data!B103:B1099),"") ->  | D107: =IFERROR(LOOKUP(N107,data!$A103:$A1099,data!C103:C1099),"") ->  | E107: =IFERROR(LOOKUP(N107,data!$A103:$A1099,data!D103:D1099),"") ->  | F107: =IFERROR(LOOKUP(N107,data!$A103:$A1099,data!E103:E1099),"") ->  | G107: =IFERROR(IF(C107=0,kkk,(LOOKUP(N107,data!$A103:$A1099,data!AB103:AB1099))),"") ->  | H107: =IFERROR(LOOKUP(N107,data!$A103:$A1099,data!AC103:AC1099),"") ->  | I107: =IFERROR(LOOKUP(N107,data!$A103:$A1099,data!AI103:AI1099),"") ->  | M107: =IF($K$8=data!#REF!,ROW(data!#REF!)-3,"kkk") -> 
C108: =IFERROR(LOOKUP(N108,data!$A104:$A1100,data!B104:B1100),"") ->  | D108: =IFERROR(LOOKUP(N108,data!$A104:$A1100,data!C104:C1100),"") ->  | E108: =IFERROR(LOOKUP(N108,data!$A104:$A1100,data!D104:D1100),"") ->  | F108: =IFERROR(LOOKUP(N108,data!$A104:$A1100,data!E104:E1100),"") ->  | G108: =IFERROR(IF(C108=0,kkk,(LOOKUP(N108,data!$A104:$A1100,data!AB104:AB1100))),"") ->  | H108: =IFERROR(LOOKUP(N108,data!$A104:$A1100,data!AC104:AC1100),"") ->  | I108: =IFERROR(LOOKUP(N108,data!$A104:$A1100,data!AI104:AI1100),"") ->  | M108: =IF($K$8=data!#REF!,ROW(data!#REF!)-3,"kkk") -> 
C109: =IFERROR(LOOKUP(N109,data!$A105:$A1101,data!B105:B1101),"") ->  | D109: =IFERROR(LOOKUP(N109,data!$A105:$A1101,data!C105:C1101),"") ->  | E109: =IFERROR(LOOKUP(N109,data!$A105:$A1101,data!D105:D1101),"") ->  | F109: =IFERROR(LOOKUP(N109,data!$A105:$A1101,data!E105:E1101),"") ->  | G109: =IFERROR(IF(C109=0,kkk,(LOOKUP(N109,data!$A105:$A1101,data!AB105:AB1101))),"") ->  | H109: =IFERROR(LOOKUP(N109,data!$A105:$A1101,data!AC105:AC1101),"") ->  | I109: =IFERROR(LOOKUP(N109,data!$A105:$A1101,data!AI105:AI1101),"") ->  | M109: =IF($K$8=data!#REF!,ROW(data!#REF!)-3,"kkk") -> 
C110: =IFERROR(LOOKUP(N110,data!$A106:$A1102,data!B106:B1102),"") ->  | D110: =IFERROR(LOOKUP(N110,data!$A106:$A1102,data!C106:C1102),"") ->  | E110: =IFERROR(LOOKUP(N110,data!$A106:$A1102,data!D106:D1102),"") ->  | F110: =IFERROR(LOOKUP(N110,data!$A106:$A1102,data!E106:E1102),"") ->  | G110: =IFERROR(IF(C110=0,kkk,(LOOKUP(N110,data!$A106:$A1102,data!AB106:AB1102))),"") ->  | H110: =IFERROR(LOOKUP(N110,data!$A106:$A1102,data!AC106:AC1102),"") ->  | I110: =IFERROR(LOOKUP(N110,data!$A106:$A1102,data!AI106:AI1102),"") ->  | M110: =IF($K$8=data!#REF!,ROW(data!#REF!)-3,"kkk") -> 
C111: =IFERROR(LOOKUP(N111,data!$A107:$A1103,data!B107:B1103),"") ->  | D111: =IFERROR(LOOKUP(N111,data!$A107:$A1103,data!C107:C1103),"") ->  | E111: =IFERROR(LOOKUP(N111,data!$A107:$A1103,data!D107:D1103),"") ->  | F111: =IFERROR(LOOKUP(N111,data!$A107:$A1103,data!E107:E1103),"") ->  | G111: =IFERROR(IF(C111=0,kkk,(LOOKUP(N111,data!$A107:$A1103,data!AB107:AB1103))),"") ->  | H111: =IFERROR(LOOKUP(N111,data!$A107:$A1103,data!AC107:AC1103),"") ->  | I111: =IFERROR(LOOKUP(N111,data!$A107:$A1103,data!AI107:AI1103),"") ->  | M111: =IF($K$8=data!#REF!,ROW(data!#REF!)-3,"kkk") -> 
C112: =IFERROR(LOOKUP(N112,data!$A108:$A1104,data!B108:B1104),"") ->  | D112: =IFERROR(LOOKUP(N112,data!$A108:$A1104,data!C108:C1104),"") ->  | E112: =IFERROR(LOOKUP(N112,data!$A108:$A1104,data!D108:D1104),"") ->  | F112: =IFERROR(LOOKUP(N112,data!$A108:$A1104,data!E108:E1104),"") ->  | G112: =IFERROR(IF(C112=0,kkk,(LOOKUP(N112,data!$A108:$A1104,data!AB108:AB1104))),"") ->  | H112: =IFERROR(LOOKUP(N112,data!$A108:$A1104,data!AC108:AC1104),"") ->  | I112: =IFERROR(LOOKUP(N112,data!$A108:$A1104,data!AI108:AI1104),"") ->  | M112: =IF($K$8=data!#REF!,ROW(data!#REF!)-3,"kkk") -> 
C113: =IFERROR(LOOKUP(N113,data!$A109:$A1105,data!B109:B1105),"") ->  | D113: =IFERROR(LOOKUP(N113,data!$A109:$A1105,data!C109:C1105),"") ->  | E113: =IFERROR(LOOKUP(N113,data!$A109:$A1105,data!D109:D1105),"") ->  | F113: =IFERROR(LOOKUP(N113,data!$A109:$A1105,data!E109:E1105),"") ->  | G113: =IFERROR(IF(C113=0,kkk,(LOOKUP(N113,data!$A109:$A1105,data!AB109:AB1105))),"") ->  | H113: =IFERROR(LOOKUP(N113,data!$A109:$A1105,data!AC109:AC1105),"") ->  | I113: =IFERROR(LOOKUP(N113,data!$A109:$A1105,data!AI109:AI1105),"") ->  | M113: =IF($K$8=data!#REF!,ROW(data!#REF!)-3,"kkk") -> 
C114: =IFERROR(LOOKUP(N114,data!$A110:$A1106,data!B110:B1106),"") ->  | D114: =IFERROR(LOOKUP(N114,data!$A110:$A1106,data!C110:C1106),"") ->  | E114: =IFERROR(LOOKUP(N114,data!$A110:$A1106,data!D110:D1106),"") ->  | F114: =IFERROR(LOOKUP(N114,data!$A110:$A1106,data!E110:E1106),"") ->  | G114: =IFERROR(IF(C114=0,kkk,(LOOKUP(N114,data!$A110:$A1106,data!AB110:AB1106))),"") ->  | H114: =IFERROR(LOOKUP(N114,data!$A110:$A1106,data!AC110:AC1106),"") ->  | I114: =IFERROR(LOOKUP(N114,data!$A110:$A1106,data!AI110:AI1106),"") ->  | M114: =IF($K$8=data!#REF!,ROW(data!#REF!)-3,"kkk") -> 
C115: =IFERROR(LOOKUP(N115,data!$A111:$A1107,data!B111:B1107),"") ->  | D115: =IFERROR(LOOKUP(N115,data!$A111:$A1107,data!C111:C1107),"") ->  | E115: =IFERROR(LOOKUP(N115,data!$A111:$A1107,data!D111:D1107),"") ->  | F115: =IFERROR(LOOKUP(N115,data!$A111:$A1107,data!E111:E1107),"") ->  | G115: =IFERROR(IF(C115=0,kkk,(LOOKUP(N115,data!$A111:$A1107,data!AB111:AB1107))),"") ->  | H115: =IFERROR(LOOKUP(N115,data!$A111:$A1107,data!AC111:AC1107),"") ->  | I115: =IFERROR(LOOKUP(N115,data!$A111:$A1107,data!AI111:AI1107),"") ->  | M115: =IF($K$8=data!#REF!,ROW(data!#REF!)-3,"kkk") -> 
C116: =IFERROR(LOOKUP(N116,data!$A112:$A1108,data!B112:B1108),"") ->  | D116: =IFERROR(LOOKUP(N116,data!$A112:$A1108,data!C112:C1108),"") ->  | E116: =IFERROR(LOOKUP(N116,data!$A112:$A1108,data!D112:D1108),"") ->  | F116: =IFERROR(LOOKUP(N116,data!$A112:$A1108,data!E112:E1108),"") ->  | G116: =IFERROR(IF(C116=0,kkk,(LOOKUP(N116,data!$A112:$A1108,data!AB112:AB1108))),"") ->  | H116: =IFERROR(LOOKUP(N116,data!$A112:$A1108,data!AC112:AC1108),"") ->  | I116: =IFERROR(LOOKUP(N116,data!$A112:$A1108,data!AI112:AI1108),"") ->  | M116: =IF($K$8=data!#REF!,ROW(data!#REF!)-3,"kkk") -> 
C117: =IFERROR(LOOKUP(N117,data!$A113:$A1109,data!B113:B1109),"") ->  | D117: =IFERROR(LOOKUP(N117,data!$A113:$A1109,data!C113:C1109),"") ->  | E117: =IFERROR(LOOKUP(N117,data!$A113:$A1109,data!D113:D1109),"") ->  | F117: =IFERROR(LOOKUP(N117,data!$A113:$A1109,data!E113:E1109),"") ->  | G117: =IFERROR(IF(C117=0,kkk,(LOOKUP(N117,data!$A113:$A1109,data!AB113:AB1109))),"") ->  | H117: =IFERROR(LOOKUP(N117,data!$A113:$A1109,data!AC113:AC1109),"") ->  | I117: =IFERROR(LOOKUP(N117,data!$A113:$A1109,data!AI113:AI1109),"") ->  | M117: =IF($K$8=data!#REF!,ROW(data!#REF!)-3,"kkk") -> 
C118: =IFERROR(LOOKUP(N118,data!$A114:$A1110,data!B114:B1110),"") ->  | D118: =IFERROR(LOOKUP(N118,data!$A114:$A1110,data!C114:C1110),"") ->  | E118: =IFERROR(LOOKUP(N118,data!$A114:$A1110,data!D114:D1110),"") ->  | F118: =IFERROR(LOOKUP(N118,data!$A114:$A1110,data!E114:E1110),"") ->  | G118: =IFERROR(IF(C118=0,kkk,(LOOKUP(N118,data!$A114:$A1110,data!AB114:AB1110))),"") ->  | H118: =IFERROR(LOOKUP(N118,data!$A114:$A1110,data!AC114:AC1110),"") ->  | I118: =IFERROR(LOOKUP(N118,data!$A114:$A1110,data!AI114:AI1110),"") ->  | M118: =IF($K$8=data!#REF!,ROW(data!#REF!)-3,"kkk") -> 
C119: =IFERROR(LOOKUP(N119,data!$A115:$A1111,data!B115:B1111),"") ->  | D119: =IFERROR(LOOKUP(N119,data!$A115:$A1111,data!C115:C1111),"") ->  | E119: =IFERROR(LOOKUP(N119,data!$A115:$A1111,data!D115:D1111),"") ->  | F119: =IFERROR(LOOKUP(N119,data!$A115:$A1111,data!E115:E1111),"") ->  | G119: =IFERROR(IF(C119=0,kkk,(LOOKUP(N119,data!$A115:$A1111,data!AB115:AB1111))),"") ->  | H119: =IFERROR(LOOKUP(N119,data!$A115:$A1111,data!AC115:AC1111),"") ->  | I119: =IFERROR(LOOKUP(N119,data!$A115:$A1111,data!AI115:AI1111),"") ->  | M119: =IF($K$8=data!#REF!,ROW(data!#REF!)-3,"kkk") -> 
